Workbook

Sheet Introduction
C4: Joint Monitoring Programme for Water Supply, Sanitation and Hygiene
C6: Estimates on household water, sanitation and hygiene by wealth quintile and sub-national region in
C7: =+Water!B5 -> Zambia
C9: Updated April 2021
C11: Follow the links below to find the following information:
C13: JMP Estimates
C14: WASH status and trends by wealth quintile (customized quintiles made without water and sanitation assets)
C15: Water
C16: Sanitation
C17: Hygiene
C19: Data inputs
C20: customized wealth quintiles and subnational data:
C21: =IF(INDIRECT(CONCATENATE("Water","!B105"))=0,"",INDIRECT(CONCATENATE("Water","!B105"))) -> DHS02
C22: =IF(INDIRECT(CONCATENATE("Water","!B106"))=0,"",INDIRECT(CONCATENATE("Water","!B106"))) -> WHS03
C23: =IF(INDIRECT(CONCATENATE("Water","!B107"))=0,"",INDIRECT(CONCATENATE("Water","!B107"))) -> DHS07
C24: =IF(INDIRECT(CONCATENATE("Water","!B108"))=0,"",INDIRECT(CONCATENATE("Water","!B108"))) -> DHS14
C25: =IF(INDIRECT(CONCATENATE("Water","!B109"))=0,"",INDIRECT(CONCATENATE("Water","!B109"))) -> DHS18
C26: =IF(INDIRECT(CONCATENATE("Water","!B110"))=0,"",INDIRECT(CONCATENATE("Water","!B110"))) -> 
C27: =IF(INDIRECT(CONCATENATE("Water","!B111"))=0,"",INDIRECT(CONCATENATE("Water","!B111"))) -> 
C28: =IF(INDIRECT(CONCATENATE("Water","!B112"))=0,"",INDIRECT(CONCATENATE("Water","!B112"))) -> 
C29: =IF(INDIRECT(CONCATENATE("Water","!B113"))=0,"",INDIRECT(CONCATENATE("Water","!B113"))) -> 
C30: =IF(INDIRECT(CONCATENATE("Water","!B114"))=0,"",INDIRECT(CONCATENATE("Water","!B114"))) -> 
C31: =IF(INDIRECT(CONCATENATE("Water","!B115"))=0,"",INDIRECT(CONCATENATE("Water","!B115"))) -> 
C32: =IF(INDIRECT(CONCATENATE("Water","!B116"))=0,"",INDIRECT(CONCATENATE("Water","!B116"))) -> 
L55: =+IF(ISNUMBER(M48), "", "Insufficient data to estimate safely managed sanitation services at national level") -> Insufficient data to estimate safely managed sanitation services at national level

Sheet Water
A1: BGD
B4: Summary of trends in use of drinking water by wealth quintile (%)
B5: =IF(ISERROR(INDIRECT(CONCATENATE($B105,"!A2"))),"",INDIRECT(CONCATENATE($B105,"!A2"))) -> Zambia
B7: =B118 -> National use of drinking water sources, 2000–2020 | J7: =B218 -> Urban use of drinking water sources, 2000–2020 | R7: =B318 -> Rural use of drinking water sources, 2000–2020
B31: =IF(ISERROR(INDIRECT(CONCATENATE($B105,"!A2"))),"",INDIRECT(CONCATENATE($B105,"!A2"))) -> Zambia | F31: Poorest | J31: Poor | N31: Middle | R31: Rich | V31: Richest
F32: Basic | G32: Limited | H32: Unimproved | I32: Surface water | J32: Basic | K32: Limited | L32: Unimproved | M32: Surface water | N32: Basic | O32: Limited | P32: Unimproved | Q32: Surface water | R32: Basic | S32: Limited | T32: Unimproved | U32: Surface water | V32: Basic | W32: Limited | X32: Unimproved | Y32: Surface water
B33: NATIONAL | D33: Estimate | E33: =C99 -> 2000 | F33: =E99 -> 23.5611457 | G33: =F99 -> 3.979039042 | H33: 45.19296809 | I33: 27.26684717 | J33: =J99 -> 24.83809429 | K33: =K99 -> 4.348915896 | L33: 43.82137085 | M33: 26.99161896 | N33: =O99 -> 35.8186691 | O33: =P99 -> 6.004175199 | P33: 36.23211331 | Q33: 21.94504239 | R33: =T99 -> 66.05019005 | S33: =U99 -> 4.368258064 | T33: 24.58721662 | U33: 4.994335271 | V33: =Y99 -> 92.14854883 | W33: =Z99 -> 2.248663509 | X33: 4.871869798 | Y33: 0.7309178667
E34: =C100 -> 2020 | F34: =E100 -> 40.82871029 | G34: 6.895209358 | H34: 36.99662567 | I34: 15.27945468 | J34: =J100 -> 47.88446352 | K34: 8.384117645 | L34: 31.04869172 | M34: 12.68272712 | N34: =O100 -> 59.59631495 | O34: 9.989950077 | P34: 23.82012152 | Q34: 6.593613456 | R34: =T100 -> 81.07550638 | S34: 5.361963899 | T34: 11.7135075 | U34: 1.849022219 | V34: =Y100 -> 93.82349015 | W34: 2.28953642 | X34: 3.529469519 | Y34: 0.3575039076
B36: URBAN | D36: Estimate | E36: =C199 -> 2000 | F36: =E199 -> 72.8093186 | G36: =F199 -> 5.813880246 | H36: 17.24407024 | I36: 4.132730915 | J36: =J199 -> 82.92744765 | K36: =K199 -> 4.269548582 | L36: 10.53628713 | M36: 2.266716633 | N36: =O199 -> 85.11348751 | O36: =P199 -> 3.850598828 | P36: 10.16610992 | Q36: 0.8698037465 | R36: =T199 -> 93.07774234 | S36: =U199 -> 2.192170487 | T36: 4.06587206 | U36: 0.6642151075 | V36: =Y199 -> 95.02040008 | W36: =Z199 -> 1.041467643 | X36: 3.80664196 | Y36: 0.1314903158
E37: =C200 -> 2020 | F37: =E200 -> 69.6532747 | G37: 5.561867706 | H37: 22.06631298 | I37: 2.71854462 | J37: =J200 -> 84.73440688 | K37: 4.362580508 | L37: 10.90301261 | M37: 0 | N37: =O200 -> 89.54923556 | O37: 4.05127544 | P37: 6.399489002 | Q37: 0 | R37: =T200 -> 93.02004395 | S37: 2.190811572 | T37: 4.703383293 | U37: 0.08576118865 | V37: =Y200 -> 98.38579394 | W37: 1.07835392 | X37: 0.5358521382 | Y37: 0
B39: RURAL | D39: Estimate | E39: =C299 -> 2000 | F39: =E299 -> 23.40234299 | G39: =F299 -> 3.893275285 | H39: 45.4127505 | I39: 27.29163123 | J39: =J299 -> 23.55185356 | K39: =K299 -> 4.161321331 | L39: 45.59268124 | M39: 26.69414387 | N39: =O299 -> 24.60733178 | O39: =P299 -> 4.574402425 | P39: 42.76054523 | Q39: 28.05772056 | R39: =T299 -> 27.0995902 | S39: =U299 -> 5.466892076 | T39: 40.96520278 | U39: 26.46831494 | V39: =Y299 -> 45.17666851 | W39: =Z299 -> 5.549588435 | X39: 37.01523951 | Y39: 12.25850354
E40: =C300 -> 2020 | F40: =E300 -> 38.58264766 | G40: 6.418710665 | H40: 38.46083992 | I40: 16.53780176 | J40: =J300 -> 43.44932062 | K40: 7.676957751 | L40: 34.43819715 | M40: 14.43552448 | N40: =O300 -> 47.19650608 | O40: 8.773637623 | P40: 31.17766801 | Q40: 12.85218828 | R40: =T300 -> 52.67513816 | S40: 10.62633395 | T40: 26.56041536 | U40: 10.13811253 | V40: =Y300 -> 64.52149484 | W40: 7.925943929 | X40: 20.41979003 | Y40: 7.132771203
A97: NATIONAL | D97: Poorest | I97: Poor | N97: Middle | S97: Rich | X97: Richest
D98: Improved | E98: Basic | F98: Limited | G98: Unimproved | H98: Surface water | I98: Improved | J98: Basic | K98: Limited | L98: Unimproved | M98: Surface water | N98: Improved | O98: Basic | P98: Limited | Q98: Unimproved | R98: Surface water | S98: Improved | T98: Basic | U98: Limited | V98: Unimproved | W98: Surface water | X98: Improved | Y98: Basic | Z98: Limited | AA98: Unimproved | AB98: Surface water
A99: Forecast period: | C99: 2000 | D99: =IF((D101+H101)>100,D101*100/(D101+H101),D101) -> 27.54018474 | E99: =D99*AVERAGEIF(E105:E116,">0")/100 -> 23.5611457 | F99: =D99*(100-AVERAGEIF(E105:E116,">0"))/100 -> 3.979039042 | G99: =100-(E99+F99+H99) -> 45.19296809 | H99: =IF((D101+H101)>100,H101*100/(D101+H101),H101) -> 27.26684717 | I99: =IF((I101+M101)>100,I101*100/(I101+M101),I101) -> 29.18701018 | J99: =I99*AVERAGEIF(J105:J116,">0")/100 -> 24.83809429 | K99: =I99*(100-AVERAGEIF(J105:J116,">0"))/100 -> 4.348915896 | L99: =100-(J99+K99+M99) -> 43.82137085 | M99: =IF((I101+M101)>100,M101*100/(I101+M101),M101) -> 26.99161896 | N99: =IF((N101+R101)>100,N101*100/(N101+R101),N101) -> 41.8228443 | O99: =N99*AVERAGEIF(O105:O116,">0")/100 -> 35.8186691 | P99: =N99*(100-AVERAGEIF(O105:O116,">0"))/100 -> 6.004175199 | Q99: =100-(O99+P99+R99) -> 36.23211331 | R99: =IF((N101+R101)>100,R101*100/(N101+R101),R101) -> 21.94504239 | S99: =IF((S101+W101)>100,S101*100/(S101+W101),S101) -> 70.41844811 | T99: =S99*AVERAGEIF(T105:T116,">0")/100 -> 66.05019005 | U99: =S99*(100-AVERAGEIF(T105:T116,">0"))/100 -> 4.368258064 | V99: =100-(T99+U99+W99) -> 24.58721662 | W99: =IF((S101+W101)>100,W101*100/(S101+W101),W101) -> 4.994335271 | X99: =IF((X101+AB101)>100,X101*100/(X101+AB101),X101) -> 94.39721234 | Y99: =X99*AVERAGEIF(Y105:Y116,">0")/100 -> 92.14854883 | Z99: =X99*(100-AVERAGEIF(Y105:Y116,">0"))/100 -> 2.248663509 | AA99: =100-(Y99+Z99+AB99) -> 4.871869798 | AB99: =IF((X101+AB101)>100,AB101*100/(X101+AB101),AB101) -> 0.7309178667
C100: 2020 | D100: =IF((D102+H102)>100,D102*100/(D102+H102),D102) -> 47.72391965 | E100: =D100*AVERAGEIF(E105:E116,">0")/100 -> 40.82871029 | F100: =D100*(100-AVERAGEIF(E105:E116,">0"))/100 -> 6.895209358 | G100: =100-(E100+F100+H100) -> 36.99662567 | H100: =IF((D102+H102)>100,H102*100/(D102+H102),H102) -> 15.27945468 | I100: =IF((I102+M102)>100,I102*100/(I102+M102),I102) -> 56.26858116 | J100: =I100*AVERAGEIF(J105:J116,">0")/100 -> 47.88446352 | K100: =I100*(100-AVERAGEIF(J105:J116,">0"))/100 -> 8.384117645 | L100: =100-(J100+K100+M100) -> 31.04869172 | M100: =IF((I102+M102)>100,M102*100/(I102+M102),M102) -> 12.68272712 | N100: =IF((N102+R102)>100,N102*100/(N102+R102),N102) -> 69.58626503 | O100: =N100*AVERAGEIF(O105:O116,">0")/100 -> 59.59631495 | P100: =N100*(100-AVERAGEIF(O105:O116,">0"))/100 -> 9.989950077 | Q100: =100-(O100+P100+R100) -> 23.82012152 | R100: =IF((N102+R102)>100,R102*100/(N102+R102),R102) -> 6.593613456 | S100: =IF((S102+W102)>100,S102*100/(S102+W102),S102) -> 86.43747028 | T100: =S100*AVERAGEIF(T105:T116,">0")/100 -> 81.07550638 | U100: =S100*(100-AVERAGEIF(T105:T116,">0"))/100 -> 5.361963899 | V100: =100-(T100+U100+W100) -> 11.7135075 | W100: =IF((S102+W102)>100,W102*100/(S102+W102),W102) -> 1.849022219 | X100: =IF((X102+AB102)>100,X102*100/(X102+AB102),X102) -> 96.11302657 | Y100: =X100*AVERAGEIF(Y105:Y116,">0")/100 -> 93.82349015 | Z100: =X100*(100-AVERAGEIF(Y105:Y116,">0"))/100 -> 2.28953642 | AA100: =100-(Y100+Z100+AB100) -> 3.529469519 | AB100: =IF((X102+AB102)>100,AB102*100/(X102+AB102),AB102) -> 0.3575039076
A101: Regression period: | C101: =MinRegYear(C99,C105:C116) -> 2000 | D101: =IF(MAX(C105:C116)-MIN(C105:C116)<5,AVERAGEIF(C105:C116,">0",D105:D116), IF(FORECAST($C101,D$105:D$116,$C$105:$C$116)<0,0, IF(FORECAST($C101,D$105:D$116,$C$105:$C$116)>100,100, FORECAST($C101,D$105:D$116,$C$105:$C$116)))) -> 27.54018474 | H101: =IF(MAX(C105:C116)-MIN(C105:C116)<5,AVERAGEIF(C105:C116,">0",H105:H116), IF(FORECAST($C101,H$105:H$116,$C$105:$C$116)<0,0, IF(FORECAST($C101,H$105:H$116,$C$105:$C$116)>100,100, FORECAST($C101,H$105:H$116,$C$105:$C$116)))) -> 27.26684717 | I101: =IF(MAX(C105:C116)-MIN(C105:C116)<5,AVERAGEIF(C105:C116,">0",I105:I116), IF(FORECAST($C101,I$105:I$116,$C$105:$C$116)<0,0, IF(FORECAST($C101,I$105:I$116,$C$105:$C$116)>100,100, FORECAST($C101,I$105:I$116,$C$105:$C$116)))) -> 29.18701018 | M101: =IF(MAX(C105:C116)-MIN(C105:C116)<5,AVERAGEIF(C105:C116,">0",M105:M116), IF(FORECAST($C101,M$105:M$116,$C$105:$C$116)<0,0, IF(FORECAST($C101,M$105:M$116,$C$105:$C$116)>100,100, FORECAST($C101,M$105:M$116,$C$105:$C$116)))) -> 26.99161896 | N101: =IF(MAX(C105:C116)-MIN(C105:C116)<5,AVERAGEIF(C105:C116,">0",N105:N116), IF(FORECAST($C101,N$105:N$116,$C$105:$C$116)<0,0, IF(FORECAST($C101,N$105:N$116,$C$105:$C$116)>100,100, FORECAST($C101,N$105:N$116,$C$105:$C$116)))) -> 41.8228443 | R101: =IF(MAX(C105:C116)-MIN(C105:C116)<5,AVERAGEIF(C105:C116,">0",R105:R116), IF(FORECAST($C101,R$105:R$116,$C$105:$C$116)<0,0, IF(FORECAST($C101,R$105:R$116,$C$105:$C$116)>100,100, FORECAST($C101,R$105:R$116,$C$105:$C$116)))) -> 21.94504239 | S101: =IF(MAX(C105:C116)-MIN(C105:C116)<5,AVERAGEIF(C105:C116,">0",S105:S116), IF(FORECAST($C101,S$105:S$116,$C$105:$C$116)<0,0, IF(FORECAST($C101,S$105:S$116,$C$105:$C$116)>100,100, FORECAST($C101,S$105:S$116,$C$105:$C$116)))) -> 70.41844811 | W101: =IF(MAX(C105:C116)-MIN(C105:C116)<5,AVERAGEIF(C105:C116,">0",W105:W116), IF(FORECAST($C101,W$105:W$116,$C$105:$C$116)<0,0, IF(FORECAST($C101,W$105:W$116,$C$105:$C$116)>100,100, FORECAST($C101,W$105:W$116,$C$105:$C$116)))) -> 4.994335271 | X101: =IF(MAX(C105:C116)-MIN(C105:C116)<5,AVERAGEIF(C105:C116,">0",X105:X116), IF(FORECAST($C101,X$105:X$116,$C$105:$C$116)<0,0, IF(FORECAST($C101,X$105:X$116,$C$105:$C$116)>100,100, FORECAST($C101,X$105:X$116,$C$105:$C$116)))) -> 94.39721234 | AB101: =IF(MAX(C105:C116)-MIN(C105:C116)<5,AVERAGEIF(C105:C116,">0",AB105:AB116), IF(FORECAST($C101,AB$105:AB$116,$C$105:$C$116)<0,0, IF(FORECAST($C101,AB$105:AB$116,$C$105:$C$116)>100,100, FORECAST($C101,AB$105:AB$116,$C$105:$C$116)))) -> 0.7309178667
C102: =MaxRegYear(C100,C105:C116) -> 2020 | D102: =IF(MAX(C105:C116)-MIN(C105:C116)<5,AVERAGEIF(C105:C116,">0",D105:D116), IF(FORECAST($C102,D$105:D$116,$C$105:$C$116)<0,0, IF(FORECAST($C102,D$105:D$116,$C$105:$C$116)>100,100, FORECAST($C102,D$105:D$116,$C$105:$C$116)))) -> 47.72391965 | H102: =IF(MAX(C105:C116)-MIN(C105:C116)<5,AVERAGEIF(C105:C116,">0",H105:H116), IF(FORECAST($C102,H$105:H$116,$C$105:$C$116)<0,0, IF(FORECAST($C102,H$105:H$116,$C$105:$C$116)>100,100, FORECAST($C102,H$105:H$116,$C$105:$C$116)))) -> 15.27945468 | I102: =IF(MAX(C105:C116)-MIN(C105:C116)<5,AVERAGEIF(C105:C116,">0",I105:I116), IF(FORECAST($C102,I$105:I$116,$C$105:$C$116)<0,0, IF(FORECAST($C102,I$105:I$116,$C$105:$C$116)>100,100, FORECAST($C102,I$105:I$116,$C$105:$C$116)))) -> 56.26858116 | M102: =IF(MAX(C105:C116)-MIN(C105:C116)<5,AVERAGEIF(C105:C116,">0",M105:M116), IF(FORECAST($C102,M$105:M$116,$C$105:$C$116)<0,0, IF(FORECAST($C102,M$105:M$116,$C$105:$C$116)>100,100, FORECAST($C102,M$105:M$116,$C$105:$C$116)))) -> 12.68272712 | N102: =IF(MAX(C105:C116)-MIN(C105:C116)<5,AVERAGEIF(C105:C116,">0",N105:N116), IF(FORECAST($C102,N$105:N$116,$C$105:$C$116)<0,0, IF(FORECAST($C102,N$105:N$116,$C$105:$C$116)>100,100, FORECAST($C102,N$105:N$116,$C$105:$C$116)))) -> 69.58626503 | R102: =IF(MAX(C105:C116)-MIN(C105:C116)<5,AVERAGEIF(C105:C116,">0",R105:R116), IF(FORECAST($C102,R$105:R$116,$C$105:$C$116)<0,0, IF(FORECAST($C102,R$105:R$116,$C$105:$C$116)>100,100, FORECAST($C102,R$105:R$116,$C$105:$C$116)))) -> 6.593613456 | S102: =IF(MAX(C105:C116)-MIN(C105:C116)<5,AVERAGEIF(C105:C116,">0",S105:S116), IF(FORECAST($C102,S$105:S$116,$C$105:$C$116)<0,0, IF(FORECAST($C102,S$105:S$116,$C$105:$C$116)>100,100, FORECAST($C102,S$105:S$116,$C$105:$C$116)))) -> 86.43747028 | W102: =IF(MAX(C105:C116)-MIN(C105:C116)<5,AVERAGEIF(C105:C116,">0",W105:W116), IF(FORECAST($C102,W$105:W$116,$C$105:$C$116)<0,0, IF(FORECAST($C102,W$105:W$116,$C$105:$C$116)>100,100, FORECAST($C102,W$105:W$116,$C$105:$C$116)))) -> 1.849022219 | X102: =IF(MAX(C105:C116)-MIN(C105:C116)<5,AVERAGEIF(C105:C116,">0",X105:X116), IF(FORECAST($C102,X$105:X$116,$C$105:$C$116)<0,0, IF(FORECAST($C102,X$105:X$116,$C$105:$C$116)>100,100, FORECAST($C102,X$105:X$116,$C$105:$C$116)))) -> 96.11302657 | AB102: =IF(MAX(C105:C116)-MIN(C105:C116)<5,AVERAGEIF(C105:C116,">0",AB105:AB116), IF(FORECAST($C102,AB$105:AB$116,$C$105:$C$116)<0,0, IF(FORECAST($C102,AB$105:AB$116,$C$105:$C$116)>100,100, FORECAST($C102,AB$105:AB$116,$C$105:$C$116)))) -> 0.3575039076
B104: Survey | C104: Year | D104: Improved | E104: % Improved < = 30min | H104: Surface water | I104: Improved | J104: % Improved < = 30min | M104: Surface water | N104: Improved | O104: % Improved < = 30min | R104: Surface water | S104: Improved | T104: % Improved < = 30min | W104: Surface water | X104: Improved | Y104: % Improved < = 30min | AB104: Surface water
B105: DHS02 | C105: 2002 | D105: =IF(ISERROR(INDIRECT(CONCATENATE($B105,"!C16"))),"",INDIRECT(CONCATENATE($B105,"!C16"))) -> 23.94646775 | E105: =IF(ISERROR(INDIRECT(CONCATENATE($B105,"!C23"))),"",INDIRECT(CONCATENATE($B105,"!C23"))) -> N/A | H105: =IF(ISERROR(INDIRECT(CONCATENATE($B105,"!C21"))),"",INDIRECT(CONCATENATE($B105,"!C21"))) -> 30.28010076 | I105: =IF(ISERROR(INDIRECT(CONCATENATE($B105,"!D16"))),"",INDIRECT(CONCATENATE($B105,"!D16"))) -> 27.61203264 | J105: =IF(ISERROR(INDIRECT(CONCATENATE($B105,"!D23"))),"",INDIRECT(CONCATENATE($B105,"!D23"))) -> N/A | M105: =IF(ISERROR(INDIRECT(CONCATENATE($B105,"!D21"))),"",INDIRECT(CONCATENATE($B105,"!D21"))) -> 30.50276786 | N105: =IF(ISERROR(INDIRECT(CONCATENATE($B105,"!E16"))),"",INDIRECT(CONCATENATE($B105,"!E16"))) -> 42.08915667 | O105: =IF(ISERROR(INDIRECT(CONCATENATE($B105,"!E23"))),"",INDIRECT(CONCATENATE($B105,"!E23"))) -> N/A | R105: =IF(ISERROR(INDIRECT(CONCATENATE($B105,"!E21"))),"",INDIRECT(CONCATENATE($B105,"!E21"))) -> 22.78421854 | S105: =IF(ISERROR(INDIRECT(CONCATENATE($B105,"!F16"))),"",INDIRECT(CONCATENATE($B105,"!F16"))) -> 79.58077769 | T105: =IF(ISERROR(INDIRECT(CONCATENATE($B105,"!F23"))),"",INDIRECT(CONCATENATE($B105,"!F23"))) -> N/A | W105: =IF(ISERROR(INDIRECT(CONCATENATE($B105,"!F21"))),"",INDIRECT(CONCATENATE($B105,"!F21"))) -> 4.384229548 | X105: =IF(ISERROR(INDIRECT(CONCATENATE($B105,"!G16"))),"",INDIRECT(CONCATENATE($B105,"!G16"))) -> 95.16729777 | Y105: =IF(ISERROR(INDIRECT(CONCATENATE($B105,"!G23"))),"",INDIRECT(CONCATENATE($B105,"!G23"))) -> N/A | AB105: =IF(ISERROR(INDIRECT(CONCATENATE($B105,"!G221"))),"",INDIRECT(CONCATENATE($B105,"!G21"))) -> 0.1274315304
B106: WHS03 | C106: 2003 | D106: 37.66565461 | E106: 87.51585571 | H106: 20.46279192 | I106: 38.46968541 | J106: 86.4620777 | M106: 19.51388314 | N106: 48.99998611 | O106: 90.24257169 | R106: 17.21613231 | S106: 65.19198255 | T106: 94.23107323 | W106: 4.569181994 | X106: 94.20238881 | Y106: 97.75943985 | AB106: 1.217334535
B107: DHS07 | D107: 14.73217191 | E107: 87.6227009 | H107: 31.3001955 | I107: 15.64006459 | J107: 87.71221076 | M107: 34.90629769 | N107: 25.16921534 | O107: 83.07317152 | R107: 28.51999612 | S107: 65.24540312 | T107: 95.58499193 | W107: 5.472266749 | X107: 89.6296429 | Y107: 98.99613673 | AB107: 0.1465881009
B108: DHS14 | C108: 2014 | D108: 37.5 | E108: 80.7 | H108: 20.8 | I108: 45.7 | J108: 80.2 | M108: 17.2 | N108: 60 | O108: 84.4 | R108: 10.8 | S108: 80 | T108: 91 | W108: 3.8 | X108: 94.9 | Y108: 96.4 | AB108: 0.7
B109: DHS18 | C109: 2018 | D109: 48.38852619 | E109: 86.36896189 | H109: 15.34781989 | I109: 55.06722899 | J109: 86.02500741 | M109: 14.27837494 | N109: 67.56456277 | O109: 84.85941829 | R109: 8.579675186 | S109: 86.53622322 | T109: 94.37078897 | W109: 1.405100395 | X109: 96.49341911 | Y109: 97.31590684 | AB109: 0.1880895774
D111: =IF(ISERROR(INDIRECT(CONCATENATE($B111,"!C16"))),"",INDIRECT(CONCATENATE($B111,"!C16"))) ->  | E111: =IF(ISERROR(INDIRECT(CONCATENATE($B111,"!C23"))),"",INDIRECT(CONCATENATE($B111,"!C23"))) ->  | H111: =IF(ISERROR(INDIRECT(CONCATENATE($B111,"!C21"))),"",INDIRECT(CONCATENATE($B111,"!C21"))) ->  | I111: =IF(ISERROR(INDIRECT(CONCATENATE($B111,"!D16"))),"",INDIRECT(CONCATENATE($B111,"!D16"))) ->  | J111: =IF(ISERROR(INDIRECT(CONCATENATE($B111,"!D23"))),"",INDIRECT(CONCATENATE($B111,"!D23"))) ->  | M111: =IF(ISERROR(INDIRECT(CONCATENATE($B111,"!D21"))),"",INDIRECT(CONCATENATE($B111,"!D21"))) ->  | N111: =IF(ISERROR(INDIRECT(CONCATENATE($B111,"!E16"))),"",INDIRECT(CONCATENATE($B111,"!E16"))) ->  | O111: =IF(ISERROR(INDIRECT(CONCATENATE($B111,"!E23"))),"",INDIRECT(CONCATENATE($B111,"!E23"))) ->  | R111: =IF(ISERROR(INDIRECT(CONCATENATE($B111,"!E21"))),"",INDIRECT(CONCATENATE($B111,"!E21"))) ->  | S111: =IF(ISERROR(INDIRECT(CONCATENATE($B111,"!F16"))),"",INDIRECT(CONCATENATE($B111,"!F16"))) ->  | T111: =IF(ISERROR(INDIRECT(CONCATENATE($B111,"!F23"))),"",INDIRECT(CONCATENATE($B111,"!F23"))) ->  | W111: =IF(ISERROR(INDIRECT(CONCATENATE($B111,"!F21"))),"",INDIRECT(CONCATENATE($B111,"!F21"))) ->  | X111: =IF(ISERROR(INDIRECT(CONCATENATE($B111,"!G16"))),"",INDIRECT(CONCATENATE($B111,"!G16"))) ->  | Y111: =IF(ISERROR(INDIRECT(CONCATENATE($B111,"!G23"))),"",INDIRECT(CONCATENATE($B111,"!G23"))) ->  | AB111: =IF(ISERROR(INDIRECT(CONCATENATE($B111,"!G221"))),"",INDIRECT(CONCATENATE($B111,"!G21"))) -> 
D112: =IF(ISERROR(INDIRECT(CONCATENATE($B112,"!C16"))),"",INDIRECT(CONCATENATE($B112,"!C16"))) ->  | E112: =IF(ISERROR(INDIRECT(CONCATENATE($B112,"!C23"))),"",INDIRECT(CONCATENATE($B112,"!C23"))) ->  | H112: =IF(ISERROR(INDIRECT(CONCATENATE($B112,"!C21"))),"",INDIRECT(CONCATENATE($B112,"!C21"))) ->  | I112: =IF(ISERROR(INDIRECT(CONCATENATE($B112,"!D16"))),"",INDIRECT(CONCATENATE($B112,"!D16"))) ->  | J112: =IF(ISERROR(INDIRECT(CONCATENATE($B112,"!D23"))),"",INDIRECT(CONCATENATE($B112,"!D23"))) ->  | M112: =IF(ISERROR(INDIRECT(CONCATENATE($B112,"!D21"))),"",INDIRECT(CONCATENATE($B112,"!D21"))) ->  | N112: =IF(ISERROR(INDIRECT(CONCATENATE($B112,"!E16"))),"",INDIRECT(CONCATENATE($B112,"!E16"))) ->  | O112: =IF(ISERROR(INDIRECT(CONCATENATE($B112,"!E23"))),"",INDIRECT(CONCATENATE($B112,"!E23"))) ->  | R112: =IF(ISERROR(INDIRECT(CONCATENATE($B112,"!E21"))),"",INDIRECT(CONCATENATE($B112,"!E21"))) ->  | S112: =IF(ISERROR(INDIRECT(CONCATENATE($B112,"!F16"))),"",INDIRECT(CONCATENATE($B112,"!F16"))) ->  | T112: =IF(ISERROR(INDIRECT(CONCATENATE($B112,"!F23"))),"",INDIRECT(CONCATENATE($B112,"!F23"))) ->  | W112: =IF(ISERROR(INDIRECT(CONCATENATE($B112,"!F21"))),"",INDIRECT(CONCATENATE($B112,"!F21"))) ->  | X112: =IF(ISERROR(INDIRECT(CONCATENATE($B112,"!G16"))),"",INDIRECT(CONCATENATE($B112,"!G16"))) ->  | Y112: =IF(ISERROR(INDIRECT(CONCATENATE($B112,"!G23"))),"",INDIRECT(CONCATENATE($B112,"!G23"))) ->  | AB112: =IF(ISERROR(INDIRECT(CONCATENATE($B112,"!G221"))),"",INDIRECT(CONCATENATE($B112,"!G21"))) -> 
B118: =CONCATENATE("National use of drinking water sources, ",C99,"–",C100) -> National use of drinking water sources, 2000–2020 | S118: Data points used for regression
E153: =IF(ISERROR(INDIRECT(CONCATENATE($B153,"!M18"))),"",INDIRECT(CONCATENATE($B153,"!M18"))) ->  | F153: =IF(ISERROR(INDIRECT(CONCATENATE($B153,"!M19"))),"",INDIRECT(CONCATENATE($B153,"!M19"))) ->  | G153: =IF(ISERROR(INDIRECT(CONCATENATE($B153,"!M20"))),"",INDIRECT(CONCATENATE($B153,"!M20"))) ->  | H153: =IF(ISERROR(INDIRECT(CONCATENATE($B153,"!M21"))),"",INDIRECT(CONCATENATE($B153,"!M21"))) ->  | J153: =IF(ISERROR(INDIRECT(CONCATENATE($B153,"!N18"))),"",INDIRECT(CONCATENATE($B153,"!N18"))) ->  | K153: =IF(ISERROR(INDIRECT(CONCATENATE($B153,"!N19"))),"",INDIRECT(CONCATENATE($B153,"!N19"))) ->  | L153: =IF(ISERROR(INDIRECT(CONCATENATE($B153,"!N20"))),"",INDIRECT(CONCATENATE($B153,"!N20"))) ->  | M153: =IF(ISERROR(INDIRECT(CONCATENATE($B153,"!N21"))),"",INDIRECT(CONCATENATE($B153,"!N21"))) ->  | O153: =IF(ISERROR(INDIRECT(CONCATENATE($B153,"!O18"))),"",INDIRECT(CONCATENATE($B153,"!O18"))) ->  | P153: =IF(ISERROR(INDIRECT(CONCATENATE($B153,"!O19"))),"",INDIRECT(CONCATENATE($B153,"!O19"))) ->  | Q153: =IF(ISERROR(INDIRECT(CONCATENATE($B153,"!O20"))),"",INDIRECT(CONCATENATE($B153,"!O20"))) ->  | R153: =IF(ISERROR(INDIRECT(CONCATENATE($B153,"!O21"))),"",INDIRECT(CONCATENATE($B153,"!O21"))) ->  | T153: =IF(ISERROR(INDIRECT(CONCATENATE($B153,"!P18"))),"",INDIRECT(CONCATENATE($B153,"!P18"))) ->  | U153: =IF(ISERROR(INDIRECT(CONCATENATE($B153,"!P19"))),"",INDIRECT(CONCATENATE($B153,"!P19"))) ->  | V153: =IF(ISERROR(INDIRECT(CONCATENATE($B153,"!P20"))),"",INDIRECT(CONCATENATE($B153,"!P20"))) ->  | W153: =IF(ISERROR(INDIRECT(CONCATENATE($B153,"!P21"))),"",INDIRECT(CONCATENATE($B153,"!P21"))) ->  | Y153: =IF(ISERROR(INDIRECT(CONCATENATE($B153,"!Q18"))),"",INDIRECT(CONCATENATE($B153,"!Q18"))) ->  | Z153: =IF(ISERROR(INDIRECT(CONCATENATE($B153,"!Q19"))),"",INDIRECT(CONCATENATE($B153,"!Q19"))) ->  | AA153: =IF(ISERROR(INDIRECT(CONCATENATE($B153,"!Q20"))),"",INDIRECT(CONCATENATE($B153,"!Q20"))) ->  | AB153: =IF(ISERROR(INDIRECT(CONCATENATE($B153,"!Q21"))),"",INDIRECT(CONCATENATE($B153,"!Q1"))) -> 
A197: URBAN | D197: Poorest | I197: Poor | N197: Middle | S197: Rich | X197: Richest
D198: Improved | E198: Basic | F198: Limited | G198: Unimproved | H198: Surface water | I198: Improved | J198: Basic | K198: Limited | L198: Unimproved | M198: Surface water | N198: Improved | O198: Basic | P198: Limited | Q198: Unimproved | R198: Surface water | S198: Improved | T198: Basic | U198: Limited | V198: Unimproved | W198: Surface water | X198: Improved | Y198: Basic | Z198: Limited | AA198: Unimproved | AB198: Surface water
A199: Forecast period: | C199: =MinBase(C205:C216) -> 2000 | D199: =IF((D201+H201)>100,D201*100/(D201+H201),D201) -> 78.62319884 | E199: =D199*AVERAGEIF(E205:E216,">0")/100 -> 72.8093186 | F199: =D199*(100-AVERAGEIF(E205:E216,">0"))/100 -> 5.813880246 | G199: =100-(E199+F199+H199) -> 17.24407024 | H199: =IF((D201+H201)>100,H201*100/(D201+H201),H201) -> 4.132730915 | I199: =IF((I201+M201)>100,I201*100/(I201+M201),I201) -> 87.19699624 | J199: =I199*AVERAGEIF(J205:J216,">0")/100 -> 82.92744765 | K199: =I199*(100-AVERAGEIF(J205:J216,">0"))/100 -> 4.269548582 | L199: =100-(J199+K199+M199) -> 10.53628713 | M199: =IF((I201+M201)>100,M201*100/(I201+M201),M201) -> 2.266716633 | N199: =IF((N201+R201)>100,N201*100/(N201+R201),N201) -> 88.96408634 | O199: =N199*AVERAGEIF(O205:O216,">0")/100 -> 85.11348751 | P199: =N199*(100-AVERAGEIF(O205:O216,">0"))/100 -> 3.850598828 | Q199: =100-(O199+P199+R199) -> 10.16610992 | R199: =IF((N201+R201)>100,R201*100/(N201+R201),R201) -> 0.8698037465 | S199: =IF((S201+W201)>100,S201*100/(S201+W201),S201) -> 95.26991283 | T199: =S199*AVERAGEIF(T205:T216,">0")/100 -> 93.07774234 | U199: =S199*(100-AVERAGEIF(T205:T216,">0"))/100 -> 2.192170487 | V199: =100-(T199+U199+W199) -> 4.06587206 | W199: =IF((S201+W201)>100,W201*100/(S201+W201),W201) -> 0.6642151075 | X199: =IF((X201+AB201)>100,X201*100/(X201+AB201),X201) -> 96.06186772 | Y199: =X199*AVERAGEIF(Y205:Y216,">0")/100 -> 95.02040008 | Z199: =X199*(100-AVERAGEIF(Y205:Y216,">0"))/100 -> 1.041467643 | AA199: =100-(Y199+Z199+AB199) -> 3.80664196 | AB199: =IF((X201+AB201)>100,AB201*100/(X201+AB201),AB201) -> 0.1314903158
C200: =MaxTarget(C205:C216) -> 2020 | D200: =IF((D202+H202)>100,D202*100/(D202+H202),D202) -> 75.2151424 | E200: =D200*AVERAGEIF(E205:E216,">0")/100 -> 69.6532747 | F200: =D200*(100-AVERAGEIF(E205:E216,">0"))/100 -> 5.561867706 | G200: =100-(E200+F200+H200) -> 22.06631298 | H200: =IF((D202+H202)>100,H202*100/(D202+H202),H202) -> 2.71854462 | I200: =IF((I202+M202)>100,I202*100/(I202+M202),I202) -> 89.09698739 | J200: =I200*AVERAGEIF(J205:J216,">0")/100 -> 84.73440688 | K200: =I200*(100-AVERAGEIF(J205:J216,">0"))/100 -> 4.362580508 | L200: =100-(J200+K200+M200) -> 10.90301261 | M200: =IF((I202+M202)>100,M202*100/(I202+M202),M202) -> 0 | N200: =IF((N202+R202)>100,N202*100/(N202+R202),N202) -> 93.600511 | O200: =N200*AVERAGEIF(O205:O216,">0")/100 -> 89.54923556 | P200: =N200*(100-AVERAGEIF(O205:O216,">0"))/100 -> 4.05127544 | Q200: =100-(O200+P200+R200) -> 6.399489002 | R200: =IF((N202+R202)>100,R202*100/(N202+R202),R202) -> 0 | S200: =IF((S202+W202)>100,S202*100/(S202+W202),S202) -> 95.21085552 | T200: =S200*AVERAGEIF(T205:T216,">0")/100 -> 93.02004395 | U200: =S200*(100-AVERAGEIF(T205:T216,">0"))/100 -> 2.190811572 | V200: =100-(T200+U200+W200) -> 4.703383293 | W200: =IF((S202+W202)>100,W202*100/(S202+W202),W202) -> 0.08576118865 | X200: =IF((X202+AB202)>100,X202*100/(X202+AB202),X202) -> 99.46414786 | Y200: =X200*AVERAGEIF(Y205:Y216,">0")/100 -> 98.38579394 | Z200: =X200*(100-AVERAGEIF(Y205:Y216,">0"))/100 -> 1.07835392 | AA200: =100-(Y200+Z200+AB200) -> 0.5358521382 | AB200: =IF((X202+AB202)>100,AB202*100/(X202+AB202),AB202) -> 0
A201: Regression period: | C201: =MinRegYear(C199,C205:C216) -> 2000 | D201: =IF(MAX(C205:C216)-MIN(C205:C216)<5,AVERAGEIF(C205:C216,">0",D205:D216), IF(FORECAST($C201,D$205:D$216,$C$205:$C$216)<0,0, IF(FORECAST($C201,D$205:D$216,$C$205:$C$216)>100,100, FORECAST($C201,D$205:D$216,$C$205:$C$216)))) -> 78.62319884 | H201: =IF(MAX(C205:C216)-MIN(C205:C216)<5,AVERAGEIF(C205:C216,">0",H205:H216), IF(FORECAST($C201,H$205:H$216,$C$205:$C$216)<0,0, IF(FORECAST($C201,H$205:H$216,$C$205:$C$216)>100,100, FORECAST($C201,H$205:H$216,$C$205:$C$216)))) -> 4.132730915 | I201: =IF(MAX(C205:C216)-MIN(C205:C216)<5,AVERAGEIF(C205:C216,">0",I205:I216), IF(FORECAST($C201,I$205:I$216,$C$205:$C$216)<0,0, IF(FORECAST($C201,I$205:I$216,$C$205:$C$216)>100,100, FORECAST($C201,I$205:I$216,$C$205:$C$216)))) -> 87.19699624 | M201: =IF(MAX(C205:C216)-MIN(C205:C216)<5,AVERAGEIF(C205:C216,">0",M205:M216), IF(FORECAST($C201,M$205:M$216,$C$205:$C$216)<0,0, IF(FORECAST($C201,M$205:M$216,$C$205:$C$216)>100,100, FORECAST($C201,M$205:M$216,$C$205:$C$216)))) -> 2.266716633 | N201: =IF(MAX(C205:C216)-MIN(C205:C216)<5,AVERAGEIF(C205:C216,">0",N205:N216), IF(FORECAST($C201,N$205:N$216,$C$205:$C$216)<0,0, IF(FORECAST($C201,N$205:N$216,$C$205:$C$216)>100,100, FORECAST($C201,N$205:N$216,$C$205:$C$216)))) -> 88.96408634 | R201: =IF(MAX(C205:C216)-MIN(C205:C216)<5,AVERAGEIF(C205:C216,">0",R205:R216), IF(FORECAST($C201,R$205:R$216,$C$205:$C$216)<0,0, IF(FORECAST($C201,R$205:R$216,$C$205:$C$216)>100,100, FORECAST($C201,R$205:R$216,$C$205:$C$216)))) -> 0.8698037465 | S201: =IF(MAX(C205:C216)-MIN(C205:C216)<5,AVERAGEIF(C205:C216,">0",S205:S216), IF(FORECAST($C201,S$205:S$216,$C$205:$C$216)<0,0, IF(FORECAST($C201,S$205:S$216,$C$205:$C$216)>100,100, FORECAST($C201,S$205:S$216,$C$205:$C$216)))) -> 95.26991283 | W201: =IF(MAX(C205:C216)-MIN(C205:C216)<5,AVERAGEIF(C205:C216,">0",W205:W216), IF(FORECAST($C201,W$205:W$216,$C$205:$C$216)<0,0, IF(FORECAST($C201,W$205:W$216,$C$205:$C$216)>100,100, FORECAST($C201,W$205:W$216,$C$205:$C$216)))) -> 0.6642151075 | X201: =IF(MAX(C205:C216)-MIN(C205:C216)<5,AVERAGEIF(C205:C216,">0",X205:X216), IF(FORECAST($C201,X$205:X$216,$C$205:$C$216)<0,0, IF(FORECAST($C201,X$205:X$216,$C$205:$C$216)>100,100, FORECAST($C201,X$205:X$216,$C$205:$C$216)))) -> 96.06186772 | AB201: =IF(MAX(C205:C216)-MIN(C205:C216)<5,AVERAGEIF(C205:C216,">0",AB205:AB216), IF(FORECAST($C201,AB$205:AB$216,$C$205:$C$216)<0,0, IF(FORECAST($C201,AB$205:AB$216,$C$205:$C$216)>100,100, FORECAST($C201,AB$205:AB$216,$C$205:$C$216)))) -> 0.1314903158
C202: =MaxRegYear(C200,C205:C216) -> 2020 | D202: =IF(MAX(C205:C216)-MIN(C205:C216)<5,AVERAGEIF(C205:C216,">0",D205:D216), IF(FORECAST($C202,D$205:D$216,$C$205:$C$216)<0,0, IF(FORECAST($C202,D$205:D$216,$C$205:$C$216)>100,100, FORECAST($C202,D$205:D$216,$C$205:$C$216)))) -> 75.2151424 | H202: =IF(MAX(C205:C216)-MIN(C205:C216)<5,AVERAGEIF(C205:C216,">0",H205:H216), IF(FORECAST($C202,H$205:H$216,$C$205:$C$216)<0,0, IF(FORECAST($C202,H$205:H$216,$C$205:$C$216)>100,100, FORECAST($C202,H$205:H$216,$C$205:$C$216)))) -> 2.71854462 | I202: =IF(MAX(C205:C216)-MIN(C205:C216)<5,AVERAGEIF(C205:C216,">0",I205:I216), IF(FORECAST($C202,I$205:I$216,$C$205:$C$216)<0,0, IF(FORECAST($C202,I$205:I$216,$C$205:$C$216)>100,100, FORECAST($C202,I$205:I$216,$C$205:$C$216)))) -> 89.09698739 | M202: =IF(MAX(C205:C216)-MIN(C205:C216)<5,AVERAGEIF(C205:C216,">0",M205:M216), IF(FORECAST($C202,M$205:M$216,$C$205:$C$216)<0,0, IF(FORECAST($C202,M$205:M$216,$C$205:$C$216)>100,100, FORECAST($C202,M$205:M$216,$C$205:$C$216)))) -> 0 | N202: =IF(MAX(C205:C216)-MIN(C205:C216)<5,AVERAGEIF(C205:C216,">0",N205:N216), IF(FORECAST($C202,N$205:N$216,$C$205:$C$216)<0,0, IF(FORECAST($C202,N$205:N$216,$C$205:$C$216)>100,100, FORECAST($C202,N$205:N$216,$C$205:$C$216)))) -> 93.600511 | R202: =IF(MAX(C205:C216)-MIN(C205:C216)<5,AVERAGEIF(C205:C216,">0",R205:R216), IF(FORECAST($C202,R$205:R$216,$C$205:$C$216)<0,0, IF(FORECAST($C202,R$205:R$216,$C$205:$C$216)>100,100, FORECAST($C202,R$205:R$216,$C$205:$C$216)))) -> 0 | S202: =IF(MAX(C205:C216)-MIN(C205:C216)<5,AVERAGEIF(C205:C216,">0",S205:S216), IF(FORECAST($C202,S$205:S$216,$C$205:$C$216)<0,0, IF(FORECAST($C202,S$205:S$216,$C$205:$C$216)>100,100, FORECAST($C202,S$205:S$216,$C$205:$C$216)))) -> 95.21085552 | W202: =IF(MAX(C205:C216)-MIN(C205:C216)<5,AVERAGEIF(C205:C216,">0",W205:W216), IF(FORECAST($C202,W$205:W$216,$C$205:$C$216)<0,0, IF(FORECAST($C202,W$205:W$216,$C$205:$C$216)>100,100, FORECAST($C202,W$205:W$216,$C$205:$C$216)))) -> 0.08576118865 | X202: =IF(MAX(C205:C216)-MIN(C205:C216)<5,AVERAGEIF(C205:C216,">0",X205:X216), IF(FORECAST($C202,X$205:X$216,$C$205:$C$216)<0,0, IF(FORECAST($C202,X$205:X$216,$C$205:$C$216)>100,100, FORECAST($C202,X$205:X$216,$C$205:$C$216)))) -> 99.46414786 | AB202: =IF(MAX(C205:C216)-MIN(C205:C216)<5,AVERAGEIF(C205:C216,">0",AB205:AB216), IF(FORECAST($C202,AB$205:AB$216,$C$205:$C$216)<0,0, IF(FORECAST($C202,AB$205:AB$216,$C$205:$C$216)>100,100, FORECAST($C202,AB$205:AB$216,$C$205:$C$216)))) -> 0
B204: Survey | C204: Year | D204: Improved | E204: % Improved < = 30min | H204: Surface water | I204: Improved | J204: % Improved < = 30min | M204: Surface water | N204: Improved | O204: % Improved < = 30min | R204: Surface water | S204: Improved | T204: % Improved < = 30min | W204: Surface water | X204: Improved | Y204: % Improved < = 30min | AB204: Surface water
B205: DHS02 | C205: 2002 | D205: =IF(ISERROR(INDIRECT(CONCATENATE($B205,"!H16"))),"",INDIRECT(CONCATENATE($B205,"!H16"))) -> 81.73043487 | E205: =IF(ISERROR(INDIRECT(CONCATENATE($B205,"!H23"))),"",INDIRECT(CONCATENATE($B205,"!H23"))) -> N/A | H205: =IF(ISERROR(INDIRECT(CONCATENATE($B205,"!H21"))),"",INDIRECT(CONCATENATE($B205,"!H21"))) -> 3.952484235 | I205: =IF(ISERROR(INDIRECT(CONCATENATE($B205,"!I16"))),"",INDIRECT(CONCATENATE($B205,"!I16"))) -> 86.97033447 | J205: =IF(ISERROR(INDIRECT(CONCATENATE($B205,"!I23"))),"",INDIRECT(CONCATENATE($B205,"!I23"))) -> N/A | M205: =IF(ISERROR(INDIRECT(CONCATENATE($B205,"!I21"))),"",INDIRECT(CONCATENATE($B205,"!I21"))) -> 2.751348617 | N205: =IF(ISERROR(INDIRECT(CONCATENATE($B205,"!J16"))),"",INDIRECT(CONCATENATE($B205,"!J16"))) -> 92.74704924 | O205: =IF(ISERROR(INDIRECT(CONCATENATE($B205,"!J23"))),"",INDIRECT(CONCATENATE($B205,"!J23"))) -> N/A | R205: =IF(ISERROR(INDIRECT(CONCATENATE($B205,"!J21"))),"",INDIRECT(CONCATENATE($B205,"!J21"))) -> 0 | S205: =IF(ISERROR(INDIRECT(CONCATENATE($B205,"!K16"))),"",INDIRECT(CONCATENATE($B205,"!K16"))) -> 96.35215679 | T205: =IF(ISERROR(INDIRECT(CONCATENATE($B205,"!K23"))),"",INDIRECT(CONCATENATE($B205,"!K23"))) -> N/A | W205: =IF(ISERROR(INDIRECT(CONCATENATE($B205,"!K21"))),"",INDIRECT(CONCATENATE($B205,"!K21"))) -> 0 | X205: =IF(ISERROR(INDIRECT(CONCATENATE($B205,"!L16"))),"",INDIRECT(CONCATENATE($B205,"!L16"))) -> 95.49807973 | Y205: =IF(ISERROR(INDIRECT(CONCATENATE($B205,"!L23"))),"",INDIRECT(CONCATENATE($B205,"!L23"))) -> N/A | AB205: =IF(ISERROR(INDIRECT(CONCATENATE($B205,"!L221"))),"",INDIRECT(CONCATENATE($B205,"!L21"))) -> 0
B206: WHS03 | C206: 2003 | D206: 74.97742842 | E206: 96.75856091 | H206: 3.973433026 | I206: 88.70696386 | J206: 97.33972143 | M206: 1.122586484 | N206: 85.90816386 | O206: 98.05362485 | R206: 1.591351075 | S206: 94.24131396 | T206: 98.62630674 | W206: 1.18672068 | X206: 97.44141717 | Y206: 99.2872643 | AB206: 0.237741969
B207: DHS07 | D207: 61.15278269 | E207: 91.75543486 | H207: 4.487814129 | I207: 78.43775154 | J207: 96.65873475 | M207: 0.3818912035 | N207: 88.53969377 | O207: 97.31641704 | R207: 0 | S207: 91.45250059 | T207: 99.32265095 | W207: 0 | X207: 91.51627354 | Y207: 99.89482172 | AB207: 0
B208: DHS14 | C208: 2014 | D208: 74.2 | E208: 87.7 | H208: 3.1 | I208: 85.6 | J208: 90.8 | M208: 0.8 | N208: 93 | O208: 92.2 | R208: 0.1 | S208: 94.7 | T208: 95.8 | W208: 0.4 | X208: 98.8 | Y208: 98.1 | AB208: 0
B209: DHS18 | C209: 2018 | D209: 77.28002767 | E209: 94.2075575 | H209: 2.888761752 | I209: 91.02567025 | J209: 95.61578392 | M209: 0.1435768463 | N209: 92.77851787 | O209: 95.11690972 | R209: 0.07060071331 | S209: 95.67692455 | T209: 97.04700119 | W209: 0 | X209: 98.80219225 | Y209: 98.38126025 | AB209: 0
B218: =CONCATENATE("Urban use of drinking water sources, ",C199,"–",C200) -> Urban use of drinking water sources, 2000–2020 | S218: Data points used for regression
E253: =IF(ISERROR(INDIRECT(CONCATENATE($B253,"!M18"))),"",INDIRECT(CONCATENATE($B253,"!M18"))) ->  | F253: =IF(ISERROR(INDIRECT(CONCATENATE($B253,"!M19"))),"",INDIRECT(CONCATENATE($B253,"!M19"))) ->  | G253: =IF(ISERROR(INDIRECT(CONCATENATE($B253,"!M20"))),"",INDIRECT(CONCATENATE($B253,"!M20"))) ->  | H253: =IF(ISERROR(INDIRECT(CONCATENATE($B253,"!M21"))),"",INDIRECT(CONCATENATE($B253,"!M21"))) ->  | J253: =IF(ISERROR(INDIRECT(CONCATENATE($B253,"!N18"))),"",INDIRECT(CONCATENATE($B253,"!N18"))) ->  | K253: =IF(ISERROR(INDIRECT(CONCATENATE($B253,"!N19"))),"",INDIRECT(CONCATENATE($B253,"!N19"))) ->  | L253: =IF(ISERROR(INDIRECT(CONCATENATE($B253,"!N20"))),"",INDIRECT(CONCATENATE($B253,"!N20"))) ->  | M253: =IF(ISERROR(INDIRECT(CONCATENATE($B253,"!N21"))),"",INDIRECT(CONCATENATE($B253,"!N21"))) ->  | O253: =IF(ISERROR(INDIRECT(CONCATENATE($B253,"!O18"))),"",INDIRECT(CONCATENATE($B253,"!O18"))) ->  | P253: =IF(ISERROR(INDIRECT(CONCATENATE($B253,"!O19"))),"",INDIRECT(CONCATENATE($B253,"!O19"))) ->  | Q253: =IF(ISERROR(INDIRECT(CONCATENATE($B253,"!O20"))),"",INDIRECT(CONCATENATE($B253,"!O20"))) ->  | R253: =IF(ISERROR(INDIRECT(CONCATENATE($B253,"!O21"))),"",INDIRECT(CONCATENATE($B253,"!O21"))) ->  | T253: =IF(ISERROR(INDIRECT(CONCATENATE($B253,"!P18"))),"",INDIRECT(CONCATENATE($B253,"!P18"))) ->  | U253: =IF(ISERROR(INDIRECT(CONCATENATE($B253,"!P19"))),"",INDIRECT(CONCATENATE($B253,"!P19"))) ->  | V253: =IF(ISERROR(INDIRECT(CONCATENATE($B253,"!P20"))),"",INDIRECT(CONCATENATE($B253,"!P20"))) ->  | W253: =IF(ISERROR(INDIRECT(CONCATENATE($B253,"!P21"))),"",INDIRECT(CONCATENATE($B253,"!P21"))) ->  | Y253: =IF(ISERROR(INDIRECT(CONCATENATE($B253,"!Q18"))),"",INDIRECT(CONCATENATE($B253,"!Q18"))) ->  | Z253: =IF(ISERROR(INDIRECT(CONCATENATE($B253,"!Q19"))),"",INDIRECT(CONCATENATE($B253,"!Q19"))) ->  | AA253: =IF(ISERROR(INDIRECT(CONCATENATE($B253,"!Q20"))),"",INDIRECT(CONCATENATE($B253,"!Q20"))) ->  | AB253: =IF(ISERROR(INDIRECT(CONCATENATE($B253,"!Q21"))),"",INDIRECT(CONCATENATE($B253,"!Q1"))) -> 
E254: =IF(ISERROR(INDIRECT(CONCATENATE($B254,"!M18"))),"",INDIRECT(CONCATENATE($B254,"!M18"))) ->  | F254: =IF(ISERROR(INDIRECT(CONCATENATE($B254,"!M19"))),"",INDIRECT(CONCATENATE($B254,"!M19"))) ->  | G254: =IF(ISERROR(INDIRECT(CONCATENATE($B254,"!M20"))),"",INDIRECT(CONCATENATE($B254,"!M20"))) ->  | H254: =IF(ISERROR(INDIRECT(CONCATENATE($B254,"!M21"))),"",INDIRECT(CONCATENATE($B254,"!M21"))) ->  | J254: =IF(ISERROR(INDIRECT(CONCATENATE($B254,"!N18"))),"",INDIRECT(CONCATENATE($B254,"!N18"))) ->  | K254: =IF(ISERROR(INDIRECT(CONCATENATE($B254,"!N19"))),"",INDIRECT(CONCATENATE($B254,"!N19"))) ->  | L254: =IF(ISERROR(INDIRECT(CONCATENATE($B254,"!N20"))),"",INDIRECT(CONCATENATE($B254,"!N20"))) ->  | M254: =IF(ISERROR(INDIRECT(CONCATENATE($B254,"!N21"))),"",INDIRECT(CONCATENATE($B254,"!N21"))) ->  | O254: =IF(ISERROR(INDIRECT(CONCATENATE($B254,"!O18"))),"",INDIRECT(CONCATENATE($B254,"!O18"))) ->  | P254: =IF(ISERROR(INDIRECT(CONCATENATE($B254,"!O19"))),"",INDIRECT(CONCATENATE($B254,"!O19"))) ->  | Q254: =IF(ISERROR(INDIRECT(CONCATENATE($B254,"!O20"))),"",INDIRECT(CONCATENATE($B254,"!O20"))) ->  | R254: =IF(ISERROR(INDIRECT(CONCATENATE($B254,"!O21"))),"",INDIRECT(CONCATENATE($B254,"!O21"))) ->  | T254: =IF(ISERROR(INDIRECT(CONCATENATE($B254,"!P18"))),"",INDIRECT(CONCATENATE($B254,"!P18"))) ->  | U254: =IF(ISERROR(INDIRECT(CONCATENATE($B254,"!P19"))),"",INDIRECT(CONCATENATE($B254,"!P19"))) ->  | V254: =IF(ISERROR(INDIRECT(CONCATENATE($B254,"!P20"))),"",INDIRECT(CONCATENATE($B254,"!P20"))) ->  | W254: =IF(ISERROR(INDIRECT(CONCATENATE($B254,"!P21"))),"",INDIRECT(CONCATENATE($B254,"!P21"))) ->  | Y254: =IF(ISERROR(INDIRECT(CONCATENATE($B254,"!Q18"))),"",INDIRECT(CONCATENATE($B254,"!Q18"))) ->  | Z254: =IF(ISERROR(INDIRECT(CONCATENATE($B254,"!Q19"))),"",INDIRECT(CONCATENATE($B254,"!Q19"))) ->  | AA254: =IF(ISERROR(INDIRECT(CONCATENATE($B254,"!Q20"))),"",INDIRECT(CONCATENATE($B254,"!Q20"))) ->  | AB254: =IF(ISERROR(INDIRECT(CONCATENATE($B254,"!Q21"))),"",INDIRECT(CONCATENATE($B254,"!Q1"))) -> 
E255: =IF(ISERROR(INDIRECT(CONCATENATE($B255,"!M18"))),"",INDIRECT(CONCATENATE($B255,"!M18"))) ->  | F255: =IF(ISERROR(INDIRECT(CONCATENATE($B255,"!M19"))),"",INDIRECT(CONCATENATE($B255,"!M19"))) ->  | G255: =IF(ISERROR(INDIRECT(CONCATENATE($B255,"!M20"))),"",INDIRECT(CONCATENATE($B255,"!M20"))) ->  | H255: =IF(ISERROR(INDIRECT(CONCATENATE($B255,"!M21"))),"",INDIRECT(CONCATENATE($B255,"!M21"))) ->  | J255: =IF(ISERROR(INDIRECT(CONCATENATE($B255,"!N18"))),"",INDIRECT(CONCATENATE($B255,"!N18"))) ->  | K255: =IF(ISERROR(INDIRECT(CONCATENATE($B255,"!N19"))),"",INDIRECT(CONCATENATE($B255,"!N19"))) ->  | L255: =IF(ISERROR(INDIRECT(CONCATENATE($B255,"!N20"))),"",INDIRECT(CONCATENATE($B255,"!N20"))) ->  | M255: =IF(ISERROR(INDIRECT(CONCATENATE($B255,"!N21"))),"",INDIRECT(CONCATENATE($B255,"!N21"))) ->  | O255: =IF(ISERROR(INDIRECT(CONCATENATE($B255,"!O18"))),"",INDIRECT(CONCATENATE($B255,"!O18"))) ->  | P255: =IF(ISERROR(INDIRECT(CONCATENATE($B255,"!O19"))),"",INDIRECT(CONCATENATE($B255,"!O19"))) ->  | Q255: =IF(ISERROR(INDIRECT(CONCATENATE($B255,"!O20"))),"",INDIRECT(CONCATENATE($B255,"!O20"))) ->  | R255: =IF(ISERROR(INDIRECT(CONCATENATE($B255,"!O21"))),"",INDIRECT(CONCATENATE($B255,"!O21"))) ->  | T255: =IF(ISERROR(INDIRECT(CONCATENATE($B255,"!P18"))),"",INDIRECT(CONCATENATE($B255,"!P18"))) ->  | U255: =IF(ISERROR(INDIRECT(CONCATENATE($B255,"!P19"))),"",INDIRECT(CONCATENATE($B255,"!P19"))) ->  | V255: =IF(ISERROR(INDIRECT(CONCATENATE($B255,"!P20"))),"",INDIRECT(CONCATENATE($B255,"!P20"))) ->  | W255: =IF(ISERROR(INDIRECT(CONCATENATE($B255,"!P21"))),"",INDIRECT(CONCATENATE($B255,"!P21"))) ->  | Y255: =IF(ISERROR(INDIRECT(CONCATENATE($B255,"!Q18"))),"",INDIRECT(CONCATENATE($B255,"!Q18"))) ->  | Z255: =IF(ISERROR(INDIRECT(CONCATENATE($B255,"!Q19"))),"",INDIRECT(CONCATENATE($B255,"!Q19"))) ->  | AA255: =IF(ISERROR(INDIRECT(CONCATENATE($B255,"!Q20"))),"",INDIRECT(CONCATENATE($B255,"!Q20"))) ->  | AB255: =IF(ISERROR(INDIRECT(CONCATENATE($B255,"!Q21"))),"",INDIRECT(CONCATENATE($B255,"!Q1"))) -> 
E256: =IF(ISERROR(INDIRECT(CONCATENATE($B256,"!M18"))),"",INDIRECT(CONCATENATE($B256,"!M18"))) ->  | F256: =IF(ISERROR(INDIRECT(CONCATENATE($B256,"!M19"))),"",INDIRECT(CONCATENATE($B256,"!M19"))) ->  | G256: =IF(ISERROR(INDIRECT(CONCATENATE($B256,"!M20"))),"",INDIRECT(CONCATENATE($B256,"!M20"))) ->  | H256: =IF(ISERROR(INDIRECT(CONCATENATE($B256,"!M21"))),"",INDIRECT(CONCATENATE($B256,"!M21"))) ->  | J256: =IF(ISERROR(INDIRECT(CONCATENATE($B256,"!N18"))),"",INDIRECT(CONCATENATE($B256,"!N18"))) ->  | K256: =IF(ISERROR(INDIRECT(CONCATENATE($B256,"!N19"))),"",INDIRECT(CONCATENATE($B256,"!N19"))) ->  | L256: =IF(ISERROR(INDIRECT(CONCATENATE($B256,"!N20"))),"",INDIRECT(CONCATENATE($B256,"!N20"))) ->  | M256: =IF(ISERROR(INDIRECT(CONCATENATE($B256,"!N21"))),"",INDIRECT(CONCATENATE($B256,"!N21"))) ->  | O256: =IF(ISERROR(INDIRECT(CONCATENATE($B256,"!O18"))),"",INDIRECT(CONCATENATE($B256,"!O18"))) ->  | P256: =IF(ISERROR(INDIRECT(CONCATENATE($B256,"!O19"))),"",INDIRECT(CONCATENATE($B256,"!O19"))) ->  | Q256: =IF(ISERROR(INDIRECT(CONCATENATE($B256,"!O20"))),"",INDIRECT(CONCATENATE($B256,"!O20"))) ->  | R256: =IF(ISERROR(INDIRECT(CONCATENATE($B256,"!O21"))),"",INDIRECT(CONCATENATE($B256,"!O21"))) ->  | T256: =IF(ISERROR(INDIRECT(CONCATENATE($B256,"!P18"))),"",INDIRECT(CONCATENATE($B256,"!P18"))) ->  | U256: =IF(ISERROR(INDIRECT(CONCATENATE($B256,"!P19"))),"",INDIRECT(CONCATENATE($B256,"!P19"))) ->  | V256: =IF(ISERROR(INDIRECT(CONCATENATE($B256,"!P20"))),"",INDIRECT(CONCATENATE($B256,"!P20"))) ->  | W256: =IF(ISERROR(INDIRECT(CONCATENATE($B256,"!P21"))),"",INDIRECT(CONCATENATE($B256,"!P21"))) ->  | Y256: =IF(ISERROR(INDIRECT(CONCATENATE($B256,"!Q18"))),"",INDIRECT(CONCATENATE($B256,"!Q18"))) ->  | Z256: =IF(ISERROR(INDIRECT(CONCATENATE($B256,"!Q19"))),"",INDIRECT(CONCATENATE($B256,"!Q19"))) ->  | AA256: =IF(ISERROR(INDIRECT(CONCATENATE($B256,"!Q20"))),"",INDIRECT(CONCATENATE($B256,"!Q20"))) ->  | AB256: =IF(ISERROR(INDIRECT(CONCATENATE($B256,"!Q21"))),"",INDIRECT(CONCATENATE($B256,"!Q1"))) -> 
E257: =IF(ISERROR(INDIRECT(CONCATENATE($B257,"!M18"))),"",INDIRECT(CONCATENATE($B257,"!M18"))) ->  | F257: =IF(ISERROR(INDIRECT(CONCATENATE($B257,"!M19"))),"",INDIRECT(CONCATENATE($B257,"!M19"))) ->  | G257: =IF(ISERROR(INDIRECT(CONCATENATE($B257,"!M20"))),"",INDIRECT(CONCATENATE($B257,"!M20"))) ->  | H257: =IF(ISERROR(INDIRECT(CONCATENATE($B257,"!M21"))),"",INDIRECT(CONCATENATE($B257,"!M21"))) ->  | J257: =IF(ISERROR(INDIRECT(CONCATENATE($B257,"!N18"))),"",INDIRECT(CONCATENATE($B257,"!N18"))) ->  | K257: =IF(ISERROR(INDIRECT(CONCATENATE($B257,"!N19"))),"",INDIRECT(CONCATENATE($B257,"!N19"))) ->  | L257: =IF(ISERROR(INDIRECT(CONCATENATE($B257,"!N20"))),"",INDIRECT(CONCATENATE($B257,"!N20"))) ->  | M257: =IF(ISERROR(INDIRECT(CONCATENATE($B257,"!N21"))),"",INDIRECT(CONCATENATE($B257,"!N21"))) ->  | O257: =IF(ISERROR(INDIRECT(CONCATENATE($B257,"!O18"))),"",INDIRECT(CONCATENATE($B257,"!O18"))) ->  | P257: =IF(ISERROR(INDIRECT(CONCATENATE($B257,"!O19"))),"",INDIRECT(CONCATENATE($B257,"!O19"))) ->  | Q257: =IF(ISERROR(INDIRECT(CONCATENATE($B257,"!O20"))),"",INDIRECT(CONCATENATE($B257,"!O20"))) ->  | R257: =IF(ISERROR(INDIRECT(CONCATENATE($B257,"!O21"))),"",INDIRECT(CONCATENATE($B257,"!O21"))) ->  | T257: =IF(ISERROR(INDIRECT(CONCATENATE($B257,"!P18"))),"",INDIRECT(CONCATENATE($B257,"!P18"))) ->  | U257: =IF(ISERROR(INDIRECT(CONCATENATE($B257,"!P19"))),"",INDIRECT(CONCATENATE($B257,"!P19"))) ->  | V257: =IF(ISERROR(INDIRECT(CONCATENATE($B257,"!P20"))),"",INDIRECT(CONCATENATE($B257,"!P20"))) ->  | W257: =IF(ISERROR(INDIRECT(CONCATENATE($B257,"!P21"))),"",INDIRECT(CONCATENATE($B257,"!P21"))) ->  | Y257: =IF(ISERROR(INDIRECT(CONCATENATE($B257,"!Q18"))),"",INDIRECT(CONCATENATE($B257,"!Q18"))) ->  | Z257: =IF(ISERROR(INDIRECT(CONCATENATE($B257,"!Q19"))),"",INDIRECT(CONCATENATE($B257,"!Q19"))) ->  | AA257: =IF(ISERROR(INDIRECT(CONCATENATE($B257,"!Q20"))),"",INDIRECT(CONCATENATE($B257,"!Q20"))) ->  | AB257: =IF(ISERROR(INDIRECT(CONCATENATE($B257,"!Q21"))),"",INDIRECT(CONCATENATE($B257,"!Q1"))) -> 
A297: RURAL | D297: Poorest | I297: Poor | N297: Middle | S297: Rich | X297: Richest
D298: Improved | E298: Basic | F298: Limited | G298: Unimproved | H298: Surface water | I298: Improved | J298: Basic | K298: Limited | L298: Unimproved | M298: Surface water | N298: Improved | O298: Basic | P298: Limited | Q298: Unimproved | R298: Surface water | S298: Improved | T298: Basic | U298: Limited | V298: Unimproved | W298: Surface water | X298: Improved | Y298: Basic | Z298: Limited | AA298: Unimproved | AB298: Surface water
A299: Forecast period: | C299: =MinBase(C305:C316) -> 2000 | D299: =IF((D301+H301)>100,D301*100/(D301+H301),D301) -> 27.29561828 | E299: =D299*AVERAGEIF(E305:E316,">0")/100 -> 23.40234299 | F299: =D299*(100-AVERAGEIF(E305:E316,">0"))/100 -> 3.893275285 | G299: =100-(E299+F299+H299) -> 45.4127505 | H299: =IF((D301+H301)>100,H301*100/(D301+H301),H301) -> 27.29163123 | I299: =IF((I301+M301)>100,I301*100/(I301+M301),I301) -> 27.71317489 | J299: =I299*AVERAGEIF(J305:J316,">0")/100 -> 23.55185356 | K299: =I299*(100-AVERAGEIF(J305:J316,">0"))/100 -> 4.161321331 | L299: =100-(J299+K299+M299) -> 45.59268124 | M299: =IF((I301+M301)>100,M301*100/(I301+M301),M301) -> 26.69414387 | N299: =IF((N301+R301)>100,N301*100/(N301+R301),N301) -> 29.1817342 | O299: =N299*AVERAGEIF(O305:O316,">0")/100 -> 24.60733178 | P299: =N299*(100-AVERAGEIF(O305:O316,">0"))/100 -> 4.574402425 | Q299: =100-(O299+P299+R299) -> 42.76054523 | R299: =IF((N301+R301)>100,R301*100/(N301+R301),R301) -> 28.05772056 | S299: =IF((S301+W301)>100,S301*100/(S301+W301),S301) -> 32.56648227 | T299: =S299*AVERAGEIF(T305:T316,">0")/100 -> 27.0995902 | U299: =S299*(100-AVERAGEIF(T305:T316,">0"))/100 -> 5.466892076 | V299: =100-(T299+U299+W299) -> 40.96520278 | W299: =IF((S301+W301)>100,W301*100/(S301+W301),W301) -> 26.46831494 | X299: =IF((X301+AB301)>100,X301*100/(X301+AB301),X301) -> 50.72625695 | Y299: =X299*AVERAGEIF(Y305:Y316,">0")/100 -> 45.17666851 | Z299: =X299*(100-AVERAGEIF(Y305:Y316,">0"))/100 -> 5.549588435 | AA299: =100-(Y299+Z299+AB299) -> 37.01523951 | AB299: =IF((X301+AB301)>100,AB301*100/(X301+AB301),AB301) -> 12.25850354
C300: =MaxTarget(C305:C316) -> 2020 | D300: =IF((D302+H302)>100,D302*100/(D302+H302),D302) -> 45.00135833 | E300: =D300*AVERAGEIF(E305:E316,">0")/100 -> 38.58264766 | F300: =D300*(100-AVERAGEIF(E305:E316,">0"))/100 -> 6.418710665 | G300: =100-(E300+F300+H300) -> 38.46083992 | H300: =IF((D302+H302)>100,H302*100/(D302+H302),H302) -> 16.53780176 | I300: =IF((I302+M302)>100,I302*100/(I302+M302),I302) -> 51.12627837 | J300: =I300*AVERAGEIF(J305:J316,">0")/100 -> 43.44932062 | K300: =I300*(100-AVERAGEIF(J305:J316,">0"))/100 -> 7.676957751 | L300: =100-(J300+K300+M300) -> 34.43819715 | M300: =IF((I302+M302)>100,M302*100/(I302+M302),M302) -> 14.43552448 | N300: =IF((N302+R302)>100,N302*100/(N302+R302),N302) -> 55.97014371 | O300: =N300*AVERAGEIF(O305:O316,">0")/100 -> 47.19650608 | P300: =N300*(100-AVERAGEIF(O305:O316,">0"))/100 -> 8.773637623 | Q300: =100-(O300+P300+R300) -> 31.17766801 | R300: =IF((N302+R302)>100,R302*100/(N302+R302),R302) -> 12.85218828 | S300: =IF((S302+W302)>100,S302*100/(S302+W302),S302) -> 63.30147211 | T300: =S300*AVERAGEIF(T305:T316,">0")/100 -> 52.67513816 | U300: =S300*(100-AVERAGEIF(T305:T316,">0"))/100 -> 10.62633395 | V300: =100-(T300+U300+W300) -> 26.56041536 | W300: =IF((S302+W302)>100,W302*100/(S302+W302),W302) -> 10.13811253 | X300: =IF((X302+AB302)>100,X302*100/(X302+AB302),X302) -> 72.44743877 | Y300: =X300*AVERAGEIF(Y305:Y316,">0")/100 -> 64.52149484 | Z300: =X300*(100-AVERAGEIF(Y305:Y316,">0"))/100 -> 7.925943929 | AA300: =100-(Y300+Z300+AB300) -> 20.41979003 | AB300: =IF((X302+AB302)>100,AB302*100/(X302+AB302),AB302) -> 7.132771203
A301: Regression period: | C301: =MinRegYear(C299,C305:C316) -> 2000 | D301: =IF(MAX(C305:C316)-MIN(C305:C316)<5,AVERAGEIF(C305:C316,">0",D305:D316), IF(FORECAST($C301,D$305:D$316,$C$305:$C$316)<0,0, IF(FORECAST($C301,D$305:D$316,$C$305:$C$316)>100,100, FORECAST($C301,D$305:D$316,$C$305:$C$316)))) -> 27.29561828 | H301: =IF(MAX(C305:C316)-MIN(C305:C316)<5,AVERAGEIF(C305:C316,">0",H305:H316), IF(FORECAST($C301,H$305:H$316,$C$305:$C$316)<0,0, IF(FORECAST($C301,H$305:H$316,$C$305:$C$316)>100,100, FORECAST($C301,H$305:H$316,$C$305:$C$316)))) -> 27.29163123 | I301: =IF(MAX(C305:C316)-MIN(C305:C316)<5,AVERAGEIF(C305:C316,">0",I305:I316), IF(FORECAST($C301,I$305:I$316,$C$305:$C$316)<0,0, IF(FORECAST($C301,I$305:I$316,$C$305:$C$316)>100,100, FORECAST($C301,I$305:I$316,$C$305:$C$316)))) -> 27.71317489 | M301: =IF(MAX(C305:C316)-MIN(C305:C316)<5,AVERAGEIF(C305:C316,">0",M305:M316), IF(FORECAST($C301,M$305:M$316,$C$305:$C$316)<0,0, IF(FORECAST($C301,M$305:M$316,$C$305:$C$316)>100,100, FORECAST($C301,M$305:M$316,$C$305:$C$316)))) -> 26.69414387 | N301: =IF(MAX(C305:C316)-MIN(C305:C316)<5,AVERAGEIF(C305:C316,">0",N305:N316), IF(FORECAST($C301,N$305:N$316,$C$305:$C$316)<0,0, IF(FORECAST($C301,N$305:N$316,$C$305:$C$316)>100,100, FORECAST($C301,N$305:N$316,$C$305:$C$316)))) -> 29.1817342 | R301: =IF(MAX(C305:C316)-MIN(C305:C316)<5,AVERAGEIF(C305:C316,">0",R305:R316), IF(FORECAST($C301,R$305:R$316,$C$305:$C$316)<0,0, IF(FORECAST($C301,R$305:R$316,$C$305:$C$316)>100,100, FORECAST($C301,R$305:R$316,$C$305:$C$316)))) -> 28.05772056 | S301: =IF(MAX(C305:C316)-MIN(C305:C316)<5,AVERAGEIF(C305:C316,">0",S305:S316), IF(FORECAST($C301,S$305:S$316,$C$305:$C$316)<0,0, IF(FORECAST($C301,S$305:S$316,$C$305:$C$316)>100,100, FORECAST($C301,S$305:S$316,$C$305:$C$316)))) -> 32.56648227 | W301: =IF(MAX(C305:C316)-MIN(C305:C316)<5,AVERAGEIF(C305:C316,">0",W305:W316), IF(FORECAST($C301,W$305:W$316,$C$305:$C$316)<0,0, IF(FORECAST($C301,W$305:W$316,$C$305:$C$316)>100,100, FORECAST($C301,W$305:W$316,$C$305:$C$316)))) -> 26.46831494 | X301: =IF(MAX(C305:C316)-MIN(C305:C316)<5,AVERAGEIF(C305:C316,">0",X305:X316), IF(FORECAST($C301,X$305:X$316,$C$305:$C$316)<0,0, IF(FORECAST($C301,X$305:X$316,$C$305:$C$316)>100,100, FORECAST($C301,X$305:X$316,$C$305:$C$316)))) -> 50.72625695 | AB301: =IF(MAX(C305:C316)-MIN(C305:C316)<5,AVERAGEIF(C305:C316,">0",AB305:AB316), IF(FORECAST($C301,AB$305:AB$316,$C$305:$C$316)<0,0, IF(FORECAST($C301,AB$305:AB$316,$C$305:$C$316)>100,100, FORECAST($C301,AB$305:AB$316,$C$305:$C$316)))) -> 12.25850354
C302: =MaxRegYear(C300,C305:C316) -> 2020 | D302: =IF(MAX(C305:C316)-MIN(C305:C316)<5,AVERAGEIF(C305:C316,">0",D305:D316), IF(FORECAST($C302,D$305:D$316,$C$305:$C$316)<0,0, IF(FORECAST($C302,D$305:D$316,$C$305:$C$316)>100,100, FORECAST($C302,D$305:D$316,$C$305:$C$316)))) -> 45.00135833 | H302: =IF(MAX(C305:C316)-MIN(C305:C316)<5,AVERAGEIF(C305:C316,">0",H305:H316), IF(FORECAST($C302,H$305:H$316,$C$305:$C$316)<0,0, IF(FORECAST($C302,H$305:H$316,$C$305:$C$316)>100,100, FORECAST($C302,H$305:H$316,$C$305:$C$316)))) -> 16.53780176 | I302: =IF(MAX(C305:C316)-MIN(C305:C316)<5,AVERAGEIF(C305:C316,">0",I305:I316), IF(FORECAST($C302,I$305:I$316,$C$305:$C$316)<0,0, IF(FORECAST($C302,I$305:I$316,$C$305:$C$316)>100,100, FORECAST($C302,I$305:I$316,$C$305:$C$316)))) -> 51.12627837 | M302: =IF(MAX(C305:C316)-MIN(C305:C316)<5,AVERAGEIF(C305:C316,">0",M305:M316), IF(FORECAST($C302,M$305:M$316,$C$305:$C$316)<0,0, IF(FORECAST($C302,M$305:M$316,$C$305:$C$316)>100,100, FORECAST($C302,M$305:M$316,$C$305:$C$316)))) -> 14.43552448 | N302: =IF(MAX(C305:C316)-MIN(C305:C316)<5,AVERAGEIF(C305:C316,">0",N305:N316), IF(FORECAST($C302,N$305:N$316,$C$305:$C$316)<0,0, IF(FORECAST($C302,N$305:N$316,$C$305:$C$316)>100,100, FORECAST($C302,N$305:N$316,$C$305:$C$316)))) -> 55.97014371 | R302: =IF(MAX(C305:C316)-MIN(C305:C316)<5,AVERAGEIF(C305:C316,">0",R305:R316), IF(FORECAST($C302,R$305:R$316,$C$305:$C$316)<0,0, IF(FORECAST($C302,R$305:R$316,$C$305:$C$316)>100,100, FORECAST($C302,R$305:R$316,$C$305:$C$316)))) -> 12.85218828 | S302: =IF(MAX(C305:C316)-MIN(C305:C316)<5,AVERAGEIF(C305:C316,">0",S305:S316), IF(FORECAST($C302,S$305:S$316,$C$305:$C$316)<0,0, IF(FORECAST($C302,S$305:S$316,$C$305:$C$316)>100,100, FORECAST($C302,S$305:S$316,$C$305:$C$316)))) -> 63.30147211 | W302: =IF(MAX(C305:C316)-MIN(C305:C316)<5,AVERAGEIF(C305:C316,">0",W305:W316), IF(FORECAST($C302,W$305:W$316,$C$305:$C$316)<0,0, IF(FORECAST($C302,W$305:W$316,$C$305:$C$316)>100,100, FORECAST($C302,W$305:W$316,$C$305:$C$316)))) -> 10.13811253 | X302: =IF(MAX(C305:C316)-MIN(C305:C316)<5,AVERAGEIF(C305:C316,">0",X305:X316), IF(FORECAST($C302,X$305:X$316,$C$305:$C$316)<0,0, IF(FORECAST($C302,X$305:X$316,$C$305:$C$316)>100,100, FORECAST($C302,X$305:X$316,$C$305:$C$316)))) -> 72.44743877 | AB302: =IF(MAX(C305:C316)-MIN(C305:C316)<5,AVERAGEIF(C305:C316,">0",AB305:AB316), IF(FORECAST($C302,AB$305:AB$316,$C$305:$C$316)<0,0, IF(FORECAST($C302,AB$305:AB$316,$C$305:$C$316)>100,100, FORECAST($C302,AB$305:AB$316,$C$305:$C$316)))) -> 7.132771203
B304: Survey | C304: Year | D304: Improved | E304: % Improved < = 30min | H304: Surface water | I304: Improved | J304: % Improved < = 30min | M304: Surface water | N304: Improved | O304: % Improved < = 30min | R304: Surface water | S304: Improved | T304: % Improved < = 30min | W304: Surface water | X304: Improved | Y304: % Improved < = 30min | AB304: Surface water
B305: DHS02 | C305: 2002 | D305: =IF(ISERROR(INDIRECT(CONCATENATE($B305,"!M16"))),"",INDIRECT(CONCATENATE($B305,"!M16"))) -> 23.94330099 | E305: =IF(ISERROR(INDIRECT(CONCATENATE($B305,"!M23"))),"",INDIRECT(CONCATENATE($B305,"!M23"))) -> N/A | H305: =IF(ISERROR(INDIRECT(CONCATENATE($B305,"!M21"))),"",INDIRECT(CONCATENATE($B305,"!M21"))) -> 30.28010076 | I305: =IF(ISERROR(INDIRECT(CONCATENATE($B305,"!N16"))),"",INDIRECT(CONCATENATE($B305,"!N16"))) -> 23.99134425 | J305: =IF(ISERROR(INDIRECT(CONCATENATE($B305,"!N23"))),"",INDIRECT(CONCATENATE($B305,"!N23"))) -> N/A | M305: =IF(ISERROR(INDIRECT(CONCATENATE($B305,"!N21"))),"",INDIRECT(CONCATENATE($B305,"!N21"))) -> 30.28010076 | N305: =IF(ISERROR(INDIRECT(CONCATENATE($B305,"!O16"))),"",INDIRECT(CONCATENATE($B305,"!O16"))) -> 27.5869514 | O305: =IF(ISERROR(INDIRECT(CONCATENATE($B305,"!O23"))),"",INDIRECT(CONCATENATE($B305,"!O23"))) -> N/A | R305: =IF(ISERROR(INDIRECT(CONCATENATE($B305,"!O21"))),"",INDIRECT(CONCATENATE($B305,"!O21"))) -> 30.50276786 | S305: =IF(ISERROR(INDIRECT(CONCATENATE($B305,"!P16"))),"",INDIRECT(CONCATENATE($B305,"!P16"))) -> 31.96737883 | T305: =IF(ISERROR(INDIRECT(CONCATENATE($B305,"!P23"))),"",INDIRECT(CONCATENATE($B305,"!P23"))) -> N/A | W305: =IF(ISERROR(INDIRECT(CONCATENATE($B305,"!P21"))),"",INDIRECT(CONCATENATE($B305,"!P21"))) -> 28.10319457 | X305: =IF(ISERROR(INDIRECT(CONCATENATE($B305,"!Q16"))),"",INDIRECT(CONCATENATE($B305,"!Q16"))) -> 55.48697772 | Y305: =IF(ISERROR(INDIRECT(CONCATENATE($B305,"!Q23"))),"",INDIRECT(CONCATENATE($B305,"!Q23"))) -> N/A | AB305: =IF(ISERROR(INDIRECT(CONCATENATE($B305,"!Q221"))),"",INDIRECT(CONCATENATE($B305,"!Q21"))) -> 14.72126445
B306: WHS03 | C306: 2003 | D306: 36.87979969 | E306: 90.13723557 | H306: 20.61416765 | I306: 38.30645009 | J306: 85.68764073 | M306: 19.6462403 | N306: 38.56749319 | O306: 82.11474282 | R306: 21.33727629 | S306: 41.94243337 | T306: 90.440847 | W306: 20.43627092 | X306: 51.89821392 | Y306: 87.52156228 | AB306: 7.881418169
B307: DHS07 | D307: 15.16323286 | E307: 84.97488778 | H307: 29.982406 | I307: 14.24205545 | J307: 89.08852403 | M307: 33.87134725 | N307: 16.05132368 | O307: 88.7105522 | R307: 34.19416635 | S307: 18.49120087 | T307: 82.04805324 | W307: 34.16252083 | X307: 34.25452577 | Y307: 90.05027027 | AB307: 21.54361099
B308: DHS14 | C308: 2014 | D308: 34.2 | E308: 80.8 | H308: 22.5 | I308: 41.8 | J308: 80.4 | M308: 18.4 | N308: 44.9 | O308: 80.3 | R308: 18.2 | S308: 50.9 | T308: 79.7 | W308: 15.4 | X308: 63.4 | Y308: 90 | AB308: 10.3
B309: DHS18 | C309: 2018 | D309: 46.91499153 | E309: 87.0343929 | H309: 15.87767197 | I309: 50.06914666 | J309: 84.76111997 | M309: 15.77178856 | N309: 55.2310498 | O309: 86.17243522 | R309: 14.06060339 | S309: 62.31584808 | T309: 80.66363164 | W309: 11.72291982 | X309: 72.30402253 | Y309: 88.66709562 | AB309: 6.648726709
B318: =CONCATENATE("Rural use of drinking water sources, ",C299,"–",C300) -> Rural use of drinking water sources, 2000–2020 | S318: Data points used for regression

Sheet Sanitation
B4: Summary of trends in use of sanitation facilities by wealth quintile (%)
B5: =IF(ISERROR(INDIRECT(CONCATENATE($B105,"!A2"))),"",INDIRECT(CONCATENATE($B105,"!A2"))) -> Zambia
B7: =B118 -> National use of sanitation facilities, 2000–2020 | J7: =B218 -> Urban use of sanitation facilities, 2000–2020 | R7: =B318 -> Rural use of sanitation facilities, 2000–2020
B31: =IF(ISERROR(INDIRECT(CONCATENATE($B105,"!A2"))),"",INDIRECT(CONCATENATE($B105,"!A2"))) -> Zambia | F31: Poorest | J31: Poor | N31: Middle | R31: Rich | V31: Richest
F32: Basic | G32: Limited | H32: Unimproved | I32: Open defecation | J32: Basic | K32: Limited | L32: Unimproved | M32: Open defecation | N32: Basic | O32: Limited | P32: Unimproved | Q32: Open defecation | R32: Basic | S32: Limited | T32: Unimproved | U32: Open defecation | V32: Basic | W32: Limited | X32: Unimproved | Y32: Open defecation
B33: NATIONAL | D33: Estimate | E33: =C99 -> 2000 | F33: =E99 -> 1.58889316 | G33: =F99 -> 0.60594066 | H33: 34.58243035 | I33: 63.22273583 | J33: =J99 -> 0.8333139593 | K33: =K99 -> 0.2693353371 | L33: 53.40606014 | M33: 45.49129056 | N33: =O99 -> 5.289098514 | O33: =P99 -> 2.567478208 | P33: 61.79991786 | Q33: 30.34350542 | R33: =T99 -> 22.17805039 | S33: =U99 -> 25.19772393 | T33: 45.52589535 | U33: 7.098330323 | V33: =Y99 -> 66.06232573 | W33: =Z99 -> 27.81951941 | X33: 5.874404243 | Y33: 0.243750623
E34: =C100 -> 2020 | F34: =E100 -> 22.09241086 | G34: 8.425166871 | H34: 49.52754624 | I34: 19.95487603 | J34: =J100 -> 26.3466312 | K34: 8.515492532 | L34: 50.65333582 | M34: 14.48454045 | N34: =O100 -> 30.50362707 | O34: 14.80732445 | P34: 46.70298732 | Q34: 7.986061155 | R34: =T100 -> 33.2165662 | S34: 37.73919934 | T34: 27.34502094 | U34: 1.699213516 | V34: =Y100 -> 63.84223898 | W34: 26.88461822 | X34: 9.070842845 | Y34: 0.2022999562
B36: URBAN | D36: Estimate | E36: =C199 -> 2000 | F36: =E199 -> 11.12386318 | G36: =F199 -> 13.06174725 | H36: 65.68477695 | I36: 10.12961262 | J36: =J199 -> 19.62268807 | K36: =K199 -> 33.40552602 | L36: 41.35100931 | M36: 5.620776598 | N36: =O199 -> 30.7908741 | O36: =P199 -> 51.199899 | P36: 17.3868848 | Q36: 0.6223421048 | R36: =T199 -> 56.88840927 | S36: =U199 -> 37.31670541 | T36: 5.344411132 | U36: 0.4504741895 | V36: =Y199 -> 85.7697445 | W36: =Z199 -> 13.84717817 | X36: 0.2496225952 | Y36: 0.1334547323
E37: =C200 -> 2020 | F37: =E200 -> 22.99531646 | G37: 27.001322 | H37: 47.64144086 | I37: 2.361920689 | J37: =J200 -> 26.56479307 | K37: 45.2237167 | L37: 28.15558131 | M37: 0.05590891228 | N37: =O200 -> 31.21467848 | O37: 51.90461241 | P37: 16.4919943 | Q37: 0.3887148111 | R37: =T200 -> 53.0233822 | S37: 34.78138972 | T37: 12.19522807 | U37: 0 | V37: =Y200 -> 82.87568975 | W37: 13.37994474 | X37: 3.732233261 | Y37: 0.01213224839
B39: RURAL | D39: Estimate | E39: =C299 -> 2000 | F39: =E299 -> 0 | G39: =F299 -> 0 | H39: 34.22391754 | I39: 65.77608246 | J39: =J299 -> 2.474351836 | K39: =K299 -> 0.7681079856 | L39: 37.73419238 | M39: 59.0233478 | N39: =O299 -> 1.125940374 | O39: =P299 -> 0.3281453976 | P39: 54.04265349 | Q39: 44.50326074 | R39: =T299 -> 5.210396786 | S39: =U299 -> 1.708141814 | T39: 54.58775397 | U39: 38.49370743 | V39: =Y299 -> 25.19531358 | W39: =Z299 -> 6.570357004 | X39: 53.71736833 | Y39: 14.51696108
E40: =C300 -> 2020 | F40: =E300 -> 19.27855828 | G40: 8.997039669 | H40: 47.29368149 | I40: 24.43072056 | J40: =J300 -> 25.21391474 | K40: 7.827104043 | L40: 52.51277563 | M40: 14.44620559 | N40: =O300 -> 27.38277565 | O40: 7.980468598 | P40: 50.05598989 | Q40: 14.58076587 | R40: =T300 -> 28.96749074 | S40: 9.496509425 | T40: 49.62713281 | U40: 11.90886702 | V40: =Y300 -> 44.82560744 | W40: 11.68948514 | X40: 36.40635957 | Y40: 7.078547845
A97: NATIONAL | D97: Poorest | I97: Poor | N97: Middle | S97: Rich | X97: Richest
D98: Improved | E98: Basic | F98: Limited | G98: Unimproved | H98: Open defecation | I98: Improved | J98: Basic | K98: Limited | L98: Unimproved | M98: Open defecation | N98: Improved | O98: Basic | P98: Limited | Q98: Unimproved | R98: Open defecation | S98: Improved | T98: Basic | U98: Limited | V98: Unimproved | W98: Open defecation | X98: Improved | Y98: Basic | Z98: Limited | AA98: Unimproved | AB98: Open defecation
A99: Forecast period: | C99: =MinBase(C105:C116) -> 2000 | D99: =IF((D101+H101)>100,D101*100/(D101+H101),D101) -> 2.19483382 | E99: =D99*AVERAGEIF(E105:E116,">0")/100 -> 1.58889316 | F99: =D99*(100-AVERAGEIF(E105:E116,">0"))/100 -> 0.60594066 | G99: =100-(E99+F99+H99) -> 34.58243035 | H99: =IF((D101+H101)>100,H101*100/(D101+H101),H101) -> 63.22273583 | I99: =IF((I101+M101)>100,I101*100/(I101+M101),I101) -> 1.102649296 | J99: =I99*AVERAGEIF(J105:J116,">0")/100 -> 0.8333139593 | K99: =I99*(100-AVERAGEIF(J105:J116,">0"))/100 -> 0.2693353371 | L99: =100-(J99+K99+M99) -> 53.40606014 | M99: =IF((I101+M101)>100,M101*100/(I101+M101),M101) -> 45.49129056 | N99: =IF((N101+R101)>100,N101*100/(N101+R101),N101) -> 7.856576723 | O99: =N99*AVERAGEIF(O105:O116,">0")/100 -> 5.289098514 | P99: =N99*(100-AVERAGEIF(O105:O116,">0"))/100 -> 2.567478208 | Q99: =100-(O99+P99+R99) -> 61.79991786 | R99: =IF((N101+R101)>100,R101*100/(N101+R101),R101) -> 30.34350542 | S99: =IF((S101+W101)>100,S101*100/(S101+W101),S101) -> 47.37577432 | T99: =S99*AVERAGEIF(T105:T116,">0")/100 -> 22.17805039 | U99: =S99*(100-AVERAGEIF(T105:T116,">0"))/100 -> 25.19772393 | V99: =100-(T99+U99+W99) -> 45.52589535 | W99: =IF((S101+W101)>100,W101*100/(S101+W101),W101) -> 7.098330323 | X99: =IF((X101+AB101)>100,X101*100/(X101+AB101),X101) -> 93.88184513 | Y99: =X99*AVERAGEIF(Y105:Y116,">0")/100 -> 66.06232573 | Z99: =X99*(100-AVERAGEIF(Y105:Y116,">0"))/100 -> 27.81951941 | AA99: =100-(Y99+Z99+AB99) -> 5.874404243 | AB99: =IF((X101+AB101)>100,AB101*100/(X101+AB101),AB101) -> 0.243750623
C100: =MaxTarget(C105:C116) -> 2020 | D100: =IF((D102+H102)>100,D102*100/(D102+H102),D102) -> 30.51757773 | E100: =D100*AVERAGEIF(E105:E116,">0")/100 -> 22.09241086 | F100: =D100*(100-AVERAGEIF(E105:E116,">0"))/100 -> 8.425166871 | G100: =100-(E100+F100+H100) -> 49.52754624 | H100: =IF((D102+H102)>100,H102*100/(D102+H102),H102) -> 19.95487603 | I100: =IF((I102+M102)>100,I102*100/(I102+M102),I102) -> 34.86212373 | J100: =I100*AVERAGEIF(J105:J116,">0")/100 -> 26.3466312 | K100: =I100*(100-AVERAGEIF(J105:J116,">0"))/100 -> 8.515492532 | L100: =100-(J100+K100+M100) -> 50.65333582 | M100: =IF((I102+M102)>100,M102*100/(I102+M102),M102) -> 14.48454045 | N100: =IF((N102+R102)>100,N102*100/(N102+R102),N102) -> 45.31095152 | O100: =N100*AVERAGEIF(O105:O116,">0")/100 -> 30.50362707 | P100: =N100*(100-AVERAGEIF(O105:O116,">0"))/100 -> 14.80732445 | Q100: =100-(O100+P100+R100) -> 46.70298732 | R100: =IF((N102+R102)>100,R102*100/(N102+R102),R102) -> 7.986061155 | S100: =IF((S102+W102)>100,S102*100/(S102+W102),S102) -> 70.95576554 | T100: =S100*AVERAGEIF(T105:T116,">0")/100 -> 33.2165662 | U100: =S100*(100-AVERAGEIF(T105:T116,">0"))/100 -> 37.73919934 | V100: =100-(T100+U100+W100) -> 27.34502094 | W100: =IF((S102+W102)>100,W102*100/(S102+W102),W102) -> 1.699213516 | X100: =IF((X102+AB102)>100,X102*100/(X102+AB102),X102) -> 90.7268572 | Y100: =X100*AVERAGEIF(Y105:Y116,">0")/100 -> 63.84223898 | Z100: =X100*(100-AVERAGEIF(Y105:Y116,">0"))/100 -> 26.88461822 | AA100: =100-(Y100+Z100+AB100) -> 9.070842845 | AB100: =IF((X102+AB102)>100,AB102*100/(X102+AB102),AB102) -> 0.2022999562
A101: Regression period: | C101: =MinRegYear(C99,C105:C116) -> 2000 | D101: =IF(MAX(C105:C116)-MIN(C105:C116)<5,AVERAGEIF(C105:C116,">0",D105:D116), IF(FORECAST($C101,D$105:D$116,$C$105:$C$116)<0,0, IF(FORECAST($C101,D$105:D$116,$C$105:$C$116)>100,100, FORECAST($C101,D$105:D$116,$C$105:$C$116)))) -> 2.19483382 | H101: =IF(MAX(C105:C116)-MIN(C105:C116)<5,AVERAGEIF(C105:C116,">0",H105:H116), IF(FORECAST($C101,H$105:H$116,$C$105:$C$116)<0,0, IF(FORECAST($C101,H$105:H$116,$C$105:$C$116)>100,100, FORECAST($C101,H$105:H$116,$C$105:$C$116)))) -> 63.22273583 | I101: =IF(MAX(C105:C116)-MIN(C105:C116)<5,AVERAGEIF(C105:C116,">0",I105:I116), IF(FORECAST($C101,I$105:I$116,$C$105:$C$116)<0,0, IF(FORECAST($C101,I$105:I$116,$C$105:$C$116)>100,100, FORECAST($C101,I$105:I$116,$C$105:$C$116)))) -> 1.102649296 | M101: =IF(MAX(C105:C116)-MIN(C105:C116)<5,AVERAGEIF(C105:C116,">0",M105:M116), IF(FORECAST($C101,M$105:M$116,$C$105:$C$116)<0,0, IF(FORECAST($C101,M$105:M$116,$C$105:$C$116)>100,100, FORECAST($C101,M$105:M$116,$C$105:$C$116)))) -> 45.49129056 | N101: =IF(MAX(C105:C116)-MIN(C105:C116)<5,AVERAGEIF(C105:C116,">0",N105:N116), IF(FORECAST($C101,N$105:N$116,$C$105:$C$116)<0,0, IF(FORECAST($C101,N$105:N$116,$C$105:$C$116)>100,100, FORECAST($C101,N$105:N$116,$C$105:$C$116)))) -> 7.856576723 | R101: =IF(MAX(C105:C116)-MIN(C105:C116)<5,AVERAGEIF(C105:C116,">0",R105:R116), IF(FORECAST($C101,R$105:R$116,$C$105:$C$116)<0,0, IF(FORECAST($C101,R$105:R$116,$C$105:$C$116)>100,100, FORECAST($C101,R$105:R$116,$C$105:$C$116)))) -> 30.34350542 | S101: =IF(MAX(C105:C116)-MIN(C105:C116)<5,AVERAGEIF(C105:C116,">0",S105:S116), IF(FORECAST($C101,S$105:S$116,$C$105:$C$116)<0,0, IF(FORECAST($C101,S$105:S$116,$C$105:$C$116)>100,100, FORECAST($C101,S$105:S$116,$C$105:$C$116)))) -> 47.37577432 | W101: =IF(MAX(C105:C116)-MIN(C105:C116)<5,AVERAGEIF(C105:C116,">0",W105:W116), IF(FORECAST($C101,W$105:W$116,$C$105:$C$116)<0,0, IF(FORECAST($C101,W$105:W$116,$C$105:$C$116)>100,100, FORECAST($C101,W$105:W$116,$C$105:$C$116)))) -> 7.098330323 | X101: =IF(MAX(C105:C116)-MIN(C105:C116)<5,AVERAGEIF(C105:C116,">0",X105:X116), IF(FORECAST($C101,X$105:X$116,$C$105:$C$116)<0,0, IF(FORECAST($C101,X$105:X$116,$C$105:$C$116)>100,100, FORECAST($C101,X$105:X$116,$C$105:$C$116)))) -> 93.88184513 | AB101: =IF(MAX(C105:C116)-MIN(C105:C116)<5,AVERAGEIF(C105:C116,">0",AB105:AB116), IF(FORECAST($C101,AB$105:AB$116,$C$105:$C$116)<0,0, IF(FORECAST($C101,AB$105:AB$116,$C$105:$C$116)>100,100, FORECAST($C101,AB$105:AB$116,$C$105:$C$116)))) -> 0.243750623
C102: =MaxRegYear(C100,C105:C116) -> 2020 | D102: =IF(MAX(C105:C116)-MIN(C105:C116)<5,AVERAGEIF(C105:C116,">0",D105:D116), IF(FORECAST($C102,D$105:D$116,$C$105:$C$116)<0,0, IF(FORECAST($C102,D$105:D$116,$C$105:$C$116)>100,100, FORECAST($C102,D$105:D$116,$C$105:$C$116)))) -> 30.51757773 | H102: =IF(MAX(C105:C116)-MIN(C105:C116)<5,AVERAGEIF(C105:C116,">0",H105:H116), IF(FORECAST($C102,H$105:H$116,$C$105:$C$116)<0,0, IF(FORECAST($C102,H$105:H$116,$C$105:$C$116)>100,100, FORECAST($C102,H$105:H$116,$C$105:$C$116)))) -> 19.95487603 | I102: =IF(MAX(C105:C116)-MIN(C105:C116)<5,AVERAGEIF(C105:C116,">0",I105:I116), IF(FORECAST($C102,I$105:I$116,$C$105:$C$116)<0,0, IF(FORECAST($C102,I$105:I$116,$C$105:$C$116)>100,100, FORECAST($C102,I$105:I$116,$C$105:$C$116)))) -> 34.86212373 | M102: =IF(MAX(C105:C116)-MIN(C105:C116)<5,AVERAGEIF(C105:C116,">0",M105:M116), IF(FORECAST($C102,M$105:M$116,$C$105:$C$116)<0,0, IF(FORECAST($C102,M$105:M$116,$C$105:$C$116)>100,100, FORECAST($C102,M$105:M$116,$C$105:$C$116)))) -> 14.48454045 | N102: =IF(MAX(C105:C116)-MIN(C105:C116)<5,AVERAGEIF(C105:C116,">0",N105:N116), IF(FORECAST($C102,N$105:N$116,$C$105:$C$116)<0,0, IF(FORECAST($C102,N$105:N$116,$C$105:$C$116)>100,100, FORECAST($C102,N$105:N$116,$C$105:$C$116)))) -> 45.31095152 | R102: =IF(MAX(C105:C116)-MIN(C105:C116)<5,AVERAGEIF(C105:C116,">0",R105:R116), IF(FORECAST($C102,R$105:R$116,$C$105:$C$116)<0,0, IF(FORECAST($C102,R$105:R$116,$C$105:$C$116)>100,100, FORECAST($C102,R$105:R$116,$C$105:$C$116)))) -> 7.986061155 | S102: =IF(MAX(C105:C116)-MIN(C105:C116)<5,AVERAGEIF(C105:C116,">0",S105:S116), IF(FORECAST($C102,S$105:S$116,$C$105:$C$116)<0,0, IF(FORECAST($C102,S$105:S$116,$C$105:$C$116)>100,100, FORECAST($C102,S$105:S$116,$C$105:$C$116)))) -> 70.95576554 | W102: =IF(MAX(C105:C116)-MIN(C105:C116)<5,AVERAGEIF(C105:C116,">0",W105:W116), IF(FORECAST($C102,W$105:W$116,$C$105:$C$116)<0,0, IF(FORECAST($C102,W$105:W$116,$C$105:$C$116)>100,100, FORECAST($C102,W$105:W$116,$C$105:$C$116)))) -> 1.699213516 | X102: =IF(MAX(C105:C116)-MIN(C105:C116)<5,AVERAGEIF(C105:C116,">0",X105:X116), IF(FORECAST($C102,X$105:X$116,$C$105:$C$116)<0,0, IF(FORECAST($C102,X$105:X$116,$C$105:$C$116)>100,100, FORECAST($C102,X$105:X$116,$C$105:$C$116)))) -> 90.7268572 | AB102: =IF(MAX(C105:C116)-MIN(C105:C116)<5,AVERAGEIF(C105:C116,">0",AB105:AB116), IF(FORECAST($C102,AB$105:AB$116,$C$105:$C$116)<0,0, IF(FORECAST($C102,AB$105:AB$116,$C$105:$C$116)>100,100, FORECAST($C102,AB$105:AB$116,$C$105:$C$116)))) -> 0.2022999562
B104: Survey | C104: Year | D104: Improved | E104: Not shared | H104: Open defecation | I104: Improved | J104: Not shared | M104: Open defecation | N104: Improved | O104: Not shared | R104: Open defecation | S104: Improved | T104: Not shared | W104: Open defecation | X104: Improved | Y104: Not shared | AB104: Open defecation
B105: DHS02 | C105: 2002 | D105: =IF(ISERROR(INDIRECT(CONCATENATE($B105,"!C122"))),"",INDIRECT(CONCATENATE($B105,"!C122"))) -> 6.423334258 | E105: =IF(ISERROR(INDIRECT(CONCATENATE($B105,"!C129"))),"",INDIRECT(CONCATENATE($B105,"!C129"))) -> N/A | H105: =IF(ISERROR(INDIRECT(CONCATENATE($B105,"!C127"))),"",INDIRECT(CONCATENATE($B105,"!C127"))) -> 56.24691742 | I105: =IF(ISERROR(INDIRECT(CONCATENATE($B105,"!D122"))),"",INDIRECT(CONCATENATE($B105,"!D122"))) -> 5.131336452 | J105: =IF(ISERROR(INDIRECT(CONCATENATE($B105,"!D129"))),"",INDIRECT(CONCATENATE($B105,"!D129"))) -> N/A | M105: =IF(ISERROR(INDIRECT(CONCATENATE($B105,"!D127"))),"",INDIRECT(CONCATENATE($B105,"!D127"))) -> 41.87470134 | N105: =IF(ISERROR(INDIRECT(CONCATENATE($B105,"!E122"))),"",INDIRECT(CONCATENATE($B105,"!E122"))) -> 13.29214699 | O105: =IF(ISERROR(INDIRECT(CONCATENATE($B105,"!E129"))),"",INDIRECT(CONCATENATE($B105,"!E129"))) -> N/A | R105: =IF(ISERROR(INDIRECT(CONCATENATE($B105,"!E127"))),"",INDIRECT(CONCATENATE($B105,"!E127"))) -> 26.25104295 | S105: =IF(ISERROR(INDIRECT(CONCATENATE($B105,"!F122"))),"",INDIRECT(CONCATENATE($B105,"!F122"))) -> 52.52527462 | T105: =IF(ISERROR(INDIRECT(CONCATENATE($B105,"!F129"))),"",INDIRECT(CONCATENATE($B105,"!F129"))) -> N/A | W105: =IF(ISERROR(INDIRECT(CONCATENATE($B105,"!F127"))),"",INDIRECT(CONCATENATE($B105,"!F127"))) -> 6.056943426 | X105: =IF(ISERROR(INDIRECT(CONCATENATE($B105,"!G122"))),"",INDIRECT(CONCATENATE($B105,"!G122"))) -> 94.18791798 | Y105: =IF(ISERROR(INDIRECT(CONCATENATE($B105,"!G129"))),"",INDIRECT(CONCATENATE($B105,"!G129"))) -> N/A | AB105: =IF(ISERROR(INDIRECT(CONCATENATE($B105,"!G2127"))),"",INDIRECT(CONCATENATE($B105,"!G127"))) -> 0.2240416903
B106: WHS03 | D106: 39.84602059 | E106: 82.24794187 | H106: 54.6904 | I106: 56.76606728 | J106: 84.61587724 | M106: 37.53377898 | N106: 66.75595796 | O106: 84.12144934 | R106: 20.54163827 | S106: 75.72527435 | T106: 56.58465503 | W106: 3.855669864 | X106: 96.59077381 | Y106: 69.63101597 | AB106: 0.06144797763
B107: DHS07 | C107: 2007 | D107: 11.46489875 | E107: 64.77939447 | H107: 51.44136019 | I107: 12.68024428 | J107: 68.84092116 | M107: 34.61850243 | N107: 18.96281434 | O107: 66.47525993 | R107: 24.84925102 | S107: 53.31195375 | T107: 46.28582824 | W107: 5.566163884 | X107: 92.2043074 | Y107: 73.66901438 | AB107: 0.2157174515
B108: DHS14 | C108: 2014 | D108: 18.20381282 | E108: 74.03421741 | H108: 34.28483165 | I108: 22.7784305 | J108: 73.70546498 | M108: 25.90639267 | N108: 32.82179024 | O108: 58.48727815 | R108: 15.71032606 | S108: 59.08701159 | T108: 42.88643566 | W108: 4.341657202 | X108: 90.76361992 | Y108: 68.95640952 | AB108: 0.3141855754
B109: DHS18 | C109: 2018 | D109: 30.74891446 | E109: 68.50809759 | H109: 22.21872146 | I109: 33.02750855 | J109: 75.1329313 | M109: 16.00172806 | N109: 43.13102366 | O109: 60.19861241 | R109: 8.730640891 | S109: 72.91783933 | T109: 41.49532728 | W109: 1.360367325 | X109: 91.90380998 | Y109: 69.21363833 | AB109: 0.136083908
B118: =CONCATENATE("National use of sanitation facilities, ",C99,"–",C100) -> National use of sanitation facilities, 2000–2020 | S118: Data points used for regression
A197: URBAN | D197: Poorest | I197: Poor | N197: Middle | S197: Rich | X197: Richest
D198: Improved | E198: Basic | F198: Limited | G198: Unimproved | H198: Open defecation | I198: Improved | J198: Basic | K198: Limited | L198: Unimproved | M198: Open defecation | N198: Improved | O198: Basic | P198: Limited | Q198: Unimproved | R198: Open defecation | S198: Improved | T198: Basic | U198: Limited | V198: Unimproved | W198: Open defecation | X198: Improved | Y198: Basic | Z198: Limited | AA198: Unimproved | AB198: Open defecation
A199: Forecast period: | C199: =MinBase(C205:C216) -> 2000 | D199: =IF((D201+H201)>100,D201*100/(D201+H201),D201) -> 24.18561042 | E199: =D199*AVERAGEIF(E205:E216,">0")/100 -> 11.12386318 | F199: =D199*(100-AVERAGEIF(E205:E216,">0"))/100 -> 13.06174725 | G199: =100-(E199+F199+H199) -> 65.68477695 | H199: =IF((D201+H201)>100,H201*100/(D201+H201),H201) -> 10.12961262 | I199: =IF((I201+M201)>100,I201*100/(I201+M201),I201) -> 53.02821409 | J199: =I199*AVERAGEIF(J205:J216,">0")/100 -> 19.62268807 | K199: =I199*(100-AVERAGEIF(J205:J216,">0"))/100 -> 33.40552602 | L199: =100-(J199+K199+M199) -> 41.35100931 | M199: =IF((I201+M201)>100,M201*100/(I201+M201),M201) -> 5.620776598 | N199: =IF((N201+R201)>100,N201*100/(N201+R201),N201) -> 81.9907731 | O199: =N199*AVERAGEIF(O205:O216,">0")/100 -> 30.7908741 | P199: =N199*(100-AVERAGEIF(O205:O216,">0"))/100 -> 51.199899 | Q199: =100-(O199+P199+R199) -> 17.3868848 | R199: =IF((N201+R201)>100,R201*100/(N201+R201),R201) -> 0.6223421048 | S199: =IF((S201+W201)>100,S201*100/(S201+W201),S201) -> 94.20511468 | T199: =S199*AVERAGEIF(T205:T216,">0")/100 -> 56.88840927 | U199: =S199*(100-AVERAGEIF(T205:T216,">0"))/100 -> 37.31670541 | V199: =100-(T199+U199+W199) -> 5.344411132 | W199: =IF((S201+W201)>100,W201*100/(S201+W201),W201) -> 0.4504741895 | X199: =IF((X201+AB201)>100,X201*100/(X201+AB201),X201) -> 99.61692267 | Y199: =X199*AVERAGEIF(Y205:Y216,">0")/100 -> 85.7697445 | Z199: =X199*(100-AVERAGEIF(Y205:Y216,">0"))/100 -> 13.84717817 | AA199: =100-(Y199+Z199+AB199) -> 0.2496225952 | AB199: =IF((X201+AB201)>100,AB201*100/(X201+AB201),AB201) -> 0.1334547323
C200: =MaxTarget(C205:C216) -> 2020 | D200: =IF((D202+H202)>100,D202*100/(D202+H202),D202) -> 49.99663845 | E200: =D200*AVERAGEIF(E205:E216,">0")/100 -> 22.99531646 | F200: =D200*(100-AVERAGEIF(E205:E216,">0"))/100 -> 27.001322 | G200: =100-(E200+F200+H200) -> 47.64144086 | H200: =IF((D202+H202)>100,H202*100/(D202+H202),H202) -> 2.361920689 | I200: =IF((I202+M202)>100,I202*100/(I202+M202),I202) -> 71.78850977 | J200: =I200*AVERAGEIF(J205:J216,">0")/100 -> 26.56479307 | K200: =I200*(100-AVERAGEIF(J205:J216,">0"))/100 -> 45.2237167 | L200: =100-(J200+K200+M200) -> 28.15558131 | M200: =IF((I202+M202)>100,M202*100/(I202+M202),M202) -> 0.05590891228 | N200: =IF((N202+R202)>100,N202*100/(N202+R202),N202) -> 83.11929089 | O200: =N200*AVERAGEIF(O205:O216,">0")/100 -> 31.21467848 | P200: =N200*(100-AVERAGEIF(O205:O216,">0"))/100 -> 51.90461241 | Q200: =100-(O200+P200+R200) -> 16.4919943 | R200: =IF((N202+R202)>100,R202*100/(N202+R202),R202) -> 0.3887148111 | S200: =IF((S202+W202)>100,S202*100/(S202+W202),S202) -> 87.80477193 | T200: =S200*AVERAGEIF(T205:T216,">0")/100 -> 53.0233822 | U200: =S200*(100-AVERAGEIF(T205:T216,">0"))/100 -> 34.78138972 | V200: =100-(T200+U200+W200) -> 12.19522807 | W200: =IF((S202+W202)>100,W202*100/(S202+W202),W202) -> 0 | X200: =IF((X202+AB202)>100,X202*100/(X202+AB202),X202) -> 96.25563449 | Y200: =X200*AVERAGEIF(Y205:Y216,">0")/100 -> 82.87568975 | Z200: =X200*(100-AVERAGEIF(Y205:Y216,">0"))/100 -> 13.37994474 | AA200: =100-(Y200+Z200+AB200) -> 3.732233261 | AB200: =IF((X202+AB202)>100,AB202*100/(X202+AB202),AB202) -> 0.01213224839
A201: Regression period: | C201: =MinRegYear(C199,C205:C216) -> 2000 | D201: =IF(MAX(C205:C216)-MIN(C205:C216)<5,AVERAGEIF(C205:C216,">0",D205:D216), IF(FORECAST($C201,D$205:D$216,$C$205:$C$216)<0,0, IF(FORECAST($C201,D$205:D$216,$C$205:$C$216)>100,100, FORECAST($C201,D$205:D$216,$C$205:$C$216)))) -> 24.18561042 | H201: =IF(MAX(C205:C216)-MIN(C205:C216)<5,AVERAGEIF(C205:C216,">0",H205:H216), IF(FORECAST($C201,H$205:H$216,$C$205:$C$216)<0,0, IF(FORECAST($C201,H$205:H$216,$C$205:$C$216)>100,100, FORECAST($C201,H$205:H$216,$C$205:$C$216)))) -> 10.12961262 | I201: =IF(MAX(C205:C216)-MIN(C205:C216)<5,AVERAGEIF(C205:C216,">0",I205:I216), IF(FORECAST($C201,I$205:I$216,$C$205:$C$216)<0,0, IF(FORECAST($C201,I$205:I$216,$C$205:$C$216)>100,100, FORECAST($C201,I$205:I$216,$C$205:$C$216)))) -> 53.02821409 | M201: =IF(MAX(C205:C216)-MIN(C205:C216)<5,AVERAGEIF(C205:C216,">0",M205:M216), IF(FORECAST($C201,M$205:M$216,$C$205:$C$216)<0,0, IF(FORECAST($C201,M$205:M$216,$C$205:$C$216)>100,100, FORECAST($C201,M$205:M$216,$C$205:$C$216)))) -> 5.620776598 | N201: =IF(MAX(C205:C216)-MIN(C205:C216)<5,AVERAGEIF(C205:C216,">0",N205:N216), IF(FORECAST($C201,N$205:N$216,$C$205:$C$216)<0,0, IF(FORECAST($C201,N$205:N$216,$C$205:$C$216)>100,100, FORECAST($C201,N$205:N$216,$C$205:$C$216)))) -> 81.9907731 | R201: =IF(MAX(C205:C216)-MIN(C205:C216)<5,AVERAGEIF(C205:C216,">0",R205:R216), IF(FORECAST($C201,R$205:R$216,$C$205:$C$216)<0,0, IF(FORECAST($C201,R$205:R$216,$C$205:$C$216)>100,100, FORECAST($C201,R$205:R$216,$C$205:$C$216)))) -> 0.6223421048 | S201: =IF(MAX(C205:C216)-MIN(C205:C216)<5,AVERAGEIF(C205:C216,">0",S205:S216), IF(FORECAST($C201,S$205:S$216,$C$205:$C$216)<0,0, IF(FORECAST($C201,S$205:S$216,$C$205:$C$216)>100,100, FORECAST($C201,S$205:S$216,$C$205:$C$216)))) -> 94.20511468 | W201: =IF(MAX(C205:C216)-MIN(C205:C216)<5,AVERAGEIF(C205:C216,">0",W205:W216), IF(FORECAST($C201,W$205:W$216,$C$205:$C$216)<0,0, IF(FORECAST($C201,W$205:W$216,$C$205:$C$216)>100,100, FORECAST($C201,W$205:W$216,$C$205:$C$216)))) -> 0.4504741895 | X201: =IF(MAX(C205:C216)-MIN(C205:C216)<5,AVERAGEIF(C205:C216,">0",X205:X216), IF(FORECAST($C201,X$205:X$216,$C$205:$C$216)<0,0, IF(FORECAST($C201,X$205:X$216,$C$205:$C$216)>100,100, FORECAST($C201,X$205:X$216,$C$205:$C$216)))) -> 99.61692267 | AB201: =IF(MAX(C205:C216)-MIN(C205:C216)<5,AVERAGEIF(C205:C216,">0",AB205:AB216), IF(FORECAST($C201,AB$205:AB$216,$C$205:$C$216)<0,0, IF(FORECAST($C201,AB$205:AB$216,$C$205:$C$216)>100,100, FORECAST($C201,AB$205:AB$216,$C$205:$C$216)))) -> 0.1334547323
C202: =MaxRegYear(C200,C205:C216) -> 2020 | D202: =IF(MAX(C205:C216)-MIN(C205:C216)<5,AVERAGEIF(C205:C216,">0",D205:D216), IF(FORECAST($C202,D$205:D$216,$C$205:$C$216)<0,0, IF(FORECAST($C202,D$205:D$216,$C$205:$C$216)>100,100, FORECAST($C202,D$205:D$216,$C$205:$C$216)))) -> 49.99663845 | H202: =IF(MAX(C205:C216)-MIN(C205:C216)<5,AVERAGEIF(C205:C216,">0",H205:H216), IF(FORECAST($C202,H$205:H$216,$C$205:$C$216)<0,0, IF(FORECAST($C202,H$205:H$216,$C$205:$C$216)>100,100, FORECAST($C202,H$205:H$216,$C$205:$C$216)))) -> 2.361920689 | I202: =IF(MAX(C205:C216)-MIN(C205:C216)<5,AVERAGEIF(C205:C216,">0",I205:I216), IF(FORECAST($C202,I$205:I$216,$C$205:$C$216)<0,0, IF(FORECAST($C202,I$205:I$216,$C$205:$C$216)>100,100, FORECAST($C202,I$205:I$216,$C$205:$C$216)))) -> 71.78850977 | M202: =IF(MAX(C205:C216)-MIN(C205:C216)<5,AVERAGEIF(C205:C216,">0",M205:M216), IF(FORECAST($C202,M$205:M$216,$C$205:$C$216)<0,0, IF(FORECAST($C202,M$205:M$216,$C$205:$C$216)>100,100, FORECAST($C202,M$205:M$216,$C$205:$C$216)))) -> 0.05590891228 | N202: =IF(MAX(C205:C216)-MIN(C205:C216)<5,AVERAGEIF(C205:C216,">0",N205:N216), IF(FORECAST($C202,N$205:N$216,$C$205:$C$216)<0,0, IF(FORECAST($C202,N$205:N$216,$C$205:$C$216)>100,100, FORECAST($C202,N$205:N$216,$C$205:$C$216)))) -> 83.11929089 | R202: =IF(MAX(C205:C216)-MIN(C205:C216)<5,AVERAGEIF(C205:C216,">0",R205:R216), IF(FORECAST($C202,R$205:R$216,$C$205:$C$216)<0,0, IF(FORECAST($C202,R$205:R$216,$C$205:$C$216)>100,100, FORECAST($C202,R$205:R$216,$C$205:$C$216)))) -> 0.3887148111 | S202: =IF(MAX(C205:C216)-MIN(C205:C216)<5,AVERAGEIF(C205:C216,">0",S205:S216), IF(FORECAST($C202,S$205:S$216,$C$205:$C$216)<0,0, IF(FORECAST($C202,S$205:S$216,$C$205:$C$216)>100,100, FORECAST($C202,S$205:S$216,$C$205:$C$216)))) -> 87.80477193 | W202: =IF(MAX(C205:C216)-MIN(C205:C216)<5,AVERAGEIF(C205:C216,">0",W205:W216), IF(FORECAST($C202,W$205:W$216,$C$205:$C$216)<0,0, IF(FORECAST($C202,W$205:W$216,$C$205:$C$216)>100,100, FORECAST($C202,W$205:W$216,$C$205:$C$216)))) -> 0 | X202: =IF(MAX(C205:C216)-MIN(C205:C216)<5,AVERAGEIF(C205:C216,">0",X205:X216), IF(FORECAST($C202,X$205:X$216,$C$205:$C$216)<0,0, IF(FORECAST($C202,X$205:X$216,$C$205:$C$216)>100,100, FORECAST($C202,X$205:X$216,$C$205:$C$216)))) -> 96.25563449 | AB202: =IF(MAX(C205:C216)-MIN(C205:C216)<5,AVERAGEIF(C205:C216,">0",AB205:AB216), IF(FORECAST($C202,AB$205:AB$216,$C$205:$C$216)<0,0, IF(FORECAST($C202,AB$205:AB$216,$C$205:$C$216)>100,100, FORECAST($C202,AB$205:AB$216,$C$205:$C$216)))) -> 0.01213224839
B204: Survey | C204: Year | D204: Improved | E204: Not shared | H204: Open defecation | I204: Improved | J204: Not shared | M204: Open defecation | N204: Improved | O204: Not shared | R204: Open defecation | S204: Improved | T204: Not shared | W204: Open defecation | X204: Improved | Y204: Not shared | AB204: Open defecation
B205: DHS02 | C205: 2002 | D205: =IF(ISERROR(INDIRECT(CONCATENATE($B205,"!H122"))),"",INDIRECT(CONCATENATE($B205,"!H122"))) -> 30.64254424 | E205: =IF(ISERROR(INDIRECT(CONCATENATE($B205,"!H129"))),"",INDIRECT(CONCATENATE($B205,"!H129"))) -> N/A | H205: =IF(ISERROR(INDIRECT(CONCATENATE($B205,"!H127"))),"",INDIRECT(CONCATENATE($B205,"!H127"))) -> 10.69673444 | I205: =IF(ISERROR(INDIRECT(CONCATENATE($B205,"!I122"))),"",INDIRECT(CONCATENATE($B205,"!I122"))) -> 56.58842887 | J205: =IF(ISERROR(INDIRECT(CONCATENATE($B205,"!I129"))),"",INDIRECT(CONCATENATE($B205,"!I129"))) -> N/A | M205: =IF(ISERROR(INDIRECT(CONCATENATE($B205,"!I127"))),"",INDIRECT(CONCATENATE($B205,"!I127"))) -> 5.990574581 | N205: =IF(ISERROR(INDIRECT(CONCATENATE($B205,"!J122"))),"",INDIRECT(CONCATENATE($B205,"!J122"))) -> 83.30556252 | O205: =IF(ISERROR(INDIRECT(CONCATENATE($B205,"!J129"))),"",INDIRECT(CONCATENATE($B205,"!J129"))) -> N/A | R205: =IF(ISERROR(INDIRECT(CONCATENATE($B205,"!J127"))),"",INDIRECT(CONCATENATE($B205,"!J127"))) -> 0.4920466093 | S205: =IF(ISERROR(INDIRECT(CONCATENATE($B205,"!K122"))),"",INDIRECT(CONCATENATE($B205,"!K122"))) -> 93.66032715 | T205: =IF(ISERROR(INDIRECT(CONCATENATE($B205,"!K129"))),"",INDIRECT(CONCATENATE($B205,"!K129"))) -> N/A | W205: =IF(ISERROR(INDIRECT(CONCATENATE($B205,"!K127"))),"",INDIRECT(CONCATENATE($B205,"!K127"))) -> 0.4235271708 | X205: =IF(ISERROR(INDIRECT(CONCATENATE($B205,"!L122"))),"",INDIRECT(CONCATENATE($B205,"!L122"))) -> 99.24726584 | Y205: =IF(ISERROR(INDIRECT(CONCATENATE($B205,"!L129"))),"",INDIRECT(CONCATENATE($B205,"!L129"))) -> N/A | AB205: =IF(ISERROR(INDIRECT(CONCATENATE($B205,"!L2127"))),"",INDIRECT(CONCATENATE($B205,"!L127"))) -> 0
B206: WHS03 | D206: 79.70094326 | E206: 69.90939917 | H206: 13.55944579 | I206: 88.26969848 | J206: 48.18929361 | M206: 2.278828595 | N206: 94.62915724 | O206: 29.69273323 | R206: 0 | S206: 95.91508491 | T206: 61.99678348 | W206: 0.1869285805 | X206: 98.87152694 | Y206: 86.00930518 | AB206: 0
B207: DHS07 | C207: 2007 | D207: 28.71765217 | E207: 36.09765122 | H207: 5.369423929 | I207: 59.39172789 | J207: 36.50363529 | M207: 2.4485184 | N207: 81.23154945 | O207: 48.98459326 | R207: 0.6466382849 | S207: 92.15993669 | T207: 70.33095458 | W207: 0.2353505584 | X207: 98.44731434 | Y207: 86.205765 | AB207: 0.2851078372
B208: DHS14 | C208: 2014 | D208: 39.13000567 | E208: 35.06396843 | H208: 4.930779629 | I208: 59.98080187 | J208: 34.07663341 | M208: 1.387755107 | N208: 81.14704839 | O208: 35.6628894 | R208: 0.594853298 | S208: 88.80779732 | T208: 57.77118142 | W208: 0.02237073409 | X208: 97.37931602 | Y208: 84.74158074 | AB208: 0
B209: DHS18 | C209: 2018 | D209: 51.16484707 | E209: 42.90388164 | H209: 3.597744024 | I209: 74.61050388 | J209: 29.24740117 | M209: 1.248279548 | N209: 84.59239351 | O209: 35.87607277 | R209: 0.2768942747 | S209: 89.07169491 | T209: 51.45233583 | W209: 0 | X209: 96.50315371 | Y209: 87.44163885 | AB209: 0
B218: =CONCATENATE("Urban use of sanitation facilities, ",C199,"–",C200) -> Urban use of sanitation facilities, 2000–2020 | S218: Data points used for regression
A297: RURAL | D297: Poorest | I297: Poor | N297: Middle | S297: Rich | X297: Richest
D298: Improved | E298: Basic | F298: Limited | G298: Unimproved | H298: Open defecation | I298: Improved | J298: Basic | K298: Limited | L298: Unimproved | M298: Open defecation | N298: Improved | O298: Basic | P298: Limited | Q298: Unimproved | R298: Open defecation | S298: Improved | T298: Basic | U298: Limited | V298: Unimproved | W298: Open defecation | X298: Improved | Y298: Basic | Z298: Limited | AA298: Unimproved | AB298: Open defecation
A299: Forecast period: | C299: 2000 | D299: =IF((D301+H301)>100,D301*100/(D301+H301),D301) -> 0 | E299: =D299*AVERAGEIF(E305:E316,">0")/100 -> 0 | F299: =D299*(100-AVERAGEIF(E305:E316,">0"))/100 -> 0 | G299: =100-(E299+F299+H299) -> 34.22391754 | H299: =IF((D301+H301)>100,H301*100/(D301+H301),H301) -> 65.77608246 | I299: =IF((I301+M301)>100,I301*100/(I301+M301),I301) -> 3.242459822 | J299: =I299*AVERAGEIF(J305:J316,">0")/100 -> 2.474351836 | K299: =I299*(100-AVERAGEIF(J305:J316,">0"))/100 -> 0.7681079856 | L299: =100-(J299+K299+M299) -> 37.73419238 | M299: =IF((I301+M301)>100,M301*100/(I301+M301),M301) -> 59.0233478 | N299: =IF((N301+R301)>100,N301*100/(N301+R301),N301) -> 1.454085772 | O299: =N299*AVERAGEIF(O305:O316,">0")/100 -> 1.125940374 | P299: =N299*(100-AVERAGEIF(O305:O316,">0"))/100 -> 0.3281453976 | Q299: =100-(O299+P299+R299) -> 54.04265349 | R299: =IF((N301+R301)>100,R301*100/(N301+R301),R301) -> 44.50326074 | S299: =IF((S301+W301)>100,S301*100/(S301+W301),S301) -> 6.9185386 | T299: =S299*AVERAGEIF(T305:T316,">0")/100 -> 5.210396786 | U299: =S299*(100-AVERAGEIF(T305:T316,">0"))/100 -> 1.708141814 | V299: =100-(T299+U299+W299) -> 54.58775397 | W299: =IF((S301+W301)>100,W301*100/(S301+W301),W301) -> 38.49370743 | X299: =IF((X301+AB301)>100,X301*100/(X301+AB301),X301) -> 31.76567058 | Y299: =X299*AVERAGEIF(Y305:Y316,">0")/100 -> 25.19531358 | Z299: =X299*(100-AVERAGEIF(Y305:Y316,">0"))/100 -> 6.570357004 | AA299: =100-(Y299+Z299+AB299) -> 53.71736833 | AB299: =IF((X301+AB301)>100,AB301*100/(X301+AB301),AB301) -> 14.51696108
C300: 2020 | D300: =IF((D302+H302)>100,D302*100/(D302+H302),D302) -> 28.27559795 | E300: =D300*AVERAGEIF(E305:E316,">0")/100 -> 19.27855828 | F300: =D300*(100-AVERAGEIF(E305:E316,">0"))/100 -> 8.997039669 | G300: =100-(E300+F300+H300) -> 47.29368149 | H300: =IF((D302+H302)>100,H302*100/(D302+H302),H302) -> 24.43072056 | I300: =IF((I302+M302)>100,I302*100/(I302+M302),I302) -> 33.04101878 | J300: =I300*AVERAGEIF(J305:J316,">0")/100 -> 25.21391474 | K300: =I300*(100-AVERAGEIF(J305:J316,">0"))/100 -> 7.827104043 | L300: =100-(J300+K300+M300) -> 52.51277563 | M300: =IF((I302+M302)>100,M302*100/(I302+M302),M302) -> 14.44620559 | N300: =IF((N302+R302)>100,N302*100/(N302+R302),N302) -> 35.36324424 | O300: =N300*AVERAGEIF(O305:O316,">0")/100 -> 27.38277565 | P300: =N300*(100-AVERAGEIF(O305:O316,">0"))/100 -> 7.980468598 | Q300: =100-(O300+P300+R300) -> 50.05598989 | R300: =IF((N302+R302)>100,R302*100/(N302+R302),R302) -> 14.58076587 | S300: =IF((S302+W302)>100,S302*100/(S302+W302),S302) -> 38.46400017 | T300: =S300*AVERAGEIF(T305:T316,">0")/100 -> 28.96749074 | U300: =S300*(100-AVERAGEIF(T305:T316,">0"))/100 -> 9.496509425 | V300: =100-(T300+U300+W300) -> 49.62713281 | W300: =IF((S302+W302)>100,W302*100/(S302+W302),W302) -> 11.90886702 | X300: =IF((X302+AB302)>100,X302*100/(X302+AB302),X302) -> 56.51509258 | Y300: =X300*AVERAGEIF(Y305:Y316,">0")/100 -> 44.82560744 | Z300: =X300*(100-AVERAGEIF(Y305:Y316,">0"))/100 -> 11.68948514 | AA300: =100-(Y300+Z300+AB300) -> 36.40635957 | AB300: =IF((X302+AB302)>100,AB302*100/(X302+AB302),AB302) -> 7.078547845
A301: Regression period: | C301: =MinRegYear(C299,C305:C316) -> 2000 | D301: =IF(MAX(C305:C316)-MIN(C305:C316)<5,AVERAGEIF(C305:C316,">0",D305:D316), IF(FORECAST($C301,D$305:D$316,$C$305:$C$316)<0,0, IF(FORECAST($C301,D$305:D$316,$C$305:$C$316)>100,100, FORECAST($C301,D$305:D$316,$C$305:$C$316)))) -> 0 | H301: =IF(MAX(C305:C316)-MIN(C305:C316)<5,AVERAGEIF(C305:C316,">0",H305:H316), IF(FORECAST($C301,H$305:H$316,$C$305:$C$316)<0,0, IF(FORECAST($C301,H$305:H$316,$C$305:$C$316)>100,100, FORECAST($C301,H$305:H$316,$C$305:$C$316)))) -> 65.77608246 | I301: =IF(MAX(C305:C316)-MIN(C305:C316)<5,AVERAGEIF(C305:C316,">0",I305:I316), IF(FORECAST($C301,I$305:I$316,$C$305:$C$316)<0,0, IF(FORECAST($C301,I$305:I$316,$C$305:$C$316)>100,100, FORECAST($C301,I$305:I$316,$C$305:$C$316)))) -> 3.242459822 | M301: =IF(MAX(C305:C316)-MIN(C305:C316)<5,AVERAGEIF(C305:C316,">0",M305:M316), IF(FORECAST($C301,M$305:M$316,$C$305:$C$316)<0,0, IF(FORECAST($C301,M$305:M$316,$C$305:$C$316)>100,100, FORECAST($C301,M$305:M$316,$C$305:$C$316)))) -> 59.0233478 | N301: =IF(MAX(C305:C316)-MIN(C305:C316)<5,AVERAGEIF(C305:C316,">0",N305:N316), IF(FORECAST($C301,N$305:N$316,$C$305:$C$316)<0,0, IF(FORECAST($C301,N$305:N$316,$C$305:$C$316)>100,100, FORECAST($C301,N$305:N$316,$C$305:$C$316)))) -> 1.454085772 | R301: =IF(MAX(C305:C316)-MIN(C305:C316)<5,AVERAGEIF(C305:C316,">0",R305:R316), IF(FORECAST($C301,R$305:R$316,$C$305:$C$316)<0,0, IF(FORECAST($C301,R$305:R$316,$C$305:$C$316)>100,100, FORECAST($C301,R$305:R$316,$C$305:$C$316)))) -> 44.50326074 | S301: =IF(MAX(C305:C316)-MIN(C305:C316)<5,AVERAGEIF(C305:C316,">0",S305:S316), IF(FORECAST($C301,S$305:S$316,$C$305:$C$316)<0,0, IF(FORECAST($C301,S$305:S$316,$C$305:$C$316)>100,100, FORECAST($C301,S$305:S$316,$C$305:$C$316)))) -> 6.9185386 | W301: =IF(MAX(C305:C316)-MIN(C305:C316)<5,AVERAGEIF(C305:C316,">0",W305:W316), IF(FORECAST($C301,W$305:W$316,$C$305:$C$316)<0,0, IF(FORECAST($C301,W$305:W$316,$C$305:$C$316)>100,100, FORECAST($C301,W$305:W$316,$C$305:$C$316)))) -> 38.49370743 | X301: =IF(MAX(C305:C316)-MIN(C305:C316)<5,AVERAGEIF(C305:C316,">0",X305:X316), IF(FORECAST($C301,X$305:X$316,$C$305:$C$316)<0,0, IF(FORECAST($C301,X$305:X$316,$C$305:$C$316)>100,100, FORECAST($C301,X$305:X$316,$C$305:$C$316)))) -> 31.76567058 | AB301: =IF(MAX(C305:C316)-MIN(C305:C316)<5,AVERAGEIF(C305:C316,">0",AB305:AB316), IF(FORECAST($C301,AB$305:AB$316,$C$305:$C$316)<0,0, IF(FORECAST($C301,AB$305:AB$316,$C$305:$C$316)>100,100, FORECAST($C301,AB$305:AB$316,$C$305:$C$316)))) -> 14.51696108
C302: =MaxRegYear(C300,C305:C316) -> 2020 | D302: =IF(MAX(C305:C316)-MIN(C305:C316)<5,AVERAGEIF(C305:C316,">0",D305:D316), IF(FORECAST($C302,D$305:D$316,$C$305:$C$316)<0,0, IF(FORECAST($C302,D$305:D$316,$C$305:$C$316)>100,100, FORECAST($C302,D$305:D$316,$C$305:$C$316)))) -> 28.27559795 | H302: =IF(MAX(C305:C316)-MIN(C305:C316)<5,AVERAGEIF(C305:C316,">0",H305:H316), IF(FORECAST($C302,H$305:H$316,$C$305:$C$316)<0,0, IF(FORECAST($C302,H$305:H$316,$C$305:$C$316)>100,100, FORECAST($C302,H$305:H$316,$C$305:$C$316)))) -> 24.43072056 | I302: =IF(MAX(C305:C316)-MIN(C305:C316)<5,AVERAGEIF(C305:C316,">0",I305:I316), IF(FORECAST($C302,I$305:I$316,$C$305:$C$316)<0,0, IF(FORECAST($C302,I$305:I$316,$C$305:$C$316)>100,100, FORECAST($C302,I$305:I$316,$C$305:$C$316)))) -> 33.04101878 | M302: =IF(MAX(C305:C316)-MIN(C305:C316)<5,AVERAGEIF(C305:C316,">0",M305:M316), IF(FORECAST($C302,M$305:M$316,$C$305:$C$316)<0,0, IF(FORECAST($C302,M$305:M$316,$C$305:$C$316)>100,100, FORECAST($C302,M$305:M$316,$C$305:$C$316)))) -> 14.44620559 | N302: =IF(MAX(C305:C316)-MIN(C305:C316)<5,AVERAGEIF(C305:C316,">0",N305:N316), IF(FORECAST($C302,N$305:N$316,$C$305:$C$316)<0,0, IF(FORECAST($C302,N$305:N$316,$C$305:$C$316)>100,100, FORECAST($C302,N$305:N$316,$C$305:$C$316)))) -> 35.36324424 | R302: =IF(MAX(C305:C316)-MIN(C305:C316)<5,AVERAGEIF(C305:C316,">0",R305:R316), IF(FORECAST($C302,R$305:R$316,$C$305:$C$316)<0,0, IF(FORECAST($C302,R$305:R$316,$C$305:$C$316)>100,100, FORECAST($C302,R$305:R$316,$C$305:$C$316)))) -> 14.58076587 | S302: =IF(MAX(C305:C316)-MIN(C305:C316)<5,AVERAGEIF(C305:C316,">0",S305:S316), IF(FORECAST($C302,S$305:S$316,$C$305:$C$316)<0,0, IF(FORECAST($C302,S$305:S$316,$C$305:$C$316)>100,100, FORECAST($C302,S$305:S$316,$C$305:$C$316)))) -> 38.46400017 | W302: =IF(MAX(C305:C316)-MIN(C305:C316)<5,AVERAGEIF(C305:C316,">0",W305:W316), IF(FORECAST($C302,W$305:W$316,$C$305:$C$316)<0,0, IF(FORECAST($C302,W$305:W$316,$C$305:$C$316)>100,100, FORECAST($C302,W$305:W$316,$C$305:$C$316)))) -> 11.90886702 | X302: =IF(MAX(C305:C316)-MIN(C305:C316)<5,AVERAGEIF(C305:C316,">0",X305:X316), IF(FORECAST($C302,X$305:X$316,$C$305:$C$316)<0,0, IF(FORECAST($C302,X$305:X$316,$C$305:$C$316)>100,100, FORECAST($C302,X$305:X$316,$C$305:$C$316)))) -> 56.51509258 | AB302: =IF(MAX(C305:C316)-MIN(C305:C316)<5,AVERAGEIF(C305:C316,">0",AB305:AB316), IF(FORECAST($C302,AB$305:AB$316,$C$305:$C$316)<0,0, IF(FORECAST($C302,AB$305:AB$316,$C$305:$C$316)>100,100, FORECAST($C302,AB$305:AB$316,$C$305:$C$316)))) -> 7.078547845
B304: Survey | C304: Year | D304: Improved | E304: Not shared | H304: Open defecation | I304: Improved | J304: Not shared | M304: Open defecation | N304: Improved | O304: Not shared | R304: Open defecation | S304: Improved | T304: Not shared | W304: Open defecation | X304: Improved | Y304: Not shared | AB304: Open defecation
B305: DHS02 | C305: 2002 | D305: =IF(ISERROR(INDIRECT(CONCATENATE($B305,"!M122"))),"",INDIRECT(CONCATENATE($B305,"!M122"))) -> 4.683042748 | E305: =IF(ISERROR(INDIRECT(CONCATENATE($B305,"!M129"))),"",INDIRECT(CONCATENATE($B305,"!M129"))) -> N/A | H305: =IF(ISERROR(INDIRECT(CONCATENATE($B305,"!M127"))),"",INDIRECT(CONCATENATE($B305,"!M127"))) -> 56.24691742 | I305: =IF(ISERROR(INDIRECT(CONCATENATE($B305,"!N122"))),"",INDIRECT(CONCATENATE($B305,"!N122"))) -> 6.608969499 | J305: =IF(ISERROR(INDIRECT(CONCATENATE($B305,"!N129"))),"",INDIRECT(CONCATENATE($B305,"!N129"))) -> N/A | M305: =IF(ISERROR(INDIRECT(CONCATENATE($B305,"!N127"))),"",INDIRECT(CONCATENATE($B305,"!N127"))) -> 56.24691742 | N305: =IF(ISERROR(INDIRECT(CONCATENATE($B305,"!O122"))),"",INDIRECT(CONCATENATE($B305,"!O122"))) -> 5.327951901 | O305: =IF(ISERROR(INDIRECT(CONCATENATE($B305,"!O129"))),"",INDIRECT(CONCATENATE($B305,"!O129"))) -> N/A | R305: =IF(ISERROR(INDIRECT(CONCATENATE($B305,"!O127"))),"",INDIRECT(CONCATENATE($B305,"!O127"))) -> 41.87470134 | S305: =IF(ISERROR(INDIRECT(CONCATENATE($B305,"!P122"))),"",INDIRECT(CONCATENATE($B305,"!P122"))) -> 10.66705934 | T305: =IF(ISERROR(INDIRECT(CONCATENATE($B305,"!P129"))),"",INDIRECT(CONCATENATE($B305,"!P129"))) -> N/A | W305: =IF(ISERROR(INDIRECT(CONCATENATE($B305,"!P127"))),"",INDIRECT(CONCATENATE($B305,"!P127"))) -> 34.05153431 | X305: =IF(ISERROR(INDIRECT(CONCATENATE($B305,"!Q122"))),"",INDIRECT(CONCATENATE($B305,"!Q122"))) -> 36.40605807 | Y305: =IF(ISERROR(INDIRECT(CONCATENATE($B305,"!Q129"))),"",INDIRECT(CONCATENATE($B305,"!Q129"))) -> N/A | AB305: =IF(ISERROR(INDIRECT(CONCATENATE($B305,"!Q2127"))),"",INDIRECT(CONCATENATE($B305,"!Q127"))) -> 11.35256408
B306: WHS03 | D306: 38.90940844 | E306: 80.72278712 | H306: 56.28105103 | I306: 44.73307045 | J306: 81.12992379 | M306: 49.10310807 | N306: 63.39125687 | O306: 89.83640709 | R306: 32.90577684 | S306: 62.60594113 | T306: 85.13862696 | W306: 22.61303986 | X306: 66.2749188 | Y306: 89.28279967 | AB306: 5.79769822
B307: DHS07 | C307: 2007 | D307: 8.323180583 | E307: 52.97096626 | H307: 58.68264809 | I307: 14.25631943 | J307: 75.35565984 | M307: 40.37302954 | N307: 13.36939211 | O307: 66.81388065 | R307: 32.43854959 | S307: 17.22879183 | T307: 70.45886701 | W307: 30.75884964 | X307: 39.67187672 | Y307: 73.556403 | AB307: 14.66817639
B308: DHS14 | C308: 2014 | D308: 16.01245122 | E308: 72.92301789 | H308: 38.12487822 | I308: 20.94783504 | J308: 76.37770451 | M308: 29.47708875 | N308: 23.12916818 | O308: 74.48715855 | R308: 26.48030833 | S308: 28.63377374 | T308: 73.93867889 | W308: 22.70202551 | X308: 42.50773664 | Y308: 77.10512609 | AB308: 11.41697969
B309: DHS18 | C309: 2018 | D309: 28.71142628 | E309: 66.10684455 | H309: 25.29189422 | I309: 32.24376119 | J309: 72.3805048 | M309: 18.61321396 | N309: 33.50360577 | O309: 78.59404166 | R309: 15.87836922 | S309: 35.81272571 | T309: 71.70645004 | W309: 11.96349742 | X309: 59.213326 | Y309: 77.320355 | AB309: 5.381377031
B318: =CONCATENATE("Rural use of sanitation facilities, ",C299,"–",C300) -> Rural use of sanitation facilities, 2000–2020 | S318: Data points used for regression

Sheet Hygiene
B4: Access to hygiene facilities by wealth quintile (%)
B5: =IF(ISERROR(INDIRECT(CONCATENATE($E$32,"!A2"))),"",INDIRECT(CONCATENATE($E$32,"!A2"))) -> Zambia
B7: =CONCATENATE("National ",IF(ISERROR(INDIRECT(CONCATENATE($E$32,"!A2"))),"",INDIRECT(CONCATENATE($E$32,"!A210")))) -> National Access to hygiene facilities | K7: =CONCATENATE("Urban ",IF(ISERROR(INDIRECT(CONCATENATE($E$32,"!A2"))),"",INDIRECT(CONCATENATE($E$32,"!A210")))) -> Urban Access to hygiene facilities | S7: =CONCATENATE("Rural ",IF(ISERROR(INDIRECT(CONCATENATE($E$32,"!A2"))),"",INDIRECT(CONCATENATE($E$32,"!A210")))) -> Rural Access to hygiene facilities
E32: =INDEX(B88:B100,A88) -> DHS18 | G32: =IF(ISERROR(INDIRECT(CONCATENATE($E$32,"!A2"))),"",INDIRECT(CONCATENATE($E$32,"!A2"))) -> Zambia | K32: Poorest | N32: Poor | Q32: Middle | T32: Rich | W32: Richest
K33: Basic | L33: Limited | M33: No facility | N33: Basic | O33: Limited | P33: No facility | Q33: Basic | R33: Limited | S33: No facility | T33: Basic | U33: Limited | V33: No facility | W33: Basic | X33: Limited | Y33: No facility
B34: >>> Select Survey : | G34: NATIONAL | J34: =IF(ISERROR(INDIRECT(CONCATENATE(#REF!,"!A2"))),"",INDIRECT(CONCATENATE(#REF!,"!A210"))) ->  | K34: =IF(ISERROR(INDIRECT(CONCATENATE($E$32,"!C222"))),"",INDIRECT(CONCATENATE($E$32,"!C222"))) -> 11.28893047 | L34: =IF(ISERROR(INDIRECT(CONCATENATE($E$32,"!C223"))),"",INDIRECT(CONCATENATE($E$32,"!C223"))) -> 32.27458862 | M34: =IF(ISERROR(INDIRECT(CONCATENATE($E$32,"!C224"))),"",INDIRECT(CONCATENATE($E$32,"!C224"))) -> 56.43648091 | N34: =IF(ISERROR(INDIRECT(CONCATENATE($E$32,"!D222"))),"",INDIRECT(CONCATENATE($E$32,"!D222"))) -> 11.33028917 | O34: =IF(ISERROR(INDIRECT(CONCATENATE($E$32,"!D223"))),"",INDIRECT(CONCATENATE($E$32,"!D223"))) -> 34.21694032 | P34: =IF(ISERROR(INDIRECT(CONCATENATE($E$32,"!D224"))),"",INDIRECT(CONCATENATE($E$32,"!D224"))) -> 54.45277052 | Q34: =IF(ISERROR(INDIRECT(CONCATENATE($E$32,"!E222"))),"",INDIRECT(CONCATENATE($E$32,"!E222"))) -> 13.81269743 | R34: =IF(ISERROR(INDIRECT(CONCATENATE($E$32,"!E223"))),"",INDIRECT(CONCATENATE($E$32,"!E223"))) -> 33.74524781 | S34: =IF(ISERROR(INDIRECT(CONCATENATE($E$32,"!E224"))),"",INDIRECT(CONCATENATE($E$32,"!E224"))) -> 52.44205476 | T34: =IF(ISERROR(INDIRECT(CONCATENATE($E$32,"!F222"))),"",INDIRECT(CONCATENATE($E$32,"!F222"))) -> 21.20213857 | U34: =IF(ISERROR(INDIRECT(CONCATENATE($E$32,"!F223"))),"",INDIRECT(CONCATENATE($E$32,"!F223"))) -> 41.33718496 | V34: =IF(ISERROR(INDIRECT(CONCATENATE($E$32,"!F224"))),"",INDIRECT(CONCATENATE($E$32,"!F224"))) -> 37.46067647 | W34: =IF(ISERROR(INDIRECT(CONCATENATE($E$32,"!G222"))),"",INDIRECT(CONCATENATE($E$32,"!G222"))) -> 46.20811458 | X34: =IF(ISERROR(INDIRECT(CONCATENATE($E$32,"!G223"))),"",INDIRECT(CONCATENATE($E$32,"!G223"))) -> 30.04057935 | Y34: =IF(ISERROR(INDIRECT(CONCATENATE($E$32,"!G224"))),"",INDIRECT(CONCATENATE($E$32,"!G224"))) -> 23.75130607
G37: URBAN | J37: =IF(ISERROR(INDIRECT(CONCATENATE(#REF!,"!A2"))),"",INDIRECT(CONCATENATE(#REF!,"!A210"))) ->  | K37: =IF(ISERROR(INDIRECT(CONCATENATE($E$32,"!H222"))),"",INDIRECT(CONCATENATE($E$32,"!H222"))) -> 13.50646546 | L37: =IF(ISERROR(INDIRECT(CONCATENATE($E$32,"!H223"))),"",INDIRECT(CONCATENATE($E$32,"!H223"))) -> 40.72224128 | M37: =IF(ISERROR(INDIRECT(CONCATENATE($E$32,"!H224"))),"",INDIRECT(CONCATENATE($E$32,"!H224"))) -> 45.77129327 | N37: =IF(ISERROR(INDIRECT(CONCATENATE($E$32,"!I222"))),"",INDIRECT(CONCATENATE($E$32,"!I222"))) -> 20.00900072 | O37: =IF(ISERROR(INDIRECT(CONCATENATE($E$32,"!I223"))),"",INDIRECT(CONCATENATE($E$32,"!I223"))) -> 44.22759841 | P37: =IF(ISERROR(INDIRECT(CONCATENATE($E$32,"!I224"))),"",INDIRECT(CONCATENATE($E$32,"!I224"))) -> 35.76340087 | Q37: =IF(ISERROR(INDIRECT(CONCATENATE($E$32,"!J222"))),"",INDIRECT(CONCATENATE($E$32,"!J222"))) -> 27.06008508 | R37: =IF(ISERROR(INDIRECT(CONCATENATE($E$32,"!J223"))),"",INDIRECT(CONCATENATE($E$32,"!J223"))) -> 40.87294544 | S37: =IF(ISERROR(INDIRECT(CONCATENATE($E$32,"!J224"))),"",INDIRECT(CONCATENATE($E$32,"!J224"))) -> 32.06696948 | T37: =IF(ISERROR(INDIRECT(CONCATENATE($E$32,"!K222"))),"",INDIRECT(CONCATENATE($E$32,"!K222"))) -> 36.27404265 | U37: =IF(ISERROR(INDIRECT(CONCATENATE($E$32,"!K223"))),"",INDIRECT(CONCATENATE($E$32,"!K223"))) -> 35.82735223 | V37: =IF(ISERROR(INDIRECT(CONCATENATE($E$32,"!K224"))),"",INDIRECT(CONCATENATE($E$32,"!K224"))) -> 27.89860512 | W37: =IF(ISERROR(INDIRECT(CONCATENATE($E$32,"!L222"))),"",INDIRECT(CONCATENATE($E$32,"!L222"))) -> 63.56734418 | X37: =IF(ISERROR(INDIRECT(CONCATENATE($E$32,"!L223"))),"",INDIRECT(CONCATENATE($E$32,"!L223"))) -> 19.99499548 | Y37: =IF(ISERROR(INDIRECT(CONCATENATE($E$32,"!L224"))),"",INDIRECT(CONCATENATE($E$32,"!L224"))) -> 16.43766034
G40: RURAL | J40: =IF(ISERROR(INDIRECT(CONCATENATE(#REF!,"!A2"))),"",INDIRECT(CONCATENATE(#REF!,"!A210"))) ->  | K40: =IF(ISERROR(INDIRECT(CONCATENATE($E$32,"!M222"))),"",INDIRECT(CONCATENATE($E$32,"!M222"))) -> 11.52012431 | L40: =IF(ISERROR(INDIRECT(CONCATENATE($E$32,"!M223"))),"",INDIRECT(CONCATENATE($E$32,"!M223"))) -> 32.21111024 | M40: =IF(ISERROR(INDIRECT(CONCATENATE($E$32,"!M224"))),"",INDIRECT(CONCATENATE($E$32,"!M224"))) -> 56.26876545 | N40: =IF(ISERROR(INDIRECT(CONCATENATE($E$32,"!N222"))),"",INDIRECT(CONCATENATE($E$32,"!N222"))) -> 10.41411692 | O40: =IF(ISERROR(INDIRECT(CONCATENATE($E$32,"!N223"))),"",INDIRECT(CONCATENATE($E$32,"!N223"))) -> 32.02564293 | P40: =IF(ISERROR(INDIRECT(CONCATENATE($E$32,"!N224"))),"",INDIRECT(CONCATENATE($E$32,"!N224"))) -> 57.56024015 | Q40: =IF(ISERROR(INDIRECT(CONCATENATE($E$32,"!O222"))),"",INDIRECT(CONCATENATE($E$32,"!O222"))) -> 11.55207487 | R40: =IF(ISERROR(INDIRECT(CONCATENATE($E$32,"!O223"))),"",INDIRECT(CONCATENATE($E$32,"!O223"))) -> 35.34525468 | S40: =IF(ISERROR(INDIRECT(CONCATENATE($E$32,"!O224"))),"",INDIRECT(CONCATENATE($E$32,"!O224"))) -> 53.10267045 | T40: =IF(ISERROR(INDIRECT(CONCATENATE($E$32,"!P222"))),"",INDIRECT(CONCATENATE($E$32,"!P222"))) -> 12.90094409 | U40: =IF(ISERROR(INDIRECT(CONCATENATE($E$32,"!P223"))),"",INDIRECT(CONCATENATE($E$32,"!P223"))) -> 30.90425227 | V40: =IF(ISERROR(INDIRECT(CONCATENATE($E$32,"!P224"))),"",INDIRECT(CONCATENATE($E$32,"!P224"))) -> 56.19480364 | W40: =IF(ISERROR(INDIRECT(CONCATENATE($E$32,"!Q222"))),"",INDIRECT(CONCATENATE($E$32,"!Q222"))) -> 20.13705621 | X40: =IF(ISERROR(INDIRECT(CONCATENATE($E$32,"!Q223"))),"",INDIRECT(CONCATENATE($E$32,"!Q223"))) -> 34.54359893 | Y40: =IF(ISERROR(INDIRECT(CONCATENATE($E$32,"!Q224"))),"",INDIRECT(CONCATENATE($E$32,"!Q224"))) -> 45.31934486
A88: 5 | B88: DHS02
B89: WHS03
B90: DHS07
B91: DHS14
B92: DHS18
B93: Input
B94: Template

Sheet DHS02
A2: =A1026 -> Zambia
A3: =A1034 -> 2002
A4: Use of drinking water sources
A5: by wealth quintile and sub-national region
A6: Notes:
A7: WHO/UNICEF JMP customised wealth index excludes water,
A8: sanitation and hygiene assets.
A9: Survey used for analysis: | B9: =A1025 -> DHS02
A10: Ratio of improved springs based on: | B10: DHS14
A11: =B1027 -> 
A14: Use of drinking water sources | C14: NATIONAL wealth index quintile | H14: URBAN wealth index quintile | M14: RURAL wealth index quintile | R14: SUB-REGIONS: | BA14: Raw numbers of respondents: | BB14: Use of drinking water sources | BC14: NATIONAL wealth index quintile | BH14: URBAN wealth index quintile | BM14: RURAL wealth index quintile | BR14: SUB-REGIONS:
A15: Weighted percentage (used in graphs) | C15: Poorest | D15: Poor | E15: Middle | F15: Rich | G15: Richest | H15: Poorest | I15: Poor | J15: Middle | K15: Rich | L15: Richest | M15: Poorest | N15: Poor | O15: Middle | P15: Rich | Q15: Richest | R15: Central | S15: Copperbelt | T15: Eastern | U15: Luapula | V15: Lusaka | W15: North-Western | X15: Northern | Y15: Southern | Z15: Western | BA15: Water data, raw numbers (weighted) | BC15: Poorest | BD15: Poor | BE15: Middle | BF15: Rich | BG15: Richest | BH15: Poorest | BI15: Poor | BJ15: Middle | BK15: Rich | BL15: Richest | BM15: Poorest | BN15: Poor | BO15: Middle | BP15: Rich | BQ15: Richest | BR15: Central | BS15: Copperbelt | BT15: Eastern | BU15: Luapula | BV15: Lusaka | BW15: North-Western | BX15: Northern | BY15: Southern | BZ15: Western
A16: Water | B16: Improved | C16: =C58+C59+C60+C61+C65+C66+C70+C71+C72+C67*'DHS14'!C25/100 -> 23.94646775 | D16: =D58+D59+D60+D61+D65+D66+D70+D71+D72+D67*'DHS14'!D25/100 -> 27.61203264 | E16: =E58+E59+E60+E61+E65+E66+E70+E71+E72+E67*'DHS14'!E25/100 -> 42.08915667 | F16: =F58+F59+F60+F61+F65+F66+F70+F71+F72+F67*'DHS14'!F25/100 -> 79.58077769 | G16: =G58+G59+G60+G61+G65+G66+G70+G71+G72+G67*'DHS14'!G25/100 -> 95.16729777 | H16: =H58+H59+H60+H61+H65+H66+H70+H71+H72+H67*'DHS14'!H25/100 -> 81.73043487 | I16: =I58+I59+I60+I61+I65+I66+I70+I71+I72+I67*'DHS14'!I25/100 -> 86.97033447 | J16: =J58+J59+J60+J61+J65+J66+J70+J71+J72+J67*'DHS14'!J25/100 -> 92.74704924 | K16: =K58+K59+K60+K61+K65+K66+K70+K71+K72+K67*'DHS14'!K25/100 -> 96.35215679 | L16: =L58+L59+L60+L61+L65+L66+L70+L71+L72+L67*'DHS14'!L25/100 -> 95.49807973 | M16: =M58+M59+M60+M61+M65+M66+M70+M71+M72+M67*'DHS14'!M25/100 -> 23.94330099 | N16: =N58+N59+N60+N61+N65+N66+N70+N71+N72+N67*'DHS14'!N25/100 -> 23.99134425 | O16: =O58+O59+O60+O61+O65+O66+O70+O71+O72+O67*'DHS14'!O25/100 -> 27.5869514 | P16: =P58+P59+P60+P61+P65+P66+P70+P71+P72+P67*'DHS14'!P25/100 -> 31.96737883 | Q16: =Q58+Q59+Q60+Q61+Q65+Q66+Q70+Q71+Q72+Q67*'DHS14'!Q25/100 -> 55.48697772 | R16: =R58+R59+R60+R61+R65+R66+R70+R71+R72+R67*'DHS14'!R25/100 -> 31.21022959 | S16: =S58+S59+S60+S61+S65+S66+S70+S71+S72+S67*'DHS14'!S25/100 -> 80.14756744 | T16: =T58+T59+T60+T61+T65+T66+T70+T71+T72+T67*'DHS14'!T25/100 -> 43.88069255 | U16: =U58+U59+U60+U61+U65+U66+U70+U71+U72+U67*'DHS14'!U25/100 -> 28.6553971 | V16: =V58+V59+V60+V61+V65+V66+V70+V71+V72+V67*'DHS14'!V25/100 -> 92.66284003 | W16: =W58+W59+W60+W61+W65+W66+W70+W71+W72+W67*'DHS14'!W25/100 -> 37.5933691 | X16: =X58+X59+X60+X61+X65+X66+X70+X71+X72+X67*'DHS14'!X25/100 -> 30.89217682 | Y16: =Y58+Y59+Y60+Y61+Y65+Y66+Y70+Y71+Y72+Y67*'DHS14'!Y25/100 -> 60.69743852 | Z16: =Z58+Z59+Z60+Z61+Z65+Z66+Z70+Z71+Z72+Z67*'DHS14'!Z25/100 -> 27.4797136 | BA16: Water | BB16: Improved | BC16: N/A | BD16: N/A | BE16: N/A | BF16: N/A | BG16: N/A | BH16: N/A | BI16: N/A | BJ16: N/A | BK16: N/A | BL16: N/A | BM16: N/A | BN16: N/A | BO16: N/A | BP16: N/A | BQ16: N/A | BR16: N/A | BS16: N/A | BT16: N/A | BU16: N/A | BV16: N/A | BW16: N/A | BX16: N/A | BY16: N/A | BZ16: N/A
B17: Not Improved | C17: =100-C16 -> 76.05353225 | D17: =100-D16 -> 72.38796736 | E17: 57.91084333 | F17: 20.41922231 | G17: 4.832702232 | H17: 18.26956513 | I17: 13.02966553 | J17: 7.252950759 | K17: 3.64784321 | L17: 4.501920269 | M17: 76.05669901 | N17: 76.00865575 | O17: 72.4130486 | P17: 68.03262117 | Q17: 44.51302228 | R17: 68.78977041 | S17: 19.85243256 | T17: 56.11930745 | U17: 71.3446029 | V17: 7.33715997 | W17: 62.4066309 | X17: 69.10782318 | Y17: 39.30256148 | Z17: 72.5202864 | BB17: Not Improved | BC17: N/A | BD17: N/A | BE17: N/A | BF17: N/A | BG17: N/A | BH17: N/A | BI17: N/A | BJ17: N/A | BK17: N/A | BL17: N/A | BM17: N/A | BN17: N/A | BO17: N/A | BP17: N/A | BQ17: N/A | BR17: N/A | BS17: N/A | BT17: N/A | BU17: N/A | BV17: N/A | BW17: N/A | BX17: N/A | BY17: N/A | BZ17: N/A
A18: Water ladder | B18: Basic | C18: =C16*'DHS07'!C23/100 -> 20.98254181 | D18: =D16*'DHS07'!D23/100 -> 24.21912427 | E18: =E16*'DHS07'!E23/100 -> 34.96479731 | F18: =F16*'DHS07'!F23/100 -> 76.06727993 | G18: =G16*'DHS07'!G23/100 -> 94.21194822 | H18: =H16*'DHS07'!H23/100 -> 74.99211592 | I18: =I16*'DHS07'!I23/100 -> 84.0644249 | J18: =J16*'DHS07'!J23/100 -> 90.25810523 | K18: =K16*'DHS07'!K23/100 -> 95.69951637 | L18: =L16*'DHS07'!L23/100 -> 95.39763649 | M18: =M16*'DHS07'!M23/100 -> 20.34579315 | N18: =N16*'DHS07'!N23/100 -> 21.37353449 | O18: =O16*'DHS07'!O23/100 -> 24.47253693 | P18: =P16*'DHS07'!P23/100 -> 26.22861201 | Q18: =Q16*'DHS07'!Q23/100 -> 49.9661734 | R18: =R16*'DHS07'!R23/100 -> 26.77569486 | S18: =S16*'DHS07'!S23/100 -> 77.99023667 | T18: =T16*'DHS07'!T23/100 -> 42.59597682 | U18: =U16*'DHS07'!U23/100 -> 26.07665027 | V18: =V16*'DHS07'!V23/100 -> 91.6369381 | W18: =W16*'DHS07'!W23/100 -> 36.33673846 | X18: =X16*'DHS07'!X23/100 -> 26.75238813 | Y18: =Y16*'DHS07'!Y23/100 -> 50.75027428 | Z18: =Z16*'DHS07'!Z23/100 -> 26.19411894 | BA18: Water ladder | BB18: Basic | BC18: N/A | BD18: N/A | BE18: N/A | BF18: N/A | BG18: N/A | BH18: N/A | BI18: N/A | BJ18: N/A | BK18: N/A | BL18: N/A | BM18: N/A | BN18: N/A | BO18: N/A | BP18: N/A | BQ18: N/A | BR18: N/A | BS18: N/A | BT18: N/A | BU18: N/A | BV18: N/A | BW18: N/A | BX18: N/A | BY18: N/A | BZ18: N/A
B19: Limited | C19: =C16*'DHS07'!C22/100 -> 2.963925936 | D19: =D16*'DHS07'!D22/100 -> 3.392908376 | E19: =E16*'DHS07'!E22/100 -> 7.12435936 | F19: =F16*'DHS07'!F22/100 -> 3.513497758 | G19: =G16*'DHS07'!G22/100 -> 0.9553495499 | H19: =H16*'DHS07'!H22/100 -> 6.738318944 | I19: =I16*'DHS07'!I22/100 -> 2.905909565 | J19: =J16*'DHS07'!J22/100 -> 2.488944012 | K19: =K16*'DHS07'!K22/100 -> 0.6526404152 | L19: =L16*'DHS07'!L22/100 -> 0.1004432384 | M19: =M16*'DHS07'!M22/100 -> 3.597507843 | N19: =N16*'DHS07'!N22/100 -> 2.617809762 | O19: =O16*'DHS07'!O22/100 -> 3.114414478 | P19: =P16*'DHS07'!P22/100 -> 5.738766829 | Q19: =Q16*'DHS07'!Q22/100 -> 5.52080432 | R19: =R16*'DHS07'!R22/100 -> 4.434534738 | S19: =S16*'DHS07'!S22/100 -> 2.15733077 | T19: =T16*'DHS07'!T22/100 -> 1.284715722 | U19: =U16*'DHS07'!U22/100 -> 2.578746836 | V19: =V16*'DHS07'!V22/100 -> 1.025901933 | W19: =W16*'DHS07'!W22/100 -> 1.256630643 | X19: =X16*'DHS07'!X22/100 -> 4.139788693 | Y19: =Y16*'DHS07'!Y22/100 -> 9.947164235 | Z19: =Z16*'DHS07'!Z22/100 -> 1.285594669 | BB19: Limited | BC19: N/A | BD19: N/A | BE19: N/A | BF19: N/A | BG19: N/A | BH19: N/A | BI19: N/A | BJ19: N/A | BK19: N/A | BL19: N/A | BM19: N/A | BN19: N/A | BO19: N/A | BP19: N/A | BQ19: N/A | BR19: N/A | BS19: N/A | BT19: N/A | BU19: N/A | BV19: N/A | BW19: N/A | BX19: N/A | BY19: N/A | BZ19: N/A
B20: Unimproved | C20: =100-(C18+C19+C21) -> 45.7734315 | D20: =100-(D18+D19+D21) -> 41.88519949 | E20: 35.12662479 | F20: 16.03499277 | G20: 4.705270702 | H20: 14.3170809 | I20: 10.27831691 | J20: 7.252950759 | K20: 3.64784321 | L20: 4.501920269 | M20: 45.77659825 | N20: 45.72855499 | O20: 41.91028073 | P20: 39.92942659 | Q20: 29.79175783 | R20: 61.33566733 | S20: 15.95572977 | T20: 27.53895775 | U20: 32.87500122 | V20: 3.868230596 | W20: 56.09564896 | X20: 35.75176387 | Y20: 14.49809221 | Z20: 56.94377286 | BB20: Unimproved | BC20: N/A | BD20: N/A | BE20: N/A | BF20: N/A | BG20: N/A | BH20: N/A | BI20: N/A | BJ20: N/A | BK20: N/A | BL20: N/A | BM20: N/A | BN20: N/A | BO20: N/A | BP20: N/A | BQ20: N/A | BR20: N/A | BS20: N/A | BT20: N/A | BU20: N/A | BV20: N/A | BW20: N/A | BX20: N/A | BY20: N/A | BZ20: N/A
B21: Surface water | C21: =C68+C69 -> 30.28010076 | D21: 30.50276786 | E21: 22.78421854 | F21: 4.384229548 | G21: 0.1274315304 | H21: 3.952484235 | I21: 2.751348617 | J21: 0 | K21: 0 | L21: 0 | M21: 30.28010076 | N21: 30.28010076 | O21: 30.50276786 | P21: 28.10319457 | Q21: 14.72126445 | R21: 7.454103075 | S21: 3.89670279 | T21: 28.58034971 | U21: 38.46960168 | V21: 3.468929374 | W21: 6.310981939 | X21: 33.35605931 | Y21: 24.80446927 | Z21: 15.57651354 | BB21: Surface water | BC21: N/A | BD21: N/A | BE21: N/A | BF21: N/A | BG21: N/A | BH21: N/A | BI21: N/A | BJ21: N/A | BK21: N/A | BL21: N/A | BM21: N/A | BN21: N/A | BO21: N/A | BP21: N/A | BQ21: N/A | BR21: N/A | BS21: N/A | BT21: N/A | BU21: N/A | BV21: N/A | BW21: N/A | BX21: N/A | BY21: N/A | BZ21: N/A
A22: Improved water point at more than 30 minutes | B22: Yes | C22: N/A | D22: N/A | E22: N/A | F22: N/A | G22: N/A | H22: N/A | I22: N/A | J22: N/A | K22: N/A | L22: N/A | M22: N/A | N22: N/A | O22: N/A | P22: N/A | Q22: N/A | R22: N/A | S22: N/A | T22: N/A | U22: N/A | V22: N/A | W22: N/A | X22: N/A | Y22: N/A | Z22: N/A | BA22: Improved water point at more than 30 minutes | BB22: Yes | BC22: N/A | BD22: N/A | BE22: N/A | BF22: N/A | BG22: N/A | BH22: N/A | BI22: N/A | BJ22: N/A | BK22: N/A | BL22: N/A | BM22: N/A | BN22: N/A | BO22: N/A | BP22: N/A | BQ22: N/A | BR22: N/A | BS22: N/A | BT22: N/A | BU22: N/A | BV22: N/A | BW22: N/A | BX22: N/A | BY22: N/A | BZ22: N/A
B23: No | C23: N/A | D23: N/A | E23: N/A | F23: N/A | G23: N/A | H23: N/A | I23: N/A | J23: N/A | K23: N/A | L23: N/A | M23: N/A | N23: N/A | O23: N/A | P23: N/A | Q23: N/A | R23: N/A | S23: N/A | T23: N/A | U23: N/A | V23: N/A | W23: N/A | X23: N/A | Y23: N/A | Z23: N/A | BB23: No | BC23: N/A | BD23: N/A | BE23: N/A | BF23: N/A | BG23: N/A | BH23: N/A | BI23: N/A | BJ23: N/A | BK23: N/A | BL23: N/A | BM23: N/A | BN23: N/A | BO23: N/A | BP23: N/A | BQ23: N/A | BR23: N/A | BS23: N/A | BT23: N/A | BU23: N/A | BV23: N/A | BW23: N/A | BX23: N/A | BY23: N/A | BZ23: N/A
A24: Manually calculated ratios | B24: Improved wells
B25: Improved springs
B26: Other
C27: NATIONAL wealth index quintile | H27: URBAN wealth index quintile | M27: RURAL wealth index quintile | R27: SUB-REGIONS: | BA27: Raw numbers of respondents: | BB27: Use of drinking water sources | BC27: NATIONAL wealth index quintile | BH27: URBAN wealth index quintile | BM27: RURAL wealth index quintile | BR27: SUB-REGIONS:
A28: Percentage based on weighted population | C28: Poorest | D28: Poor | E28: Middle | F28: Rich | G28: Richest | H28: Poorest | I28: Poor | J28: Middle | K28: Rich | L28: Richest | M28: Poorest | N28: Poor | O28: Middle | P28: Rich | Q28: Richest | R28: Central | S28: Copperbelt | T28: Eastern | U28: Luapula | V28: Lusaka | W28: North-Western | X28: Northern | Y28: Southern | Z28: Western | BA28: Water data, raw numbers (weighted) | BC28: Poorest | BD28: Poor | BE28: Middle | BF28: Rich | BG28: Richest | BH28: Poorest | BI28: Poor | BJ28: Middle | BK28: Rich | BL28: Richest | BM28: Poorest | BN28: Poor | BO28: Middle | BP28: Rich | BQ28: Richest | BR28: Central | BS28: Copperbelt | BT28: Eastern | BU28: Luapula | BV28: Lusaka | BW28: North-Western | BX28: Northern | BY28: Southern | BZ28: Western
A29: Piped water | B29: Yes | C29: 2.235562288 | D29: 3.523936255 | E29: 12.74147579 | F29: 62.72694756 | G29: 90.55964558 | H29: 64.98034465 | I29: 77.55155837 | J29: 88.88111293 | K29: 91.37889685 | L29: 93.64852632 | M29: 2.235562288 | N29: =M29 -> 2.235562288 | O29: 3.523936255 | P29: 2.615852519 | Q29: 23.36085952 | R29: 16.23534616 | S29: 66.93566982 | T29: 13.30141549 | U29: 2.969951083 | V29: 85.72498128 | W29: 11.8904337 | X29: 19.66933697 | Y29: 20.58659218 | Z29: 11.90765492 | BA29: Piped water | BB29: Yes | BC29: N/A | BD29: N/A | BE29: N/A | BF29: N/A | BG29: N/A | BH29: N/A | BI29: N/A | BJ29: N/A | BK29: N/A | BL29: N/A | BM29: N/A | BN29: N/A | BO29: N/A | BP29: N/A | BQ29: N/A | BR29: N/A | BS29: N/A | BT29: N/A | BU29: N/A | BV29: N/A | BW29: N/A | BX29: N/A | BY29: N/A | BZ29: N/A
B30: No | C30: 97.76443771 | D30: 96.47606375 | E30: 87.25852421 | F30: 37.27305244 | G30: 9.440354416 | H30: 35.01965535 | I30: 22.44844163 | J30: 11.11888707 | K30: 8.621103155 | L30: 6.351473679 | M30: 97.76443771 | N30: =M30 -> 97.76443771 | O30: 96.47606375 | P30: 97.38414748 | Q30: 76.63914048 | R30: 83.76465384 | S30: 33.06433018 | T30: 86.69858451 | U30: 97.03004892 | V30: 14.27501872 | W30: 88.1095663 | X30: 80.33066303 | Y30: 79.41340782 | Z30: 88.09234508 | BB30: No | BC30: N/A | BD30: N/A | BE30: N/A | BF30: N/A | BG30: N/A | BH30: N/A | BI30: N/A | BJ30: N/A | BK30: N/A | BL30: N/A | BM30: N/A | BN30: N/A | BO30: N/A | BP30: N/A | BQ30: N/A | BR30: N/A | BS30: N/A | BT30: N/A | BU30: N/A | BV30: N/A | BW30: N/A | BX30: N/A | BY30: N/A | BZ30: N/A
A31: Piped water on premises | B31: Yes | C31: 0.02700212161 | D31: 0.1087523849 | E31: 0.9703600211 | F31: 22.19765492 | G31: 69.26549768 | H31: 12.56821972 | I31: 27.39338789 | J31: 45.85107208 | K31: 63.06266455 | L31: 83.68719429 | M31: 0.02700212161 | N31: =M31 -> 0.02700212161 | O31: 0.1087523849 | P31: 0 | Q31: 13.16511634 | R31: 7.078080071 | S31: 57.02098225 | T31: 9.096586178 | U31: 0.9783368274 | V31: 25.70501622 | W31: 5.561319776 | X31: 7.993863985 | Y31: 7.374301676 | Z31: 2.217496962 | BA31: Piped water on premises | BB31: Yes | BC31: N/A | BD31: N/A | BE31: N/A | BF31: N/A | BG31: N/A | BH31: N/A | BI31: N/A | BJ31: N/A | BK31: N/A | BL31: N/A | BM31: N/A | BN31: N/A | BO31: N/A | BP31: N/A | BQ31: N/A | BR31: N/A | BS31: N/A | BT31: N/A | BU31: N/A | BV31: N/A | BW31: N/A | BX31: N/A | BY31: N/A | BZ31: N/A
B32: No | C32: 99.97299788 | D32: 99.89124762 | E32: 99.02963998 | F32: 77.80234508 | G32: 30.73450232 | H32: 87.43178028 | I32: 72.60661211 | J32: 54.14892792 | K32: 36.93733545 | L32: 16.31280571 | M32: 99.97299788 | N32: =M32 -> 99.97299788 | O32: 99.89124762 | P32: 100 | Q32: 86.83488366 | R32: 92.92191993 | S32: 42.97901775 | T32: 90.90341382 | U32: 99.02166317 | V32: 74.29498378 | W32: 94.43868022 | X32: 92.00613601 | Y32: 92.62569832 | Z32: 97.78250304 | BB32: No | BC32: N/A | BD32: N/A | BE32: N/A | BF32: N/A | BG32: N/A | BH32: N/A | BI32: N/A | BJ32: N/A | BK32: N/A | BL32: N/A | BM32: N/A | BN32: N/A | BO32: N/A | BP32: N/A | BQ32: N/A | BR32: N/A | BS32: N/A | BT32: N/A | BU32: N/A | BV32: N/A | BW32: N/A | BX32: N/A | BY32: N/A | BZ32: N/A
A33: Piped water into dwelling | B33: Yes | C33: N/A | D33: N/A | E33: N/A | F33: N/A | G33: N/A | H33: N/A | I33: N/A | J33: N/A | K33: N/A | L33: N/A | M33: N/A | N33: N/A | O33: N/A | P33: N/A | Q33: N/A | R33: N/A | S33: N/A | T33: N/A | U33: N/A | V33: N/A | W33: N/A | X33: N/A | Y33: N/A | Z33: N/A | BA33: Piped water into dwelling | BB33: Yes | BC33: N/A | BD33: N/A | BE33: N/A | BF33: N/A | BG33: N/A | BH33: N/A | BI33: N/A | BJ33: N/A | BK33: N/A | BL33: N/A | BM33: N/A | BN33: N/A | BO33: N/A | BP33: N/A | BQ33: N/A | BR33: N/A | BS33: N/A | BT33: N/A | BU33: N/A | BV33: N/A | BW33: N/A | BX33: N/A | BY33: N/A | BZ33: N/A
B34: No | C34: N/A | D34: N/A | E34: N/A | F34: N/A | G34: N/A | H34: N/A | I34: N/A | J34: N/A | K34: N/A | L34: N/A | M34: N/A | N34: N/A | O34: N/A | P34: N/A | Q34: N/A | R34: N/A | S34: N/A | T34: N/A | U34: N/A | V34: N/A | W34: N/A | X34: N/A | Y34: N/A | Z34: N/A | BB34: No | BC34: N/A | BD34: N/A | BE34: N/A | BF34: N/A | BG34: N/A | BH34: N/A | BI34: N/A | BJ34: N/A | BK34: N/A | BL34: N/A | BM34: N/A | BN34: N/A | BO34: N/A | BP34: N/A | BQ34: N/A | BR34: N/A | BS34: N/A | BT34: N/A | BU34: N/A | BV34: N/A | BW34: N/A | BX34: N/A | BY34: N/A | BZ34: N/A
A35: Water source on premises | B35: Yes | C35: 0.5472478704 | D35: 0.5733416735 | E35: 1.167944493 | F35: 23.12750131 | G35: 69.45870166 | H35: 13.52480672 | I35: 28.43837937 | J35: 46.01872091 | K35: 63.69188536 | L35: 83.68719429 | M35: 0.5472478704 | N35: =M35 -> 0.5472478704 | O35: 0.5733416735 | P35: 0.1730224499 | Q35: 13.54829229 | R35: 7.343508073 | S35: 57.22849896 | T35: 9.845961699 | U35: 1.991614256 | V35: 25.97953581 | W35: 5.561319776 | X35: 8.488154082 | Y35: 8.43575419 | Z35: 2.217496962 | BA35: Water source on premises | BB35: Yes | BC35: N/A | BD35: N/A | BE35: N/A | BF35: N/A | BG35: N/A | BH35: N/A | BI35: N/A | BJ35: N/A | BK35: N/A | BL35: N/A | BM35: N/A | BN35: N/A | BO35: N/A | BP35: N/A | BQ35: N/A | BR35: N/A | BS35: N/A | BT35: N/A | BU35: N/A | BV35: N/A | BW35: N/A | BX35: N/A | BY35: N/A | BZ35: N/A
B36: No | C36: 99.45275213 | D36: 99.42665833 | E36: 98.83205551 | F36: 76.87249869 | G36: 30.54129834 | H36: 86.47519328 | I36: 71.56162063 | J36: 53.98127909 | K36: 36.30811464 | L36: 16.31280571 | M36: 99.45275213 | N36: =M36 -> 99.45275213 | O36: 99.42665833 | P36: 99.82697755 | Q36: 86.45170771 | R36: 92.65649193 | S36: 42.77150104 | T36: 90.1540383 | U36: 98.00838574 | V36: 74.02046419 | W36: 94.43868022 | X36: 91.51184592 | Y36: 91.56424581 | Z36: 97.78250304 | BB36: No | BC36: N/A | BD36: N/A | BE36: N/A | BF36: N/A | BG36: N/A | BH36: N/A | BI36: N/A | BJ36: N/A | BK36: N/A | BL36: N/A | BM36: N/A | BN36: N/A | BO36: N/A | BP36: N/A | BQ36: N/A | BR36: N/A | BS36: N/A | BT36: N/A | BU36: N/A | BV36: N/A | BW36: N/A | BX36: N/A | BY36: N/A | BZ36: N/A
A37: Improved Water source on premises | B37: Yes | C37: N/A | D37: N/A | E37: N/A | F37: N/A | G37: N/A | H37: N/A | I37: N/A | J37: N/A | K37: N/A | L37: N/A | M37: N/A | N37: N/A | O37: N/A | P37: N/A | Q37: N/A | R37: N/A | S37: N/A | T37: N/A | U37: N/A | V37: N/A | W37: N/A | X37: N/A | Y37: N/A | Z37: N/A | BA37: Improved water source on premises | BB37: Yes | BC37: N/A | BD37: N/A | BE37: N/A | BF37: N/A | BG37: N/A | BH37: N/A | BI37: N/A | BJ37: N/A | BK37: N/A | BL37: N/A | BM37: N/A | BN37: N/A | BO37: N/A | BP37: N/A | BQ37: N/A | BR37: N/A | BS37: N/A | BT37: N/A | BU37: N/A | BV37: N/A | BW37: N/A | BX37: N/A | BY37: N/A | BZ37: N/A
B38: No | C38: N/A | D38: N/A | E38: N/A | F38: N/A | G38: N/A | H38: N/A | I38: N/A | J38: N/A | K38: N/A | L38: N/A | M38: N/A | N38: N/A | O38: N/A | P38: N/A | Q38: N/A | R38: N/A | S38: N/A | T38: N/A | U38: N/A | V38: N/A | W38: N/A | X38: N/A | Y38: N/A | Z38: N/A | BB38: No | BC38: N/A | BD38: N/A | BE38: N/A | BF38: N/A | BG38: N/A | BH38: N/A | BI38: N/A | BJ38: N/A | BK38: N/A | BL38: N/A | BM38: N/A | BN38: N/A | BO38: N/A | BP38: N/A | BQ38: N/A | BR38: N/A | BS38: N/A | BT38: N/A | BU38: N/A | BV38: N/A | BW38: N/A | BX38: N/A | BY38: N/A | BZ38: N/A
A39: Piped water on premises available when needed | B39: Yes | C39: N/A | D39: N/A | E39: N/A | F39: N/A | G39: N/A | H39: N/A | I39: N/A | J39: N/A | K39: N/A | L39: N/A | M39: N/A | N39: N/A | O39: N/A | P39: N/A | Q39: N/A | R39: N/A | S39: N/A | T39: N/A | U39: N/A | V39: N/A | W39: N/A | X39: N/A | Y39: N/A | Z39: N/A | BA39: Piped water on premises available when needed | BB39: Yes | BC39: N/A | BD39: N/A | BE39: N/A | BF39: N/A | BG39: N/A | BH39: N/A | BI39: N/A | BJ39: N/A | BK39: N/A | BL39: N/A | BM39: N/A | BN39: N/A | BO39: N/A | BP39: N/A | BQ39: N/A | BR39: N/A | BS39: N/A | BT39: N/A | BU39: N/A | BV39: N/A | BW39: N/A | BX39: N/A | BY39: N/A | BZ39: N/A
B40: No | C40: N/A | D40: N/A | E40: N/A | F40: N/A | G40: N/A | H40: N/A | I40: N/A | J40: N/A | K40: N/A | L40: N/A | M40: N/A | N40: N/A | O40: N/A | P40: N/A | Q40: N/A | R40: N/A | S40: N/A | T40: N/A | U40: N/A | V40: N/A | W40: N/A | X40: N/A | Y40: N/A | Z40: N/A | BB40: No | BC40: N/A | BD40: N/A | BE40: N/A | BF40: N/A | BG40: N/A | BH40: N/A | BI40: N/A | BJ40: N/A | BK40: N/A | BL40: N/A | BM40: N/A | BN40: N/A | BO40: N/A | BP40: N/A | BQ40: N/A | BR40: N/A | BS40: N/A | BT40: N/A | BU40: N/A | BV40: N/A | BW40: N/A | BX40: N/A | BY40: N/A | BZ40: N/A
A41: Water point at more than 30 minutes | B41: Yes | C41: 15.98723227 | D41: 15.41923721 | E41: 19.40126202 | F41: 10.81039709 | G41: 2.275710526 | H41: 16.75099769 | I41: 12.6804734 | J41: 6.505635466 | K41: 1.445842087 | L41: 1.170376504 | M41: 15.98723227 | N41: =M41 -> 15.98723227 | O41: 15.41923721 | P41: 18.19293091 | Q41: 12.79571113 | R41: 8.087841457 | S41: 5.339684131 | T41: 7.635960044 | U41: 25.60202788 | V41: 6.541104607 | W41: 19.09398815 | X41: 19.3089045 | Y41: 23.35239242 | Z41: 11.30617978 | BA41: Water point at more than 30 minutes | BB41: Yes | BC41: N/A | BD41: N/A | BE41: N/A | BF41: N/A | BG41: N/A | BH41: N/A | BI41: N/A | BJ41: N/A | BK41: N/A | BL41: N/A | BM41: N/A | BN41: N/A | BO41: N/A | BP41: N/A | BQ41: N/A | BR41: N/A | BS41: N/A | BT41: N/A | BU41: N/A | BV41: N/A | BW41: N/A | BX41: N/A | BY41: N/A | BZ41: N/A
B42: No | C42: 84.01276773 | D42: 84.58076279 | E42: 80.59873798 | F42: 89.18960291 | G42: 97.72428947 | H42: 83.24900231 | I42: 87.3195266 | J42: 93.49436453 | K42: 98.55415791 | L42: 98.8296235 | M42: 84.01276773 | N42: 84.01276773 | O42: 84.58076279 | P42: 81.80706909 | Q42: 87.20428887 | R42: 91.91215854 | S42: 94.66031587 | T42: 92.36403996 | U42: 74.39797212 | V42: 93.45889539 | W42: 80.90601185 | X42: 80.6910955 | Y42: 76.64760758 | Z42: 88.69382022 | BB42: No | BC42: N/A | BD42: N/A | BE42: N/A | BF42: N/A | BG42: N/A | BH42: N/A | BI42: N/A | BJ42: N/A | BK42: N/A | BL42: N/A | BM42: N/A | BN42: N/A | BO42: N/A | BP42: N/A | BQ42: N/A | BR42: N/A | BS42: N/A | BT42: N/A | BU42: N/A | BV42: N/A | BW42: N/A | BX42: N/A | BY42: N/A | BZ42: N/A
A43: Water source available when needed | B43: Yes | C43: N/A | D43: N/A | E43: N/A | F43: N/A | G43: N/A | H43: N/A | I43: N/A | J43: N/A | K43: N/A | L43: N/A | M43: N/A | N43: N/A | O43: N/A | P43: N/A | Q43: N/A | R43: N/A | S43: N/A | T43: N/A | U43: N/A | V43: N/A | W43: N/A | X43: N/A | Y43: N/A | Z43: N/A | BA43: Water source available when needed | BB43: Yes | BC43: N/A | BD43: N/A | BE43: N/A | BF43: N/A | BG43: N/A | BH43: N/A | BI43: N/A | BJ43: N/A | BK43: N/A | BL43: N/A | BM43: N/A | BN43: N/A | BO43: N/A | BP43: N/A | BQ43: N/A | BR43: N/A | BS43: N/A | BT43: N/A | BU43: N/A | BV43: N/A | BW43: N/A | BX43: N/A | BY43: N/A | BZ43: N/A
B44: No | C44: N/A | D44: N/A | E44: N/A | F44: N/A | G44: N/A | H44: N/A | I44: N/A | J44: N/A | K44: N/A | L44: N/A | M44: N/A | N44: N/A | O44: N/A | P44: N/A | Q44: N/A | R44: N/A | S44: N/A | T44: N/A | U44: N/A | V44: N/A | W44: N/A | X44: N/A | Y44: N/A | Z44: N/A | BB44: No | BC44: N/A | BD44: N/A | BE44: N/A | BF44: N/A | BG44: N/A | BH44: N/A | BI44: N/A | BJ44: N/A | BK44: N/A | BL44: N/A | BM44: N/A | BN44: N/A | BO44: N/A | BP44: N/A | BQ44: N/A | BR44: N/A | BS44: N/A | BT44: N/A | BU44: N/A | BV44: N/A | BW44: N/A | BX44: N/A | BY44: N/A | BZ44: N/A
A45: Improved water source available when needed | B45: Yes | C45: N/A | D45: N/A | E45: N/A | F45: N/A | G45: N/A | H45: N/A | I45: N/A | J45: N/A | K45: N/A | L45: N/A | M45: N/A | N45: N/A | O45: N/A | P45: N/A | Q45: N/A | R45: N/A | S45: N/A | T45: N/A | U45: N/A | V45: N/A | W45: N/A | X45: N/A | Y45: N/A | Z45: N/A | BA45: Improved water source available when needed | BB45: Yes | BC45: N/A | BD45: N/A | BE45: N/A | BF45: N/A | BG45: N/A | BH45: N/A | BI45: N/A | BJ45: N/A | BK45: N/A | BL45: N/A | BM45: N/A | BN45: N/A | BO45: N/A | BP45: N/A | BQ45: N/A | BR45: N/A | BS45: N/A | BT45: N/A | BU45: N/A | BV45: N/A | BW45: N/A | BX45: N/A | BY45: N/A | BZ45: N/A
B46: No | C46: N/A | D46: N/A | E46: N/A | F46: N/A | G46: N/A | H46: N/A | I46: N/A | J46: N/A | K46: N/A | L46: N/A | M46: N/A | N46: N/A | O46: N/A | P46: N/A | Q46: N/A | R46: N/A | S46: N/A | T46: N/A | U46: N/A | V46: N/A | W46: N/A | X46: N/A | Y46: N/A | Z46: N/A | BB46: No | BC46: N/A | BD46: N/A | BE46: N/A | BF46: N/A | BG46: N/A | BH46: N/A | BI46: N/A | BJ46: N/A | BK46: N/A | BL46: N/A | BM46: N/A | BN46: N/A | BO46: N/A | BP46: N/A | BQ46: N/A | BR46: N/A | BS46: N/A | BT46: N/A | BU46: N/A | BV46: N/A | BW46: N/A | BX46: N/A | BY46: N/A | BZ46: N/A
A47: Microbiological quality at point of collection | B47: Not contaminated (No E. coli in 100 mL) | C47: N/A | D47: N/A | E47: N/A | F47: N/A | G47: N/A | H47: N/A | I47: N/A | J47: N/A | K47: N/A | L47: N/A | M47: N/A | N47: N/A | O47: N/A | P47: N/A | Q47: N/A | R47: N/A | S47: N/A | T47: N/A | U47: N/A | V47: N/A | W47: N/A | X47: N/A | Y47: N/A | Z47: N/A | BA47: Microbiological quality at point of collection | BB47: Not contaminated (No E. coli in 100 mL) | BC47: N/A | BD47: N/A | BE47: N/A | BF47: N/A | BG47: N/A | BH47: N/A | BI47: N/A | BJ47: N/A | BK47: N/A | BL47: N/A | BM47: N/A | BN47: N/A | BO47: N/A | BP47: N/A | BQ47: N/A | BR47: N/A | BS47: N/A | BT47: N/A | BU47: N/A | BV47: N/A | BW47: N/A | BX47: N/A | BY47: N/A | BZ47: N/A
B48: Contaminated (E. coli detected in 100 mL) | C48: N/A | D48: N/A | E48: N/A | F48: N/A | G48: N/A | H48: N/A | I48: N/A | J48: N/A | K48: N/A | L48: N/A | M48: N/A | N48: N/A | O48: N/A | P48: N/A | Q48: N/A | R48: N/A | S48: N/A | T48: N/A | U48: N/A | V48: N/A | W48: N/A | X48: N/A | Y48: N/A | Z48: N/A | BB48: Contaminated (E. coli detected in 100 mL) | BC48: N/A | BD48: N/A | BE48: N/A | BF48: N/A | BG48: N/A | BH48: N/A | BI48: N/A | BJ48: N/A | BK48: N/A | BL48: N/A | BM48: N/A | BN48: N/A | BO48: N/A | BP48: N/A | BQ48: N/A | BR48: N/A | BS48: N/A | BT48: N/A | BU48: N/A | BV48: N/A | BW48: N/A | BX48: N/A | BY48: N/A | BZ48: N/A
B49: Highly contaminated (>100 CFU/100 mL) | C49: N/A | D49: N/A | E49: N/A | F49: N/A | G49: N/A | H49: N/A | I49: N/A | J49: N/A | K49: N/A | L49: N/A | M49: N/A | N49: N/A | O49: N/A | P49: N/A | Q49: N/A | R49: N/A | S49: N/A | T49: N/A | U49: N/A | V49: N/A | W49: N/A | X49: N/A | Y49: N/A | Z49: N/A | BB49: Highly contaminated (>100 CFU/100 mL) | BC49: N/A | BD49: N/A | BE49: N/A | BF49: N/A | BG49: N/A | BH49: N/A | BI49: N/A | BJ49: N/A | BK49: N/A | BL49: N/A | BM49: N/A | BN49: N/A | BO49: N/A | BP49: N/A | BQ49: N/A | BR49: N/A | BS49: N/A | BT49: N/A | BU49: N/A | BV49: N/A | BW49: N/A | BX49: N/A | BY49: N/A | BZ49: N/A
A50: Microbiological quality of improved water sources at point of collection | B50: Not contaminated (No E. coli in 100 mL) | C50: N/A | D50: N/A | E50: N/A | F50: N/A | G50: N/A | H50: N/A | I50: N/A | J50: N/A | K50: N/A | L50: N/A | M50: N/A | N50: N/A | O50: N/A | P50: N/A | Q50: N/A | R50: N/A | S50: N/A | T50: N/A | U50: N/A | V50: N/A | W50: N/A | X50: N/A | Y50: N/A | Z50: N/A | BA50: Microbiological quality of improved water sources at point of collection | BB50: Not contaminated (No E. coli in 100 mL) | BC50: N/A | BD50: N/A | BE50: N/A | BF50: N/A | BG50: N/A | BH50: N/A | BI50: N/A | BJ50: N/A | BK50: N/A | BL50: N/A | BM50: N/A | BN50: N/A | BO50: N/A | BP50: N/A | BQ50: N/A | BR50: N/A | BS50: N/A | BT50: N/A | BU50: N/A | BV50: N/A | BW50: N/A | BX50: N/A | BY50: N/A | BZ50: N/A
B51: Contaminated (E. coli detected in 100 mL) | C51: N/A | D51: N/A | E51: N/A | F51: N/A | G51: N/A | H51: N/A | I51: N/A | J51: N/A | K51: N/A | L51: N/A | M51: N/A | N51: N/A | O51: N/A | P51: N/A | Q51: N/A | R51: N/A | S51: N/A | T51: N/A | U51: N/A | V51: N/A | W51: N/A | X51: N/A | Y51: N/A | Z51: N/A | BB51: Contaminated (E. coli detected in 100 mL) | BC51: N/A | BD51: N/A | BE51: N/A | BF51: N/A | BG51: N/A | BH51: N/A | BI51: N/A | BJ51: N/A | BK51: N/A | BL51: N/A | BM51: N/A | BN51: N/A | BO51: N/A | BP51: N/A | BQ51: N/A | BR51: N/A | BS51: N/A | BT51: N/A | BU51: N/A | BV51: N/A | BW51: N/A | BX51: N/A | BY51: N/A | BZ51: N/A
B52: Highly contaminated (>100 CFU/100 mL) | C52: N/A | D52: N/A | E52: N/A | F52: N/A | G52: N/A | H52: N/A | I52: N/A | J52: N/A | K52: N/A | L52: N/A | M52: N/A | N52: N/A | O52: N/A | P52: N/A | Q52: N/A | R52: N/A | S52: N/A | T52: N/A | U52: N/A | V52: N/A | W52: N/A | X52: N/A | Y52: N/A | Z52: N/A | BB52: Highly contaminated (>100 CFU/100 mL) | BC52: N/A | BD52: N/A | BE52: N/A | BF52: N/A | BG52: N/A | BH52: N/A | BI52: N/A | BJ52: N/A | BK52: N/A | BL52: N/A | BM52: N/A | BN52: N/A | BO52: N/A | BP52: N/A | BQ52: N/A | BR52: N/A | BS52: N/A | BT52: N/A | BU52: N/A | BV52: N/A | BW52: N/A | BX52: N/A | BY52: N/A | BZ52: N/A
A53: Microbiological quality of piped on premises at point of collection | B53: Not contaminated (No E. coli in 100 mL) | C53: N/A | D53: N/A | E53: N/A | F53: N/A | G53: N/A | H53: N/A | I53: N/A | J53: N/A | K53: N/A | L53: N/A | M53: N/A | N53: N/A | O53: N/A | P53: N/A | Q53: N/A | R53: N/A | S53: N/A | T53: N/A | U53: N/A | V53: N/A | W53: N/A | X53: N/A | Y53: N/A | Z53: N/A | BA53: Microbiological quality of piped on premises at point of collection | BB53: Not contaminated (No E. coli in 100 mL) | BC53: N/A | BD53: N/A | BE53: N/A | BF53: N/A | BG53: N/A | BH53: N/A | BI53: N/A | BJ53: N/A | BK53: N/A | BL53: N/A | BM53: N/A | BN53: N/A | BO53: N/A | BP53: N/A | BQ53: N/A | BR53: N/A | BS53: N/A | BT53: N/A | BU53: N/A | BV53: N/A | BW53: N/A | BX53: N/A | BY53: N/A | BZ53: N/A
B54: Contaminated (E. coli detected in 100 mL) | C54: N/A | D54: N/A | E54: N/A | F54: N/A | G54: N/A | H54: N/A | I54: N/A | J54: N/A | K54: N/A | L54: N/A | M54: N/A | N54: N/A | O54: N/A | P54: N/A | Q54: N/A | R54: N/A | S54: N/A | T54: N/A | U54: N/A | V54: N/A | W54: N/A | X54: N/A | Y54: N/A | Z54: N/A | BB54: Contaminated (E. coli detected in 100 mL) | BC54: N/A | BD54: N/A | BE54: N/A | BF54: N/A | BG54: N/A | BH54: N/A | BI54: N/A | BJ54: N/A | BK54: N/A | BL54: N/A | BM54: N/A | BN54: N/A | BO54: N/A | BP54: N/A | BQ54: N/A | BR54: N/A | BS54: N/A | BT54: N/A | BU54: N/A | BV54: N/A | BW54: N/A | BX54: N/A | BY54: N/A | BZ54: N/A
B55: Highly contaminated (>100 CFU/100 mL) | C55: N/A | D55: N/A | E55: N/A | F55: N/A | G55: N/A | H55: N/A | I55: N/A | J55: N/A | K55: N/A | L55: N/A | M55: N/A | N55: N/A | O55: N/A | P55: N/A | Q55: N/A | R55: N/A | S55: N/A | T55: N/A | U55: N/A | V55: N/A | W55: N/A | X55: N/A | Y55: N/A | Z55: N/A | BB55: Highly contaminated (>100 CFU/100 mL) | BC55: N/A | BD55: N/A | BE55: N/A | BF55: N/A | BG55: N/A | BH55: N/A | BI55: N/A | BJ55: N/A | BK55: N/A | BL55: N/A | BM55: N/A | BN55: N/A | BO55: N/A | BP55: N/A | BQ55: N/A | BR55: N/A | BS55: N/A | BT55: N/A | BU55: N/A | BV55: N/A | BW55: N/A | BX55: N/A | BY55: N/A | BZ55: N/A
C56: NATIONAL wealth index quintile | H56: URBAN wealth index quintile | M56: RURAL wealth index quintile | R56: SUB-REGIONS: | BA56: Raw numbers of respondents: | BB56: Use of drinking water sources | BC56: NATIONAL wealth index quintile | BH56: URBAN wealth index quintile | BM56: RURAL wealth index quintile | BR56: SUB-REGIONS:
A57: Percentage based on weighted population | C57: Poorest | D57: Poor | E57: Middle | F57: Rich | G57: Richest | H57: Poorest | I57: Poor | J57: Middle | K57: Rich | L57: Richest | M57: Poorest | N57: Poor | O57: Middle | P57: Rich | Q57: Richest | R57: Central | S57: Copperbelt | T57: Eastern | U57: Luapula | V57: Lusaka | W57: North-Western | X57: Northern | Y57: Southern | Z57: Western | BA57: Water data, raw numbers (weighted) | BC57: Poorest | BD57: Poor | BE57: Middle | BF57: Rich | BG57: Richest | BH57: Poorest | BI57: Poor | BJ57: Middle | BK57: Rich | BL57: Richest | BM57: Poorest | BN57: Poor | BO57: Middle | BP57: Rich | BQ57: Richest | BR57: Central | BS57: Copperbelt | BT57: Eastern | BU57: Luapula | BV57: Lusaka | BW57: North-Western | BX57: Northern | BY57: Southern | BZ57: Western
A58: Source of drinking water | B58: Piped into dwelling | C58: 0 | D58: 0 | E58: 0.1449612104 | F58: 4.953364006 | G58: 38.93486407 | H58: 3.843255292 | I58: 4.948420686 | J58: 10.95921932 | K58: 29.26165935 | L58: 57.61362376 | M58: 0 | N58: =M58 -> 0 | O58: 0 | P58: 0 | Q58: 6.102842419 | R58: 4.180491042 | S58: 27.59972331 | T58: 3.830141549 | U58: 0.4542278127 | V58: 12.55303219 | W58: 2.864853643 | X58: 3.204363388 | Y58: 3.519553073 | Z58: 0.5780346821
B59: Piped into yard/plot | C59: 0.02701636922 | D59: 0.1087523849 | E59: 0.8255002263 | F59: 17.24429091 | G59: 30.33063361 | H59: 8.724964431 | I59: 22.4449672 | J59: 34.89185276 | K59: 33.8010052 | L59: 26.07357054 | M59: 0.02701636922 | N59: =M59 -> 0.02701636922 | O59: 0.1087523849 | P59: 0 | Q59: 7.064410791 | R59: 2.897589029 | S59: 29.42125893 | T59: 5.266444629 | U59: 0.5241090147 | V59: 13.15198403 | W59: 2.698775171 | X59: 4.789500597 | Y59: 3.854748603 | Z59: 1.642835412
B60: Communal tap | C60: 2.209725508 | D60: 3.41518387 | E60: 11.53649562 | F60: 39.65694134 | G60: 19.88571005 | H60: 50.88609501 | I60: 49.42904798 | J60: 41.40155511 | K60: 27.37193351 | L60: 8.232302929 | M60: 2.209725508 | N60: =M60 -> 2.209725508 | O60: 3.41518387 | P60: 2.615852519 | Q60: 10.14058852 | R60: 9.113028091 | S60: 8.369840904 | T60: 3.559533722 | U60: 1.991614256 | V60: 59.67057649 | W60: 5.314511106 | X60: 11.50502812 | Y60: 13.2122905 | Z60: 9.704898083
B61: Piped to neighbour | C61: 0 | D61: 0 | E61: 0.2358503931 | F61: 0.872351301 | G61: 1.40843785 | H61: 1.526029919 | I61: 0.7291225025 | J61: 1.628485742 | K61: 0.9442987858 | L61: 1.729029099 | M61: 0 | N61: 0 | O61: 0 | P61: 0 | Q61: 0.05680956201 | R61: 0.04423800044 | S61: 1.544846668 | T61: 0.645295587 | U61: 0 | V61: 0.34938857 | W61: 1.017230641 | X61: 0.1704448611 | Y61: 0 | Z61: 0
B62: Open well in yard/plot | C62: 3.098690885 | D62: 3.29872436 | E62: 4.504154491 | F62: 3.899113889 | G62: 1.912398134 | H62: 4.177768854 | I62: 2.701831262 | J62: 3.279269108 | K62: 1.668678806 | L62: 1.703780832 | M62: 3.098690885 | N62: 3.098690885 | O62: 3.29872436 | P62: 3.550456227 | Q62: 5.163631001 | R62: 14.68701615 | S62: 4.035047268 | T62: 1.727726894 | U62: 3.424178896 | V62: 0.6488644871 | W62: 1.349387586 | X62: 4.414521902 | Y62: 0.9497206704 | Z62: 0.8518405841
B63: Open public well | C63: 41.33544784 | D63: 36.96132844 | E63: 27.82181608 | F63: 10.63141825 | G63: 2.45380186 | H63: 8.563954358 | I63: 5.88015482 | J63: 3.920510978 | K63: 1.979164404 | L63: 1.98427679 | M63: 41.33544784 | N63: 41.33544784 | O63: 36.96132844 | P63: 33.60160887 | Q63: 22.06607993 | R63: 45.76421146 | S63: 10.32972101 | T63: 25.10407993 | U63: 23.09573725 | V63: 2.720239581 | W63: 52.46003737 | X63: 29.86193966 | Y63: 12.62569832 | Z63: 55.88682689
B64: Open well at neighbour | C64: 0.1036169921 | D64: 0 | E64: 0.6744475895 | F64: 0.5501803131 | G64: 0 | H64: 1.288929017 | I64: 1.644896824 | J64: 0 | K64: 0 | L64: 0 | M64: 0.1036169921 | N64: 0.1036169921 | O64: 0 | P64: 0.0780503091 | Q64: 0.2618602599 | R64: 0 | S64: 1.452617016 | T64: 0 | U64: 0 | V64: 0 | W64: 0 | X64: 0 | Y64: 0 | Z64: 0
B65: Protected well in yard/plot | C65: 1.081121025 | D65: 1.436027602 | E65: 3.927258306 | F65: 3.595538868 | G65: 1.82354574 | H65: 5.162895949 | I65: 3.247225905 | J65: 1.586693747 | K65: 2.621160556 | L65: 0.7936020562 | M65: 1.081121025 | N65: 1.081121025 | O65: 1.436027602 | P65: 1.412962159 | Q65: 5.619291574 | R65: 2.587923026 | S65: 3.850587964 | T65: 0.645295587 | U65: 4.437456324 | V65: 1.023209384 | W65: 0.5189952252 | X65: 4.124765638 | Y65: 1.843575419 | Z65: 0.6693033161
B66: Protected public well | C66: 20.47867892 | D66: 21.92956351 | E66: 24.8865987 | F66: 13.13021328 | G66: 2.64847816 | H66: 11.58719427 | I66: 5.978554699 | J66: 2.271768424 | K66: 2.352099389 | L66: 0.730406295 | M66: 20.47867892 | N66: 20.47867892 | O66: 21.92956351 | P66: 27.43872978 | Q66: 26.07375353 | R66: 12.36452112 | S66: 9.361309661 | T66: 29.66278102 | U66: 19.60167715 | V66: 5.640129773 | W66: 24.93253062 | X66: 6.255326402 | Y66: 38.12849162 | Z66: 14.84636447
B67: Spring | C67: 1.156607077 | D67: 1.880590859 | E67: 2.426461581 | F67: 0.8849101644 | G67: 0 | H67: 0 | I67: 0 | J67: 0.06064481606 | K67: 0 | L67: 0 | M67: 1.156607077 | N67: 1.156607077 | O67: 1.880590859 | P67: 2.885245813 | Q67: 2.632080147 | R67: 0.9068790091 | S67: 0 | T67: 0.3330557868 | U67: 8.001397624 | V67: 0 | W67: 2.283578991 | X67: 1.755582069 | Y67: 1.061452514 | Z67: 0.243383024
B68: River/stream | C68: 26.19248576 | D68: 26.5777313 | E68: 20.31363699 | F68: 3.11746462 | G68: 0.1274315304 | H68: 2.692597286 | I68: 0.256906891 | J68: 0 | K68: 0 | L68: 0 | M68: 26.19248576 | N68: 26.19248576 | O68: 26.5777313 | P68: 24.42051333 | Q68: 13.94572625 | R68: 7.321389073 | S68: 3.758358312 | T68: 23.98001665 | U68: 27.88259958 | V68: 3.468929374 | W68: 6.248702512 | X68: 32.58905744 | Y68: 19.72067039 | Z68: 13.02099179
B69: Pond/lake/dam | C69: 4.087614995 | D69: 3.925036559 | E69: 2.470581556 | F69: 1.266764928 | G69: 0 | H69: 1.259886949 | I69: 2.494441726 | J69: 0 | K69: 0 | L69: 0 | M69: 4.087614995 | N69: 4.087614995 | O69: 3.925036559 | P69: 3.682681243 | Q69: 0.7755382028 | R69: 0.1327140013 | S69: 0.1383444777 | T69: 4.600333056 | U69: 10.5870021 | V69: 0 | W69: 0.06227942703 | X69: 0.7670018749 | Y69: 5.083798883 | Z69: 2.555521752
B70: Rainwater | C70: 0.06699549638 | D70: 0.4670611168 | E70: 0.1168062461 | F70: 0 | G70: 0 | H70: 0 | I70: 0 | J70: 0 | K70: 0 | L70: 0 | M70: 0.06699549638 | N70: 0.06699549638 | O70: 0.4670611168 | P70: 0.2162780624 | Q70: 0 | R70: 0 | S70: 0 | T70: 0.2289758535 | U70: 0 | V70: 0 | W70: 0 | X70: 0.5624680416 | Y70: 0 | Z70: 0
B71: Tanker truck | C71: 0 | D71: 0 | E71: 0 | F71: 0 | G71: 0.1356282834 | H71: 0 | I71: 0 | J71: 0 | K71: 0 | L71: 0.325545059 | M71: 0 | N71: 0 | O71: 0 | P71: 0 | Q71: 0 | R71: 0 | S71: 0 | T71: 0 | U71: 0 | V71: 0.1996506114 | W71: 0 | X71: 0 | Y71: 0 | Z71: 0
B72: Bottled water | C72: 0 | D72: 0 | E72: 0 | F72: 0.05164205891 | G72: 0 | H72: 0 | I72: 0.1929954977 | J72: 0 | K72: 0 | L72: 0 | M72: 0 | N72: 0 | O72: 0 | P72: 0 | Q72: 0 | R72: 0 | S72: 0 | T72: 0 | U72: 0 | V72: 0.07486897929 | W72: 0 | X72: 0 | Y72: 0 | Z72: 0
B73: Other | C73: 0.1619991321 | D73: 0 | E73: 0.1154310221 | F73: 0.1458060731 | G73: 0.3390707086 | H73: 0.2864286704 | I73: 0.05143400758 | J73: 0 | K73: 0 | L73: 0.8138626475 | M73: 0.1619991321 | N73: 0.1619991321 | O73: 0 | P73: 0.09762168986 | Q73: 0.09738782058 | R73: 0 | S73: 0.1383444777 | T73: 0.4163197336 | U73: 0 | V73: 0.4991265286 | W73: 0.2491177081 | X73: 0 | Y73: 0 | Z73: 0
A108: =A1026 -> Zambia
A109: =A1034 -> 2002
A110: Use of sanitation facilities
A111: by wealth quintile and sub-national region
A112: Notes:
A113: WHO/UNICEF JMP customised wealth index excludes water,
A114: sanitation and hygiene assets.
A115: Survey used for analysis: | B115: =A1025 -> DHS02
A116: =B1030 -> Ratio of Improved latrines based on: | B116: DHS07
A117: =B1029 -> Ratio of Shared improved based on: | B117: DHS07
A120: Use of sanitation facilities | C120: NATIONAL wealth index quintile | H120: URBAN wealth index quintile | M120: RURAL wealth index quintile | R120: SUB-REGIONS: | BA120: Raw numbers of respondents: | BB120: Use of sanitation facilities | BC120: NATIONAL wealth index quintile | BH120: URBAN wealth index quintile | BM120: RURAL wealth index quintile | BR120: SUB-REGIONS:
A121: Weighted percentage (used in graphs) | C121: Poorest | D121: Poor | E121: Middle | F121: Rich | G121: Richest | H121: Poorest | I121: Poor | J121: Middle | K121: Rich | L121: Richest | M121: Poorest | N121: Poor | O121: Middle | P121: Rich | Q121: Richest | R121: Central | S121: Copperbelt | T121: Eastern | U121: Luapula | V121: Lusaka | W121: North-Western | X121: Northern | Y121: Southern | Z121: Western | BA121: Sanitation data, raw numbers (weighted) | BC121: Poorest | BD121: Poor | BE121: Middle | BF121: Rich | BG121: Richest | BH121: Poorest | BI121: Poor | BJ121: Middle | BK121: Rich | BL121: Richest | BM121: Poorest | BN121: Poor | BO121: Middle | BP121: Rich | BQ121: Richest | BR121: Central | BS121: Copperbelt | BT121: Eastern | BU121: Luapula | BV121: Lusaka | BW121: North-Western | BX121: Northern | BY121: Southern | BZ121: Western
A122: Sanitation | B122: Improved | C122: =C153+C155+C154*'DHS07'!C130/100 -> 6.423334258 | D122: =D153+D155+D154*'DHS07'!D130/100 -> 5.131336452 | E122: =E153+E155+E154*'DHS07'!E130/100 -> 13.29214699 | F122: =F153+F155+F154*'DHS07'!F130/100 -> 52.52527462 | G122: =G153+G155+G154*'DHS07'!G130/100 -> 94.18791798 | H122: =H153+H155+H154*'DHS07'!H130/100 -> 30.64254424 | I122: =I153+I155+I154*'DHS07'!I130/100 -> 56.58842887 | J122: =J153+J155+J154*'DHS07'!J130/100 -> 83.30556252 | K122: =K153+K155+K154*'DHS07'!K130/100 -> 93.66032715 | L122: =L153+L155+L154*'DHS07'!L130/100 -> 99.24726584 | M122: =M153+M155+M154*'DHS07'!M130/100 -> 4.683042748 | N122: =N153+N155+N154*'DHS07'!N130/100 -> 6.608969499 | O122: =O153+O155+O154*'DHS07'!O130/100 -> 5.327951901 | P122: =P153+P155+P154*'DHS07'!P130/100 -> 10.66705934 | Q122: =Q153+Q155+Q154*'DHS07'!Q130/100 -> 36.40605807 | R122: =R153+R155+R154*'DHS07'!R130/100 -> 23.66303376 | S122: =S153+S155+S154*'DHS07'!S130/100 -> 74.47054176 | T122: =T153+T155+T154*'DHS07'!T130/100 -> 14.24129914 | U122: =U153+U155+U154*'DHS07'!U130/100 -> 12.1786338 | V122: =V153+V155+V154*'DHS07'!V130/100 -> 75.82780027 | W122: =W153+W155+W154*'DHS07'!W130/100 -> 15.93250651 | X122: =X153+X155+X154*'DHS07'!X130/100 -> 12.33018138 | Y122: =Y153+Y155+Y154*'DHS07'!Y130/100 -> 32.15138263 | Z122: =Z153+Z155+Z154*'DHS07'!Z130/100 -> 1.947774012 | BA122: Sanitation | BB122: Improved | BC122: N/A | BD122: N/A | BE122: N/A | BF122: N/A | BG122: N/A | BH122: N/A | BI122: N/A | BJ122: N/A | BK122: N/A | BL122: N/A | BM122: N/A | BN122: N/A | BO122: N/A | BP122: N/A | BQ122: N/A | BR122: N/A | BS122: N/A | BT122: N/A | BU122: N/A | BV122: N/A | BW122: N/A | BX122: N/A | BY122: N/A | BZ122: N/A
B123: Not Improved | C123: =100-C122 -> 93.57666574 | D123: =100-D122 -> 94.86866355 | E123: 86.70785301 | F123: 47.47472538 | G123: 5.812082025 | H123: 69.35745576 | I123: 43.41157113 | J123: 16.69443748 | K123: 6.339672848 | L123: 0.7527341553 | M123: 95.31695725 | N123: 93.3910305 | O123: 94.6720481 | P123: 89.33294066 | Q123: 63.59394193 | R123: 76.33696624 | S123: 25.52945824 | T123: 85.75870086 | U123: 87.8213662 | V123: 24.17219973 | W123: 84.06749349 | X123: 87.66981862 | Y123: 67.84861737 | Z123: 98.05222599 | BB123: Not Improved | BC123: N/A | BD123: N/A | BE123: N/A | BF123: N/A | BG123: N/A | BH123: N/A | BI123: N/A | BJ123: N/A | BK123: N/A | BL123: N/A | BM123: N/A | BN123: N/A | BO123: N/A | BP123: N/A | BQ123: N/A | BR123: N/A | BS123: N/A | BT123: N/A | BU123: N/A | BV123: N/A | BW123: N/A | BX123: N/A | BY123: N/A | BZ123: N/A
A124: Sanitation ladder | B124: Basic | C124: ='DHS02'!C122*'DHS07'!C129/100 -> 4.160997037 | D124: ='DHS02'!D122*'DHS07'!D129/100 -> 3.532459281 | E124: ='DHS02'!E122*'DHS07'!E129/100 -> 8.835989261 | F124: ='DHS02'!F122*'DHS07'!F129/100 -> 24.31175839 | G124: ='DHS02'!G122*'DHS07'!G129/100 -> 69.38731083 | H124: ='DHS02'!H122*'DHS07'!H129/100 -> 11.06123875 | I124: ='DHS02'!I122*'DHS07'!I129/100 -> 20.65683369 | J124: ='DHS02'!J122*'DHS07'!J129/100 -> 40.80689096 | K124: ='DHS02'!K122*'DHS07'!K129/100 -> 65.87220215 | L124: ='DHS02'!L122*'DHS07'!L129/100 -> 85.55686476 | M124: ='DHS02'!M122*'DHS07'!M129/100 -> 2.480652994 | N124: ='DHS02'!N122*'DHS07'!N129/100 -> 4.980232575 | O124: ='DHS02'!O122*'DHS07'!O129/100 -> 3.559811424 | P124: ='DHS02'!P122*'DHS07'!P129/100 -> 7.515889154 | Q124: ='DHS02'!Q122*'DHS07'!Q129/100 -> 26.77898679 | R124: ='DHS02'!R122*'DHS07'!R129/100 -> 19.04361243 | S124: ='DHS02'!S122*'DHS07'!S129/100 -> 54.30716738 | T124: ='DHS02'!T122*'DHS07'!T129/100 -> 8.524638877 | U124: ='DHS02'!U122*'DHS07'!U129/100 -> 8.630281449 | V124: ='DHS02'!V122*'DHS07'!V129/100 -> 33.21907643 | W124: ='DHS02'!W122*'DHS07'!W129/100 -> 12.8219026 | X124: ='DHS02'!X122*'DHS07'!X129/100 -> 8.835975382 | Y124: ='DHS02'!Y122*'DHS07'!Y129/100 -> 21.57895539 | Z124: ='DHS02'!Z122*'DHS07'!Z129/100 -> 1.680035311 | BA124: Sanitation ladder | BB124: Basic | BC124: N/A | BD124: N/A | BE124: N/A | BF124: N/A | BG124: N/A | BH124: N/A | BI124: N/A | BJ124: N/A | BK124: N/A | BL124: N/A | BM124: N/A | BN124: N/A | BO124: N/A | BP124: N/A | BQ124: N/A | BR124: N/A | BS124: N/A | BT124: N/A | BU124: N/A | BV124: N/A | BW124: N/A | BX124: N/A | BY124: N/A | BZ124: N/A
B125: Limited | C125: =C122*'DHS07'!C128/100 -> 2.262337221 | D125: =D122*'DHS07'!D128/100 -> 1.598877171 | E125: =E122*'DHS07'!E128/100 -> 4.456157728 | F125: =F122*'DHS07'!F128/100 -> 28.21351623 | G125: =G122*'DHS07'!G128/100 -> 24.80060714 | H125: =H122*'DHS07'!H128/100 -> 19.58130549 | I125: =I122*'DHS07'!I128/100 -> 35.93159518 | J125: =J122*'DHS07'!J128/100 -> 42.49867156 | K125: =K122*'DHS07'!K128/100 -> 27.788125 | L125: =L122*'DHS07'!L128/100 -> 13.69040109 | M125: =M122*'DHS07'!M128/100 -> 2.202389754 | N125: =N122*'DHS07'!N128/100 -> 1.628736924 | O125: =O122*'DHS07'!O128/100 -> 1.768140477 | P125: =P122*'DHS07'!P128/100 -> 3.151170186 | Q125: =Q122*'DHS07'!Q128/100 -> 9.62707128 | R125: =R122*'DHS07'!R128/100 -> 4.619421329 | S125: =S122*'DHS07'!S128/100 -> 20.16337438 | T125: =T122*'DHS07'!T128/100 -> 5.716660267 | U125: =U122*'DHS07'!U128/100 -> 3.548352352 | V125: =V122*'DHS07'!V128/100 -> 42.60872384 | W125: =W122*'DHS07'!W128/100 -> 3.110603911 | X125: =X122*'DHS07'!X128/100 -> 3.494205997 | Y125: =Y122*'DHS07'!Y128/100 -> 10.57242724 | Z125: =Z122*'DHS07'!Z128/100 -> 0.2677387015 | BB125: Limited | BC125: N/A | BD125: N/A | BE125: N/A | BF125: N/A | BG125: N/A | BH125: N/A | BI125: N/A | BJ125: N/A | BK125: N/A | BL125: N/A | BM125: N/A | BN125: N/A | BO125: N/A | BP125: N/A | BQ125: N/A | BR125: N/A | BS125: N/A | BT125: N/A | BU125: N/A | BV125: N/A | BW125: N/A | BX125: N/A | BY125: N/A | BZ125: N/A
B126: Unimproved | C126: =100-(C124+C125+C127) -> 37.32974833 | D126: =100-(D124+D125+D127) -> 52.9939622 | E126: 60.45681006 | F126: 41.41778195 | G126: 5.588040335 | H126: 58.66072132 | I126: 37.42099655 | J126: 16.20239087 | K126: 5.916145677 | L126: 0.7527341553 | M126: 39.07003984 | N126: 37.14411309 | O126: 52.79734675 | P126: 55.28140635 | Q126: 52.24137785 | R126: 52.006066 | S126: 21.86356497 | T126: 31.97666293 | U126: 67.64623485 | V126: 20.55172532 | W126: 62.44137579 | X126: 74.76714264 | Y126: 11.7592319 | Z126: 28.45927338 | BB126: Unimproved | BC126: N/A | BD126: N/A | BE126: N/A | BF126: N/A | BG126: N/A | BH126: N/A | BI126: N/A | BJ126: N/A | BK126: N/A | BL126: N/A | BM126: N/A | BN126: N/A | BO126: N/A | BP126: N/A | BQ126: N/A | BR126: N/A | BS126: N/A | BT126: N/A | BU126: N/A | BV126: N/A | BW126: N/A | BX126: N/A | BY126: N/A | BZ126: N/A
B127: Open defecation | C127: =C156 -> 56.24691742 | D127: =D156 -> 41.87470134 | E127: 26.25104295 | F127: 6.056943426 | G127: 0.2240416903 | H127: 10.69673444 | I127: 5.990574581 | J127: 0.4920466093 | K127: 0.4235271708 | L127: 0 | M127: 56.24691742 | N127: 56.24691742 | O127: 41.87470134 | P127: 34.05153431 | Q127: 11.35256408 | R127: 24.33090024 | S127: 3.665893271 | T127: 53.78203792 | U127: 20.17513135 | V127: 3.620474407 | W127: 21.6261177 | X127: 12.90267598 | Y127: 56.08938547 | Z127: 69.59295261 | BB127: Open defecation | BC127: N/A | BD127: N/A | BE127: N/A | BF127: N/A | BG127: N/A | BH127: N/A | BI127: N/A | BJ127: N/A | BK127: N/A | BL127: N/A | BM127: N/A | BN127: N/A | BO127: N/A | BP127: N/A | BQ127: N/A | BR127: N/A | BS127: N/A | BT127: N/A | BU127: N/A | BV127: N/A | BW127: N/A | BX127: N/A | BY127: N/A | BZ127: N/A
A128: Shared among Improved Sanitation | B128: Yes | C128: N/A | D128: N/A | E128: N/A | F128: N/A | G128: N/A | H128: N/A | I128: N/A | J128: N/A | K128: N/A | L128: N/A | M128: N/A | N128: N/A | O128: N/A | P128: N/A | Q128: N/A | R128: N/A | S128: N/A | T128: N/A | U128: N/A | V128: N/A | W128: N/A | X128: N/A | Y128: N/A | Z128: N/A | BA128: Shared among improved sanitation facilities | BB128: Yes | BC128: N/A | BD128: N/A | BE128: N/A | BF128: N/A | BG128: N/A | BH128: N/A | BI128: N/A | BJ128: N/A | BK128: N/A | BL128: N/A | BM128: N/A | BN128: N/A | BO128: N/A | BP128: N/A | BQ128: N/A | BR128: N/A | BS128: N/A | BT128: N/A | BU128: N/A | BV128: N/A | BW128: N/A | BX128: N/A | BY128: N/A | BZ128: N/A
B129: No | C129: N/A | D129: N/A | E129: N/A | F129: N/A | G129: N/A | H129: N/A | I129: N/A | J129: N/A | K129: N/A | L129: N/A | M129: N/A | N129: N/A | O129: N/A | P129: N/A | Q129: N/A | R129: N/A | S129: N/A | T129: N/A | U129: N/A | V129: N/A | W129: N/A | X129: N/A | Y129: N/A | Z129: N/A | BB129: No | BC129: N/A | BD129: N/A | BE129: N/A | BF129: N/A | BG129: N/A | BH129: N/A | BI129: N/A | BJ129: N/A | BK129: N/A | BL129: N/A | BM129: N/A | BN129: N/A | BO129: N/A | BP129: N/A | BQ129: N/A | BR129: N/A | BS129: N/A | BT129: N/A | BU129: N/A | BV129: N/A | BW129: N/A | BX129: N/A | BY129: N/A | BZ129: N/A
A130: Manually calculated ratios | B130: Improved latrines
B131: Other
B132: Other
C133: NATIONAL wealth index quintile | H133: URBAN wealth index quintile | M133: RURAL wealth index quintile | R133: SUB-REGIONS: | BA133: Raw numbers of respondents: | BB133: Use of sanitation facilities | BC133: NATIONAL wealth index quintile | BH133: URBAN wealth index quintile | BM133: RURAL wealth index quintile | BR133: SUB-REGIONS:
A134: Percentage based on weighted population | C134: Poorest | D134: Poor | E134: Middle | F134: Rich | G134: Richest | H134: Poorest | I134: Poor | J134: Middle | K134: Rich | L134: Richest | M134: Poorest | N134: Poor | O134: Middle | P134: Rich | Q134: Richest | R134: Central | S134: Copperbelt | T134: Eastern | U134: Luapula | V134: Lusaka | W134: North-Western | X134: Northern | Y134: Southern | Z134: Western | BA134: Sanitation data, raw numbers (weighted) | BC134: Poorest | BD134: Poor | BE134: Middle | BF134: Rich | BG134: Richest | BH134: Poorest | BI134: Poor | BJ134: Middle | BK134: Rich | BL134: Richest | BM134: Poorest | BN134: Poor | BO134: Middle | BP134: Rich | BQ134: Richest | BR134: Central | BS134: Copperbelt | BT134: Eastern | BU134: Luapula | BV134: Lusaka | BW134: North-Western | BX134: Northern | BY134: Southern | BZ134: Western
A135: Sanitation type | B135: Sewer connection | C135: N/A | D135: N/A | E135: N/A | F135: N/A | G135: N/A | H135: N/A | I135: N/A | J135: N/A | K135: N/A | L135: N/A | M135: N/A | N135: N/A | O135: N/A | P135: N/A | Q135: N/A | R135: N/A | S135: N/A | T135: N/A | U135: N/A | V135: N/A | W135: N/A | X135: N/A | Y135: N/A | Z135: N/A | BA135: Sanitation type | BB135: Sewer connection | BC135: N/A | BD135: N/A | BE135: N/A | BF135: N/A | BG135: N/A | BH135: N/A | BI135: N/A | BJ135: N/A | BK135: N/A | BL135: N/A | BM135: N/A | BN135: N/A | BO135: N/A | BP135: N/A | BQ135: N/A | BR135: N/A | BS135: N/A | BT135: N/A | BU135: N/A | BV135: N/A | BW135: N/A | BX135: N/A | BY135: N/A | BZ135: N/A
B136: Septic tank connection | C136: N/A | D136: N/A | E136: N/A | F136: N/A | G136: N/A | H136: N/A | I136: N/A | J136: N/A | K136: N/A | L136: N/A | M136: N/A | N136: N/A | O136: N/A | P136: N/A | Q136: N/A | R136: N/A | S136: N/A | T136: N/A | U136: N/A | V136: N/A | W136: N/A | X136: N/A | Y136: N/A | Z136: N/A | BB136: Septic tank connection | BC136: N/A | BD136: N/A | BE136: N/A | BF136: N/A | BG136: N/A | BH136: N/A | BI136: N/A | BJ136: N/A | BK136: N/A | BL136: N/A | BM136: N/A | BN136: N/A | BO136: N/A | BP136: N/A | BQ136: N/A | BR136: N/A | BS136: N/A | BT136: N/A | BU136: N/A | BV136: N/A | BW136: N/A | BX136: N/A | BY136: N/A | BZ136: N/A
B137: Improved latrines | C137: N/A | D137: N/A | E137: N/A | F137: N/A | G137: N/A | H137: N/A | I137: N/A | J137: N/A | K137: N/A | L137: N/A | M137: N/A | N137: N/A | O137: N/A | P137: N/A | Q137: N/A | R137: N/A | S137: N/A | T137: N/A | U137: N/A | V137: N/A | W137: N/A | X137: N/A | Y137: N/A | Z137: N/A | BB137: Improved latrines | BC137: N/A | BD137: N/A | BE137: N/A | BF137: N/A | BG137: N/A | BH137: N/A | BI137: N/A | BJ137: N/A | BK137: N/A | BL137: N/A | BM137: N/A | BN137: N/A | BO137: N/A | BP137: N/A | BQ137: N/A | BR137: N/A | BS137: N/A | BT137: N/A | BU137: N/A | BV137: N/A | BW137: N/A | BX137: N/A | BY137: N/A | BZ137: N/A
B138: Unimproved facilities | C138: N/A | D138: N/A | E138: N/A | F138: N/A | G138: N/A | H138: N/A | I138: N/A | J138: N/A | K138: N/A | L138: N/A | M138: N/A | N138: N/A | O138: N/A | P138: N/A | Q138: N/A | R138: N/A | S138: N/A | T138: N/A | U138: N/A | V138: N/A | W138: N/A | X138: N/A | Y138: N/A | Z138: N/A | BB138: Unimproved facilities | BC138: N/A | BD138: N/A | BE138: N/A | BF138: N/A | BG138: N/A | BH138: N/A | BI138: N/A | BJ138: N/A | BK138: N/A | BL138: N/A | BM138: N/A | BN138: N/A | BO138: N/A | BP138: N/A | BQ138: N/A | BR138: N/A | BS138: N/A | BT138: N/A | BU138: N/A | BV138: N/A | BW138: N/A | BX138: N/A | BY138: N/A | BZ138: N/A
B139: Open defecation | C139: 56.23006775 | D139: 41.87162178 | E139: 26.23100105 | F139: 6.025035516 | G139: 0.2236046572 | H139: 10.69673444 | I139: 5.96132061 | J139: 0.4839227965 | K139: 0.4235271708 | L139: 0 | M139: 56.23006775 | N139: =M139 -> 56.23006775 | O139: 41.87162178 | P139: 34.0099822 | Q139: 11.35072171 | R139: 24.33090024 | S139: 3.643071247 | T139: 53.72606162 | U139: 20.12578616 | V139: 3.618667332 | W139: 21.58124092 | X139: 12.90267598 | Y139: 56.08938547 | Z139: 69.59295261 | BB139: Open defecation | BC139: N/A | BD139: N/A | BE139: N/A | BF139: N/A | BG139: N/A | BH139: N/A | BI139: N/A | BJ139: N/A | BK139: N/A | BL139: N/A | BM139: N/A | BN139: N/A | BO139: N/A | BP139: N/A | BQ139: N/A | BR139: N/A | BS139: N/A | BT139: N/A | BU139: N/A | BV139: N/A | BW139: N/A | BX139: N/A | BY139: N/A | BZ139: N/A
A140: Septic tank emptying practices | B140: Not emptied/treated and disposed in situ | C140: N/A | D140: N/A | E140: N/A | F140: N/A | G140: N/A | H140: N/A | I140: N/A | J140: N/A | K140: N/A | L140: N/A | M140: N/A | N140: N/A | O140: N/A | P140: N/A | Q140: N/A | R140: N/A | S140: N/A | T140: N/A | U140: N/A | V140: N/A | W140: N/A | X140: N/A | Y140: N/A | Z140: N/A | BA140: Septic tank emptying practices | BB140: Not emptied/treated and disposed in situ | BC140: N/A | BD140: N/A | BE140: N/A | BF140: N/A | BG140: N/A | BH140: N/A | BI140: N/A | BJ140: N/A | BK140: N/A | BL140: N/A | BM140: N/A | BN140: N/A | BO140: N/A | BP140: N/A | BQ140: N/A | BR140: N/A | BS140: N/A | BT140: N/A | BU140: N/A | BV140: N/A | BW140: N/A | BX140: N/A | BY140: N/A | BZ140: N/A
B141: Emptied and buried on site | C141: N/A | D141: N/A | E141: N/A | F141: N/A | G141: N/A | H141: N/A | I141: N/A | J141: N/A | K141: N/A | L141: N/A | M141: N/A | N141: N/A | O141: N/A | P141: N/A | Q141: N/A | R141: N/A | S141: N/A | T141: N/A | U141: N/A | V141: N/A | W141: N/A | X141: N/A | Y141: N/A | Z141: N/A | BB141: Emptied and buried on site | BC141: N/A | BD141: N/A | BE141: N/A | BF141: N/A | BG141: N/A | BH141: N/A | BI141: N/A | BJ141: N/A | BK141: N/A | BL141: N/A | BM141: N/A | BN141: N/A | BO141: N/A | BP141: N/A | BQ141: N/A | BR141: N/A | BS141: N/A | BT141: N/A | BU141: N/A | BV141: N/A | BW141: N/A | BX141: N/A | BY141: N/A | BZ141: N/A
B142: Emptied and discharged locally | C142: N/A | D142: N/A | E142: N/A | F142: N/A | G142: N/A | H142: N/A | I142: N/A | J142: N/A | K142: N/A | L142: N/A | M142: N/A | N142: N/A | O142: N/A | P142: N/A | Q142: N/A | R142: N/A | S142: N/A | T142: N/A | U142: N/A | V142: N/A | W142: N/A | X142: N/A | Y142: N/A | Z142: N/A | BB142: Emptied and discharged locally | BC142: N/A | BD142: N/A | BE142: N/A | BF142: N/A | BG142: N/A | BH142: N/A | BI142: N/A | BJ142: N/A | BK142: N/A | BL142: N/A | BM142: N/A | BN142: N/A | BO142: N/A | BP142: N/A | BQ142: N/A | BR142: N/A | BS142: N/A | BT142: N/A | BU142: N/A | BV142: N/A | BW142: N/A | BX142: N/A | BY142: N/A | BZ142: N/A
B143: Emptied and removed offsite | C143: N/A | D143: N/A | E143: N/A | F143: N/A | G143: N/A | H143: N/A | I143: N/A | J143: N/A | K143: N/A | L143: N/A | M143: N/A | N143: N/A | O143: N/A | P143: N/A | Q143: N/A | R143: N/A | S143: N/A | T143: N/A | U143: N/A | V143: N/A | W143: N/A | X143: N/A | Y143: N/A | Z143: N/A | BB143: Emptied and removed offsite | BC143: N/A | BD143: N/A | BE143: N/A | BF143: N/A | BG143: N/A | BH143: N/A | BI143: N/A | BJ143: N/A | BK143: N/A | BL143: N/A | BM143: N/A | BN143: N/A | BO143: N/A | BP143: N/A | BQ143: N/A | BR143: N/A | BS143: N/A | BT143: N/A | BU143: N/A | BV143: N/A | BW143: N/A | BX143: N/A | BY143: N/A | BZ143: N/A
A144: Latrine emptying practices | B144: Not emptied/treated and disposed in situ | C144: N/A | D144: N/A | E144: N/A | F144: N/A | G144: N/A | H144: N/A | I144: N/A | J144: N/A | K144: N/A | L144: N/A | M144: N/A | N144: N/A | O144: N/A | P144: N/A | Q144: N/A | R144: N/A | S144: N/A | T144: N/A | U144: N/A | V144: N/A | W144: N/A | X144: N/A | Y144: N/A | Z144: N/A | BA144: Latrine emptying practices | BB144: Not emptied/treated and disposed in situ | BC144: N/A | BD144: N/A | BE144: N/A | BF144: N/A | BG144: N/A | BH144: N/A | BI144: N/A | BJ144: N/A | BK144: N/A | BL144: N/A | BM144: N/A | BN144: N/A | BO144: N/A | BP144: N/A | BQ144: N/A | BR144: N/A | BS144: N/A | BT144: N/A | BU144: N/A | BV144: N/A | BW144: N/A | BX144: N/A | BY144: N/A | BZ144: N/A
B145: Emptied and buried on site | C145: N/A | D145: N/A | E145: N/A | F145: N/A | G145: N/A | H145: N/A | I145: N/A | J145: N/A | K145: N/A | L145: N/A | M145: N/A | N145: N/A | O145: N/A | P145: N/A | Q145: N/A | R145: N/A | S145: N/A | T145: N/A | U145: N/A | V145: N/A | W145: N/A | X145: N/A | Y145: N/A | Z145: N/A | BB145: Emptied and buried on site | BC145: N/A | BD145: N/A | BE145: N/A | BF145: N/A | BG145: N/A | BH145: N/A | BI145: N/A | BJ145: N/A | BK145: N/A | BL145: N/A | BM145: N/A | BN145: N/A | BO145: N/A | BP145: N/A | BQ145: N/A | BR145: N/A | BS145: N/A | BT145: N/A | BU145: N/A | BV145: N/A | BW145: N/A | BX145: N/A | BY145: N/A | BZ145: N/A
B146: Emptied and discharged locally | C146: N/A | D146: N/A | E146: N/A | F146: N/A | G146: N/A | H146: N/A | I146: N/A | J146: N/A | K146: N/A | L146: N/A | M146: N/A | N146: N/A | O146: N/A | P146: N/A | Q146: N/A | R146: N/A | S146: N/A | T146: N/A | U146: N/A | V146: N/A | W146: N/A | X146: N/A | Y146: N/A | Z146: N/A | BB146: Emptied and discharged locally | BC146: N/A | BD146: N/A | BE146: N/A | BF146: N/A | BG146: N/A | BH146: N/A | BI146: N/A | BJ146: N/A | BK146: N/A | BL146: N/A | BM146: N/A | BN146: N/A | BO146: N/A | BP146: N/A | BQ146: N/A | BR146: N/A | BS146: N/A | BT146: N/A | BU146: N/A | BV146: N/A | BW146: N/A | BX146: N/A | BY146: N/A | BZ146: N/A
B147: Emptied and removed offsite | C147: N/A | D147: N/A | E147: N/A | F147: N/A | G147: N/A | H147: N/A | I147: N/A | J147: N/A | K147: N/A | L147: N/A | M147: N/A | N147: N/A | O147: N/A | P147: N/A | Q147: N/A | R147: N/A | S147: N/A | T147: N/A | U147: N/A | V147: N/A | W147: N/A | X147: N/A | Y147: N/A | Z147: N/A | BB147: Emptied and removed offsite | BC147: N/A | BD147: N/A | BE147: N/A | BF147: N/A | BG147: N/A | BH147: N/A | BI147: N/A | BJ147: N/A | BK147: N/A | BL147: N/A | BM147: N/A | BN147: N/A | BO147: N/A | BP147: N/A | BQ147: N/A | BR147: N/A | BS147: N/A | BT147: N/A | BU147: N/A | BV147: N/A | BW147: N/A | BX147: N/A | BY147: N/A | BZ147: N/A
A148: Shared among improved sanitation facilities | B148: Yes | C148: N/A | D148: N/A | E148: N/A | F148: N/A | G148: N/A | H148: N/A | I148: N/A | J148: N/A | K148: N/A | L148: N/A | M148: N/A | N148: N/A | O148: N/A | P148: N/A | Q148: N/A | R148: N/A | S148: N/A | T148: N/A | U148: N/A | V148: N/A | W148: N/A | X148: N/A | Y148: N/A | Z148: N/A | BA148: Shared among improved sanitation facilities | BB148: Yes | BC148: N/A | BD148: N/A | BE148: N/A | BF148: N/A | BG148: N/A | BH148: N/A | BI148: N/A | BJ148: N/A | BK148: N/A | BL148: N/A | BM148: N/A | BN148: N/A | BO148: N/A | BP148: N/A | BQ148: N/A | BR148: N/A | BS148: N/A | BT148: N/A | BU148: N/A | BV148: N/A | BW148: N/A | BX148: N/A | BY148: N/A | BZ148: N/A
B149: No | C149: N/A | D149: N/A | E149: N/A | F149: N/A | G149: N/A | H149: N/A | I149: N/A | J149: N/A | K149: N/A | L149: N/A | M149: N/A | N149: N/A | O149: N/A | P149: N/A | Q149: N/A | R149: N/A | S149: N/A | T149: N/A | U149: N/A | V149: N/A | W149: N/A | X149: N/A | Y149: N/A | Z149: N/A | BB149: No | BC149: N/A | BD149: N/A | BE149: N/A | BF149: N/A | BG149: N/A | BH149: N/A | BI149: N/A | BJ149: N/A | BK149: N/A | BL149: N/A | BM149: N/A | BN149: N/A | BO149: N/A | BP149: N/A | BQ149: N/A | BR149: N/A | BS149: N/A | BT149: N/A | BU149: N/A | BV149: N/A | BW149: N/A | BX149: N/A | BY149: N/A | BZ149: N/A
B150: DK/missing | C150: N/A | D150: N/A | E150: N/A | F150: N/A | G150: N/A | H150: N/A | I150: N/A | J150: N/A | K150: N/A | L150: N/A | M150: N/A | N150: N/A | O150: N/A | P150: N/A | Q150: N/A | R150: N/A | S150: N/A | T150: N/A | U150: N/A | V150: N/A | W150: N/A | X150: N/A | Y150: N/A | Z150: N/A | BB150: DK/missing | BC150: N/A | BD150: N/A | BE150: N/A | BF150: N/A | BG150: N/A | BH150: N/A | BI150: N/A | BJ150: N/A | BK150: N/A | BL150: N/A | BM150: N/A | BN150: N/A | BO150: N/A | BP150: N/A | BQ150: N/A | BR150: N/A | BS150: N/A | BT150: N/A | BU150: N/A | BV150: N/A | BW150: N/A | BX150: N/A | BY150: N/A | BZ150: N/A
A151: Shared among all sanitation facilities | B151: Yes | C151: 14.49290703 | D151: 17.67627485 | E151: 27.70830222 | F151: 47.32603787 | G151: 26.96341647 | H151: 56.98519611 | I151: 49.81058653 | J151: 43.25286874 | K151: 37.42873679 | L151: 14.85863814 | M151: 14.49290703 | N151: 14.49290703 | O151: 17.67627485 | P151: 21.23784063 | Q151: 27.57474943 | R151: 14.66489715 | S151: 31.08139267 | T151: 19.2131557 | U151: 18.62334032 | V151: 59.72048914 | W151: 28.24237394 | X151: 25.60081814 | Y151: 14.63687151 | Z151: 10.35844471 | BA151: Shared among all sanitation facilities | BB151: Yes | BC151: N/A | BD151: N/A | BE151: N/A | BF151: N/A | BG151: N/A | BH151: N/A | BI151: N/A | BJ151: N/A | BK151: N/A | BL151: N/A | BM151: N/A | BN151: N/A | BO151: N/A | BP151: N/A | BQ151: N/A | BR151: N/A | BS151: N/A | BT151: N/A | BU151: N/A | BV151: N/A | BW151: N/A | BX151: N/A | BY151: N/A | BZ151: N/A
B152: No | C152: 85.50709297 | D152: 82.32372515 | E152: 72.29169778 | F152: 52.67396213 | G152: 73.03658353 | H152: 43.01480389 | I152: 50.18941347 | J152: 56.74713126 | K152: 62.57126321 | L152: 85.14136186 | M152: 85.50709297 | N152: 85.50709297 | O152: 82.32372515 | P152: 78.76215937 | Q152: 72.42525057 | R152: 85.33510285 | S152: 68.91860733 | T152: 80.7868443 | U152: 81.37665968 | V152: 40.27951086 | W152: 71.75762606 | X152: 74.39918186 | Y152: 85.36312849 | Z152: 89.64155529 | BB152: No | BC152: N/A | BD152: N/A | BE152: N/A | BF152: N/A | BG152: N/A | BH152: N/A | BI152: N/A | BJ152: N/A | BK152: N/A | BL152: N/A | BM152: N/A | BN152: N/A | BO152: N/A | BP152: N/A | BQ152: N/A | BR152: N/A | BS152: N/A | BT152: N/A | BU152: N/A | BV152: N/A | BW152: N/A | BX152: N/A | BY152: N/A | BZ152: N/A
A153: Type of toilet facility | B153: Flush toilet | C153: 0.3380244985 | D153: 0.4687559385 | E153: 1.458639234 | F153: 17.05857992 | G153: 72.25210608 | H153: 12.54895214 | I153: 18.05115761 | J153: 43.48061087 | K153: 70.12998807 | L153: 89.1508874 | M153: 0.3380244985 | N153: 0.3380244985 | O153: 0.4687559385 | P153: 0.7212893087 | Q153: 8.544622295 | R153: 10.70559611 | S153: 63.03944316 | T153: 5.334444676 | U153: 0.0700525394 | V153: 19.60049938 | W153: 2.53690996 | X153: 8.300664735 | Y153: 7.709497207 | Z153: 1.093560146 | BA153: Type of toilet facility | BB153: Flush toilet | BC153: 32.430498 | BD153: 26.176272 | BE153: 114.564364 | BF153: 1277.232991 | BG153: 5511.193886 | BH153: 435.440102 | BI153: 361.790025 | BJ153: 1158.4086 | BK153: 1645.735112 | BL153: 2838.624864 | BM153: 32.430498 | BN153: 0 | BO153: 26.176272 | BP153: 30.578824 | BQ153: 432.413714 | BR153: 314.010488 | BS153: 4500.65616 | BT153: 265.196544 | BU153: 2.069728 | BV153: 1017.122145 | BW153: 50.10601 | BX153: 447.077688 | BY153: 328.91886 | BZ153: 36.440388
B154: Traditional pit latrine | C154: 42.77738804 | D154: 57.44313079 | E154: 71.18352521 | F154: 73.04932762 | G154: 25.32762567 | H154: 75.12629527 | I154: 71.9309715 | J154: 54.04787084 | K154: 26.65285776 | L154: 9.266220991 | M154: 42.77738804 | N154: 42.77738804 | O154: 57.44313079 | P154: 64.33581554 | Q154: 76.1920537 | R154: 63.41517363 | S154: 33.06264501 | T154: 39.29985414 | U154: 79.29947461 | V154: 70.86142322 | W154: 75.64982325 | X154: 78.02965741 | Y154: 33.65921788 | Z154: 29.31348724 | BB154: Traditional pit latrine | BC154: 4104.116724 | BD154: 3207.739663 | BE154: 5590.892595 | BF154: 5469.447729 | BG154: 1931.922311 | BH154: 2606.831336 | BI154: 1441.675295 | BJ154: 1439.941094 | BK154: 625.460592 | BL154: 295.042776 | BM154: 4104.116724 | BN154: 0 | BO154: 3207.739663 | BP154: 2727.495828 | BQ154: 3855.815714 | BR154: 1860.057994 | BS154: 2360.484 | BT154: 1953.752664 | BU154: 2342.932096 | BV154: 3677.188086 | BW154: 1494.14479 | BX154: 4202.713872 | BY154: 1436.040675 | BZ154: 976.804845
B155: VIP | C155: 0.6376700471 | D155: 0.2134119245 | E155: 1.106792604 | F155: 3.729492128 | G155: 2.101159349 | H155: 1.568309538 | I155: 3.897814948 | J155: 1.857712236 | K155: 2.484618972 | L155: 1.58289161 | M155: 0.6376700471 | N155: 0.6376700471 | O155: 0.2134119245 | P155: 0.8913608432 | Q155: 3.910759926 | R155: 1.349259013 | S155: 0.2320185615 | T155: 1.396124193 | U155: 0.4553415061 | V155: 5.917602996 | W155: 0.1871490954 | X155: 0.7670018749 | Y155: 2.541899441 | Z155: 0 | BB155: VIP | BC155: 61.178871 | BD155: 11.91735 | BE155: 86.929645 | BF155: 279.239562 | BG155: 160.270713 | BH155: 54.419274 | BI155: 78.121891 | BJ155: 49.493091 | BK155: 58.306365 | BL155: 50.400345 | BM155: 61.178871 | BN155: 0 | BO155: 11.91735 | BP155: 37.788951 | BQ155: 197.910003 | BR155: 39.575702 | BS155: 16.5648 | BT155: 69.406908 | BU155: 13.453232 | BV155: 307.080189 | BW155: 3.696345 | BX155: 41.31108 | BY155: 108.447885 | BZ155: 0
B156: No facility/Bush/Field | C156: 56.24691742 | D156: 41.87470134 | E156: 26.25104295 | F156: 6.056943426 | G156: 0.2240416903 | H156: 10.69673444 | I156: 5.990574581 | J156: 0.4920466093 | K156: 0.4235271708 | L156: 0 | M156: 56.24691742 | N156: 56.24691742 | O156: 41.87470134 | P156: 34.05153431 | Q156: 11.35256408 | R156: 24.33090024 | S156: 3.665893271 | T156: 53.78203792 | U156: 20.17513135 | V156: 3.620474407 | W156: 21.6261177 | X156: 12.90267598 | Y156: 56.08938547 | Z156: 69.59295261 | BB156: No facility/Bush/Field | BC156: 5396.400412 | BD156: 2338.36733 | BE156: 2061.807999 | BF156: 453.503633 | BG156: 17.08929 | BH156: 371.169408 | BI156: 120.065991 | BJ156: 13.109085 | BK156: 9.93888 | BL156: 0 | BM156: 5396.400412 | BN156: 0 | BO156: 2338.36733 | BP156: 1443.603644 | BQ156: 574.513914 | BR156: 713.6602 | BS156: 261.72384 | BT156: 2673.719844 | BU156: 596.081664 | BV156: 187.876065 | BW156: 427.1332 | BX156: 694.944168 | BY156: 2393.00388 | BZ156: 2319.025803
B157: OTHER | C157: 0 | D157: 0 | E157: 0 | F157: 0.1056569021 | G157: 0.09506721157 | H157: 0.05970860579 | I157: 0.1294813602 | J157: 0.1217594452 | K157: 0.3090080297 | L157: 0 | M157: 0 | N157: 0 | O157: 0 | P157: 0 | Q157: 0 | R157: 0.199071002 | S157: 0 | T157: 0.1875390706 | U157: 0 | V157: 0 | W157: 0 | X157: 0 | Y157: 0 | Z157: 0 | BB157: OTHER | BC157: 0 | BD157: 0 | BE157: 0 | BF157: 7.910886 | BG157: 7.251468 | BH157: 2.071848 | BI157: 2.595128 | BJ157: 3.24391 | BK157: 7.251468 | BL157: 0 | BM157: 0 | BN157: 0 | BO157: 0 | BP157: 0 | BQ157: 0 | BR157: 5.839038 | BS157: 0 | BT157: 9.323316 | BU157: 0 | BV157: 0 | BW157: 0 | BX157: 0 | BY157: 0 | BZ157: 0
BB158: Total | BC158: 9594.126505 | BD158: 5584.200615 | BE158: 7854.194603 | BF158: 7487.334801 | BG158: 7627.727668 | BH158: 3469.931968 | BI158: 2004.24833 | BJ158: 2664.19578 | BK158: 2346.692417 | BL158: 3184.067985 | BM158: 9594.126505 | BN158: 0 | BO158: 5584.200615 | BP158: 4239.467247 | BQ158: 5060.653345 | BR158: 2933.143422 | BS158: 7139.4288 | BT158: 4971.399276 | BU158: 2954.53672 | BV158: 5189.266485 | BW158: 1975.080345 | BX158: 5386.046808 | BY158: 4266.4113 | BZ158: 3332.271036
A208: =A1026 -> Zambia
A209: =A1034 -> 2002
A210: Access to hygiene facilities
A211: by wealth quintile and sub-national region
A212: Notes:
A213: WHO/UNICEF JMP customised wealth index excludes water,
A214: sanitation and hygiene assets.
A215: Survey used for analysis: | B215: =A1025 -> DHS02
A220: Access to handwashing | C220: NATIONAL wealth index quintile | H220: URBAN wealth index quintile | M220: RURAL wealth index quintile | R220: SUB-REGIONS: | BA220: Raw numbers of respondents: | BB220: Access to handwashing | BC220: NATIONAL wealth index quintile | BH220: URBAN wealth index quintile | BM220: RURAL wealth index quintile | BR220: SUB-REGIONS:
A221: Weighted percentage (used in graphs) | C221: Poorest | D221: Poor | E221: Middle | F221: Rich | G221: Richest | H221: Poorest | I221: Poor | J221: Middle | K221: Rich | L221: Richest | M221: Poorest | N221: Poor | O221: Middle | P221: Rich | Q221: Richest | R221: Central | S221: Copperbelt | T221: Eastern | U221: Luapula | V221: Lusaka | W221: North-Western | X221: Northern | Y221: Southern | Z221: Western | BA221: Hygiene data, raw numbers (weighted) | BC221: Poorest | BD221: Poor | BE221: Middle | BF221: Rich | BG221: Richest | BH221: Poorest | BI221: Poor | BJ221: Middle | BK221: Rich | BL221: Richest | BM221: Poorest | BN221: Poor | BO221: Middle | BP221: Rich | BQ221: Richest | BR221: Central | BS221: Copperbelt | BT221: Eastern | BU221: Luapula | BV221: Lusaka | BW221: North-Western | BX221: Northern | BY221: Southern | BZ221: Western
A222: Hygiene ladder | B222: Basic | C222: N/A | D222: N/A | E222: N/A | F222: N/A | G222: N/A | H222: N/A | I222: N/A | J222: N/A | K222: N/A | L222: N/A | M222: N/A | N222: N/A | O222: N/A | P222: N/A | Q222: N/A | R222: N/A | S222: N/A | T222: N/A | U222: N/A | V222: N/A | W222: N/A | X222: N/A | Y222: N/A | Z222: N/A | BA222: Hygiene ladder | BB222: Basic | BC222: N/A | BD222: N/A | BE222: N/A | BF222: N/A | BG222: N/A | BH222: N/A | BI222: N/A | BJ222: N/A | BK222: N/A | BL222: N/A | BM222: N/A | BN222: N/A | BO222: N/A | BP222: N/A | BQ222: N/A | BR222: N/A | BS222: N/A | BT222: N/A | BU222: N/A | BV222: N/A | BW222: N/A | BX222: N/A | BY222: N/A | BZ222: N/A
B223: Limited | C223: N/A | D223: N/A | E223: N/A | F223: N/A | G223: N/A | H223: N/A | I223: N/A | J223: N/A | K223: N/A | L223: N/A | M223: N/A | N223: N/A | O223: N/A | P223: N/A | Q223: N/A | R223: N/A | S223: N/A | T223: N/A | U223: N/A | V223: N/A | W223: N/A | X223: N/A | Y223: N/A | Z223: N/A | BB223: Limited | BC223: N/A | BD223: N/A | BE223: N/A | BF223: N/A | BG223: N/A | BH223: N/A | BI223: N/A | BJ223: N/A | BK223: N/A | BL223: N/A | BM223: N/A | BN223: N/A | BO223: N/A | BP223: N/A | BQ223: N/A | BR223: N/A | BS223: N/A | BT223: N/A | BU223: N/A | BV223: N/A | BW223: N/A | BX223: N/A | BY223: N/A | BZ223: N/A
B224: No facility | C224: N/A | D224: N/A | E224: N/A | F224: N/A | G224: N/A | H224: N/A | I224: N/A | J224: N/A | K224: N/A | L224: N/A | M224: N/A | N224: N/A | O224: N/A | P224: N/A | Q224: N/A | R224: N/A | S224: N/A | T224: N/A | U224: N/A | V224: N/A | W224: N/A | X224: N/A | Y224: N/A | Z224: N/A | BB224: No facility | BC224: N/A | BD224: N/A | BE224: N/A | BF224: N/A | BG224: N/A | BH224: N/A | BI224: N/A | BJ224: N/A | BK224: N/A | BL224: N/A | BM224: N/A | BN224: N/A | BO224: N/A | BP224: N/A | BQ224: N/A | BR224: N/A | BS224: N/A | BT224: N/A | BU224: N/A | BV224: N/A | BW224: N/A | BX224: N/A | BY224: N/A | BZ224: N/A
BA225: Observed handwashing place | BB225: Fixed | BC225: N/A | BD225: N/A | BE225: N/A | BF225: N/A | BG225: N/A | BH225: N/A | BI225: N/A | BJ225: N/A | BK225: N/A | BL225: N/A | BM225: N/A | BN225: N/A | BO225: N/A | BP225: N/A | BQ225: N/A | BR225: N/A | BS225: N/A | BT225: N/A | BU225: N/A | BV225: N/A | BW225: N/A | BX225: N/A | BY225: N/A | BZ225: N/A
BB226: Mobile | BC226: N/A | BD226: N/A | BE226: N/A | BF226: N/A | BG226: N/A | BH226: N/A | BI226: N/A | BJ226: N/A | BK226: N/A | BL226: N/A | BM226: N/A | BN226: N/A | BO226: N/A | BP226: N/A | BQ226: N/A | BR226: N/A | BS226: N/A | BT226: N/A | BU226: N/A | BV226: N/A | BW226: N/A | BX226: N/A | BY226: N/A | BZ226: N/A
BA227: Water / Soap | BB227: Water and soap | BC227: N/A | BD227: N/A | BE227: N/A | BF227: N/A | BG227: N/A | BH227: N/A | BI227: N/A | BJ227: N/A | BK227: N/A | BL227: N/A | BM227: N/A | BN227: N/A | BO227: N/A | BP227: N/A | BQ227: N/A | BR227: N/A | BS227: N/A | BT227: N/A | BU227: N/A | BV227: N/A | BW227: N/A | BX227: N/A | BY227: N/A | BZ227: N/A
BB228: Water only | BC228: N/A | BD228: N/A | BE228: N/A | BF228: N/A | BG228: N/A | BH228: N/A | BI228: N/A | BJ228: N/A | BK228: N/A | BL228: N/A | BM228: N/A | BN228: N/A | BO228: N/A | BP228: N/A | BQ228: N/A | BR228: N/A | BS228: N/A | BT228: N/A | BU228: N/A | BV228: N/A | BW228: N/A | BX228: N/A | BY228: N/A | BZ228: N/A
BB229: Soap only | BC229: N/A | BD229: N/A | BE229: N/A | BF229: N/A | BG229: N/A | BH229: N/A | BI229: N/A | BJ229: N/A | BK229: N/A | BL229: N/A | BM229: N/A | BN229: N/A | BO229: N/A | BP229: N/A | BQ229: N/A | BR229: N/A | BS229: N/A | BT229: N/A | BU229: N/A | BV229: N/A | BW229: N/A | BX229: N/A | BY229: N/A | BZ229: N/A
BB230: Neither | BC230: N/A | BD230: N/A | BE230: N/A | BF230: N/A | BG230: N/A | BH230: N/A | BI230: N/A | BJ230: N/A | BK230: N/A | BL230: N/A | BM230: N/A | BN230: N/A | BO230: N/A | BP230: N/A | BQ230: N/A | BR230: N/A | BS230: N/A | BT230: N/A | BU230: N/A | BV230: N/A | BW230: N/A | BX230: N/A | BY230: N/A | BZ230: N/A
BA259: Raw numbers of respondents: | BB259: Menstrual health and hygiene | BC259: NATIONAL wealth index quintile | BH259: URBAN wealth index quintile | BM259: RURAL wealth index quintile | BR259: SUB-REGIONS:
BA260: MHH data, raw numbers (weighted) | BC260: Poorest | BD260: Poor | BE260: Middle | BF260: Rich | BG260: Richest | BH260: Poorest | BI260: Poor | BJ260: Middle | BK260: Rich | BL260: Richest | BM260: Poorest | BN260: Poor | BO260: Middle | BP260: Rich | BQ260: Richest | BR260: Central | BS260: Copperbelt | BT260: Eastern | BU260: Luapula | BV260: Lusaka | BW260: North-Western | BX260: Northern | BY260: Southern | BZ260: Western
BA261: Private place to wash and change | BB261: Yes | BC261: N/A | BD261: N/A | BE261: N/A | BF261: N/A | BG261: N/A | BH261: N/A | BI261: N/A | BJ261: N/A | BK261: N/A | BL261: N/A | BM261: N/A | BN261: N/A | BO261: N/A | BP261: N/A | BQ261: N/A | BR261: N/A | BS261: N/A | BT261: N/A | BU261: N/A | BV261: N/A | BW261: N/A | BX261: N/A | BY261: N/A | BZ261: N/A
BB262: No | BC262: N/A | BD262: N/A | BE262: N/A | BF262: N/A | BG262: N/A | BH262: N/A | BI262: N/A | BJ262: N/A | BK262: N/A | BL262: N/A | BM262: N/A | BN262: N/A | BO262: N/A | BP262: N/A | BQ262: N/A | BR262: N/A | BS262: N/A | BT262: N/A | BU262: N/A | BV262: N/A | BW262: N/A | BX262: N/A | BY262: N/A | BZ262: N/A
BB263: DK/not sure/missing | BC263: N/A | BD263: N/A | BE263: N/A | BF263: N/A | BG263: N/A | BH263: N/A | BI263: N/A | BJ263: N/A | BK263: N/A | BL263: N/A | BM263: N/A | BN263: N/A | BO263: N/A | BP263: N/A | BQ263: N/A | BR263: N/A | BS263: N/A | BT263: N/A | BU263: N/A | BV263: N/A | BW263: N/A | BX263: N/A | BY263: N/A | BZ263: N/A
BA264: Use of menstrual materials | BB264: Materials reusable | BC264: N/A | BD264: N/A | BE264: N/A | BF264: N/A | BG264: N/A | BH264: N/A | BI264: N/A | BJ264: N/A | BK264: N/A | BL264: N/A | BM264: N/A | BN264: N/A | BO264: N/A | BP264: N/A | BQ264: N/A | BR264: N/A | BS264: N/A | BT264: N/A | BU264: N/A | BV264: N/A | BW264: N/A | BX264: N/A | BY264: N/A | BZ264: N/A
BB265: Materials not reusable | BC265: N/A | BD265: N/A | BE265: N/A | BF265: N/A | BG265: N/A | BH265: N/A | BI265: N/A | BJ265: N/A | BK265: N/A | BL265: N/A | BM265: N/A | BN265: N/A | BO265: N/A | BP265: N/A | BQ265: N/A | BR265: N/A | BS265: N/A | BT265: N/A | BU265: N/A | BV265: N/A | BW265: N/A | BX265: N/A | BY265: N/A | BZ265: N/A
BB266: No materials used | BC266: N/A | BD266: N/A | BE266: N/A | BF266: N/A | BG266: N/A | BH266: N/A | BI266: N/A | BJ266: N/A | BK266: N/A | BL266: N/A | BM266: N/A | BN266: N/A | BO266: N/A | BP266: N/A | BQ266: N/A | BR266: N/A | BS266: N/A | BT266: N/A | BU266: N/A | BV266: N/A | BW266: N/A | BX266: N/A | BY266: N/A | BZ266: N/A
BB267: DK/not sure/missing | BC267: N/A | BD267: N/A | BE267: N/A | BF267: N/A | BG267: N/A | BH267: N/A | BI267: N/A | BJ267: N/A | BK267: N/A | BL267: N/A | BM267: N/A | BN267: N/A | BO267: N/A | BP267: N/A | BQ267: N/A | BR267: N/A | BS267: N/A | BT267: N/A | BU267: N/A | BV267: N/A | BW267: N/A | BX267: N/A | BY267: N/A | BZ267: N/A
BA268: Use of menstrual materials with private place to wash and change | BB268: Materials reusable | BC268: N/A | BD268: N/A | BE268: N/A | BF268: N/A | BG268: N/A | BH268: N/A | BI268: N/A | BJ268: N/A | BK268: N/A | BL268: N/A | BM268: N/A | BN268: N/A | BO268: N/A | BP268: N/A | BQ268: N/A | BR268: N/A | BS268: N/A | BT268: N/A | BU268: N/A | BV268: N/A | BW268: N/A | BX268: N/A | BY268: N/A | BZ268: N/A
BB269: Materials not reusable | BC269: N/A | BD269: N/A | BE269: N/A | BF269: N/A | BG269: N/A | BH269: N/A | BI269: N/A | BJ269: N/A | BK269: N/A | BL269: N/A | BM269: N/A | BN269: N/A | BO269: N/A | BP269: N/A | BQ269: N/A | BR269: N/A | BS269: N/A | BT269: N/A | BU269: N/A | BV269: N/A | BW269: N/A | BX269: N/A | BY269: N/A | BZ269: N/A
BB270: No materials used | BC270: N/A | BD270: N/A | BE270: N/A | BF270: N/A | BG270: N/A | BH270: N/A | BI270: N/A | BJ270: N/A | BK270: N/A | BL270: N/A | BM270: N/A | BN270: N/A | BO270: N/A | BP270: N/A | BQ270: N/A | BR270: N/A | BS270: N/A | BT270: N/A | BU270: N/A | BV270: N/A | BW270: N/A | BX270: N/A | BY270: N/A | BZ270: N/A
BA271: Awareness of menstruation before menarche | BB271: Yes | BC271: N/A | BD271: N/A | BE271: N/A | BF271: N/A | BG271: N/A | BH271: N/A | BI271: N/A | BJ271: N/A | BK271: N/A | BL271: N/A | BM271: N/A | BN271: N/A | BO271: N/A | BP271: N/A | BQ271: N/A | BR271: N/A | BS271: N/A | BT271: N/A | BU271: N/A | BV271: N/A | BW271: N/A | BX271: N/A | BY271: N/A | BZ271: N/A
BB272: No | BC272: N/A | BD272: N/A | BE272: N/A | BF272: N/A | BG272: N/A | BH272: N/A | BI272: N/A | BJ272: N/A | BK272: N/A | BL272: N/A | BM272: N/A | BN272: N/A | BO272: N/A | BP272: N/A | BQ272: N/A | BR272: N/A | BS272: N/A | BT272: N/A | BU272: N/A | BV272: N/A | BW272: N/A | BX272: N/A | BY272: N/A | BZ272: N/A
BB273: DK/not sure/missing | BC273: N/A | BD273: N/A | BE273: N/A | BF273: N/A | BG273: N/A | BH273: N/A | BI273: N/A | BJ273: N/A | BK273: N/A | BL273: N/A | BM273: N/A | BN273: N/A | BO273: N/A | BP273: N/A | BQ273: N/A | BR273: N/A | BS273: N/A | BT273: N/A | BU273: N/A | BV273: N/A | BW273: N/A | BX273: N/A | BY273: N/A | BZ273: N/A
BA274: Participation in (all) activities during menstruation | BB274: Yes | BC274: N/A | BD274: N/A | BE274: N/A | BF274: N/A | BG274: N/A | BH274: N/A | BI274: N/A | BJ274: N/A | BK274: N/A | BL274: N/A | BM274: N/A | BN274: N/A | BO274: N/A | BP274: N/A | BQ274: N/A | BR274: N/A | BS274: N/A | BT274: N/A | BU274: N/A | BV274: N/A | BW274: N/A | BX274: N/A | BY274: N/A | BZ274: N/A
BB275: No | BC275: N/A | BD275: N/A | BE275: N/A | BF275: N/A | BG275: N/A | BH275: N/A | BI275: N/A | BJ275: N/A | BK275: N/A | BL275: N/A | BM275: N/A | BN275: N/A | BO275: N/A | BP275: N/A | BQ275: N/A | BR275: N/A | BS275: N/A | BT275: N/A | BU275: N/A | BV275: N/A | BW275: N/A | BX275: N/A | BY275: N/A | BZ275: N/A
BB276: DK/not sure/missing/no such activity | BC276: N/A | BD276: N/A | BE276: N/A | BF276: N/A | BG276: N/A | BH276: N/A | BI276: N/A | BJ276: N/A | BK276: N/A | BL276: N/A | BM276: N/A | BN276: N/A | BO276: N/A | BP276: N/A | BQ276: N/A | BR276: N/A | BS276: N/A | BT276: N/A | BU276: N/A | BV276: N/A | BW276: N/A | BX276: N/A | BY276: N/A | BZ276: N/A
BA277: Participation in specific activities during menstruation | BB277: Did not go to school (amongst those usually attending school) | BC277: N/A | BD277: N/A | BE277: N/A | BF277: N/A | BG277: N/A | BH277: N/A | BI277: N/A | BJ277: N/A | BK277: N/A | BL277: N/A | BM277: N/A | BN277: N/A | BO277: N/A | BP277: N/A | BQ277: N/A | BR277: N/A | BS277: N/A | BT277: N/A | BU277: N/A | BV277: N/A | BW277: N/A | BX277: N/A | BY277: N/A | BZ277: N/A
BB278: Did not go to work (amongst those who usually work) | BC278: N/A | BD278: N/A | BE278: N/A | BF278: N/A | BG278: N/A | BH278: N/A | BI278: N/A | BJ278: N/A | BK278: N/A | BL278: N/A | BM278: N/A | BN278: N/A | BO278: N/A | BP278: N/A | BQ278: N/A | BR278: N/A | BS278: N/A | BT278: N/A | BU278: N/A | BV278: N/A | BW278: N/A | BX278: N/A | BY278: N/A | BZ278: N/A
BB279: Did not participate in social activities | BC279: N/A | BD279: N/A | BE279: N/A | BF279: N/A | BG279: N/A | BH279: N/A | BI279: N/A | BJ279: N/A | BK279: N/A | BL279: N/A | BM279: N/A | BN279: N/A | BO279: N/A | BP279: N/A | BQ279: N/A | BR279: N/A | BS279: N/A | BT279: N/A | BU279: N/A | BV279: N/A | BW279: N/A | BX279: N/A | BY279: N/A | BZ279: N/A
BB280: Did not cook food | BC280: N/A | BD280: N/A | BE280: N/A | BF280: N/A | BG280: N/A | BH280: N/A | BI280: N/A | BJ280: N/A | BK280: N/A | BL280: N/A | BM280: N/A | BN280: N/A | BO280: N/A | BP280: N/A | BQ280: N/A | BR280: N/A | BS280: N/A | BT280: N/A | BU280: N/A | BV280: N/A | BW280: N/A | BX280: N/A | BY280: N/A | BZ280: N/A
BB281: Did not eat with others | BC281: N/A | BD281: N/A | BE281: N/A | BF281: N/A | BG281: N/A | BH281: N/A | BI281: N/A | BJ281: N/A | BK281: N/A | BL281: N/A | BM281: N/A | BN281: N/A | BO281: N/A | BP281: N/A | BQ281: N/A | BR281: N/A | BS281: N/A | BT281: N/A | BU281: N/A | BV281: N/A | BW281: N/A | BX281: N/A | BY281: N/A | BZ281: N/A
BB282: Did not bathe in regular place | BC282: N/A | BD282: N/A | BE282: N/A | BF282: N/A | BG282: N/A | BH282: N/A | BI282: N/A | BJ282: N/A | BK282: N/A | BL282: N/A | BM282: N/A | BN282: N/A | BO282: N/A | BP282: N/A | BQ282: N/A | BR282: N/A | BS282: N/A | BT282: N/A | BU282: N/A | BV282: N/A | BW282: N/A | BX282: N/A | BY282: N/A | BZ282: N/A
BB283: Did not participate in other activities | BC283: N/A | BD283: N/A | BE283: N/A | BF283: N/A | BG283: N/A | BH283: N/A | BI283: N/A | BJ283: N/A | BK283: N/A | BL283: N/A | BM283: N/A | BN283: N/A | BO283: N/A | BP283: N/A | BQ283: N/A | BR283: N/A | BS283: N/A | BT283: N/A | BU283: N/A | BV283: N/A | BW283: N/A | BX283: N/A | BY283: N/A | BZ283: N/A
BB284: DK/not sure/missing/no such activity | BC284: N/A | BD284: N/A | BE284: N/A | BF284: N/A | BG284: N/A | BH284: N/A | BI284: N/A | BJ284: N/A | BK284: N/A | BL284: N/A | BM284: N/A | BN284: N/A | BO284: N/A | BP284: N/A | BQ284: N/A | BR284: N/A | BS284: N/A | BT284: N/A | BU284: N/A | BV284: N/A | BW284: N/A | BX284: N/A | BY284: N/A | BZ284: N/A
BA339: Raw numbers of respondents: | BB339: Basic water, sanitation and hygiene | BC339: NATIONAL wealth index quintile | BH339: URBAN wealth index quintile | BM339: RURAL wealth index quintile | BR339: SUB-REGIONS:
BA340: WatSan data, raw numbers (weighted) | BC340: Poorest | BD340: Poor | BE340: Middle | BF340: Rich | BG340: Richest | BH340: Poorest | BI340: Poor | BJ340: Middle | BK340: Rich | BL340: Richest | BM340: Poorest | BN340: Poor | BO340: Middle | BP340: Rich | BQ340: Richest | BR340: Central | BS340: Copperbelt | BT340: Eastern | BU340: Luapula | BV340: Lusaka | BW340: North-Western | BX340: Northern | BY340: Southern | BZ340: Western
BA341: Use of Basic Water Sanitation and Hygiene | BB341: Yes | BC341: N/A | BD341: N/A | BE341: N/A | BF341: N/A | BG341: N/A | BH341: N/A | BI341: N/A | BJ341: N/A | BK341: N/A | BL341: N/A | BM341: N/A | BN341: N/A | BO341: N/A | BP341: N/A | BQ341: N/A | BR341: N/A | BS341: N/A | BT341: N/A | BU341: N/A | BV341: N/A | BW341: N/A | BX341: N/A | BY341: N/A | BZ341: N/A
BB342: No | BC342: N/A | BD342: N/A | BE342: N/A | BF342: N/A | BG342: N/A | BH342: N/A | BI342: N/A | BJ342: N/A | BK342: N/A | BL342: N/A | BM342: N/A | BN342: N/A | BO342: N/A | BP342: N/A | BQ342: N/A | BR342: N/A | BS342: N/A | BT342: N/A | BU342: N/A | BV342: N/A | BW342: N/A | BX342: N/A | BY342: N/A | BZ342: N/A
BA343: Use of Basic Water and Sanitation | BB343: Yes | BC343: N/A | BD343: N/A | BE343: N/A | BF343: N/A | BG343: N/A | BH343: N/A | BI343: N/A | BJ343: N/A | BK343: N/A | BL343: N/A | BM343: N/A | BN343: N/A | BO343: N/A | BP343: N/A | BQ343: N/A | BR343: N/A | BS343: N/A | BT343: N/A | BU343: N/A | BV343: N/A | BW343: N/A | BX343: N/A | BY343: N/A | BZ343: N/A
BB344: No | BC344: N/A | BD344: N/A | BE344: N/A | BF344: N/A | BG344: N/A | BH344: N/A | BI344: N/A | BJ344: N/A | BK344: N/A | BL344: N/A | BM344: N/A | BN344: N/A | BO344: N/A | BP344: N/A | BQ344: N/A | BR344: N/A | BS344: N/A | BT344: N/A | BU344: N/A | BV344: N/A | BW344: N/A | BX344: N/A | BY344: N/A | BZ344: N/A
BA345: Use of Basic Water and Hygiene | BB345: Yes | BC345: N/A | BD345: N/A | BE345: N/A | BF345: N/A | BG345: N/A | BH345: N/A | BI345: N/A | BJ345: N/A | BK345: N/A | BL345: N/A | BM345: N/A | BN345: N/A | BO345: N/A | BP345: N/A | BQ345: N/A | BR345: N/A | BS345: N/A | BT345: N/A | BU345: N/A | BV345: N/A | BW345: N/A | BX345: N/A | BY345: N/A | BZ345: N/A
BB346: No | BC346: N/A | BD346: N/A | BE346: N/A | BF346: N/A | BG346: N/A | BH346: N/A | BI346: N/A | BJ346: N/A | BK346: N/A | BL346: N/A | BM346: N/A | BN346: N/A | BO346: N/A | BP346: N/A | BQ346: N/A | BR346: N/A | BS346: N/A | BT346: N/A | BU346: N/A | BV346: N/A | BW346: N/A | BX346: N/A | BY346: N/A | BZ346: N/A
BA347: Use of Basic Sanitation and Hygiene | BB347: Yes | BC347: N/A | BD347: N/A | BE347: N/A | BF347: N/A | BG347: N/A | BH347: N/A | BI347: N/A | BJ347: N/A | BK347: N/A | BL347: N/A | BM347: N/A | BN347: N/A | BO347: N/A | BP347: N/A | BQ347: N/A | BR347: N/A | BS347: N/A | BT347: N/A | BU347: N/A | BV347: N/A | BW347: N/A | BX347: N/A | BY347: N/A | BZ347: N/A
BB348: No | BC348: N/A | BD348: N/A | BE348: N/A | BF348: N/A | BG348: N/A | BH348: N/A | BI348: N/A | BJ348: N/A | BK348: N/A | BL348: N/A | BM348: N/A | BN348: N/A | BO348: N/A | BP348: N/A | BQ348: N/A | BR348: N/A | BS348: N/A | BT348: N/A | BU348: N/A | BV348: N/A | BW348: N/A | BX348: N/A | BY348: N/A | BZ348: N/A
BA349: Use of Basic Water | BB349: Yes | BC349: N/A | BD349: N/A | BE349: N/A | BF349: N/A | BG349: N/A | BH349: N/A | BI349: N/A | BJ349: N/A | BK349: N/A | BL349: N/A | BM349: N/A | BN349: N/A | BO349: N/A | BP349: N/A | BQ349: N/A | BR349: N/A | BS349: N/A | BT349: N/A | BU349: N/A | BV349: N/A | BW349: N/A | BX349: N/A | BY349: N/A | BZ349: N/A
BB350: No | BC350: N/A | BD350: N/A | BE350: N/A | BF350: N/A | BG350: N/A | BH350: N/A | BI350: N/A | BJ350: N/A | BK350: N/A | BL350: N/A | BM350: N/A | BN350: N/A | BO350: N/A | BP350: N/A | BQ350: N/A | BR350: N/A | BS350: N/A | BT350: N/A | BU350: N/A | BV350: N/A | BW350: N/A | BX350: N/A | BY350: N/A | BZ350: N/A
BA351: Use of Basic Sanitation | BB351: Yes | BC351: N/A | BD351: N/A | BE351: N/A | BF351: N/A | BG351: N/A | BH351: N/A | BI351: N/A | BJ351: N/A | BK351: N/A | BL351: N/A | BM351: N/A | BN351: N/A | BO351: N/A | BP351: N/A | BQ351: N/A | BR351: N/A | BS351: N/A | BT351: N/A | BU351: N/A | BV351: N/A | BW351: N/A | BX351: N/A | BY351: N/A | BZ351: N/A
BB352: No | BC352: N/A | BD352: N/A | BE352: N/A | BF352: N/A | BG352: N/A | BH352: N/A | BI352: N/A | BJ352: N/A | BK352: N/A | BL352: N/A | BM352: N/A | BN352: N/A | BO352: N/A | BP352: N/A | BQ352: N/A | BR352: N/A | BS352: N/A | BT352: N/A | BU352: N/A | BV352: N/A | BW352: N/A | BX352: N/A | BY352: N/A | BZ352: N/A
BA353: Access to Basic Hygiene | BB353: Yes | BC353: N/A | BD353: N/A | BE353: N/A | BF353: N/A | BG353: N/A | BH353: N/A | BI353: N/A | BJ353: N/A | BK353: N/A | BL353: N/A | BM353: N/A | BN353: N/A | BO353: N/A | BP353: N/A | BQ353: N/A | BR353: N/A | BS353: N/A | BT353: N/A | BU353: N/A | BV353: N/A | BW353: N/A | BX353: N/A | BY353: N/A | BZ353: N/A
BB354: No | BC354: N/A | BD354: N/A | BE354: N/A | BF354: N/A | BG354: N/A | BH354: N/A | BI354: N/A | BJ354: N/A | BK354: N/A | BL354: N/A | BM354: N/A | BN354: N/A | BO354: N/A | BP354: N/A | BQ354: N/A | BR354: N/A | BS354: N/A | BT354: N/A | BU354: N/A | BV354: N/A | BW354: N/A | BX354: N/A | BY354: N/A | BZ354: N/A
C399: INITIAL (national) Wealth Index | H399: URBAN Wealth Index | M399: RURAL Wealth Index
C400: Component Matrix | H400: Component Matrix | M400: Component Matrix
E401: Component | J401: Component | O401: Component
B402: Note: The INITIAL (national) Wealth Index is based on the first component of the Principal Component Analysis (PCA) which has been obtained at national level. The final national-level (NATIONAL) Wealth Index is based on the URBAN and RURAL specific wealth indexes. Regression procedures are used to establish the relationships between the two sets of scores (urban and rural) and the initial (national) wealth factors. This allows best use of the available information for each area and a better precision of the FINAL (NATIONAL) Wealth Index. For dependency reasons, all WASH variables (contained in the generic MICS and DHS scripts) have been excluded from the sets of asset variables used in the PCAs. The PCA can extracts as many components as there are asset variables in the input. Only the first of the components is used to represent the Wealth Index. The scores represent the weights of the asset variables on the Wealth Index (correlations between the variables and the component). The communalities are the proportion of each variable's variance that can be explained by the component. Proportion of explained variance is the part of the model's total variance that is explained by the component. For more information on the procedure used: The DHS Wealth Index, DHS Comparative Reports No. 6, Shea Oscar Rutstein, Kiersten Johnson, ORC Macro International Inc., 2004. The DHS Wealth Index: Approaches for Rural and Urban Areas, Shea O. Rutstein, ORC Macro International Inc., 2008. MICS Methodological Paper No. 4, Review of options for reporting water, sanitation and hygiene coverage by wealth quintile, UNICEF, 2016. | E402: 1 | J402: 1 | O402: 1
C403: Has electricity | E403: 0.8594714677 | H403: Electricity for cooking | J403: 0.8853941608 | M403: Has electricity | O403: 0.786364249
C404: Electricity for cooking | E404: 0.8195802452 | H404: Has electricity | J404: 0.8759144106 | M404: Earth, mud, dung floor | O404: -0.7305239678
C405: Has television | E405: 0.8171749187 | H405: Has television | J405: 0.7892494297 | M405: Electricity for cooking | O405: 0.696370305
C406: Earth, mud, dung floor | E406: -0.8042890278 | H406: Has refrigerator | J406: 0.7848800871 | M406: Concrete, cement floor | O406: 0.6847373929
C407: Has refrigerator | E407: 0.7511604989 | H407: Charcoal for cooking | J407: -0.6369885814 | M407: Has refrigerator | O407: 0.6577075325
C408: Wood, straw for cooking | E408: -0.7268766768 | H408: Earth, mud, dung floor | J408: -0.5581116159 | M408: Has television | O408: 0.6409846336
C409: Concrete, cement floor | E409: 0.6724852045 | H409: Has radio | J409: 0.5528450756 | M409: Wood, straw for cooking | O409: -0.5947165302
C410: Has telephone | E410: 0.5330652595 | H410: Has telephone | J410: 0.5479657177 | M410: Has telephone | O410: 0.4508079648
C411: Has radio | E411: 0.5050717978 | H411: Has car/truck | J411: 0.4065557627 | M411: Has radio | O411: 0.3861449261
C412: Has car/truck | E412: 0.3965411083 | H412: Wood, straw for cooking | J412: -0.3054400392 | M412: Charcoal for cooking | O412: 0.3595464116
C413: Charcoal for cooking | E413: 0.2161227658 | H413: Concrete, cement floor | J413: 0.2544295033 | M413: Has car/truck | O413: 0.275914259
C414: Other type of flooring | E414: 0.1738784939 | H414: Terrazo, ceramic tile floor | J414: 0.1819449982 | M414: Has motorcycle/scooter | O414: 0.2265632115
C415: Terrazo, ceramic tile floor | E415: 0.172982836 | H415: Has bicycle | J415: 0.1225189795 | M415: Has bicycle | O415: 0.1592696315
C416: Has motorcycle/scooter | E416: 0.1239558913 | H416: Has motorcycle/scooter | J416: 0.1115352883 | M416: Solar power | O416: 0.1284825253
C417: Parquet, wood tile floor | E417: 0.0857061884 | H417: Other type of flooring | J417: 0.1094327047 | M417: Other type of flooring | O417: 0.07063560351
C418: Solar power | E418: 0.05047085472 | H418: Parquet, wood tile floor | J418: 0.08750901513 | M418: LPG, natural gas for cooking | O418: 0.0526685914
... 117 more rows

Sheet WHS03
A2: =A1026 -> Zambia
A3: =A1034 -> 2003
A4: Use of drinking water sources
A5: by wealth quintile and sub-national region
A6: Notes:
A7: WHO/UNICEF JMP customised wealth index excludes water,
A8: sanitation and hygiene assets.
A9: Survey used for analysis: | B9: =A1025 -> WHS03
A10: =B1028 -> 
A11: =B1027 -> 
A14: Use of drinking water sources | C14: NATIONAL wealth index quintile | H14: URBAN wealth index quintile | M14: RURAL wealth index quintile | BA14: Raw numbers of respondents: | BB14: Use of drinking water sources | BC14: NATIONAL wealth index quintile | BH14: URBAN wealth index quintile | BM14: RURAL wealth index quintile
A15: Weighted percentage (used in graphs) | C15: Poorest | D15: Poor | E15: Middle | F15: Rich | G15: Richest | H15: Poorest | I15: Poor | J15: Middle | K15: Rich | L15: Richest | M15: Poorest | N15: Poor | O15: Middle | P15: Rich | Q15: Richest | BA15: Water data, raw numbers (weighted) | BC15: Poorest | BD15: Poor | BE15: Middle | BF15: Rich | BG15: Richest | BH15: Poorest | BI15: Poor | BJ15: Middle | BK15: Rich | BL15: Richest | BM15: Poorest | BN15: Poor | BO15: Middle | BP15: Rich | BQ15: Richest
A16: Water | B16: Improved | C16: 37.66565461 | D16: 38.46968541 | E16: 48.99998611 | F16: 65.19198255 | G16: 94.20238881 | H16: 74.97742842 | I16: 88.70696386 | J16: 85.90816386 | K16: 94.24131396 | L16: 97.44141717 | M16: 36.87979969 | N16: 38.30645009 | O16: 38.56749319 | P16: 41.94243337 | Q16: 51.89821392 | BA16: Water | BB16: Improved | BC16: N/A | BD16: N/A | BE16: N/A | BF16: N/A | BG16: N/A | BH16: N/A | BI16: N/A | BJ16: N/A | BK16: N/A | BL16: N/A | BM16: N/A | BN16: N/A | BO16: N/A | BP16: N/A | BQ16: N/A
B17: Not Improved | C17: 62.33434539 | D17: 61.53031459 | E17: 51.00001389 | F17: 34.80801745 | G17: 5.79761119 | H17: 25.02257158 | I17: 11.29303614 | J17: 14.09183614 | K17: 5.758686043 | L17: 2.558582829 | M17: 63.12020031 | N17: 61.69354991 | O17: 61.43250681 | P17: 58.05756663 | Q17: 48.10178608 | BB17: Not Improved | BC17: N/A | BD17: N/A | BE17: N/A | BF17: N/A | BG17: N/A | BH17: N/A | BI17: N/A | BJ17: N/A | BK17: N/A | BL17: N/A | BM17: N/A | BN17: N/A | BO17: N/A | BP17: N/A | BQ17: N/A
A18: Water ladder | B18: Basic | C18: =C16*C23/100 -> 32.96341994 | D18: =D16*D23/100 -> 33.26168929 | E18: =E16*E23/100 -> 44.21884759 | F18: 61.43110482 | G18: 92.09172762 | H18: 72.54708075 | I18: 86.34711151 | J18: 84.23606871 | K18: 92.94672738 | L18: 96.7469174 | M18: 33.24243192 | N18: 32.82389333 | O18: 31.66959784 | P18: 37.93309199 | Q18: 45.42212762 | BA18: Water ladder | BB18: Basic | BC18: N/A | BD18: N/A | BE18: N/A | BF18: N/A | BG18: N/A | BH18: N/A | BI18: N/A | BJ18: N/A | BK18: N/A | BL18: N/A | BM18: N/A | BN18: N/A | BO18: N/A | BP18: N/A | BQ18: N/A
B19: Limited | C19: =C16*C22/100 -> 4.70223467 | D19: =D16*D22/100 -> 5.20799612 | E19: =E16*E22/100 -> 4.781138514 | F19: 3.760877736 | G19: 2.110661186 | H19: 2.430347671 | I19: 2.359852351 | J19: 1.672095151 | K19: 1.294586578 | L19: 0.6944997714 | M19: 3.637367766 | N19: 5.48255676 | O19: 6.897895344 | P19: 4.00934138 | Q19: 6.4760863 | BB19: Limited | BC19: N/A | BD19: N/A | BE19: N/A | BF19: N/A | BG19: N/A | BH19: N/A | BI19: N/A | BJ19: N/A | BK19: N/A | BL19: N/A | BM19: N/A | BN19: N/A | BO19: N/A | BP19: N/A | BQ19: N/A
B20: Unimproved | C20: =100-C18-C19-C21 -> 41.87155348 | D20: =100-D18-D19-D21 -> 42.01643145 | E20: =100-E18-E19-E21 -> 33.78388159 | F20: 30.23883545 | G20: 4.580276655 | H20: 21.04913855 | I20: 10.17044965 | J20: 12.50048506 | K20: 4.571965363 | L20: 2.32084086 | M20: 42.50603266 | N20: 42.04730961 | O20: 40.09523052 | P20: 37.6212957 | Q20: 40.22036791 | BB20: Unimproved | BC20: N/A | BD20: N/A | BE20: N/A | BF20: N/A | BG20: N/A | BH20: N/A | BI20: N/A | BJ20: N/A | BK20: N/A | BL20: N/A | BM20: N/A | BN20: N/A | BO20: N/A | BP20: N/A | BQ20: N/A
B21: Surface water | C21: 20.46279192 | D21: 19.51388314 | E21: 17.21613231 | F21: 4.569181994 | G21: 1.217334535 | H21: 3.973433026 | I21: 1.122586484 | J21: 1.591351075 | K21: 1.18672068 | L21: 0.237741969 | M21: 20.61416765 | N21: 19.6462403 | O21: 21.33727629 | P21: 20.43627092 | Q21: 7.881418169 | BB21: Surface water | BC21: N/A | BD21: N/A | BE21: N/A | BF21: N/A | BG21: N/A | BH21: N/A | BI21: N/A | BJ21: N/A | BK21: N/A | BL21: N/A | BM21: N/A | BN21: N/A | BO21: N/A | BP21: N/A | BQ21: N/A
A22: Improved water point at more than 30 minutes | B22: Yes | C22: 12.48414429 | D22: 13.5379223 | E22: 9.757428305 | F22: 5.768926774 | G22: 2.240560152 | H22: 3.241439087 | I22: 2.660278571 | J22: 1.946375147 | K22: 1.37369326 | L22: 0.7127357048 | M22: 9.862764431 | N22: 14.31235927 | O22: 17.88525718 | P22: 9.559153004 | Q22: 12.47843772 | BA22: Improved water point at more than 30 minutes | BB22: Yes | BC22: N/A | BD22: N/A | BE22: N/A | BF22: N/A | BG22: N/A | BH22: N/A | BI22: N/A | BJ22: N/A | BK22: N/A | BL22: N/A | BM22: N/A | BN22: N/A | BO22: N/A | BP22: N/A | BQ22: N/A
B23: No | C23: 87.51585571 | D23: 86.4620777 | E23: 90.24257169 | F23: 94.23107323 | G23: 97.75943985 | H23: 96.75856091 | I23: 97.33972143 | J23: 98.05362485 | K23: 98.62630674 | L23: 99.2872643 | M23: 90.13723557 | N23: 85.68764073 | O23: 82.11474282 | P23: 90.440847 | Q23: 87.52156228 | BB23: No | BC23: N/A | BD23: N/A | BE23: N/A | BF23: N/A | BG23: N/A | BH23: N/A | BI23: N/A | BJ23: N/A | BK23: N/A | BL23: N/A | BM23: N/A | BN23: N/A | BO23: N/A | BP23: N/A | BQ23: N/A
A24: Manually calculated ratios | B24: Improved wells
B25: Improved springs
B26: Other
C27: NATIONAL wealth index quintile | H27: URBAN wealth index quintile | M27: RURAL wealth index quintile | BA27: Raw numbers of respondents: | BB27: Use of drinking water sources | BC27: NATIONAL wealth index quintile | BH27: URBAN wealth index quintile | BM27: RURAL wealth index quintile
A28: Percentage based on weighted population | C28: Poorest | D28: Poor | E28: Middle | F28: Rich | G28: Richest | H28: Poorest | I28: Poor | J28: Middle | K28: Rich | L28: Richest | M28: Poorest | N28: Poor | O28: Middle | P28: Rich | Q28: Richest | BA28: Water data, raw numbers (weighted) | BC28: Poorest | BD28: Poor | BE28: Middle | BF28: Rich | BG28: Richest | BH28: Poorest | BI28: Poor | BJ28: Middle | BK28: Rich | BL28: Richest | BM28: Poorest | BN28: Poor | BO28: Middle | BP28: Rich | BQ28: Richest
A29: Piped water | B29: Yes | C29: 3.231648526 | D29: 4.026795721 | E29: 10.40946211 | F29: 40.11518923 | G29: 85.31549573 | H29: 37.06931295 | I29: 72.90700292 | J29: 77.80362231 | K29: 87.66793831 | L29: 94.63141568 | M29: 2.469128698 | N29: 2.003757683 | O29: 3.58587353 | P29: 4.931899516 | Q29: 18.67745594 | BA29: Piped water | BB29: Yes | BC29: N/A | BD29: N/A | BE29: N/A | BF29: N/A | BG29: N/A | BH29: N/A | BI29: N/A | BJ29: N/A | BK29: N/A | BL29: N/A | BM29: N/A | BN29: N/A | BO29: N/A | BP29: N/A | BQ29: N/A
B30: No | C30: 96.76835147 | D30: 95.97320428 | E30: 89.59053789 | F30: 59.88481077 | G30: 14.68450427 | H30: 62.93068705 | I30: 27.09299708 | J30: 22.19637769 | K30: 12.33206169 | L30: 5.36858432 | M30: 97.5308713 | N30: 97.99624232 | O30: 96.41412647 | P30: 95.06810048 | Q30: 81.32254406 | BB30: No | BC30: N/A | BD30: N/A | BE30: N/A | BF30: N/A | BG30: N/A | BH30: N/A | BI30: N/A | BJ30: N/A | BK30: N/A | BL30: N/A | BM30: N/A | BN30: N/A | BO30: N/A | BP30: N/A | BQ30: N/A
A31: Piped water on premises | B31: Yes | C31: 0.5950209335 | D31: 0.460255324 | E31: 1.049045077 | F31: 10.09626261 | G31: 60.29452806 | H31: 5.827050932 | I31: 20.27793 | J31: 29.50825632 | K31: 57.72689462 | L31: 84.15228068 | M31: 0.4368540508 | N31: 0.2752889804 | O31: 0.3929894752 | P31: 0 | Q31: 9.988736233 | BA31: Piped water on premises | BB31: Yes | BC31: N/A | BD31: N/A | BE31: N/A | BF31: N/A | BG31: N/A | BH31: N/A | BI31: N/A | BJ31: N/A | BK31: N/A | BL31: N/A | BM31: N/A | BN31: N/A | BO31: N/A | BP31: N/A | BQ31: N/A
B32: No | C32: 99.40497907 | D32: 99.53974468 | E32: 98.95095492 | F32: 89.90373739 | G32: 39.70547194 | H32: 94.17294907 | I32: 79.72207 | J32: 70.49174368 | K32: 42.27310538 | L32: 15.84771932 | M32: 99.56314595 | N32: 99.72471102 | O32: 99.60701052 | P32: 100 | Q32: 90.01126377 | BB32: No | BC32: N/A | BD32: N/A | BE32: N/A | BF32: N/A | BG32: N/A | BH32: N/A | BI32: N/A | BJ32: N/A | BK32: N/A | BL32: N/A | BM32: N/A | BN32: N/A | BO32: N/A | BP32: N/A | BQ32: N/A
A33: Piped water into dwelling | B33: Yes | C33: N/A | D33: N/A | E33: N/A | F33: N/A | G33: N/A | H33: N/A | I33: N/A | J33: N/A | K33: N/A | L33: N/A | M33: N/A | N33: N/A | O33: N/A | P33: N/A | Q33: N/A | BA33: Piped water into dwelling | BB33: Yes | BC33: N/A | BD33: N/A | BE33: N/A | BF33: N/A | BG33: N/A | BH33: N/A | BI33: N/A | BJ33: N/A | BK33: N/A | BL33: N/A | BM33: N/A | BN33: N/A | BO33: N/A | BP33: N/A | BQ33: N/A
B34: No | C34: N/A | D34: N/A | E34: N/A | F34: N/A | G34: N/A | H34: N/A | I34: N/A | J34: N/A | K34: N/A | L34: N/A | M34: N/A | N34: N/A | O34: N/A | P34: N/A | Q34: N/A | BB34: No | BC34: N/A | BD34: N/A | BE34: N/A | BF34: N/A | BG34: N/A | BH34: N/A | BI34: N/A | BJ34: N/A | BK34: N/A | BL34: N/A | BM34: N/A | BN34: N/A | BO34: N/A | BP34: N/A | BQ34: N/A
A35: Water source on premises | B35: Yes | C35: N/A | D35: N/A | E35: N/A | F35: N/A | G35: N/A | H35: N/A | I35: N/A | J35: N/A | K35: N/A | L35: N/A | M35: N/A | N35: N/A | O35: N/A | P35: N/A | Q35: N/A | BA35: Water source on premises | BB35: Yes | BC35: N/A | BD35: N/A | BE35: N/A | BF35: N/A | BG35: N/A | BH35: N/A | BI35: N/A | BJ35: N/A | BK35: N/A | BL35: N/A | BM35: N/A | BN35: N/A | BO35: N/A | BP35: N/A | BQ35: N/A
B36: No | C36: N/A | D36: N/A | E36: N/A | F36: N/A | G36: N/A | H36: N/A | I36: N/A | J36: N/A | K36: N/A | L36: N/A | M36: N/A | N36: N/A | O36: N/A | P36: N/A | Q36: N/A | BB36: No | BC36: N/A | BD36: N/A | BE36: N/A | BF36: N/A | BG36: N/A | BH36: N/A | BI36: N/A | BJ36: N/A | BK36: N/A | BL36: N/A | BM36: N/A | BN36: N/A | BO36: N/A | BP36: N/A | BQ36: N/A
A37: Improved Water source on premises | B37: Yes | C37: N/A | D37: N/A | E37: N/A | F37: N/A | G37: N/A | H37: N/A | I37: N/A | J37: N/A | K37: N/A | L37: N/A | M37: N/A | N37: N/A | O37: N/A | P37: N/A | Q37: N/A | BA37: Improved water source on premises | BB37: Yes | BC37: N/A | BD37: N/A | BE37: N/A | BF37: N/A | BG37: N/A | BH37: N/A | BI37: N/A | BJ37: N/A | BK37: N/A | BL37: N/A | BM37: N/A | BN37: N/A | BO37: N/A | BP37: N/A | BQ37: N/A
B38: No | C38: N/A | D38: N/A | E38: N/A | F38: N/A | G38: N/A | H38: N/A | I38: N/A | J38: N/A | K38: N/A | L38: N/A | M38: N/A | N38: N/A | O38: N/A | P38: N/A | Q38: N/A | BB38: No | BC38: N/A | BD38: N/A | BE38: N/A | BF38: N/A | BG38: N/A | BH38: N/A | BI38: N/A | BJ38: N/A | BK38: N/A | BL38: N/A | BM38: N/A | BN38: N/A | BO38: N/A | BP38: N/A | BQ38: N/A
A39: Piped water on premises available when needed | B39: Yes | C39: N/A | D39: N/A | E39: N/A | F39: N/A | G39: N/A | H39: N/A | I39: N/A | J39: N/A | K39: N/A | L39: N/A | M39: N/A | N39: N/A | O39: N/A | P39: N/A | Q39: N/A | BA39: Piped water on premises available when needed | BB39: Yes | BC39: N/A | BD39: N/A | BE39: N/A | BF39: N/A | BG39: N/A | BH39: N/A | BI39: N/A | BJ39: N/A | BK39: N/A | BL39: N/A | BM39: N/A | BN39: N/A | BO39: N/A | BP39: N/A | BQ39: N/A
B40: No | C40: N/A | D40: N/A | E40: N/A | F40: N/A | G40: N/A | H40: N/A | I40: N/A | J40: N/A | K40: N/A | L40: N/A | M40: N/A | N40: N/A | O40: N/A | P40: N/A | Q40: N/A | BB40: No | BC40: N/A | BD40: N/A | BE40: N/A | BF40: N/A | BG40: N/A | BH40: N/A | BI40: N/A | BJ40: N/A | BK40: N/A | BL40: N/A | BM40: N/A | BN40: N/A | BO40: N/A | BP40: N/A | BQ40: N/A
A41: Water point at more than 30 minutes | B41: Yes | C41: 14.87446904 | D41: 11.12139792 | E41: 10.34352331 | F41: 5.771537214 | G41: 2.246127927 | H41: 4.552418231 | I41: 2.806508468 | J41: 1.704871349 | K41: 1.338751225 | L41: 0.7084482602 | M41: 14.41624003 | N41: 13.07178085 | O41: 12.47709466 | P41: 10.69768341 | Q41: 11.13957509 | BA41: Water point at more than 30 minutes | BB41: Yes | BC41: N/A | BD41: N/A | BE41: N/A | BF41: N/A | BG41: N/A | BH41: N/A | BI41: N/A | BJ41: N/A | BK41: N/A | BL41: N/A | BM41: N/A | BN41: N/A | BO41: N/A | BP41: N/A | BQ41: N/A
B42: No | C42: 85.12553096 | D42: 88.87860208 | E42: 89.65647669 | F42: 94.22846279 | G42: 97.75387207 | H42: 95.44758177 | I42: 97.19349153 | J42: 98.29512865 | K42: 98.66124877 | L42: 99.29155174 | M42: 85.58375997 | N42: 86.92821915 | O42: 87.52290534 | P42: 89.30231659 | Q42: 88.86042491 | BB42: No | BC42: N/A | BD42: N/A | BE42: N/A | BF42: N/A | BG42: N/A | BH42: N/A | BI42: N/A | BJ42: N/A | BK42: N/A | BL42: N/A | BM42: N/A | BN42: N/A | BO42: N/A | BP42: N/A | BQ42: N/A
A43: Water source available when needed | B43: Yes | C43: N/A | D43: N/A | E43: N/A | F43: N/A | G43: N/A | H43: N/A | I43: N/A | J43: N/A | K43: N/A | L43: N/A | M43: N/A | N43: N/A | O43: N/A | P43: N/A | Q43: N/A | BA43: Water source available when needed | BB43: Yes | BC43: N/A | BD43: N/A | BE43: N/A | BF43: N/A | BG43: N/A | BH43: N/A | BI43: N/A | BJ43: N/A | BK43: N/A | BL43: N/A | BM43: N/A | BN43: N/A | BO43: N/A | BP43: N/A | BQ43: N/A
B44: No | C44: N/A | D44: N/A | E44: N/A | F44: N/A | G44: N/A | H44: N/A | I44: N/A | J44: N/A | K44: N/A | L44: N/A | M44: N/A | N44: N/A | O44: N/A | P44: N/A | Q44: N/A | BB44: No | BC44: N/A | BD44: N/A | BE44: N/A | BF44: N/A | BG44: N/A | BH44: N/A | BI44: N/A | BJ44: N/A | BK44: N/A | BL44: N/A | BM44: N/A | BN44: N/A | BO44: N/A | BP44: N/A | BQ44: N/A
A45: Improved water source available when needed | B45: Yes | C45: N/A | D45: N/A | E45: N/A | F45: N/A | G45: N/A | H45: N/A | I45: N/A | J45: N/A | K45: N/A | L45: N/A | M45: N/A | N45: N/A | O45: N/A | P45: N/A | Q45: N/A | BA45: Improved water source available when needed | BB45: Yes | BC45: N/A | BD45: N/A | BE45: N/A | BF45: N/A | BG45: N/A | BH45: N/A | BI45: N/A | BJ45: N/A | BK45: N/A | BL45: N/A | BM45: N/A | BN45: N/A | BO45: N/A | BP45: N/A | BQ45: N/A
B46: No | C46: N/A | D46: N/A | E46: N/A | F46: N/A | G46: N/A | H46: N/A | I46: N/A | J46: N/A | K46: N/A | L46: N/A | M46: N/A | N46: N/A | O46: N/A | P46: N/A | Q46: N/A | BB46: No | BC46: N/A | BD46: N/A | BE46: N/A | BF46: N/A | BG46: N/A | BH46: N/A | BI46: N/A | BJ46: N/A | BK46: N/A | BL46: N/A | BM46: N/A | BN46: N/A | BO46: N/A | BP46: N/A | BQ46: N/A
A47: Microbiological quality at point of collection | B47: Not contaminated (No E. coli in 100 mL) | C47: N/A | D47: N/A | E47: N/A | F47: N/A | G47: N/A | H47: N/A | I47: N/A | J47: N/A | K47: N/A | L47: N/A | M47: N/A | N47: N/A | O47: N/A | P47: N/A | Q47: N/A | BA47: Microbiological quality at point of collection | BB47: Not contaminated (No E. coli in 100 mL) | BC47: N/A | BD47: N/A | BE47: N/A | BF47: N/A | BG47: N/A | BH47: N/A | BI47: N/A | BJ47: N/A | BK47: N/A | BL47: N/A | BM47: N/A | BN47: N/A | BO47: N/A | BP47: N/A | BQ47: N/A
B48: Contaminated (E. coli detected in 100 mL) | C48: N/A | D48: N/A | E48: N/A | F48: N/A | G48: N/A | H48: N/A | I48: N/A | J48: N/A | K48: N/A | L48: N/A | M48: N/A | N48: N/A | O48: N/A | P48: N/A | Q48: N/A | BB48: Contaminated (E. coli detected in 100 mL) | BC48: N/A | BD48: N/A | BE48: N/A | BF48: N/A | BG48: N/A | BH48: N/A | BI48: N/A | BJ48: N/A | BK48: N/A | BL48: N/A | BM48: N/A | BN48: N/A | BO48: N/A | BP48: N/A | BQ48: N/A
B49: Highly contaminated (>100 CFU/100 mL) | C49: N/A | D49: N/A | E49: N/A | F49: N/A | G49: N/A | H49: N/A | I49: N/A | J49: N/A | K49: N/A | L49: N/A | M49: N/A | N49: N/A | O49: N/A | P49: N/A | Q49: N/A | BB49: Highly contaminated (>100 CFU/100 mL) | BC49: N/A | BD49: N/A | BE49: N/A | BF49: N/A | BG49: N/A | BH49: N/A | BI49: N/A | BJ49: N/A | BK49: N/A | BL49: N/A | BM49: N/A | BN49: N/A | BO49: N/A | BP49: N/A | BQ49: N/A
A50: Microbiological quality of improved water sources at point of collection | B50: Not contaminated (No E. coli in 100 mL) | C50: N/A | D50: N/A | E50: N/A | F50: N/A | G50: N/A | H50: N/A | I50: N/A | J50: N/A | K50: N/A | L50: N/A | M50: N/A | N50: N/A | O50: N/A | P50: N/A | Q50: N/A | BA50: Microbiological quality of improved water sources at point of collection | BB50: Not contaminated (No E. coli in 100 mL) | BC50: N/A | BD50: N/A | BE50: N/A | BF50: N/A | BG50: N/A | BH50: N/A | BI50: N/A | BJ50: N/A | BK50: N/A | BL50: N/A | BM50: N/A | BN50: N/A | BO50: N/A | BP50: N/A | BQ50: N/A
B51: Contaminated (E. coli detected in 100 mL) | C51: N/A | D51: N/A | E51: N/A | F51: N/A | G51: N/A | H51: N/A | I51: N/A | J51: N/A | K51: N/A | L51: N/A | M51: N/A | N51: N/A | O51: N/A | P51: N/A | Q51: N/A | BB51: Contaminated (E. coli detected in 100 mL) | BC51: N/A | BD51: N/A | BE51: N/A | BF51: N/A | BG51: N/A | BH51: N/A | BI51: N/A | BJ51: N/A | BK51: N/A | BL51: N/A | BM51: N/A | BN51: N/A | BO51: N/A | BP51: N/A | BQ51: N/A
B52: Highly contaminated (>100 CFU/100 mL) | C52: N/A | D52: N/A | E52: N/A | F52: N/A | G52: N/A | H52: N/A | I52: N/A | J52: N/A | K52: N/A | L52: N/A | M52: N/A | N52: N/A | O52: N/A | P52: N/A | Q52: N/A | BB52: Highly contaminated (>100 CFU/100 mL) | BC52: N/A | BD52: N/A | BE52: N/A | BF52: N/A | BG52: N/A | BH52: N/A | BI52: N/A | BJ52: N/A | BK52: N/A | BL52: N/A | BM52: N/A | BN52: N/A | BO52: N/A | BP52: N/A | BQ52: N/A
A53: Microbiological quality of piped on premises at point of collection | B53: Not contaminated (No E. coli in 100 mL) | C53: N/A | D53: N/A | E53: N/A | F53: N/A | G53: N/A | H53: N/A | I53: N/A | J53: N/A | K53: N/A | L53: N/A | M53: N/A | N53: N/A | O53: N/A | P53: N/A | Q53: N/A | BA53: Microbiological quality of piped on premises at point of collection | BB53: Not contaminated (No E. coli in 100 mL) | BC53: N/A | BD53: N/A | BE53: N/A | BF53: N/A | BG53: N/A | BH53: N/A | BI53: N/A | BJ53: N/A | BK53: N/A | BL53: N/A | BM53: N/A | BN53: N/A | BO53: N/A | BP53: N/A | BQ53: N/A
B54: Contaminated (E. coli detected in 100 mL) | C54: N/A | D54: N/A | E54: N/A | F54: N/A | G54: N/A | H54: N/A | I54: N/A | J54: N/A | K54: N/A | L54: N/A | M54: N/A | N54: N/A | O54: N/A | P54: N/A | Q54: N/A | BB54: Contaminated (E. coli detected in 100 mL) | BC54: N/A | BD54: N/A | BE54: N/A | BF54: N/A | BG54: N/A | BH54: N/A | BI54: N/A | BJ54: N/A | BK54: N/A | BL54: N/A | BM54: N/A | BN54: N/A | BO54: N/A | BP54: N/A | BQ54: N/A
B55: Highly contaminated (>100 CFU/100 mL) | C55: N/A | D55: N/A | E55: N/A | F55: N/A | G55: N/A | H55: N/A | I55: N/A | J55: N/A | K55: N/A | L55: N/A | M55: N/A | N55: N/A | O55: N/A | P55: N/A | Q55: N/A | BB55: Highly contaminated (>100 CFU/100 mL) | BC55: N/A | BD55: N/A | BE55: N/A | BF55: N/A | BG55: N/A | BH55: N/A | BI55: N/A | BJ55: N/A | BK55: N/A | BL55: N/A | BM55: N/A | BN55: N/A | BO55: N/A | BP55: N/A | BQ55: N/A
C56: NATIONAL wealth index quintile | H56: URBAN wealth index quintile | M56: RURAL wealth index quintile | BA56: Raw numbers of respondents: | BB56: Use of drinking water sources | BC56: NATIONAL wealth index quintile | BH56: URBAN wealth index quintile | BM56: RURAL wealth index quintile
A57: Percentage based on weighted population | C57: Poorest | D57: Poor | E57: Middle | F57: Rich | G57: Richest | H57: Poorest | I57: Poor | J57: Middle | K57: Rich | L57: Richest | M57: Poorest | N57: Poor | O57: Middle | P57: Rich | Q57: Richest | BA57: Water data, raw numbers (weighted) | BC57: Poorest | BD57: Poor | BE57: Middle | BF57: Rich | BG57: Richest | BH57: Poorest | BI57: Poor | BJ57: Middle | BK57: Rich | BL57: Richest | BM57: Poorest | BN57: Poor | BO57: Middle | BP57: Rich | BQ57: Richest
A58: main source of drinking water | B58: Piped water through house connection or yard | C58: 0.5968364926 | D58: 0.4610517653 | E58: 1.140347913 | F58: 11.97188161 | G58: 61.91905154 | H58: 5.840934475 | I58: 21.18969512 | J58: 30.12034497 | K58: 59.69948598 | L58: 85.84241392 | M58: 0.4388478606 | N58: 0.2758370614 | O58: 0.3929894752 | P58: 0 | Q58: 13.15258463
B59: Public standpipe | C59: 2.644672609 | D59: 3.572712059 | E59: 10.17509377 | F59: 35.59565053 | G59: 25.69511093 | H59: 31.31669988 | I59: 54.99545611 | J59: 49.29715495 | K59: 30.96416203 | L59: 10.68960029 | M59: 2.041549986 | N59: 1.731909962 | O59: 3.192884055 | P59: 5.442967516 | Q59: 11.44079877
B60: Protected tube well or bore hole | C60: 19.13557733 | D60: 21.05896947 | E60: 20.51993165 | F60: 12.89718832 | G60: 4.117389227 | H60: 10.70637688 | I60: 3.069778522 | J60: 1.93569497 | K60: 1.599305304 | L60: 0.9040443649 | M60: 18.33501747 | N60: 22.72167079 | O60: 20.74329538 | P60: 22.35108462 | Q60: 25.51349987
B61: Protected dug well or protected spring | C61: 15.30279494 | D61: 13.2469026 | E61: 21.1798866 | F61: 16.83821104 | G61: 5.00894459 | H61: 27.29205855 | I61: 13.44060272 | J61: 6.336958783 | K61: 5.198689805 | L61: 1.962393825 | M61: 16.0820779 | N61: 13.65329772 | O61: 13.78901066 | P61: 18.290405 | Q61: 18.22965446
B62: Unprotected dug well or spring | C62: 41.69418891 | D62: 41.94161522 | E62: 28.02081239 | F62: 17.27905315 | G62: 2.013388094 | H62: 20.86103008 | I62: 6.131405714 | J62: 10.69805844 | K62: 1.313557031 | L62: 0.3590307689 | M62: 42.24362915 | N62: 41.97015837 | O62: 40.09523052 | P62: 31.15730358 | Q62: 21.28567102
B63: Rainwater (into tank or cistern ) | C63: 0.1007006568 | D63: 0.105896052 | E63: 0.2494024648 | F63: 0 | G63: 0 | H63: 0 | I63: 0 | J63: 0 | K63: 0 | L63: 0 | M63: 0.1506265475 | N63: 0 | O63: 0.3145666594 | P63: 0.2042601585 | Q63: 0
B64: Water taken directly from pond-water or stream | C64: 20.52522906 | D64: 19.52213013 | E64: 18.71452521 | F64: 5.418015358 | G64: 1.246115617 | H64: 3.982900135 | I64: 1.173061813 | J64: 1.611787891 | K64: 1.22479985 | L64: 0.2425168319 | M64: 20.70825109 | N64: 19.64712609 | O64: 21.33727629 | P64: 22.55397913 | Q64: 10.37779125
B65: Tanker-truck, vendor | C65: 0 | D65: 0.09072270999 | E65: 0 | F65: 0 | G65: 0 | H65: 0 | I65: 0 | J65: 0 | K65: 0 | L65: 0 | M65: 0 | N65: 0 | O65: 0.1347469547 | P65: 0 | Q65: 0
A108: =A1026 -> Zambia
A109: =A1034 -> 2003
A110: Use of sanitation facilities
A111: by wealth quintile and sub-national region
A112: Notes:
A113: WHO/UNICEF JMP customised wealth index excludes water,
A114: sanitation and hygiene assets.
A115: Survey used for analysis: | B115: =A1025 -> WHS03
A116: =B1030 -> 
A117: =B1029 -> 
A120: Use of sanitation facilities | C120: NATIONAL wealth index quintile | H120: URBAN wealth index quintile | M120: RURAL wealth index quintile | BA120: Raw numbers of respondents: | BB120: Use of sanitation facilities | BC120: NATIONAL wealth index quintile | BH120: URBAN wealth index quintile | BM120: RURAL wealth index quintile
A121: Weighted percentage (used in graphs) | C121: Poorest | D121: Poor | E121: Middle | F121: Rich | G121: Richest | H121: Poorest | I121: Poor | J121: Middle | K121: Rich | L121: Richest | M121: Poorest | N121: Poor | O121: Middle | P121: Rich | Q121: Richest | BA121: Sanitation data, raw numbers (weighted) | BC121: Poorest | BD121: Poor | BE121: Middle | BF121: Rich | BG121: Richest | BH121: Poorest | BI121: Poor | BJ121: Middle | BK121: Rich | BL121: Richest | BM121: Poorest | BN121: Poor | BO121: Middle | BP121: Rich | BQ121: Richest
A122: Sanitation | B122: Improved | C122: 39.84602059 | D122: 56.76606728 | E122: 66.75595796 | F122: 75.72527435 | G122: 96.59077381 | H122: 79.70094326 | I122: 88.26969848 | J122: 94.62915724 | K122: 95.91508491 | L122: 98.87152694 | M122: 38.90940844 | N122: 44.73307045 | O122: 63.39125687 | P122: 62.60594113 | Q122: 66.2749188 | BA122: Sanitation | BB122: Improved | BC122: 134169.4389 | BD122: 190601.8459 | BE122: 224777.316 | BF122: 254752.3472 | BG122: 324802.8075 | BH122: 88186.32766 | BI122: 97570.23321 | BJ122: 104775.7012 | BK122: 106515.3377 | BL122: 109393.9598 | BM122: 87722.00554 | BN122: 100975.8839 | BO122: 143058.5586 | BP122: 141254.2919 | BQ122: 149651.456
B123: Not Improved | C123: 60.15397941 | D123: 43.23393272 | E123: 33.24404204 | F123: 24.27472565 | G123: 3.409226185 | H123: 20.29905674 | I123: 11.73030152 | J123: 5.370842764 | K123: 4.084915088 | L123: 1.128473057 | M123: 61.09059156 | N123: 55.26692955 | O123: 36.60874313 | P123: 37.39405887 | Q123: 33.7250812 | BB123: Not Improved | BC123: 202550.3562 | BD123: 145165.3739 | BE123: 111937.6722 | BF123: 81664.19194 | BG123: 11464.09945 | BH123: 22460.2018 | BI123: 12966.26446 | BJ123: 5946.727554 | BK123: 4536.367878 | BL123: 1248.571152 | BM123: 137729.9071 | BN123: 124753.9461 | BO123: 82616.97719 | BP123: 84370.12862 | BQ123: 76152.60187
A124: Sanitation ladder | B124: Basic | C124: =C122*C129/100 -> 32.77253186 | D124: =D122*D129/100 -> 48.0331058 | E124: =E122*E129/100 -> 56.15607936 | F124: 42.84888526 | G124: 67.25713714 | H124: 55.71845057 | I124: 42.53654417 | J124: 28.09798321 | K124: 59.46426752 | L124: 85.03871334 | M124: 31.40875895 | N124: 36.29190597 | O124: 56.94842758 | P124: 53.30183867 | Q124: 59.17210298 | BA124: Sanitation ladder | BB124: Basic | BC124: 77396.48683 | BD124: 113429.6583 | BE124: 154237.0659 | BF124: 116631.4633 | BG124: 205141.5738 | BH124: 47248.33169 | BI124: 39893.1633 | BJ124: 27850.94741 | BK124: 59565.5282 | BL124: 90252.81823 | BM124: 47777.44963 | BN124: 56174.34123 | BO124: 93966.69791 | BP124: 99499.9868 | BQ124: 104606.9837
B125: Limited | C125: =C122*C128/100 -> 7.073488737 | D125: =D122*D128/100 -> 8.732961475 | E125: =E122*E128/100 -> 10.5998786 | F125: 32.87638909 | G125: 29.33363667 | H125: 23.98249269 | I125: 45.73315431 | J125: 66.53117402 | K125: 36.45081739 | L125: 13.8328136 | M125: 7.500649495 | N125: 8.441164486 | O125: 6.442829289 | P125: 9.30410246 | Q125: 7.102815819 | BB125: Limited | BC125: 16704.93999 | BD125: 20622.79379 | BE125: 29113.39596 | BF125: 89487.07406 | BG125: 89470.77807 | BH125: 20336.76023 | BI125: 42891.12407 | BJ125: 65946.23587 | BK125: 36512.88886 | BL125: 14680.96544 | BM125: 11409.61679 | BN125: 13065.63658 | BO125: 10630.87111 | BP125: 17368.22021 | BQ125: 12556.6627
B126: Unimproved | C126: =100-C124-C125-C127 -> 5.463579412 | D126: =100-D124-D125-D127 -> 5.700153741 | E126: =100-E124-E125-E127 -> 12.70240377 | F126: 20.41905579 | G126: 3.347778208 | H126: 6.739610947 | I126: 9.45147292 | J126: 5.370842764 | K126: 3.897986507 | L126: 1.128473057 | M126: 4.809540526 | N126: 6.163821472 | O126: 3.702966288 | P126: 14.78101901 | Q126: 27.92738298 | BB126: Unimproved | BC126: 40310.30949 | BD126: 40364.37222 | BE126: 51280.65188 | BF126: 70568.23997 | BG126: 11276.02166 | BH126: 10250.55901 | BI126: 10784.27351 | BJ126: 5946.727554 | BK126: 4348.290089 | BL126: 1248.571152 | BM126: 26902.96475 | BN126: 29496.89999 | BO126: 21012.5764 | BP126: 38864.02357 | BQ126: 64944.70918
B127: Open defecation | C127: 54.6904 | D127: 37.53377898 | E127: 20.54163827 | F127: 3.855669864 | G127: 0.06144797763 | H127: 13.55944579 | I127: 2.278828595 | J127: 0 | K127: 0.1869285805 | L127: 0 | M127: 56.28105103 | N127: 49.10310807 | O127: 32.90577684 | P127: 22.61303986 | Q127: 5.79769822 | BB127: Open defecation | BC127: 162240.0468 | BD127: 104801.0017 | BE127: 60657.02036 | BF127: 11095.95197 | BG127: 188.0777893 | BH127: 12209.64279 | BI127: 2181.990955 | BJ127: 0 | BK127: 188.0777893 | BL127: 0 | BM127: 110826.9424 | BN127: 95257.04613 | BO127: 61604.40079 | BP127: 45506.10504 | BQ127: 11207.89268
A128: Shared among Improved Sanitation | B128: Yes | C128: 17.75205813 | D128: 15.38412276 | E128: 15.87855066 | F128: 43.41534497 | G128: 30.36898403 | H128: 30.09060083 | I128: 51.81070639 | J128: 70.30726677 | K128: 38.00321652 | L128: 13.99069482 | M128: 19.27721288 | N128: 18.87007621 | O128: 10.16359291 | P128: 14.86137304 | Q128: 10.71720033 | BA128: Shared among improved sanitation facilities | BB128: Yes | BC128: N/A | BD128: N/A | BE128: N/A | BF128: N/A | BG128: N/A | BH128: N/A | BI128: N/A | BJ128: N/A | BK128: N/A | BL128: N/A | BM128: N/A | BN128: N/A | BO128: N/A | BP128: N/A | BQ128: N/A
B129: No | C129: 82.24794187 | D129: 84.61587724 | E129: 84.12144934 | F129: 56.58465503 | G129: 69.63101597 | H129: 69.90939917 | I129: 48.18929361 | J129: 29.69273323 | K129: 61.99678348 | L129: 86.00930518 | M129: 80.72278712 | N129: 81.12992379 | O129: 89.83640709 | P129: 85.13862696 | Q129: 89.28279967 | BB129: No | BC129: N/A | BD129: N/A | BE129: N/A | BF129: N/A | BG129: N/A | BH129: N/A | BI129: N/A | BJ129: N/A | BK129: N/A | BL129: N/A | BM129: N/A | BN129: N/A | BO129: N/A | BP129: N/A | BQ129: N/A
A130: Manually calculated ratios | B130: Improved latrines
B131: Other
B132: Other
C133: NATIONAL wealth index quintile | H133: URBAN wealth index quintile | M133: RURAL wealth index quintile | BA133: Raw numbers of respondents: | BB133: Use of sanitation facilities | BC133: NATIONAL wealth index quintile | BH133: URBAN wealth index quintile | BM133: RURAL wealth index quintile
A134: Percentage based on weighted population | C134: Poorest | D134: Poor | E134: Middle | F134: Rich | G134: Richest | H134: Poorest | I134: Poor | J134: Middle | K134: Rich | L134: Richest | M134: Poorest | N134: Poor | O134: Middle | P134: Rich | Q134: Richest | BA134: Sanitation data, raw numbers (weighted) | BC134: Poorest | BD134: Poor | BE134: Middle | BF134: Rich | BG134: Richest | BH134: Poorest | BI134: Poor | BJ134: Middle | BK134: Rich | BL134: Richest | BM134: Poorest | BN134: Poor | BO134: Middle | BP134: Rich | BQ134: Richest
A135: Sanitation type | B135: Sewer connection | C135: 0 | D135: 0.4102763035 | E135: 0.5123330965 | F135: 5.497281602 | G135: 48.56598823 | H135: 2.18075897 | I135: 10.06967705 | J135: 22.09535012 | K135: 39.52407296 | L135: 76.90932044 | M135: 0 | N135: 0.194197598 | O135: 0.4120687073 | P135: 0 | Q135: 7.327060472 | BA135: Sanitation type | BB135: Sewer connection | BC135: N/A | BD135: N/A | BE135: N/A | BF135: N/A | BG135: N/A | BH135: N/A | BI135: N/A | BJ135: N/A | BK135: N/A | BL135: N/A | BM135: N/A | BN135: N/A | BO135: N/A | BP135: N/A | BQ135: N/A
B136: Septic tank connection | C136: 0.1520985164 | D136: 0 | E136: 0.06702800195 | F136: 1.181121926 | G136: 5.747508439 | H136: 0.2039768712 | I136: 2.803854374 | J136: 2.526901045 | K136: 6.019096274 | L136: 5.858635255 | M136: 0.2271641021 | N136: 0 | O136: 0 | P136: 0 | Q136: 1.876351721 | BB136: Septic tank connection | BC136: N/A | BD136: N/A | BE136: N/A | BF136: N/A | BG136: N/A | BH136: N/A | BI136: N/A | BJ136: N/A | BK136: N/A | BL136: N/A | BM136: N/A | BN136: N/A | BO136: N/A | BP136: N/A | BQ136: N/A
B137: Improved latrines | C137: 39.69392208 | D137: 56.35579097 | E137: 66.17659686 | F137: 69.04687082 | G137: 42.27727715 | H137: 77.31620742 | I137: 75.39616706 | J137: 70.00690607 | K137: 50.37191568 | L137: 16.10357125 | M137: 38.68224434 | N137: 44.53887286 | O137: 62.97918816 | P137: 62.60594113 | Q137: 57.0715066 | BB137: Improved latrines | BC137: N/A | BD137: N/A | BE137: N/A | BF137: N/A | BG137: N/A | BH137: N/A | BI137: N/A | BJ137: N/A | BK137: N/A | BL137: N/A | BM137: N/A | BN137: N/A | BO137: N/A | BP137: N/A | BQ137: N/A
B138: Unimproved facilities | C138: 11.97147007 | D138: 12.02153452 | E138: 15.22969089 | F138: 20.97644787 | G138: 3.353295083 | H138: 9.264239065 | I138: 9.756301071 | J138: 5.370842764 | K138: 3.915554529 | L138: 1.128473057 | M138: 11.93290597 | N138: 13.06734692 | O138: 9.310967771 | P138: 17.22509624 | Q138: 28.76153325 | BB138: Unimproved facilities | BC138: N/A | BD138: N/A | BE138: N/A | BF138: N/A | BG138: N/A | BH138: N/A | BI138: N/A | BJ138: N/A | BK138: N/A | BL138: N/A | BM138: N/A | BN138: N/A | BO138: N/A | BP138: N/A | BQ138: N/A
B139: Open defecation | C139: 48.18250934 | D139: 31.21239821 | E139: 18.01435115 | F139: 3.298277783 | G139: 0.05593110277 | H139: 11.03481768 | I139: 1.974000445 | J139: 0 | K139: 0.1693605589 | L139: 0 | M139: 49.15768558 | N139: 42.19958262 | O139: 27.29777536 | P139: 20.16896263 | Q139: 4.96354795 | BB139: Open defecation | BC139: N/A | BD139: N/A | BE139: N/A | BF139: N/A | BG139: N/A | BH139: N/A | BI139: N/A | BJ139: N/A | BK139: N/A | BL139: N/A | BM139: N/A | BN139: N/A | BO139: N/A | BP139: N/A | BQ139: N/A
A140: Septic tank emptying practices | B140: Not emptied/treated and disposed in situ | C140: N/A | D140: N/A | E140: N/A | F140: N/A | G140: N/A | H140: N/A | I140: N/A | J140: N/A | K140: N/A | L140: N/A | M140: N/A | N140: N/A | O140: N/A | P140: N/A | Q140: N/A | BA140: Septic tank emptying practices | BB140: Not emptied/treated and disposed in situ | BC140: N/A | BD140: N/A | BE140: N/A | BF140: N/A | BG140: N/A | BH140: N/A | BI140: N/A | BJ140: N/A | BK140: N/A | BL140: N/A | BM140: N/A | BN140: N/A | BO140: N/A | BP140: N/A | BQ140: N/A
B141: Emptied and buried on site | C141: N/A | D141: N/A | E141: N/A | F141: N/A | G141: N/A | H141: N/A | I141: N/A | J141: N/A | K141: N/A | L141: N/A | M141: N/A | N141: N/A | O141: N/A | P141: N/A | Q141: N/A | BB141: Emptied and buried on site | BC141: N/A | BD141: N/A | BE141: N/A | BF141: N/A | BG141: N/A | BH141: N/A | BI141: N/A | BJ141: N/A | BK141: N/A | BL141: N/A | BM141: N/A | BN141: N/A | BO141: N/A | BP141: N/A | BQ141: N/A
B142: Emptied and discharged locally | C142: N/A | D142: N/A | E142: N/A | F142: N/A | G142: N/A | H142: N/A | I142: N/A | J142: N/A | K142: N/A | L142: N/A | M142: N/A | N142: N/A | O142: N/A | P142: N/A | Q142: N/A | BB142: Emptied and discharged locally | BC142: N/A | BD142: N/A | BE142: N/A | BF142: N/A | BG142: N/A | BH142: N/A | BI142: N/A | BJ142: N/A | BK142: N/A | BL142: N/A | BM142: N/A | BN142: N/A | BO142: N/A | BP142: N/A | BQ142: N/A
B143: Emptied and removed offsite | C143: N/A | D143: N/A | E143: N/A | F143: N/A | G143: N/A | H143: N/A | I143: N/A | J143: N/A | K143: N/A | L143: N/A | M143: N/A | N143: N/A | O143: N/A | P143: N/A | Q143: N/A | BB143: Emptied and removed offsite | BC143: N/A | BD143: N/A | BE143: N/A | BF143: N/A | BG143: N/A | BH143: N/A | BI143: N/A | BJ143: N/A | BK143: N/A | BL143: N/A | BM143: N/A | BN143: N/A | BO143: N/A | BP143: N/A | BQ143: N/A
A144: Latrine emptying practices | B144: Not emptied/treated and disposed in situ | C144: N/A | D144: N/A | E144: N/A | F144: N/A | G144: N/A | H144: N/A | I144: N/A | J144: N/A | K144: N/A | L144: N/A | M144: N/A | N144: N/A | O144: N/A | P144: N/A | Q144: N/A | BA144: Latrine emptying practices | BB144: Not emptied/treated and disposed in situ | BC144: N/A | BD144: N/A | BE144: N/A | BF144: N/A | BG144: N/A | BH144: N/A | BI144: N/A | BJ144: N/A | BK144: N/A | BL144: N/A | BM144: N/A | BN144: N/A | BO144: N/A | BP144: N/A | BQ144: N/A
B145: Emptied and buried on site | C145: N/A | D145: N/A | E145: N/A | F145: N/A | G145: N/A | H145: N/A | I145: N/A | J145: N/A | K145: N/A | L145: N/A | M145: N/A | N145: N/A | O145: N/A | P145: N/A | Q145: N/A | BB145: Emptied and buried on site | BC145: N/A | BD145: N/A | BE145: N/A | BF145: N/A | BG145: N/A | BH145: N/A | BI145: N/A | BJ145: N/A | BK145: N/A | BL145: N/A | BM145: N/A | BN145: N/A | BO145: N/A | BP145: N/A | BQ145: N/A
B146: Emptied and discharged locally | C146: N/A | D146: N/A | E146: N/A | F146: N/A | G146: N/A | H146: N/A | I146: N/A | J146: N/A | K146: N/A | L146: N/A | M146: N/A | N146: N/A | O146: N/A | P146: N/A | Q146: N/A | BB146: Emptied and discharged locally | BC146: N/A | BD146: N/A | BE146: N/A | BF146: N/A | BG146: N/A | BH146: N/A | BI146: N/A | BJ146: N/A | BK146: N/A | BL146: N/A | BM146: N/A | BN146: N/A | BO146: N/A | BP146: N/A | BQ146: N/A
B147: Emptied and removed offsite | C147: N/A | D147: N/A | E147: N/A | F147: N/A | G147: N/A | H147: N/A | I147: N/A | J147: N/A | K147: N/A | L147: N/A | M147: N/A | N147: N/A | O147: N/A | P147: N/A | Q147: N/A | BB147: Emptied and removed offsite | BC147: N/A | BD147: N/A | BE147: N/A | BF147: N/A | BG147: N/A | BH147: N/A | BI147: N/A | BJ147: N/A | BK147: N/A | BL147: N/A | BM147: N/A | BN147: N/A | BO147: N/A | BP147: N/A | BQ147: N/A
A148: Shared among improved sanitation facilities | B148: Yes | C148: 4.961080467 | D148: 6.141991408 | E148: 8.646302356 | F148: 26.60008164 | G148: 26.60707201 | H148: 18.37993503 | I148: 38.80268054 | J148: 59.55996142 | K148: 32.87917881 | L148: 13.26882647 | M148: 5.060776223 | N148: 5.788174554 | O148: 4.710688322 | P148: 7.697845906 | Q148: 5.56086672 | BA148: Shared among improved sanitation facilities | BB148: Yes | BC148: N/A | BD148: N/A | BE148: N/A | BF148: N/A | BG148: N/A | BH148: N/A | BI148: N/A | BJ148: N/A | BK148: N/A | BL148: N/A | BM148: N/A | BN148: N/A | BO148: N/A | BP148: N/A | BQ148: N/A
B149: No | C149: 22.98542822 | D149: 33.78223115 | E149: 45.8064153 | F149: 34.66876617 | G149: 61.00557906 | H149: 42.7020458 | I149: 36.0904897 | J149: 25.15384436 | K149: 53.63765272 | L149: 81.57154165 | M149: 21.1918582 | N149: 24.88565256 | O149: 41.63796381 | P149: 44.09983041 | Q149: 46.32644103 | BB149: No | BC149: N/A | BD149: N/A | BE149: N/A | BF149: N/A | BG149: N/A | BH149: N/A | BI149: N/A | BJ149: N/A | BK149: N/A | BL149: N/A | BM149: N/A | BN149: N/A | BO149: N/A | BP149: N/A | BQ149: N/A
B150: DK/missing | C150: 72.05349131 | D150: 60.07577745 | E150: 45.54728234 | F150: 38.73115219 | G150: 12.38734894 | H150: 38.91801917 | I150: 25.10682977 | J150: 15.28619422 | K150: 13.48316847 | L150: 5.159631879 | M150: 73.74736558 | N150: 69.32617288 | O150: 53.65134787 | P150: 48.20232368 | Q150: 48.11269225 | BB150: DK/missing | BC150: N/A | BD150: N/A | BE150: N/A | BF150: N/A | BG150: N/A | BH150: N/A | BI150: N/A | BJ150: N/A | BK150: N/A | BL150: N/A | BM150: N/A | BN150: N/A | BO150: N/A | BP150: N/A | BQ150: N/A
A151: Shared among all sanitation facilities | B151: Yes | C151: 6.551069378 | D151: 8.212373149 | E151: 10.37386396 | F151: 28.73229016 | G151: 26.92492135 | H151: 19.56483003 | I151: 43.20326267 | J151: 60.71022497 | K151: 32.87917881 | L151: 13.47102463 | M151: 6.87448958 | N151: 7.436223152 | O151: 7.061053235 | P151: 9.294513977 | Q151: 6.43590938 | BA151: Shared among all sanitation facilities | BB151: Yes | BC151: N/A | BD151: N/A | BE151: N/A | BF151: N/A | BG151: N/A | BH151: N/A | BI151: N/A | BJ151: N/A | BK151: N/A | BL151: N/A | BM151: N/A | BN151: N/A | BO151: N/A | BP151: N/A | BQ151: N/A
B152: No | C152: 25.53256326 | D152: 37.68043179 | E152: 48.78810684 | F152: 36.83422041 | G152: 62.04946666 | H152: 48.972143 | I152: 37.3674927 | J152: 26.82153481 | K152: 54.47223374 | L152: 81.95882016 | M152: 23.06182468 | N152: 28.50350606 | O152: 44.26231582 | P152: 46.86785846 | Q152: 49.16042442 | BB152: No | BC152: N/A | BD152: N/A | BE152: N/A | BF152: N/A | BG152: N/A | BH152: N/A | BI152: N/A | BJ152: N/A | BK152: N/A | BL152: N/A | BM152: N/A | BN152: N/A | BO152: N/A | BP152: N/A | BQ152: N/A
A153: What type of toilet facilities | B153: Flush to piped sewage system | C153: 0 | D153: 0.4102763035 | E153: 0.5572340975 | F153: 6.499812369 | G153: 49.37060475 | H153: 2.18075897 | I153: 10.44853229 | J153: 22.50296461 | K153: 40.45610358 | L153: 77.20984637 | M153: 0 | N153: 0.194197598 | O153: 0.4120687073 | P153: 0 | Q153: 9.630564342 | BA153: What type of toilet facilities | BB153: Flush to piped sewage system | BC153: 0 | BD153: 1377.573338 | BE153: 1725.102325 | BF153: 18493.76451 | BG153: 163311.3464 | BH153: 2412.934116 | BI153: 11130.66834 | BJ153: 24464.5083 | BK153: 43892.15715 | BL153: 85094.41868 | BM153: 0 | BN153: 438.361908 | BO153: 929.9382629 | BP153: 0 | BQ153: 16544.79987
B154: Flush to septic tank | C154: 0.1520985164 | D154: 0 | E154: 0.07290235284 | F154: 1.396521309 | G154: 5.842730228 | H154: 0.2039768712 | I154: 2.90934484 | J154: 2.573517256 | K154: 6.161034632 | L154: 5.881528083 | M154: 0.2271641021 | N154: 0 | O154: 0 | P154: 0 | Q154: 2.466244963 | BB154: Flush to septic tank | BC154: 512.145813 | BD154: 0 | BE154: 225.6933289 | BF154: 3973.489506 | BG154: 19326.96886 | BH154: 225.6933289 | BI154: 3099.282425 | BJ154: 2797.84621 | BK154: 6684.309074 | BL154: 6482.142326 | BM154: 512.145813 | BN154: 0 | BO154: 0 | BP154: 0 | BQ154: 4236.878326
B155: Pour flush latrine | C155: 0.1054140616 | D155: 0 | E155: 0 | F155: 0.8714621322 | G155: 3.011987395 | H155: 0 | I155: 1.354525127 | J155: 2.3161958 | K155: 3.637328282 | L155: 1.761908975 | M155: 0.1574393439 | N155: 0 | O155: 0 | P155: 0 | Q155: 1.509744667 | BB155: Pour flush latrine | BC155: 354.9500122 | BD155: 0 | BE155: 0 | BF155: 2479.550877 | BG155: 9963.250793 | BH155: 0 | BI155: 1442.955769 | BJ155: 2518.094498 | BK155: 3946.257065 | BL155: 1941.832901 | BM155: 354.9500122 | BN155: 0 | BO155: 0 | BP155: 0 | BQ155: 2593.661438
B156: Covered dry latrine (with privacy) | C156: 39.58850801 | D156: 56.35579097 | E156: 71.9763304 | F156: 80.76738002 | G156: 39.96571812 | H156: 77.31620742 | I156: 76.87830024 | J156: 68.982196 | K156: 47.92242469 | L156: 14.40458756 | M156: 38.524805 | N156: 44.53887286 | O156: 62.97918816 | P156: 69.19640603 | Q156: 73.50407821 | BB156: Covered dry latrine (with privacy) | BC156: 133302.3431 | BD156: 189224.2725 | BE156: 222826.5203 | BF156: 229805.5423 | BG156: 132201.2414 | BH156: 85547.70021 | BI156: 81897.32668 | BJ156: 74995.25222 | BK156: 51992.61445 | BL156: 15875.56591 | BM156: 86854.90971 | BN156: 100537.522 | BO156: 142128.6203 | BP156: 141254.2919 | BQ156: 126276.1163
B157: Uncovered dry latrine (without privacy) | C157: 7.257494716 | D157: 8.660912595 | E157: 6.261278942 | F157: 6.309500858 | G157: 1.287131285 | H157: 7.793334941 | I157: 6.174091554 | J157: 3.625126331 | K157: 0.2320999376 | L157: 0.7421290111 | M157: 8.252380776 | N157: 7.342254283 | O157: 6.847372236 | P157: 6.692837558 | Q157: 6.173967216 | BB157: Uncovered dry latrine (without privacy) | BC157: 24437.42134 | BD157: 29080.50542 | BE157: 19383.85844 | BF157: 17952.27561 | BG157: 4257.657856 | BH157: 8623.054642 | BI157: 6577.169258 | BJ157: 3941.122192 | BK157: 251.8128548 | BL157: 817.9142914 | BM157: 18605.1503 | BN157: 16573.65811 | BO157: 15452.84398 | BP157: 13662.44411 | BQ157: 10606.54893
B158: Bucket latrine (where fresh excreta are manually removed) | C158: 0.07947260896 | D158: 0 | E158: 0.1242041652 | F158: 0 | G158: 0.4649704805 | H158: 0.3475165891 | I158: 0 | J158: 0 | K158: 1.417654567 | L158: 0 | M158: 0 | N158: 0.1185488006 | O158: 0 | P158: 0 | Q158: 0 | BB158: Bucket latrine (where fresh excreta are manually removed) | BC158: 267.6000061 | BD158: 0 | BE158: 384.5150452 | BF158: 0 | BG158: 1538.060059 | BH158: 384.5150452 | BI158: 0 | BJ158: 0 | BK158: 1538.060059 | BL158: 0 | BM158: 0 | BN158: 267.6000061 | BO158: 0 | BP158: 0 | BQ158: 0
B159: No facilities (open defecation) | C159: 48.18250934 | D159: 31.21239821 | E159: 19.5931334 | F159: 3.899779615 | G159: 0.05685774075 | H159: 11.03481768 | I159: 2.048269004 | J159: 0 | K159: 0.1733543079 | L159: 0 | M159: 49.15768558 | N159: 42.19958262 | O159: 27.29777536 | P159: 22.29212918 | Q159: 6.524003464 | BB159: No facilities (open defecation) | BC159: 162240.0468 | BD159: 104801.0017 | BE159: 60657.02036 | BF159: 11095.95197 | BG159: 188.0777893 | BH159: 12209.64279 | BI159: 2181.990955 | BJ159: 0 | BK159: 188.0777893 | BL159: 0 | BM159: 110826.9424 | BN159: 95257.04613 | BO159: 61604.40079 | BP159: 45506.10504 | BQ159: 11207.89268
B160: Other | C160: 4.634502744 | D160: 3.360621921 | E160: 1.41491664 | F160: 0.2555437002 | G160: 0 | H160: 1.123387534 | I160: 0.1869369463 | J160: 0 | K160: 0 | L160: 0 | M160: 3.680525197 | N160: 5.606543838 | O160: 2.463595535 | P160: 1.81862723 | Q160: 0.1913971358 | BB160: Other | BC160: 15605.28815 | BD160: 11283.86679 | BE160: 4380.342117 | BF160: 727.0925293 | BG160: 0 | BH160: 1242.989319 | BI160: 199.1411896 | BJ160: 0 | BK160: 0 | BL160: 0 | BM160: 8297.814453 | BN160: 12655.64188 | BO160: 5559.732422 | BP160: 3712.460175 | BQ160: 328.8101501
BB161: Total | BC161: 336719.7952 | BD161: 335767.2198 | BE161: 309583.0519 | BF161: 284527.6673 | BG161: 330786.6032 | BH161: 110646.5295 | BI161: 106528.5346 | BJ161: 108716.8234 | BK161: 108493.2884 | BL161: 110211.8741 | BM161: 225451.9127 | BN161: 225729.83 | BO161: 225675.5358 | BP161: 204135.3012 | BQ161: 171794.7077
A208: =A1026 -> Zambia
A209: =A1034 -> 2003
A210: Access to hygiene facilities
A211: by wealth quintile and sub-national region
A212: Notes:
A213: WHO/UNICEF JMP customised wealth index excludes water,
A214: sanitation and hygiene assets.
A215: Survey used for analysis: | B215: =A1025 -> WHS03
A220: Access to handwashing | C220: NATIONAL wealth index quintile | H220: URBAN wealth index quintile | M220: RURAL wealth index quintile | BA220: Raw numbers of respondents: | BB220: Access to handwashing | BC220: NATIONAL wealth index quintile | BH220: URBAN wealth index quintile | BM220: RURAL wealth index quintile
A221: Weighted percentage (used in graphs) | C221: Poorest | D221: Poor | E221: Middle | F221: Rich | G221: Richest | H221: Poorest | I221: Poor | J221: Middle | K221: Rich | L221: Richest | M221: Poorest | N221: Poor | O221: Middle | P221: Rich | Q221: Richest | BA221: Hygiene data, raw numbers (weighted) | BC221: Poorest | BD221: Poor | BE221: Middle | BF221: Rich | BG221: Richest | BH221: Poorest | BI221: Poor | BJ221: Middle | BK221: Rich | BL221: Richest | BM221: Poorest | BN221: Poor | BO221: Middle | BP221: Rich | BQ221: Richest
A222: Hygiene ladder | B222: Basic | C222: N/A | D222: N/A | E222: N/A | F222: N/A | G222: N/A | H222: N/A | I222: N/A | J222: N/A | K222: N/A | L222: N/A | M222: N/A | N222: N/A | O222: N/A | P222: N/A | Q222: N/A | BA222: Hygiene ladder | BB222: Basic | BC222: N/A | BD222: N/A | BE222: N/A | BF222: N/A | BG222: N/A | BH222: N/A | BI222: N/A | BJ222: N/A | BK222: N/A | BL222: N/A | BM222: N/A | BN222: N/A | BO222: N/A | BP222: N/A | BQ222: N/A
B223: Limited | C223: N/A | D223: N/A | E223: N/A | F223: N/A | G223: N/A | H223: N/A | I223: N/A | J223: N/A | K223: N/A | L223: N/A | M223: N/A | N223: N/A | O223: N/A | P223: N/A | Q223: N/A | BB223: Limited | BC223: N/A | BD223: N/A | BE223: N/A | BF223: N/A | BG223: N/A | BH223: N/A | BI223: N/A | BJ223: N/A | BK223: N/A | BL223: N/A | BM223: N/A | BN223: N/A | BO223: N/A | BP223: N/A | BQ223: N/A
B224: No facility | C224: N/A | D224: N/A | E224: N/A | F224: N/A | G224: N/A | H224: N/A | I224: N/A | J224: N/A | K224: N/A | L224: N/A | M224: N/A | N224: N/A | O224: N/A | P224: N/A | Q224: N/A | BB224: No facility | BC224: N/A | BD224: N/A | BE224: N/A | BF224: N/A | BG224: N/A | BH224: N/A | BI224: N/A | BJ224: N/A | BK224: N/A | BL224: N/A | BM224: N/A | BN224: N/A | BO224: N/A | BP224: N/A | BQ224: N/A
BA225: Observed handwashing place | BB225: Fixed | BC225: N/A | BD225: N/A | BE225: N/A | BF225: N/A | BG225: N/A | BH225: N/A | BI225: N/A | BJ225: N/A | BK225: N/A | BL225: N/A | BM225: N/A | BN225: N/A | BO225: N/A | BP225: N/A | BQ225: N/A
BB226: Mobile | BC226: N/A | BD226: N/A | BE226: N/A | BF226: N/A | BG226: N/A | BH226: N/A | BI226: N/A | BJ226: N/A | BK226: N/A | BL226: N/A | BM226: N/A | BN226: N/A | BO226: N/A | BP226: N/A | BQ226: N/A
BA227: Water / Soap | BB227: Water and soap | BC227: N/A | BD227: N/A | BE227: N/A | BF227: N/A | BG227: N/A | BH227: N/A | BI227: N/A | BJ227: N/A | BK227: N/A | BL227: N/A | BM227: N/A | BN227: N/A | BO227: N/A | BP227: N/A | BQ227: N/A
BB228: Water only | BC228: N/A | BD228: N/A | BE228: N/A | BF228: N/A | BG228: N/A | BH228: N/A | BI228: N/A | BJ228: N/A | BK228: N/A | BL228: N/A | BM228: N/A | BN228: N/A | BO228: N/A | BP228: N/A | BQ228: N/A
BB229: Soap only | BC229: N/A | BD229: N/A | BE229: N/A | BF229: N/A | BG229: N/A | BH229: N/A | BI229: N/A | BJ229: N/A | BK229: N/A | BL229: N/A | BM229: N/A | BN229: N/A | BO229: N/A | BP229: N/A | BQ229: N/A
BB230: Neither | BC230: N/A | BD230: N/A | BE230: N/A | BF230: N/A | BG230: N/A | BH230: N/A | BI230: N/A | BJ230: N/A | BK230: N/A | BL230: N/A | BM230: N/A | BN230: N/A | BO230: N/A | BP230: N/A | BQ230: N/A
BA259: Raw numbers of respondents: | BB259: Menstrual health and hygiene | BC259: NATIONAL wealth index quintile | BH259: URBAN wealth index quintile | BM259: RURAL wealth index quintile
BA260: MHH data, raw numbers (weighted) | BC260: Poorest | BD260: Poor | BE260: Middle | BF260: Rich | BG260: Richest | BH260: Poorest | BI260: Poor | BJ260: Middle | BK260: Rich | BL260: Richest | BM260: Poorest | BN260: Poor | BO260: Middle | BP260: Rich | BQ260: Richest
BA261: Private place to wash and change | BB261: Yes | BC261: N/A | BD261: N/A | BE261: N/A | BF261: N/A | BG261: N/A | BH261: N/A | BI261: N/A | BJ261: N/A | BK261: N/A | BL261: N/A | BM261: N/A | BN261: N/A | BO261: N/A | BP261: N/A | BQ261: N/A
BB262: No | BC262: N/A | BD262: N/A | BE262: N/A | BF262: N/A | BG262: N/A | BH262: N/A | BI262: N/A | BJ262: N/A | BK262: N/A | BL262: N/A | BM262: N/A | BN262: N/A | BO262: N/A | BP262: N/A | BQ262: N/A
BB263: DK/not sure/missing | BC263: N/A | BD263: N/A | BE263: N/A | BF263: N/A | BG263: N/A | BH263: N/A | BI263: N/A | BJ263: N/A | BK263: N/A | BL263: N/A | BM263: N/A | BN263: N/A | BO263: N/A | BP263: N/A | BQ263: N/A
BA264: Use of menstrual materials | BB264: Materials reusable | BC264: N/A | BD264: N/A | BE264: N/A | BF264: N/A | BG264: N/A | BH264: N/A | BI264: N/A | BJ264: N/A | BK264: N/A | BL264: N/A | BM264: N/A | BN264: N/A | BO264: N/A | BP264: N/A | BQ264: N/A
BB265: Materials not reusable | BC265: N/A | BD265: N/A | BE265: N/A | BF265: N/A | BG265: N/A | BH265: N/A | BI265: N/A | BJ265: N/A | BK265: N/A | BL265: N/A | BM265: N/A | BN265: N/A | BO265: N/A | BP265: N/A | BQ265: N/A
BB266: No materials used | BC266: N/A | BD266: N/A | BE266: N/A | BF266: N/A | BG266: N/A | BH266: N/A | BI266: N/A | BJ266: N/A | BK266: N/A | BL266: N/A | BM266: N/A | BN266: N/A | BO266: N/A | BP266: N/A | BQ266: N/A
BB267: DK/not sure/missing | BC267: N/A | BD267: N/A | BE267: N/A | BF267: N/A | BG267: N/A | BH267: N/A | BI267: N/A | BJ267: N/A | BK267: N/A | BL267: N/A | BM267: N/A | BN267: N/A | BO267: N/A | BP267: N/A | BQ267: N/A
BA268: Use of menstrual materials with private place to wash and change | BB268: Materials reusable | BC268: N/A | BD268: N/A | BE268: N/A | BF268: N/A | BG268: N/A | BH268: N/A | BI268: N/A | BJ268: N/A | BK268: N/A | BL268: N/A | BM268: N/A | BN268: N/A | BO268: N/A | BP268: N/A | BQ268: N/A
BB269: Materials not reusable | BC269: N/A | BD269: N/A | BE269: N/A | BF269: N/A | BG269: N/A | BH269: N/A | BI269: N/A | BJ269: N/A | BK269: N/A | BL269: N/A | BM269: N/A | BN269: N/A | BO269: N/A | BP269: N/A | BQ269: N/A
BB270: No materials used | BC270: N/A | BD270: N/A | BE270: N/A | BF270: N/A | BG270: N/A | BH270: N/A | BI270: N/A | BJ270: N/A | BK270: N/A | BL270: N/A | BM270: N/A | BN270: N/A | BO270: N/A | BP270: N/A | BQ270: N/A
BA271: Awareness of menstruation before menarche | BB271: Yes | BC271: N/A | BD271: N/A | BE271: N/A | BF271: N/A | BG271: N/A | BH271: N/A | BI271: N/A | BJ271: N/A | BK271: N/A | BL271: N/A | BM271: N/A | BN271: N/A | BO271: N/A | BP271: N/A | BQ271: N/A
BB272: No | BC272: N/A | BD272: N/A | BE272: N/A | BF272: N/A | BG272: N/A | BH272: N/A | BI272: N/A | BJ272: N/A | BK272: N/A | BL272: N/A | BM272: N/A | BN272: N/A | BO272: N/A | BP272: N/A | BQ272: N/A
BB273: DK/not sure/missing | BC273: N/A | BD273: N/A | BE273: N/A | BF273: N/A | BG273: N/A | BH273: N/A | BI273: N/A | BJ273: N/A | BK273: N/A | BL273: N/A | BM273: N/A | BN273: N/A | BO273: N/A | BP273: N/A | BQ273: N/A
BA274: Participation in (all) activities during menstruation | BB274: Yes | BC274: N/A | BD274: N/A | BE274: N/A | BF274: N/A | BG274: N/A | BH274: N/A | BI274: N/A | BJ274: N/A | BK274: N/A | BL274: N/A | BM274: N/A | BN274: N/A | BO274: N/A | BP274: N/A | BQ274: N/A
BB275: No | BC275: N/A | BD275: N/A | BE275: N/A | BF275: N/A | BG275: N/A | BH275: N/A | BI275: N/A | BJ275: N/A | BK275: N/A | BL275: N/A | BM275: N/A | BN275: N/A | BO275: N/A | BP275: N/A | BQ275: N/A
BB276: DK/not sure/missing/no such activity | BC276: N/A | BD276: N/A | BE276: N/A | BF276: N/A | BG276: N/A | BH276: N/A | BI276: N/A | BJ276: N/A | BK276: N/A | BL276: N/A | BM276: N/A | BN276: N/A | BO276: N/A | BP276: N/A | BQ276: N/A
BA277: Participation in specific activities during menstruation | BB277: Did not go to school (amongst those usually attending school) | BC277: N/A | BD277: N/A | BE277: N/A | BF277: N/A | BG277: N/A | BH277: N/A | BI277: N/A | BJ277: N/A | BK277: N/A | BL277: N/A | BM277: N/A | BN277: N/A | BO277: N/A | BP277: N/A | BQ277: N/A
BB278: Did not go to work (amongst those who usually work) | BC278: N/A | BD278: N/A | BE278: N/A | BF278: N/A | BG278: N/A | BH278: N/A | BI278: N/A | BJ278: N/A | BK278: N/A | BL278: N/A | BM278: N/A | BN278: N/A | BO278: N/A | BP278: N/A | BQ278: N/A
BB279: Did not participate in social activities | BC279: N/A | BD279: N/A | BE279: N/A | BF279: N/A | BG279: N/A | BH279: N/A | BI279: N/A | BJ279: N/A | BK279: N/A | BL279: N/A | BM279: N/A | BN279: N/A | BO279: N/A | BP279: N/A | BQ279: N/A
BB280: Did not cook food | BC280: N/A | BD280: N/A | BE280: N/A | BF280: N/A | BG280: N/A | BH280: N/A | BI280: N/A | BJ280: N/A | BK280: N/A | BL280: N/A | BM280: N/A | BN280: N/A | BO280: N/A | BP280: N/A | BQ280: N/A
BB281: Did not eat with others | BC281: N/A | BD281: N/A | BE281: N/A | BF281: N/A | BG281: N/A | BH281: N/A | BI281: N/A | BJ281: N/A | BK281: N/A | BL281: N/A | BM281: N/A | BN281: N/A | BO281: N/A | BP281: N/A | BQ281: N/A
BB282: Did not bathe in regular place | BC282: N/A | BD282: N/A | BE282: N/A | BF282: N/A | BG282: N/A | BH282: N/A | BI282: N/A | BJ282: N/A | BK282: N/A | BL282: N/A | BM282: N/A | BN282: N/A | BO282: N/A | BP282: N/A | BQ282: N/A
BB283: Did not participate in other activities | BC283: N/A | BD283: N/A | BE283: N/A | BF283: N/A | BG283: N/A | BH283: N/A | BI283: N/A | BJ283: N/A | BK283: N/A | BL283: N/A | BM283: N/A | BN283: N/A | BO283: N/A | BP283: N/A | BQ283: N/A
BB284: DK/not sure/missing/no such activity | BC284: N/A | BD284: N/A | BE284: N/A | BF284: N/A | BG284: N/A | BH284: N/A | BI284: N/A | BJ284: N/A | BK284: N/A | BL284: N/A | BM284: N/A | BN284: N/A | BO284: N/A | BP284: N/A | BQ284: N/A
BA339: Raw numbers of respondents: | BB339: Basic water, sanitation and hygiene | BC339: NATIONAL wealth index quintile | BH339: URBAN wealth index quintile | BM339: RURAL wealth index quintile
BA340: WatSan data, raw numbers (weighted) | BC340: Poorest | BD340: Poor | BE340: Middle | BF340: Rich | BG340: Richest | BH340: Poorest | BI340: Poor | BJ340: Middle | BK340: Rich | BL340: Richest | BM340: Poorest | BN340: Poor | BO340: Middle | BP340: Rich | BQ340: Richest
BA341: Use of Basic Water Sanitation and Hygiene | BB341: Yes | BC341: N/A | BD341: N/A | BE341: N/A | BF341: N/A | BG341: N/A | BH341: N/A | BI341: N/A | BJ341: N/A | BK341: N/A | BL341: N/A | BM341: N/A | BN341: N/A | BO341: N/A | BP341: N/A | BQ341: N/A
BB342: No | BC342: N/A | BD342: N/A | BE342: N/A | BF342: N/A | BG342: N/A | BH342: N/A | BI342: N/A | BJ342: N/A | BK342: N/A | BL342: N/A | BM342: N/A | BN342: N/A | BO342: N/A | BP342: N/A | BQ342: N/A
BA343: Use of Basic Water and Sanitation | BB343: Yes | BC343: N/A | BD343: N/A | BE343: N/A | BF343: N/A | BG343: N/A | BH343: N/A | BI343: N/A | BJ343: N/A | BK343: N/A | BL343: N/A | BM343: N/A | BN343: N/A | BO343: N/A | BP343: N/A | BQ343: N/A
BB344: No | BC344: N/A | BD344: N/A | BE344: N/A | BF344: N/A | BG344: N/A | BH344: N/A | BI344: N/A | BJ344: N/A | BK344: N/A | BL344: N/A | BM344: N/A | BN344: N/A | BO344: N/A | BP344: N/A | BQ344: N/A
BA345: Use of Basic Water and Hygiene | BB345: Yes | BC345: N/A | BD345: N/A | BE345: N/A | BF345: N/A | BG345: N/A | BH345: N/A | BI345: N/A | BJ345: N/A | BK345: N/A | BL345: N/A | BM345: N/A | BN345: N/A | BO345: N/A | BP345: N/A | BQ345: N/A
BB346: No | BC346: N/A | BD346: N/A | BE346: N/A | BF346: N/A | BG346: N/A | BH346: N/A | BI346: N/A | BJ346: N/A | BK346: N/A | BL346: N/A | BM346: N/A | BN346: N/A | BO346: N/A | BP346: N/A | BQ346: N/A
BA347: Use of Basic Sanitation and Hygiene | BB347: Yes | BC347: N/A | BD347: N/A | BE347: N/A | BF347: N/A | BG347: N/A | BH347: N/A | BI347: N/A | BJ347: N/A | BK347: N/A | BL347: N/A | BM347: N/A | BN347: N/A | BO347: N/A | BP347: N/A | BQ347: N/A
BB348: No | BC348: N/A | BD348: N/A | BE348: N/A | BF348: N/A | BG348: N/A | BH348: N/A | BI348: N/A | BJ348: N/A | BK348: N/A | BL348: N/A | BM348: N/A | BN348: N/A | BO348: N/A | BP348: N/A | BQ348: N/A
BA349: Use of Basic Water | BB349: Yes | BC349: N/A | BD349: N/A | BE349: N/A | BF349: N/A | BG349: N/A | BH349: N/A | BI349: N/A | BJ349: N/A | BK349: N/A | BL349: N/A | BM349: N/A | BN349: N/A | BO349: N/A | BP349: N/A | BQ349: N/A
BB350: No | BC350: N/A | BD350: N/A | BE350: N/A | BF350: N/A | BG350: N/A | BH350: N/A | BI350: N/A | BJ350: N/A | BK350: N/A | BL350: N/A | BM350: N/A | BN350: N/A | BO350: N/A | BP350: N/A | BQ350: N/A
BA351: Use of Basic Sanitation | BB351: Yes | BC351: N/A | BD351: N/A | BE351: N/A | BF351: N/A | BG351: N/A | BH351: N/A | BI351: N/A | BJ351: N/A | BK351: N/A | BL351: N/A | BM351: N/A | BN351: N/A | BO351: N/A | BP351: N/A | BQ351: N/A
BB352: No | BC352: N/A | BD352: N/A | BE352: N/A | BF352: N/A | BG352: N/A | BH352: N/A | BI352: N/A | BJ352: N/A | BK352: N/A | BL352: N/A | BM352: N/A | BN352: N/A | BO352: N/A | BP352: N/A | BQ352: N/A
BA353: Access to Basic Hygiene | BB353: Yes | BC353: N/A | BD353: N/A | BE353: N/A | BF353: N/A | BG353: N/A | BH353: N/A | BI353: N/A | BJ353: N/A | BK353: N/A | BL353: N/A | BM353: N/A | BN353: N/A | BO353: N/A | BP353: N/A | BQ353: N/A
BB354: No | BC354: N/A | BD354: N/A | BE354: N/A | BF354: N/A | BG354: N/A | BH354: N/A | BI354: N/A | BJ354: N/A | BK354: N/A | BL354: N/A | BM354: N/A | BN354: N/A | BO354: N/A | BP354: N/A | BQ354: N/A
C399: INITIAL (national) Wealth Index | H399: URBAN Wealth Index | M399: RURAL Wealth Index
C400: Component Matrix | H400: Component Matrix | M400: Component Matrix
E401: Component | J401: Component | O401: Component
B402: Note: The INITIAL (national) Wealth Index is based on the first component of the Principal Component Analysis (PCA) which has been obtained at national level. The final national-level (NATIONAL) Wealth Index is based on the URBAN and RURAL specific wealth indexes. Regression procedures are used to establish the relationships between the two sets of scores (urban and rural) and the initial (national) wealth factors. This allows best use of the available information for each area and a better precision of the FINAL (NATIONAL) Wealth Index. For dependency reasons, all WASH variables (contained in the generic MICS and DHS scripts) have been excluded from the sets of asset variables used in the PCAs. The PCA can extracts as many components as there are asset variables in the input. Only the first of the components is used to represent the Wealth Index. The scores represent the weights of the asset variables on the Wealth Index (correlations between the variables and the component). The communalities are the proportion of each variable's variance that can be explained by the component. Proportion of explained variance is the part of the model's total variance that is explained by the component. For more information on the procedure used: The DHS Wealth Index, DHS Comparative Reports No. 6, Shea Oscar Rutstein, Kiersten Johnson, ORC Macro International Inc., 2004. The DHS Wealth Index: Approaches for Rural and Urban Areas, Shea O. Rutstein, ORC Macro International Inc., 2008. MICS Methodological Paper No. 4, Review of options for reporting water, sanitation and hygiene coverage by wealth quintile, UNICEF, 2016. | E402: 1 | J402: 1 | O402: 1
C403: Has hard floor | E403: 0.8168572299 | H403: Permanent Income question 5 | J403: 0.7912293191 | M403: Has hard floor | O403: 0.7235019909
C404: Has hearth floor | E404: -0.8147850799 | H404: Uses electricity fuel | J404: 0.7648725798 | M404: Has hearth floor | O404: -0.7198741787
C405: Has cement, brick, stone or wood wall | E405: 0.7919715423 | H405: Has hearth floor | J405: -0.7309794909 | M405: Has cement, brick, stone or wood wall | O405: 0.6768092546
C406: Permanent Income question 5 | E406: 0.7570386796 | H406: Has hard floor | J406: 0.7144981991 | M406: Permanent Income question 14 | O406: 0.6411175063
C407: Permanent Income question 14 | E407: 0.7334406746 | H407: Permanent Income question 14 | J407: 0.7104879142 | M407: Permanent Income question 5 | O407: 0.6052462251
C408: Uses electricity fuel | E408: 0.727205961 | H408: Permanent Income question 11 | J408: 0.6990628366 | M408: Uses electricity fuel | O408: 0.5998776749
C409: Uses open fire without chimney | E409: -0.7256749161 | H409: Has cement, brick, stone or wood wall | J409: 0.6971603509 | M409: Permanent Income question 11 | O409: 0.5865888817
C410: Uses wood fuel | E410: -0.7210073248 | H410: Has mud brick wall | J410: -0.668106272 | M410: Uses wood fuel | O410: -0.582430322
C411: Permanent Income question 11 | E411: 0.6751233528 | H411: Uses open fire without chimney | J411: -0.5933732631 | M411: Uses open fire without chimney | O411: -0.5571541345
C412: Has mud brick wall | E412: -0.6093932117 | H412: Permanent Income question 2 | J412: -0.5581234846 | M412: Permanent Income question 3 | O412: -0.5555775134
C413: Permanent Income question 2 | E413: -0.6000864537 | H413: Uses wood fuel | J413: -0.5282748266 | M413: Permanent Income question 2 | O413: -0.5507654764
C414: Permanent Income question 3 | E414: -0.5886519637 | H414: Permanent Income question 3 | J414: -0.5207068165 | M414: Permanent Income question 1 | O414: -0.4731348952
C415: Permanent Income question 7 | E415: 0.5197855662 | H415: Permanent Income question 7 | J415: 0.4944957066 | M415: Permanent Income question 7 | O415: 0.4398274316
C416: Uses electricity heating | E416: 0.4510361241 | H416: Uses electricity heating | J416: 0.4658499519 | M416: Has mud brick wall | O416: -0.4047162253
C417: Permanent Income question 1 | E417: -0.4437460338 | H417: Permanent Income question 13 | J417: 0.451673327 | M417: Uses electricity heating | O417: 0.3742049961
C418: Permanent Income question 13 | E418: 0.4330835496 | H418: Permanent Income question 1 | J418: -0.4340163729 | M418: Permanent Income question 18 | O418: 0.3483389525
C419: Permanent Income question 12 | E419: 0.3873420476 | H419: Permanent Income question 12 | J419: 0.4040538394 | M419: Uses charcoal fuel | O419: 0.3475935983
C420: Permanent Income question 18 | E420: 0.3752646782 | H420: Kooks outdoor | J420: -0.4030633379 | M420: Permanent Income question 12 | O420: 0.3362910352
C421: Uses separate building as kitchen | E421: -0.303128645 | H421: Permanent Income question 18 | J421: 0.4029243073 | M421: Uses charcoal heating | O421: 0.2605711396
C422: Kooks outdoor | E422: -0.3027993003 | H422: Uses charcoal fuel | J422: -0.3138517022 | M422: Permanent Income question 13 | O422: 0.2567242637
C423: Uses wood heating | E423: -0.2972792885 | H423: Uses separate building as kitchen | J423: -0.302771869 | M423: Uses wood heating | O423: -0.2491082513
... 197 more rows

Sheet DHS07
A2: =A1026 -> Zambia
A3: =A1034 -> 2007
A4: Use of drinking water sources
A5: by wealth quintile and sub-national region
A6: Notes:
A7: WHO/UNICEF JMP customised wealth index excludes water,
A8: sanitation and hygiene assets.
A9: Survey used for analysis: | B9: =A1025 -> DHS07
A10: =B1028 -> 
A11: =B1027 -> 
A14: Use of drinking water sources | C14: NATIONAL wealth index quintile | H14: URBAN wealth index quintile | M14: RURAL wealth index quintile | R14: SUB-REGIONS: | BA14: Raw numbers of respondents: | BB14: Use of drinking water sources | BC14: NATIONAL wealth index quintile | BH14: URBAN wealth index quintile | BM14: RURAL wealth index quintile | BR14: SUB-REGIONS:
A15: Weighted percentage (used in graphs) | C15: Poorest | D15: Poor | E15: Middle | F15: Rich | G15: Richest | H15: Poorest | I15: Poor | J15: Middle | K15: Rich | L15: Richest | M15: Poorest | N15: Poor | O15: Middle | P15: Rich | Q15: Richest | R15: Central | S15: Copperbelt | T15: Eastern | U15: Luapula | V15: Lusaka | W15: Northern | X15: Northwestern | Y15: Southern | Z15: Western | BA15: Water data, raw numbers (weighted) | BC15: Poorest | BD15: Poor | BE15: Middle | BF15: Rich | BG15: Richest | BH15: Poorest | BI15: Poor | BJ15: Middle | BK15: Rich | BL15: Richest | BM15: Poorest | BN15: Poor | BO15: Middle | BP15: Rich | BQ15: Richest | BR15: Central | BS15: Copperbelt | BT15: Eastern | BU15: Luapula | BV15: Lusaka | BW15: Northern | BX15: Northwestern | BY15: Southern | BZ15: Western
A16: Water | B16: Improved | C16: 14.73217191 | D16: 15.64006459 | E16: 25.16921534 | F16: 65.24540312 | G16: 89.6296429 | H16: 61.15278269 | I16: 78.43775154 | J16: 88.53969377 | K16: 91.45250059 | L16: 91.51627354 | M16: 15.16323286 | N16: 14.24205545 | O16: 16.05132368 | P16: 18.49120087 | Q16: 34.25452577 | R16: 45.96575545 | S16: 66.84827796 | T16: 16.55788443 | U16: 32.06826209 | V16: 83.91184951 | W16: 20.43564997 | X16: 16.96259142 | Y16: 38.81730334 | Z16: 30.24079639 | BA16: Water | BB16: Improved | BC16: N/A | BD16: N/A | BE16: N/A | BF16: N/A | BG16: N/A | BH16: N/A | BI16: N/A | BJ16: N/A | BK16: N/A | BL16: N/A | BM16: N/A | BN16: N/A | BO16: N/A | BP16: N/A | BQ16: N/A | BR16: N/A | BS16: N/A | BT16: N/A | BU16: N/A | BV16: N/A | BW16: N/A | BX16: N/A | BY16: N/A | BZ16: N/A
B17: Not Improved | C17: 85.26782809 | D17: 84.35993541 | E17: 74.83078466 | F17: 34.75459688 | G17: 10.3703571 | H17: 38.84721731 | I17: 21.56224846 | J17: 11.46030623 | K17: 8.547499406 | L17: 8.48372646 | M17: 84.83676714 | N17: 85.75794455 | O17: 83.94867632 | P17: 81.50879913 | Q17: 65.74547423 | R17: 54.03424455 | S17: 33.15172204 | T17: 83.44211557 | U17: 67.93173791 | V17: 16.08815049 | W17: 79.56435003 | X17: 83.03740858 | Y17: 61.18269666 | Z17: 69.75920361 | BB17: Not Improved | BC17: N/A | BD17: N/A | BE17: N/A | BF17: N/A | BG17: N/A | BH17: N/A | BI17: N/A | BJ17: N/A | BK17: N/A | BL17: N/A | BM17: N/A | BN17: N/A | BO17: N/A | BP17: N/A | BQ17: N/A | BR17: N/A | BS17: N/A | BT17: N/A | BU17: N/A | BV17: N/A | BW17: N/A | BX17: N/A | BY17: N/A | BZ17: N/A
A18: Water ladder | B18: Basic | C18: =C16*C23/100 -> 12.90872693 | D18: =D16*D23/100 -> 13.71824641 | E18: =E16*E23/100 -> 20.90886543 | F18: 62.36481331 | G18: 88.72988383 | H18: 56.11100169 | I18: 75.81693821 | J18: 86.16365763 | K18: 90.83304795 | L18: 91.4200183 | M18: 12.88494011 | N18: 12.68803699 | O18: 14.23921787 | P18: 15.17167033 | Q18: 30.84629303 | R18: 39.43466798 | S18: 65.04892395 | T18: 16.07311144 | U18: 29.18238586 | V18: 82.98283278 | W18: 19.75254908 | X18: 14.68947404 | Y18: 32.45588017 | Z18: 28.82602886 | BA18: Water ladder | BB18: Basic | BC18: N/A | BD18: N/A | BE18: N/A | BF18: N/A | BG18: N/A | BH18: N/A | BI18: N/A | BJ18: N/A | BK18: N/A | BL18: N/A | BM18: N/A | BN18: N/A | BO18: N/A | BP18: N/A | BQ18: N/A | BR18: N/A | BS18: N/A | BT18: N/A | BU18: N/A | BV18: N/A | BW18: N/A | BX18: N/A | BY18: N/A | BZ18: N/A
B19: Limited | C19: =C16*C22/100 -> 1.82344498 | D19: =D16*D22/100 -> 1.921818174 | E19: =E16*E22/100 -> 4.260349912 | F19: 2.880589814 | G19: 0.8997590665 | H19: 5.041781005 | I19: 2.620813337 | J19: 2.376036137 | K19: 0.6194526407 | L19: 0.09625524311 | M19: 2.278292753 | N19: 1.554018458 | O19: 1.812105808 | P19: 3.319530535 | Q19: 3.408232735 | R19: 6.531087465 | S19: 1.799354011 | T19: 0.4847729881 | U19: 2.885876231 | V19: 0.9290167294 | W19: 0.6831008921 | X19: 2.273117384 | Y19: 6.361423165 | Z19: 1.414767533 | BB19: Limited | BC19: N/A | BD19: N/A | BE19: N/A | BF19: N/A | BG19: N/A | BH19: N/A | BI19: N/A | BJ19: N/A | BK19: N/A | BL19: N/A | BM19: N/A | BN19: N/A | BO19: N/A | BP19: N/A | BQ19: N/A | BR19: N/A | BS19: N/A | BT19: N/A | BU19: N/A | BV19: N/A | BW19: N/A | BX19: N/A | BY19: N/A | BZ19: N/A
B20: Unimproved | C20: =100-C18-C19-C21 -> 53.96763259 | D20: =100-D18-D19-D21 -> 49.45363772 | E20: =100-E18-E19-E21 -> 46.31078854 | F20: 29.28233013 | G20: 10.223769 | H20: 34.35940318 | I20: 21.18035725 | J20: 11.46030623 | K20: 8.547499406 | L20: 8.48372646 | M20: 54.85436114 | N20: 51.8865973 | O20: 49.75450996 | P20: 47.3462783 | Q20: 44.20186324 | R20: 36.21429134 | S20: 26.05086022 | T20: 61.252369 | U20: 30.99858495 | V20: 14.2028462 | W20: 33.21903512 | X20: 67.45439086 | Y20: 37.65947532 | Z20: 59.70002362 | BB20: Unimproved | BC20: N/A | BD20: N/A | BE20: N/A | BF20: N/A | BG20: N/A | BH20: N/A | BI20: N/A | BJ20: N/A | BK20: N/A | BL20: N/A | BM20: N/A | BN20: N/A | BO20: N/A | BP20: N/A | BQ20: N/A | BR20: N/A | BS20: N/A | BT20: N/A | BU20: N/A | BV20: N/A | BW20: N/A | BX20: N/A | BY20: N/A | BZ20: N/A
B21: Surface water | C21: 31.3001955 | D21: 34.90629769 | E21: 28.51999612 | F21: 5.472266749 | G21: 0.1465881009 | H21: 4.487814129 | I21: 0.3818912035 | J21: 0 | K21: 0 | L21: 0 | M21: 29.982406 | N21: 33.87134725 | O21: 34.19416635 | P21: 34.16252083 | Q21: 21.54361099 | R21: 17.81995321 | S21: 7.100861815 | T21: 22.18974657 | U21: 36.93315296 | V21: 1.885304287 | W21: 46.34531491 | X21: 15.58301772 | Y21: 23.52322134 | Z21: 10.05917999 | BB21: Surface water | BC21: N/A | BD21: N/A | BE21: N/A | BF21: N/A | BG21: N/A | BH21: N/A | BI21: N/A | BJ21: N/A | BK21: N/A | BL21: N/A | BM21: N/A | BN21: N/A | BO21: N/A | BP21: N/A | BQ21: N/A | BR21: N/A | BS21: N/A | BT21: N/A | BU21: N/A | BV21: N/A | BW21: N/A | BX21: N/A | BY21: N/A | BZ21: N/A
A22: Improved water point at more than 30 minutes | B22: Yes | C22: 12.3772991 | D22: 12.28778924 | E22: 16.92682848 | F22: 4.415008071 | G22: 1.003863273 | H22: 8.244565142 | I22: 3.341265252 | J22: 2.683582963 | K22: 0.6773490464 | L22: 0.1051782807 | M22: 15.02511222 | N22: 10.91147597 | O22: 11.2894478 | P22: 17.95194676 | Q22: 9.949729733 | R22: 14.20859377 | S22: 2.691698374 | T22: 2.927747142 | U22: 8.999166287 | V22: 1.107134135 | W22: 3.342692271 | X22: 13.40076718 | Y22: 16.38811205 | Z22: 4.678340856 | BA22: Improved water point at more than 30 minutes | BB22: Yes | BC22: N/A | BD22: N/A | BE22: N/A | BF22: N/A | BG22: N/A | BH22: N/A | BI22: N/A | BJ22: N/A | BK22: N/A | BL22: N/A | BM22: N/A | BN22: N/A | BO22: N/A | BP22: N/A | BQ22: N/A | BR22: N/A | BS22: N/A | BT22: N/A | BU22: N/A | BV22: N/A | BW22: N/A | BX22: N/A | BY22: N/A | BZ22: N/A
B23: No | C23: 87.6227009 | D23: 87.71221076 | E23: 83.07317152 | F23: 95.58499193 | G23: 98.99613673 | H23: 91.75543486 | I23: 96.65873475 | J23: 97.31641704 | K23: 99.32265095 | L23: 99.89482172 | M23: 84.97488778 | N23: 89.08852403 | O23: 88.7105522 | P23: 82.04805324 | Q23: 90.05027027 | R23: 85.79140623 | S23: 97.30830163 | T23: 97.07225286 | U23: 91.00083371 | V23: 98.89286586 | W23: 96.65730773 | X23: 86.59923282 | Y23: 83.61188795 | Z23: 95.32165914 | BB23: No | BC23: N/A | BD23: N/A | BE23: N/A | BF23: N/A | BG23: N/A | BH23: N/A | BI23: N/A | BJ23: N/A | BK23: N/A | BL23: N/A | BM23: N/A | BN23: N/A | BO23: N/A | BP23: N/A | BQ23: N/A | BR23: N/A | BS23: N/A | BT23: N/A | BU23: N/A | BV23: N/A | BW23: N/A | BX23: N/A | BY23: N/A | BZ23: N/A
A24: Manually calculated ratios | B24: Improved wells
B25: Improved springs
B26: Other
C27: NATIONAL wealth index quintile | H27: URBAN wealth index quintile | M27: RURAL wealth index quintile | R27: SUB-REGIONS: | BA27: Raw numbers of respondents: | BB27: Use of drinking water sources | BC27: NATIONAL wealth index quintile | BH27: URBAN wealth index quintile | BM27: RURAL wealth index quintile | BR27: SUB-REGIONS:
A28: Percentage based on weighted population | C28: Poorest | D28: Poor | E28: Middle | F28: Rich | G28: Richest | H28: Poorest | I28: Poor | J28: Middle | K28: Rich | L28: Richest | M28: Poorest | N28: Poor | O28: Middle | P28: Rich | Q28: Richest | R28: Central | S28: Copperbelt | T28: Eastern | U28: Luapula | V28: Lusaka | W28: Northern | X28: Northwestern | Y28: Southern | Z28: Western | BA28: Water data, raw numbers (weighted) | BC28: Poorest | BD28: Poor | BE28: Middle | BF28: Rich | BG28: Richest | BH28: Poorest | BI28: Poor | BJ28: Middle | BK28: Rich | BL28: Richest | BM28: Poorest | BN28: Poor | BO28: Middle | BP28: Rich | BQ28: Richest | BR28: Central | BS28: Copperbelt | BT28: Eastern | BU28: Luapula | BV28: Lusaka | BW28: Northern | BX28: Northwestern | BY28: Southern | BZ28: Western
A29: Piped water | B29: Yes | C29: 0.3 | D29: 0.3 | E29: 8 | F29: 53.9 | G29: 84.7 | H29: 50.6 | I29: 73.2 | J29: 83.2 | K29: 86.9 | L29: 87.7 | M29: 0.2 | N29: 0.4 | O29: 0.3 | P29: 1.8 | Q29: 13.4 | R29: 19.4 | S29: 60.5 | T29: 7.2 | U29: 2.9 | V29: 80.6 | W29: 11.8 | X29: 8.7 | Y29: 20.9 | Z29: 11.6 | BA29: Piped water | BB29: Yes | BC29: N/A | BD29: N/A | BE29: N/A | BF29: N/A | BG29: N/A | BH29: N/A | BI29: N/A | BJ29: N/A | BK29: N/A | BL29: N/A | BM29: N/A | BN29: N/A | BO29: N/A | BP29: N/A | BQ29: N/A | BR29: N/A | BS29: N/A | BT29: N/A | BU29: N/A | BV29: N/A | BW29: N/A | BX29: N/A | BY29: N/A | BZ29: N/A
B30: No | C30: 99.7 | D30: 99.7 | E30: 92 | F30: 46.1 | G30: 15.3 | H30: 49.4 | I30: 26.8 | J30: 16.8 | K30: 13.1 | L30: 12.3 | M30: 99.8 | N30: 99.6 | O30: 99.7 | P30: 98.2 | Q30: 86.6 | R30: 80.6 | S30: 39.5 | T30: 92.8 | U30: 97.1 | V30: 19.4 | W30: 88.2 | X30: 91.3 | Y30: 79.1 | Z30: 88.4 | BB30: No | BC30: N/A | BD30: N/A | BE30: N/A | BF30: N/A | BG30: N/A | BH30: N/A | BI30: N/A | BJ30: N/A | BK30: N/A | BL30: N/A | BM30: N/A | BN30: N/A | BO30: N/A | BP30: N/A | BQ30: N/A | BR30: N/A | BS30: N/A | BT30: N/A | BU30: N/A | BV30: N/A | BW30: N/A | BX30: N/A | BY30: N/A | BZ30: N/A
A31: Piped water on premises | B31: Yes | C31: 0 | D31: 0 | E31: 0.8 | F31: 16.3 | G31: 63.9 | H31: 6.6 | I31: 20 | J31: 47.6 | K31: 65.5 | L31: 73.8 | M31: 0 | N31: 0 | O31: 0 | P31: 0 | Q31: 6.9 | R31: 6.8 | S31: 45.4 | T31: 3.7 | U31: 2 | V31: 31.5 | W31: 6.1 | X31: 2.6 | Y31: 15 | Z31: 6 | BA31: Piped water on premises | BB31: Yes | BC31: N/A | BD31: N/A | BE31: N/A | BF31: N/A | BG31: N/A | BH31: N/A | BI31: N/A | BJ31: N/A | BK31: N/A | BL31: N/A | BM31: N/A | BN31: N/A | BO31: N/A | BP31: N/A | BQ31: N/A | BR31: N/A | BS31: N/A | BT31: N/A | BU31: N/A | BV31: N/A | BW31: N/A | BX31: N/A | BY31: N/A | BZ31: N/A
B32: No | C32: 100 | D32: 100 | E32: 99.2 | F32: 83.7 | G32: 36.1 | H32: 93.4 | I32: 80 | J32: 52.4 | K32: 34.5 | L32: 26.2 | M32: 100 | N32: 100 | O32: 100 | P32: 100 | Q32: 93.1 | R32: 93.2 | S32: 54.6 | T32: 96.3 | U32: 98 | V32: 68.5 | W32: 93.9 | X32: 97.4 | Y32: 85 | Z32: 94 | BB32: No | BC32: N/A | BD32: N/A | BE32: N/A | BF32: N/A | BG32: N/A | BH32: N/A | BI32: N/A | BJ32: N/A | BK32: N/A | BL32: N/A | BM32: N/A | BN32: N/A | BO32: N/A | BP32: N/A | BQ32: N/A | BR32: N/A | BS32: N/A | BT32: N/A | BU32: N/A | BV32: N/A | BW32: N/A | BX32: N/A | BY32: N/A | BZ32: N/A
A33: Piped water into dwelling | B33: Yes | C33: N/A | D33: N/A | E33: N/A | F33: N/A | G33: N/A | H33: N/A | I33: N/A | J33: N/A | K33: N/A | L33: N/A | M33: N/A | N33: N/A | O33: N/A | P33: N/A | Q33: N/A | R33: N/A | S33: N/A | T33: N/A | U33: N/A | V33: N/A | W33: N/A | X33: N/A | Y33: N/A | Z33: N/A | BA33: Piped water into dwelling | BB33: Yes | BC33: N/A | BD33: N/A | BE33: N/A | BF33: N/A | BG33: N/A | BH33: N/A | BI33: N/A | BJ33: N/A | BK33: N/A | BL33: N/A | BM33: N/A | BN33: N/A | BO33: N/A | BP33: N/A | BQ33: N/A | BR33: N/A | BS33: N/A | BT33: N/A | BU33: N/A | BV33: N/A | BW33: N/A | BX33: N/A | BY33: N/A | BZ33: N/A
B34: No | C34: N/A | D34: N/A | E34: N/A | F34: N/A | G34: N/A | H34: N/A | I34: N/A | J34: N/A | K34: N/A | L34: N/A | M34: N/A | N34: N/A | O34: N/A | P34: N/A | Q34: N/A | R34: N/A | S34: N/A | T34: N/A | U34: N/A | V34: N/A | W34: N/A | X34: N/A | Y34: N/A | Z34: N/A | BB34: No | BC34: N/A | BD34: N/A | BE34: N/A | BF34: N/A | BG34: N/A | BH34: N/A | BI34: N/A | BJ34: N/A | BK34: N/A | BL34: N/A | BM34: N/A | BN34: N/A | BO34: N/A | BP34: N/A | BQ34: N/A | BR34: N/A | BS34: N/A | BT34: N/A | BU34: N/A | BV34: N/A | BW34: N/A | BX34: N/A | BY34: N/A | BZ34: N/A
A35: Water source on premises | B35: Yes | C35: 3.5 | D35: 5.4 | E35: 9.4 | F35: 28.2 | G35: 73.9 | H35: 16.3 | I35: 29.6 | J35: 58.1 | K35: 74.8 | L35: 81.6 | M35: 3.5 | N35: 4.9 | O35: 5.2 | P35: 8 | Q35: 20.6 | R35: 21.6 | S35: 58.6 | T35: 7 | U35: 13.7 | V35: 39.6 | W35: 13.5 | X35: 4.4 | Y35: 18.9 | Z35: 8.4 | BA35: Water source on premises | BB35: Yes | BC35: N/A | BD35: N/A | BE35: N/A | BF35: N/A | BG35: N/A | BH35: N/A | BI35: N/A | BJ35: N/A | BK35: N/A | BL35: N/A | BM35: N/A | BN35: N/A | BO35: N/A | BP35: N/A | BQ35: N/A | BR35: N/A | BS35: N/A | BT35: N/A | BU35: N/A | BV35: N/A | BW35: N/A | BX35: N/A | BY35: N/A | BZ35: N/A
B36: No | C36: 96.5 | D36: 94.6 | E36: 90.6 | F36: 71.8 | G36: 26.1 | H36: 83.7 | I36: 70.4 | J36: 41.9 | K36: 25.2 | L36: 18.4 | M36: 96.5 | N36: 95.1 | O36: 94.8 | P36: 92 | Q36: 79.4 | R36: 78.4 | S36: 41.4 | T36: 93 | U36: 86.3 | V36: 60.4 | W36: 86.5 | X36: 95.6 | Y36: 81.1 | Z36: 91.6 | BB36: No | BC36: N/A | BD36: N/A | BE36: N/A | BF36: N/A | BG36: N/A | BH36: N/A | BI36: N/A | BJ36: N/A | BK36: N/A | BL36: N/A | BM36: N/A | BN36: N/A | BO36: N/A | BP36: N/A | BQ36: N/A | BR36: N/A | BS36: N/A | BT36: N/A | BU36: N/A | BV36: N/A | BW36: N/A | BX36: N/A | BY36: N/A | BZ36: N/A
A37: Improved Water source on premises | B37: Yes | C37: 0.7 | D37: 1.8 | E37: 2.8 | F37: 21.3 | G37: 68.6 | H37: 10.3 | I37: 24.2 | J37: 52.5 | K37: 70.1 | L37: 76.9 | M37: 0.4 | N37: 1.1 | O37: 2 | P37: 2.4 | Q37: 11.8 | R37: 10.7 | S37: 50.1 | T37: 4.5 | U37: 10.2 | V37: 34.5 | W37: 8.7 | X37: 3 | Y37: 15.8 | Z37: 6.5 | BA37: Improved water source on premises | BB37: Yes | BC37: N/A | BD37: N/A | BE37: N/A | BF37: N/A | BG37: N/A | BH37: N/A | BI37: N/A | BJ37: N/A | BK37: N/A | BL37: N/A | BM37: N/A | BN37: N/A | BO37: N/A | BP37: N/A | BQ37: N/A | BR37: N/A | BS37: N/A | BT37: N/A | BU37: N/A | BV37: N/A | BW37: N/A | BX37: N/A | BY37: N/A | BZ37: N/A
B38: No | C38: 99.3 | D38: 98.2 | E38: 97.2 | F38: 78.7 | G38: 31.4 | H38: 89.7 | I38: 75.8 | J38: 47.5 | K38: 29.9 | L38: 23.1 | M38: 99.6 | N38: 98.9 | O38: 98 | P38: 97.6 | Q38: 88.2 | R38: 89.3 | S38: 49.9 | T38: 95.5 | U38: 89.8 | V38: 65.5 | W38: 91.3 | X38: 97 | Y38: 84.2 | Z38: 93.5 | BB38: No | BC38: N/A | BD38: N/A | BE38: N/A | BF38: N/A | BG38: N/A | BH38: N/A | BI38: N/A | BJ38: N/A | BK38: N/A | BL38: N/A | BM38: N/A | BN38: N/A | BO38: N/A | BP38: N/A | BQ38: N/A | BR38: N/A | BS38: N/A | BT38: N/A | BU38: N/A | BV38: N/A | BW38: N/A | BX38: N/A | BY38: N/A | BZ38: N/A
A39: Piped water on premises available when needed | B39: Yes | C39: N/A | D39: N/A | E39: N/A | F39: N/A | G39: N/A | H39: N/A | I39: N/A | J39: N/A | K39: N/A | L39: N/A | M39: N/A | N39: N/A | O39: N/A | P39: N/A | Q39: N/A | R39: N/A | S39: N/A | T39: N/A | U39: N/A | V39: N/A | W39: N/A | X39: N/A | Y39: N/A | Z39: N/A | BA39: Piped water on premises available when needed | BB39: Yes | BC39: N/A | BD39: N/A | BE39: N/A | BF39: N/A | BG39: N/A | BH39: N/A | BI39: N/A | BJ39: N/A | BK39: N/A | BL39: N/A | BM39: N/A | BN39: N/A | BO39: N/A | BP39: N/A | BQ39: N/A | BR39: N/A | BS39: N/A | BT39: N/A | BU39: N/A | BV39: N/A | BW39: N/A | BX39: N/A | BY39: N/A | BZ39: N/A
B40: No | C40: N/A | D40: N/A | E40: N/A | F40: N/A | G40: N/A | H40: N/A | I40: N/A | J40: N/A | K40: N/A | L40: N/A | M40: N/A | N40: N/A | O40: N/A | P40: N/A | Q40: N/A | R40: N/A | S40: N/A | T40: N/A | U40: N/A | V40: N/A | W40: N/A | X40: N/A | Y40: N/A | Z40: N/A | BB40: No | BC40: N/A | BD40: N/A | BE40: N/A | BF40: N/A | BG40: N/A | BH40: N/A | BI40: N/A | BJ40: N/A | BK40: N/A | BL40: N/A | BM40: N/A | BN40: N/A | BO40: N/A | BP40: N/A | BQ40: N/A | BR40: N/A | BS40: N/A | BT40: N/A | BU40: N/A | BV40: N/A | BW40: N/A | BX40: N/A | BY40: N/A | BZ40: N/A
A41: Water point at more than 30 minutes | B41: Yes | C41: 17.5 | D41: 16.1 | E41: 20.1 | F41: 7 | G41: 1.4 | H41: 9.2 | I41: 3.3 | J41: 2.4 | K41: 1.2 | L41: 0.6 | M41: 16.4 | N41: 17.9 | O41: 16.6 | P41: 19.4 | Q41: 17.2 | R41: 13.8 | S41: 3.6 | T41: 12.2 | U41: 27.3 | V41: 1.5 | W41: 10.1 | X41: 25.3 | Y41: 27.5 | Z41: 7.4 | BA41: Water point at more than 30 minutes | BB41: Yes | BC41: N/A | BD41: N/A | BE41: N/A | BF41: N/A | BG41: N/A | BH41: N/A | BI41: N/A | BJ41: N/A | BK41: N/A | BL41: N/A | BM41: N/A | BN41: N/A | BO41: N/A | BP41: N/A | BQ41: N/A | BR41: N/A | BS41: N/A | BT41: N/A | BU41: N/A | BV41: N/A | BW41: N/A | BX41: N/A | BY41: N/A | BZ41: N/A
B42: No | C42: 82.5 | D42: 83.9 | E42: 79.9 | F42: 93 | G42: 98.6 | H42: 90.8 | I42: 96.7 | J42: 97.6 | K42: 98.8 | L42: 99.4 | M42: 83.6 | N42: 82.1 | O42: 83.4 | P42: 80.6 | Q42: 82.8 | R42: 86.2 | S42: 96.4 | T42: 87.8 | U42: 72.7 | V42: 98.5 | W42: 89.9 | X42: 74.7 | Y42: 72.5 | Z42: 92.6 | BB42: No | BC42: N/A | BD42: N/A | BE42: N/A | BF42: N/A | BG42: N/A | BH42: N/A | BI42: N/A | BJ42: N/A | BK42: N/A | BL42: N/A | BM42: N/A | BN42: N/A | BO42: N/A | BP42: N/A | BQ42: N/A | BR42: N/A | BS42: N/A | BT42: N/A | BU42: N/A | BV42: N/A | BW42: N/A | BX42: N/A | BY42: N/A | BZ42: N/A
A43: Water source available when needed | B43: Yes | C43: N/A | D43: N/A | E43: N/A | F43: N/A | G43: N/A | H43: N/A | I43: N/A | J43: N/A | K43: N/A | L43: N/A | M43: N/A | N43: N/A | O43: N/A | P43: N/A | Q43: N/A | R43: N/A | S43: N/A | T43: N/A | U43: N/A | V43: N/A | W43: N/A | X43: N/A | Y43: N/A | Z43: N/A | BA43: Water source available when needed | BB43: Yes | BC43: N/A | BD43: N/A | BE43: N/A | BF43: N/A | BG43: N/A | BH43: N/A | BI43: N/A | BJ43: N/A | BK43: N/A | BL43: N/A | BM43: N/A | BN43: N/A | BO43: N/A | BP43: N/A | BQ43: N/A | BR43: N/A | BS43: N/A | BT43: N/A | BU43: N/A | BV43: N/A | BW43: N/A | BX43: N/A | BY43: N/A | BZ43: N/A
B44: No | C44: N/A | D44: N/A | E44: N/A | F44: N/A | G44: N/A | H44: N/A | I44: N/A | J44: N/A | K44: N/A | L44: N/A | M44: N/A | N44: N/A | O44: N/A | P44: N/A | Q44: N/A | R44: N/A | S44: N/A | T44: N/A | U44: N/A | V44: N/A | W44: N/A | X44: N/A | Y44: N/A | Z44: N/A | BB44: No | BC44: N/A | BD44: N/A | BE44: N/A | BF44: N/A | BG44: N/A | BH44: N/A | BI44: N/A | BJ44: N/A | BK44: N/A | BL44: N/A | BM44: N/A | BN44: N/A | BO44: N/A | BP44: N/A | BQ44: N/A | BR44: N/A | BS44: N/A | BT44: N/A | BU44: N/A | BV44: N/A | BW44: N/A | BX44: N/A | BY44: N/A | BZ44: N/A
A45: Improved water source available when needed | B45: Yes | C45: N/A | D45: N/A | E45: N/A | F45: N/A | G45: N/A | H45: N/A | I45: N/A | J45: N/A | K45: N/A | L45: N/A | M45: N/A | N45: N/A | O45: N/A | P45: N/A | Q45: N/A | R45: N/A | S45: N/A | T45: N/A | U45: N/A | V45: N/A | W45: N/A | X45: N/A | Y45: N/A | Z45: N/A | BA45: Improved water source available when needed | BB45: Yes | BC45: N/A | BD45: N/A | BE45: N/A | BF45: N/A | BG45: N/A | BH45: N/A | BI45: N/A | BJ45: N/A | BK45: N/A | BL45: N/A | BM45: N/A | BN45: N/A | BO45: N/A | BP45: N/A | BQ45: N/A | BR45: N/A | BS45: N/A | BT45: N/A | BU45: N/A | BV45: N/A | BW45: N/A | BX45: N/A | BY45: N/A | BZ45: N/A
B46: No | C46: N/A | D46: N/A | E46: N/A | F46: N/A | G46: N/A | H46: N/A | I46: N/A | J46: N/A | K46: N/A | L46: N/A | M46: N/A | N46: N/A | O46: N/A | P46: N/A | Q46: N/A | R46: N/A | S46: N/A | T46: N/A | U46: N/A | V46: N/A | W46: N/A | X46: N/A | Y46: N/A | Z46: N/A | BB46: No | BC46: N/A | BD46: N/A | BE46: N/A | BF46: N/A | BG46: N/A | BH46: N/A | BI46: N/A | BJ46: N/A | BK46: N/A | BL46: N/A | BM46: N/A | BN46: N/A | BO46: N/A | BP46: N/A | BQ46: N/A | BR46: N/A | BS46: N/A | BT46: N/A | BU46: N/A | BV46: N/A | BW46: N/A | BX46: N/A | BY46: N/A | BZ46: N/A
A47: Microbiological quality at point of collection | B47: Not contaminated (No E. coli in 100 mL) | C47: N/A | D47: N/A | E47: N/A | F47: N/A | G47: N/A | H47: N/A | I47: N/A | J47: N/A | K47: N/A | L47: N/A | M47: N/A | N47: N/A | O47: N/A | P47: N/A | Q47: N/A | R47: N/A | S47: N/A | T47: N/A | U47: N/A | V47: N/A | W47: N/A | X47: N/A | Y47: N/A | Z47: N/A | BA47: Microbiological quality at point of collection | BB47: Not contaminated (No E. coli in 100 mL) | BC47: N/A | BD47: N/A | BE47: N/A | BF47: N/A | BG47: N/A | BH47: N/A | BI47: N/A | BJ47: N/A | BK47: N/A | BL47: N/A | BM47: N/A | BN47: N/A | BO47: N/A | BP47: N/A | BQ47: N/A | BR47: N/A | BS47: N/A | BT47: N/A | BU47: N/A | BV47: N/A | BW47: N/A | BX47: N/A | BY47: N/A | BZ47: N/A
B48: Contaminated (E. coli detected in 100 mL) | C48: N/A | D48: N/A | E48: N/A | F48: N/A | G48: N/A | H48: N/A | I48: N/A | J48: N/A | K48: N/A | L48: N/A | M48: N/A | N48: N/A | O48: N/A | P48: N/A | Q48: N/A | R48: N/A | S48: N/A | T48: N/A | U48: N/A | V48: N/A | W48: N/A | X48: N/A | Y48: N/A | Z48: N/A | BB48: Contaminated (E. coli detected in 100 mL) | BC48: N/A | BD48: N/A | BE48: N/A | BF48: N/A | BG48: N/A | BH48: N/A | BI48: N/A | BJ48: N/A | BK48: N/A | BL48: N/A | BM48: N/A | BN48: N/A | BO48: N/A | BP48: N/A | BQ48: N/A | BR48: N/A | BS48: N/A | BT48: N/A | BU48: N/A | BV48: N/A | BW48: N/A | BX48: N/A | BY48: N/A | BZ48: N/A
B49: Highly contaminated (>100 CFU/100 mL) | C49: N/A | D49: N/A | E49: N/A | F49: N/A | G49: N/A | H49: N/A | I49: N/A | J49: N/A | K49: N/A | L49: N/A | M49: N/A | N49: N/A | O49: N/A | P49: N/A | Q49: N/A | R49: N/A | S49: N/A | T49: N/A | U49: N/A | V49: N/A | W49: N/A | X49: N/A | Y49: N/A | Z49: N/A | BB49: Highly contaminated (>100 CFU/100 mL) | BC49: N/A | BD49: N/A | BE49: N/A | BF49: N/A | BG49: N/A | BH49: N/A | BI49: N/A | BJ49: N/A | BK49: N/A | BL49: N/A | BM49: N/A | BN49: N/A | BO49: N/A | BP49: N/A | BQ49: N/A | BR49: N/A | BS49: N/A | BT49: N/A | BU49: N/A | BV49: N/A | BW49: N/A | BX49: N/A | BY49: N/A | BZ49: N/A
A50: Microbiological quality of improved water sources at point of collection | B50: Not contaminated (No E. coli in 100 mL) | C50: N/A | D50: N/A | E50: N/A | F50: N/A | G50: N/A | H50: N/A | I50: N/A | J50: N/A | K50: N/A | L50: N/A | M50: N/A | N50: N/A | O50: N/A | P50: N/A | Q50: N/A | R50: N/A | S50: N/A | T50: N/A | U50: N/A | V50: N/A | W50: N/A | X50: N/A | Y50: N/A | Z50: N/A | BA50: Microbiological quality of improved water sources at point of collection | BB50: Not contaminated (No E. coli in 100 mL) | BC50: N/A | BD50: N/A | BE50: N/A | BF50: N/A | BG50: N/A | BH50: N/A | BI50: N/A | BJ50: N/A | BK50: N/A | BL50: N/A | BM50: N/A | BN50: N/A | BO50: N/A | BP50: N/A | BQ50: N/A | BR50: N/A | BS50: N/A | BT50: N/A | BU50: N/A | BV50: N/A | BW50: N/A | BX50: N/A | BY50: N/A | BZ50: N/A
B51: Contaminated (E. coli detected in 100 mL) | C51: N/A | D51: N/A | E51: N/A | F51: N/A | G51: N/A | H51: N/A | I51: N/A | J51: N/A | K51: N/A | L51: N/A | M51: N/A | N51: N/A | O51: N/A | P51: N/A | Q51: N/A | R51: N/A | S51: N/A | T51: N/A | U51: N/A | V51: N/A | W51: N/A | X51: N/A | Y51: N/A | Z51: N/A | BB51: Contaminated (E. coli detected in 100 mL) | BC51: N/A | BD51: N/A | BE51: N/A | BF51: N/A | BG51: N/A | BH51: N/A | BI51: N/A | BJ51: N/A | BK51: N/A | BL51: N/A | BM51: N/A | BN51: N/A | BO51: N/A | BP51: N/A | BQ51: N/A | BR51: N/A | BS51: N/A | BT51: N/A | BU51: N/A | BV51: N/A | BW51: N/A | BX51: N/A | BY51: N/A | BZ51: N/A
B52: Highly contaminated (>100 CFU/100 mL) | C52: N/A | D52: N/A | E52: N/A | F52: N/A | G52: N/A | H52: N/A | I52: N/A | J52: N/A | K52: N/A | L52: N/A | M52: N/A | N52: N/A | O52: N/A | P52: N/A | Q52: N/A | R52: N/A | S52: N/A | T52: N/A | U52: N/A | V52: N/A | W52: N/A | X52: N/A | Y52: N/A | Z52: N/A | BB52: Highly contaminated (>100 CFU/100 mL) | BC52: N/A | BD52: N/A | BE52: N/A | BF52: N/A | BG52: N/A | BH52: N/A | BI52: N/A | BJ52: N/A | BK52: N/A | BL52: N/A | BM52: N/A | BN52: N/A | BO52: N/A | BP52: N/A | BQ52: N/A | BR52: N/A | BS52: N/A | BT52: N/A | BU52: N/A | BV52: N/A | BW52: N/A | BX52: N/A | BY52: N/A | BZ52: N/A
A53: Microbiological quality of piped on premises at point of collection | B53: Not contaminated (No E. coli in 100 mL) | C53: N/A | D53: N/A | E53: N/A | F53: N/A | G53: N/A | H53: N/A | I53: N/A | J53: N/A | K53: N/A | L53: N/A | M53: N/A | N53: N/A | O53: N/A | P53: N/A | Q53: N/A | R53: N/A | S53: N/A | T53: N/A | U53: N/A | V53: N/A | W53: N/A | X53: N/A | Y53: N/A | Z53: N/A | BA53: Microbiological quality of piped on premises at point of collection | BB53: Not contaminated (No E. coli in 100 mL) | BC53: N/A | BD53: N/A | BE53: N/A | BF53: N/A | BG53: N/A | BH53: N/A | BI53: N/A | BJ53: N/A | BK53: N/A | BL53: N/A | BM53: N/A | BN53: N/A | BO53: N/A | BP53: N/A | BQ53: N/A | BR53: N/A | BS53: N/A | BT53: N/A | BU53: N/A | BV53: N/A | BW53: N/A | BX53: N/A | BY53: N/A | BZ53: N/A
B54: Contaminated (E. coli detected in 100 mL) | C54: N/A | D54: N/A | E54: N/A | F54: N/A | G54: N/A | H54: N/A | I54: N/A | J54: N/A | K54: N/A | L54: N/A | M54: N/A | N54: N/A | O54: N/A | P54: N/A | Q54: N/A | R54: N/A | S54: N/A | T54: N/A | U54: N/A | V54: N/A | W54: N/A | X54: N/A | Y54: N/A | Z54: N/A | BB54: Contaminated (E. coli detected in 100 mL) | BC54: N/A | BD54: N/A | BE54: N/A | BF54: N/A | BG54: N/A | BH54: N/A | BI54: N/A | BJ54: N/A | BK54: N/A | BL54: N/A | BM54: N/A | BN54: N/A | BO54: N/A | BP54: N/A | BQ54: N/A | BR54: N/A | BS54: N/A | BT54: N/A | BU54: N/A | BV54: N/A | BW54: N/A | BX54: N/A | BY54: N/A | BZ54: N/A
B55: Highly contaminated (>100 CFU/100 mL) | C55: N/A | D55: N/A | E55: N/A | F55: N/A | G55: N/A | H55: N/A | I55: N/A | J55: N/A | K55: N/A | L55: N/A | M55: N/A | N55: N/A | O55: N/A | P55: N/A | Q55: N/A | R55: N/A | S55: N/A | T55: N/A | U55: N/A | V55: N/A | W55: N/A | X55: N/A | Y55: N/A | Z55: N/A | BB55: Highly contaminated (>100 CFU/100 mL) | BC55: N/A | BD55: N/A | BE55: N/A | BF55: N/A | BG55: N/A | BH55: N/A | BI55: N/A | BJ55: N/A | BK55: N/A | BL55: N/A | BM55: N/A | BN55: N/A | BO55: N/A | BP55: N/A | BQ55: N/A | BR55: N/A | BS55: N/A | BT55: N/A | BU55: N/A | BV55: N/A | BW55: N/A | BX55: N/A | BY55: N/A | BZ55: N/A
C56: NATIONAL wealth index quintile | H56: URBAN wealth index quintile | M56: RURAL wealth index quintile | R56: SUB-REGIONS: | BA56: Raw numbers of respondents: | BB56: Use of drinking water sources | BC56: NATIONAL wealth index quintile | BH56: URBAN wealth index quintile | BM56: RURAL wealth index quintile | BR56: SUB-REGIONS:
A57: Percentage based on weighted population | C57: Poorest | D57: Poor | E57: Middle | F57: Rich | G57: Richest | H57: Poorest | I57: Poor | J57: Middle | K57: Rich | L57: Richest | M57: Poorest | N57: Poor | O57: Middle | P57: Rich | Q57: Richest | R57: Central | S57: Copperbelt | T57: Eastern | U57: Luapula | V57: Lusaka | W57: Northern | X57: Northwestern | Y57: Southern | Z57: Western | BA57: Water data, raw numbers (weighted) | BC57: Poorest | BD57: Poor | BE57: Middle | BF57: Rich | BG57: Richest | BH57: Poorest | BI57: Poor | BJ57: Middle | BK57: Rich | BL57: Richest | BM57: Poorest | BN57: Poor | BO57: Middle | BP57: Rich | BQ57: Richest | BR57: Central | BS57: Copperbelt | BT57: Eastern | BU57: Luapula | BV57: Lusaka | BW57: Northern | BX57: Northwestern | BY57: Southern | BZ57: Western
A58: Source of drinking water | B58: Piped into dwelling | C58: 0 | D58: 0 | E58: 0.03436206055 | F58: 3.743463748 | G58: 33.05267253 | H58: 0.1242426733 | I58: 3.327114503 | J58: 15.33777847 | K58: 29.18587743 | L58: 50.27613504 | M58: 0 | N58: 0 | O58: 0 | P58: 0 | Q58: 2.502691926 | R58: 3.834509421 | S58: 18.17569613 | T58: 1.194158554 | U58: 0.6383410985 | V58: 17.74489735 | W58: 3.008788853 | X58: 1.668472887 | Y58: 6.274248598 | Z58: 2.042297264
B59: Piped to yard/plot | C59: 0 | D59: 0.02927199046 | E59: 0.7397485144 | F59: 12.54292219 | G59: 30.88917914 | H59: 6.482575956 | I59: 16.66633645 | J59: 32.29178104 | K59: 36.32109783 | L59: 23.5022402 | M59: 0 | N59: 0 | O59: 0.04567722721 | P59: 0.02282162984 | Q59: 4.404320103 | R59: 2.987975598 | S59: 27.2960097 | T59: 2.486831184 | U59: 1.380901152 | V59: 13.7633018 | W59: 3.090475428 | X59: 0.9814546396 | Y59: 8.762743496 | Z59: 3.941081748
B60: Public tap/standpipe | C60: 0.2619651757 | D60: 0.3166348187 | E60: 7.267394487 | F60: 37.63335477 | G60: 20.74739765 | H60: 43.95117653 | I60: 53.23426251 | J60: 35.56327791 | K60: 21.43161189 | L60: 13.91357909 | M60: 0.2397317293 | N60: 0.397870779 | O60: 0.2646451421 | P60: 1.825158365 | Q60: 6.525888066 | R60: 12.56726467 | S60: 15.06013107 | T60: 3.54172334 | U60: 0.8728337469 | V60: 49.1043117 | W60: 5.704445835 | X60: 6.014914863 | Y60: 5.876408696 | Z60: 5.628630185
B61: Protected well | C61: 14.4048571 | D61: 15.22880734 | E61: 17.13987789 | F61: 11.27747986 | G61: 4.627259621 | H61: 10.59478753 | I61: 5.210038082 | J61: 5.21270775 | K61: 4.513913435 | L61: 2.950807473 | M61: 14.92350113 | N61: 13.74231138 | O61: 15.63902578 | P61: 16.64322087 | Q61: 20.84744597 | R61: 26.31146316 | S61: 5.916669612 | T61: 9.335171352 | U61: 29.17618609 | V61: 3.299338669 | W61: 8.631939853 | X61: 8.29774903 | Y61: 17.90390255 | Z61: 18.62878719
B62: Unprotected well | C62: 51.6179192 | D62: 45.16116548 | E62: 43.42113202 | F62: 24.90694912 | G62: 8.314158688 | H62: 26.18051944 | I62: 17.50232704 | J62: 7.950009478 | K62: 6.280271819 | L62: 7.385708346 | M62: 52.66607265 | N62: 48.23581215 | O62: 45.74748217 | P62: 44.72027167 | Q62: 42.50563168 | R62: 36.12516162 | S62: 18.94994456 | T62: 61.28718782 | U62: 30.99858495 | V62: 12.44454821 | W62: 26.47438339 | X62: 59.47093174 | Y62: 34.81590139 | Z62: 59.7011341
B63: River/dam/lake/ponds/stream/canal/irrigation channel | C63: 31.3001955 | D63: 34.90629769 | E63: 28.5253498 | F63: 5.438304219 | G63: 0.146370223 | H63: 4.466077134 | I63: 0.3794240749 | J63: 0 | K63: 0 | L63: 0 | M63: 29.982406 | N63: 33.87134725 | O63: 34.19416635 | P63: 34.16252083 | Q63: 21.49413026 | R63: 17.79048986 | S63: 7.105031389 | T63: 22.15492775 | U63: 36.93315296 | V63: 1.874072365 | W63: 46.22543156 | X63: 15.58301772 | Y63: 23.52322134 | Z63: 10.05806951
B64: Tanker truck | C64: 0.06534962884 | D64: 0.06535043966 | E64: 0 | F64: 0 | G64: 0 | H64: 0 | I64: 0 | J64: 0 | K64: 0 | L64: 0 | M64: 0 | N64: 0.1018732964 | O64: 0.1019755347 | P64: 0 | Q64: 0 | R64: 0.2645426001 | S64: 0 | T64: 0 | U64: 0 | V64: 0 | W64: 0 | X64: 0 | Y64: 0 | Z64: 0
B65: Bottled water | C65: 0 | D65: 0 | E65: 0 | F65: 0.04818255199 | G65: 0.3131339518 | H65: 0 | I65: 0 | J65: 0.1341486 | K65: 0 | L65: 0.8735117395 | M65: 0 | N65: 0 | O65: 0 | P65: 0 | Q65: 0 | R65: 0 | S65: 0.43902427 | T65: 0 | U65: 0 | V65: 0 | W65: 0 | X65: 0 | Y65: 0 | Z65: 0
B66: Other | C66: 2.349713388 | D66: 4.292472245 | E66: 2.872135229 | F66: 4.409343537 | G66: 1.909828192 | H66: 8.200620735 | I66: 3.680497343 | J66: 3.510296753 | K66: 2.267227588 | L66: 1.098018114 | M66: 2.188288493 | N66: 3.65078515 | O66: 4.007027798 | P66: 2.626006631 | Q66: 1.719891988 | R66: 0.1185930749 | S66: 7.05749327 | T66: 0 | U66: 0 | V66: 1.76952992 | W66: 6.864535077 | X66: 7.983459124 | Y66: 2.843573926 | Z66: 0
A108: =A1026 -> Zambia
A109: =A1034 -> 2007
A110: Use of sanitation facilities
A111: by wealth quintile and sub-national region
A112: Notes:
A113: WHO/UNICEF JMP customised wealth index excludes water,
A114: sanitation and hygiene assets.
A115: Survey used for analysis: | B115: =A1025 -> DHS07
A116: =B1030 -> 
A117: =B1029 -> 
A120: Use of sanitation facilities | C120: NATIONAL wealth index quintile | H120: URBAN wealth index quintile | M120: RURAL wealth index quintile | R120: SUB-REGIONS: | BA120: Raw numbers of respondents: | BB120: Use of sanitation facilities | BC120: NATIONAL wealth index quintile | BH120: URBAN wealth index quintile | BM120: RURAL wealth index quintile | BR120: SUB-REGIONS:
A121: Weighted percentage (used in graphs) | C121: Poorest | D121: Poor | E121: Middle | F121: Rich | G121: Richest | H121: Poorest | I121: Poor | J121: Middle | K121: Rich | L121: Richest | M121: Poorest | N121: Poor | O121: Middle | P121: Rich | Q121: Richest | R121: Central | S121: Copperbelt | T121: Eastern | U121: Luapula | V121: Lusaka | W121: Northern | X121: Northwestern | Y121: Southern | Z121: Western | BA121: Sanitation data, raw numbers (weighted) | BC121: Poorest | BD121: Poor | BE121: Middle | BF121: Rich | BG121: Richest | BH121: Poorest | BI121: Poor | BJ121: Middle | BK121: Rich | BL121: Richest | BM121: Poorest | BN121: Poor | BO121: Middle | BP121: Rich | BQ121: Richest | BR121: Central | BS121: Copperbelt | BT121: Eastern | BU121: Luapula | BV121: Lusaka | BW121: Northern | BX121: Northwestern | BY121: Southern | BZ121: Western
A122: Sanitation | B122: Improved | C122: 11.46489875 | D122: 12.68024428 | E122: 18.96281434 | F122: 53.31195375 | G122: 92.2043074 | H122: 28.71765217 | I122: 59.39172789 | J122: 81.23154945 | K122: 92.15993669 | L122: 98.44731434 | M122: 8.323180583 | N122: 14.25631943 | O122: 13.36939211 | P122: 17.22879183 | Q122: 39.67187672 | R122: 20.81189671 | S122: 64.07508297 | T122: 20.11772817 | U122: 19.08730239 | V122: 78.42523463 | W122: 33.96235239 | X122: 6.670056389 | Y122: 40.50370733 | Z122: 4.681795592 | BA122: Sanitation | BB122: Improved | BC122: 817.631749 | BD122: 904.29422 | BE122: 1352.380446 | BF122: 3801.047195 | BG122: 6575.107681 | BH122: 736.1204 | BI122: 1515.320413 | BJ122: 2080.209401 | BK122: 2355.218114 | BL122: 2516.615955 | BM122: 380.74973 | BN122: 652.195364 | BO122: 611.007186 | BP122: 787.975221 | BQ122: 1815.049507 | BR122: 733.291563 | BS122: 3762.576276 | BT122: 1051.455475 | BU122: 538.657793 | BV122: 3859.468789 | BW122: 1752.820229 | BX122: 136.705233 | BY122: 1504.780495 | BZ122: 110.705438
B123: Not Improved | C123: 88.53510125 | D123: 87.31975572 | E123: 81.03718566 | F123: 46.68804625 | G123: 7.795692598 | H123: 71.28234783 | I123: 40.60827211 | J123: 18.76845055 | K123: 7.840063307 | L123: 1.55268566 | M123: 91.67681942 | N123: 85.74368057 | O123: 86.63060789 | P123: 82.77120817 | Q123: 60.32812328 | R123: 79.18810329 | S123: 35.92491703 | T123: 79.88227183 | U123: 80.91269761 | V123: 21.57476537 | W123: 66.03764761 | X123: 93.32994361 | Y123: 59.49629267 | Z123: 95.31820441 | BB123: Not Improved | BC123: 6313.977233 | BD123: 6227.226278 | BE123: 5779.369208 | BF123: 3328.774407 | BG123: 555.912405 | BH123: 1827.182462 | BI123: 1036.079364 | BJ123: 480.629848 | BK123: 200.358852 | BL123: 39.691418 | BM123: 4193.820366 | BN123: 3922.585434 | BO123: 3959.187039 | BP123: 3785.620123 | BQ123: 2760.104625 | BR123: 2790.133396 | BS123: 2109.560133 | BT123: 4175.056515 | BU123: 2283.41618 | BV123: 1061.739043 | BW123: 3408.248147 | BX123: 1912.831158 | BY123: 2210.386817 | BZ123: 2253.888142
A124: Sanitation ladder | B124: Basic | C124: =C122*C129/100 -> 7.426891987 | D124: =D122*D129/100 -> 8.729196967 | E124: =E122*E129/100 -> 12.60558012 | F124: 24.67587934 | G124: 67.92600447 | H124: 10.36639792 | I124: 21.68013974 | J124: 39.7909441 | K124: 64.81696322 | L124: 84.86726045 | M124: 4.408869178 | N124: 10.74294358 | O124: 8.932609686 | P124: 12.13921152 | Q124: 29.18120552 | R124: 16.74906518 | S124: 46.72634539 | T124: 12.04218561 | U124: 13.52604853 | V124: 34.35697533 | W124: 27.33166775 | X124: 4.779852967 | Y124: 27.18476228 | Z124: 4.038241533 | BA124: Sanitation ladder | BB124: Basic | BC124: 529.656896 | BD124: 622.524471 | BE124: 898.824891 | BF124: 1759.346176 | BG124: 4832.662451 | BH124: 265.627946 | BI124: 553.147037 | BJ124: 1018.982114 | BK124: 1653.25264 | BL124: 2160.331062 | BM124: 201.686811 | BN124: 491.46612 | BO124: 408.237612 | BP124: 555.198413 | BQ124: 1335.08513 | BR124: 590.140743 | BS124: 2743.83474 | BT124: 629.386275 | BU124: 381.715095 | BV124: 1684.144899 | BW124: 1410.606061 | BX124: 97.964826 | BY124: 1009.959402 | BZ124: 95.262844
B125: Limited | C125: =C122*C128/100 -> 4.038006763 | D125: =D122*D128/100 -> 3.951047313 | E125: =E122*E128/100 -> 6.357234218 | F125: 28.63607441 | G125: 24.27830293 | H125: 18.35125425 | I125: 37.71158815 | J125: 41.44060536 | K125: 27.34297347 | L125: 13.58005389 | M125: 3.914311405 | N125: 3.513375856 | O125: 4.436782421 | P125: 5.089580308 | Q125: 10.4906712 | R125: 4.062831525 | S125: 17.34873758 | T125: 8.075542557 | U125: 5.561253869 | V125: 44.0682593 | W125: 6.630684639 | X125: 1.890203422 | Y125: 13.31894506 | Z125: 0.6435540594 | BB125: Limited | BC125: 287.974853 | BD125: 281.769749 | BE125: 453.294517 | BF125: 2041.701019 | BG125: 1727.30376 | BH125: 470.231416 | BI125: 962.173376 | BJ125: 1061.227287 | BK125: 697.423033 | BL125: 345.685864 | BM125: 179.062919 | BN125: 160.729244 | BO125: 202.769574 | BP125: 232.776808 | BQ125: 479.964377 | BR125: 143.15082 | BS125: 1018.741536 | BT125: 422.0692 | BU125: 156.942698 | BV125: 2160.18242 | BW125: 342.214168 | BX125: 38.740407 | BY125: 494.821093 | BZ125: 15.181556
B126: Unimproved | C126: =100-C124-C125-C127 -> 37.09374106 | D126: =100-D124-D125-D127 -> 52.70125329 | E126: =100-E124-E125-E127 -> 56.18793464 | F126: 41.12188236 | G126: 7.579975146 | H126: 65.9129239 | I126: 38.15975371 | J126: 18.12181226 | K126: 7.604712749 | L126: 1.267577823 | M126: 32.99417133 | N126: 45.37065102 | O126: 54.1920583 | P126: 52.01235853 | Q126: 45.65994689 | R126: 52.91737158 | S126: 30.67308316 | T126: 36.44168202 | U126: 69.62805532 | V126: 16.8234534 | W126: 52.78891165 | X126: 81.17273142 | Y126: 10.52102216 | Z126: 31.31367183 | BB126: Unimproved | BC126: 2645.380569 | BD126: 3758.400681 | BE126: 4007.2477 | BF126: 2931.916852 | BG126: 540.562213 | BH126: 1689.561881 | BI126: 973.607871 | BJ126: 464.070481 | BK126: 194.354978 | BL126: 32.433404 | BM126: 1509.341495 | BN126: 2075.607831 | BO126: 2476.682319 | BP126: 2378.834808 | BQ126: 2089.012947 | BR126: 1864.503878 | BS126: 1801.165284 | BT126: 1904.62888 | BU126: 1964.955227 | BV126: 828.636525 | BW126: 2724.471825 | BX126: 1663.66467 | BY126: 390.873576 | BZ126: 740.60815
B127: Open defecation | C127: 51.44136019 | D127: 34.61850243 | E127: 24.84925102 | F127: 5.566163884 | G127: 0.2157174515 | H127: 5.369423929 | I127: 2.4485184 | J127: 0.6466382849 | K127: 0.2353505584 | L127: 0.2851078372 | M127: 58.68264809 | N127: 40.37302954 | O127: 32.43854959 | P127: 30.75884964 | Q127: 14.66817639 | R127: 26.27073171 | S127: 5.251833873 | T127: 43.44058981 | U127: 11.28464229 | V127: 4.751311964 | W127: 13.24873596 | X127: 12.15721219 | Y127: 48.97527051 | Z127: 64.00453257 | BB127: Open defecation | BC127: 3668.596664 | BD127: 2468.825597 | BE127: 1772.121508 | BF127: 396.857555 | BG127: 15.350192 | BH127: 137.620581 | BI127: 62.471493 | BJ127: 16.559367 | BK127: 6.003874 | BL127: 7.258014 | BM127: 2684.478871 | BN127: 1846.977603 | BO127: 1482.50472 | BP127: 1406.785315 | BQ127: 671.091678 | BR127: 925.629518 | BS127: 308.394849 | BT127: 2270.427635 | BU127: 318.460953 | BV127: 233.102518 | BW127: 683.776322 | BX127: 249.166488 | BY127: 1819.513241 | BZ127: 1513.279992
A128: Shared among Improved Sanitation | B128: Yes | C128: 35.22060553 | D128: 31.15907884 | E128: 33.52474007 | F128: 53.71417176 | G128: 26.33098562 | H128: 63.90234878 | I128: 63.49636471 | J128: 51.01540674 | K128: 29.66904542 | L128: 13.794235 | M128: 47.02903374 | N128: 24.64434016 | O128: 33.18611935 | P128: 29.54113299 | Q128: 26.443597 | R128: 19.52167831 | S128: 27.07563811 | T128: 40.14142396 | U128: 29.13588182 | V128: 56.19142806 | W128: 19.52363182 | X128: 28.33864231 | Y128: 32.88327398 | Z128: 13.74588119 | BA128: Shared among improved sanitation facilities | BB128: Yes | BC128: N/A | BD128: N/A | BE128: N/A | BF128: N/A | BG128: N/A | BH128: N/A | BI128: N/A | BJ128: N/A | BK128: N/A | BL128: N/A | BM128: N/A | BN128: N/A | BO128: N/A | BP128: N/A | BQ128: N/A | BR128: N/A | BS128: N/A | BT128: N/A | BU128: N/A | BV128: N/A | BW128: N/A | BX128: N/A | BY128: N/A | BZ128: N/A
B129: No | C129: 64.77939447 | D129: 68.84092116 | E129: 66.47525993 | F129: 46.28582824 | G129: 73.66901438 | H129: 36.09765122 | I129: 36.50363529 | J129: 48.98459326 | K129: 70.33095458 | L129: 86.205765 | M129: 52.97096626 | N129: 75.35565984 | O129: 66.81388065 | P129: 70.45886701 | Q129: 73.556403 | R129: 80.47832169 | S129: 72.92436189 | T129: 59.85857604 | U129: 70.86411818 | V129: 43.80857194 | W129: 80.47636818 | X129: 71.66135769 | Y129: 67.11672602 | Z129: 86.25411881 | BB129: No | BC129: N/A | BD129: N/A | BE129: N/A | BF129: N/A | BG129: N/A | BH129: N/A | BI129: N/A | BJ129: N/A | BK129: N/A | BL129: N/A | BM129: N/A | BN129: N/A | BO129: N/A | BP129: N/A | BQ129: N/A | BR129: N/A | BS129: N/A | BT129: N/A | BU129: N/A | BV129: N/A | BW129: N/A | BX129: N/A | BY129: N/A | BZ129: N/A
